Workbook

Sheet Change
A1: =RIGHT(CELL("filename", A1), LEN(CELL("filename", A1)) - SEARCH("]", CELL("filename", A1))) -> Change | V1: InpS_Ann | W1: =Time!J$48 -> 2020-03-31 | X1: =Time!K$48 -> 2021-03-31 | Y1: =Time!L$48 -> 2022-03-31 | Z1: =Time!M$48 -> 2023-03-31 | AA1: =Time!N$48 -> 2024-03-31 | AB1: =Time!O$48 -> 2025-03-31 | AC1: =Time!P$48 -> 2026-03-31 | AD1: =Time!Q$48 -> 2027-03-31 | AE1: =Time!R$48 -> 2028-03-31 | AF1: =Time!S$48 -> 2029-03-31 | AG1: =Time!T$48 -> 2030-03-31 | AH1: =Time!U$48 -> 2031-03-31 | AI1: =Time!V$48 -> 2032-03-31 | AJ1: =Time!W$48 -> 2033-03-31 | AK1: =Time!X$48 -> 2034-03-31 | AL1: =Time!Y$48 -> 2035-03-31 | AM1: =Time!Z$48 -> 2036-03-31 | AN1: =Time!AA$48 -> 2037-03-31 | AO1: =Time!AB$48 -> 2038-03-31 | AP1: =Time!AC$48 -> 2039-03-31 | AQ1: =Time!AD$48 -> 2040-03-31 | AR1: =Time!AE$48 -> 2041-03-31 | AS1: =Time!AF$48 -> 2042-03-31 | AT1: =Time!AG$48 -> 2043-03-31 | AU1: =Time!AH$48 -> 2044-03-31 | AV1: =Time!AI$48 -> 2045-03-31 | AW1: =Time!AJ$48 -> 2046-03-31 | AX1: =Time!AK$48 -> 2047-03-31 | AY1: =Time!AL$48 -> 2048-03-31 | AZ1: =Time!AM$48 -> 2049-03-31 | BA1: =Time!AN$48 -> 2050-03-31 | BB1: =Time!AO$48 -> 2051-03-31 | BC1: =Time!AP$48 -> 2052-03-31 | BD1: =Time!AQ$48 -> 2053-03-31 | BE1: =Time!AR$48 -> 2054-03-31 | BF1: =Time!AS$48 -> 2055-03-31 | BG1: =Time!AT$48 -> 2056-03-31 | BH1: =Time!AU$48 -> 2057-03-31 | BI1: =Time!AV$48 -> 2058-03-31 | BJ1: =Time!AW$48 -> 2059-03-31 | BK1: =Time!AX$48 -> 2060-03-31 | BL1: =Time!AY$48 -> 2061-03-31 | BM1: =Time!AZ$48 -> 2062-03-31 | BN1: =Time!BA$48 -> 2063-03-31 | BO1: =Time!BB$48 -> 2064-03-31 | BP1: =Time!BC$48 -> 2065-03-31 | BQ1: =Time!BD$48 -> 2066-03-31
V2: InpS_Ann | W2: =Time!J$53 -> Pre-fcst | X2: =Time!K$53 -> Operations | Y2: =Time!L$53 -> Operations | Z2: =Time!M$53 -> Operations | AA2: =Time!N$53 -> Operations | AB2: =Time!O$53 -> Operations | AC2: =Time!P$53 -> Operations | AD2: =Time!Q$53 -> Operations | AE2: =Time!R$53 -> Operations | AF2: =Time!S$53 -> Operations | AG2: =Time!T$53 -> Operations | AH2: =Time!U$53 -> Operations | AI2: =Time!V$53 -> Operations | AJ2: =Time!W$53 -> Operations | AK2: =Time!X$53 -> Operations | AL2: =Time!Y$53 -> Operations | AM2: =Time!Z$53 -> Operations | AN2: =Time!AA$53 -> Operations | AO2: =Time!AB$53 -> Operations | AP2: =Time!AC$53 -> Operations | AQ2: =Time!AD$53 -> Operations | AR2: =Time!AE$53 -> Operations | AS2: =Time!AF$53 -> Operations | AT2: =Time!AG$53 -> Operations | AU2: =Time!AH$53 -> Operations | AV2: =Time!AI$53 -> Operations | AW2: =Time!AJ$53 -> Post ops | AX2: =Time!AK$53 -> Post ops | AY2: =Time!AL$53 -> Post ops | AZ2: =Time!AM$53 -> Post ops | BA2: =Time!AN$53 -> Post ops | BB2: =Time!AO$53 -> Post ops | BC2: =Time!AP$53 -> Post ops | BD2: =Time!AQ$53 -> Post ops | BE2: =Time!AR$53 -> Post ops | BF2: =Time!AS$53 -> Post ops | BG2: =Time!AT$53 -> Post ops | BH2: =Time!AU$53 -> Post ops | BI2: =Time!AV$53 -> Post ops | BJ2: =Time!AW$53 -> Post ops | BK2: =Time!AX$53 -> Post ops | BL2: =Time!AY$53 -> Post ops | BM2: =Time!AZ$53 -> Post ops | BN2: =Time!BA$53 -> Post ops | BO2: =Time!BB$53 -> Post ops | BP2: =Time!BC$53 -> Post ops | BQ2: =Time!BD$53 -> 0
F3: =TODAY() -> 2020-08-07 | G3: =NOW() -> 44050.32955 | H3: [Template issued stamp line] | O3: =Output!$H$10 -> 0.1475514233 | P3: =Output!$H$11 -> 0.6149336234 | Q3: =Output!$H$12 -> 1.358484498 | R3: =Output!$H$13 -> 3203.1151 | S3: =InpC!$F$3 -> Base case 1
H4: [Template change line] | O4: =O3 -> 0.1475514233 | P4: =P3 -> 0.6149336234 | Q4: =Q3 -> 1.358484498 | R4: =R3 -> 3203.1151 | S4: =S3 -> Base case 1 | V4: InpS_Qtr | W4: =Time!J$25 -> 2020-09-30 | X4: =Time!K$25 -> 2020-12-31 | Y4: =Time!L$25 -> 2021-03-31 | Z4: =Time!M$25 -> 2021-06-30 | AA4: =Time!N$25 -> 2021-09-30 | AB4: =Time!O$25 -> 2021-12-31 | AC4: =Time!P$25 -> 2022-03-31 | AD4: =Time!Q$25 -> 2022-06-30 | AE4: =Time!R$25 -> 2022-09-30 | AF4: =Time!S$25 -> 2022-12-31 | AG4: =Time!T$25 -> 2023-03-31 | AH4: =Time!U$25 -> 2023-06-30 | AI4: =Time!V$25 -> 2023-09-30 | AJ4: =Time!W$25 -> 2023-12-31 | AK4: =Time!X$25 -> 2024-03-31 | AL4: =Time!Y$25 -> 2024-06-30 | AM4: =Time!Z$25 -> 2024-09-30 | AN4: =Time!AA$25 -> 2024-12-31 | AO4: =Time!AB$25 -> 2025-03-31 | AP4: =Time!AC$25 -> 2025-06-30 | AQ4: =Time!AD$25 -> 2025-09-30 | AR4: =Time!AE$25 -> 2025-12-31 | AS4: =Time!AF$25 -> 2026-03-31 | AT4: =Time!AG$25 -> 2026-06-30 | AU4: =Time!AH$25 -> 2026-09-30 | AV4: =Time!AI$25 -> 2026-12-31 | AW4: =Time!AJ$25 -> 2027-03-31 | AX4: =Time!AK$25 -> 2027-06-30 | AY4: =Time!AL$25 -> 2027-09-30 | AZ4: =Time!AM$25 -> 2027-12-31 | BA4: =Time!AN$25 -> 2028-03-31 | BB4: =Time!AO$25 -> 2028-06-30 | BC4: =Time!AP$25 -> 2028-09-30 | BD4: =Time!AQ$25 -> 2028-12-31 | BE4: =Time!AR$25 -> 2029-03-31 | BF4: =Time!AS$25 -> 2029-06-30 | BG4: =Time!AT$25 -> 2029-09-30 | BH4: =Time!AU$25 -> 2029-12-31 | BI4: =Time!AV$25 -> 2030-03-31 | BJ4: =Time!AW$25 -> 2030-06-30 | BK4: =Time!AX$25 -> 2030-09-30 | BL4: =Time!AY$25 -> 2030-12-31 | BM4: =Time!AZ$25 -> 2031-03-31 | BN4: =Time!BA$25 -> 2031-06-30 | BO4: =Time!BB$25 -> 2031-09-30 | BP4: =Time!BC$25 -> 2031-12-31 | BQ4: =Time!BD$25 -> 2032-03-31 | BR4: =Time!BE$25 -> 2032-06-30 | BS4: =Time!BF$25 -> 2032-09-30 | BT4: =Time!BG$25 -> 2032-12-31 | BU4: =Time!BH$25 -> 2033-03-31 | BV4: =Time!BI$25 -> 2033-06-30 | BW4: =Time!BJ$25 -> 2033-09-30 | BX4: =Time!BK$25 -> 2033-12-31 | BY4: =Time!BL$25 -> 2034-03-31 | BZ4: =Time!BM$25 -> 2034-06-30 | CA4: =Time!BN$25 -> 2034-09-30 | CB4: =Time!BO$25 -> 2034-12-31 | CC4: =Time!BP$25 -> 2035-03-31 | CD4: =Time!BQ$25 -> 2035-06-30 | CE4: =Time!BR$25 -> 2035-09-30 | CF4: =Time!BS$25 -> 2035-12-31 | CG4: =Time!BT$25 -> 2036-03-31 | CH4: =Time!BU$25 -> 2036-06-30 | CI4: =Time!BV$25 -> 2036-09-30 | CJ4: =Time!BW$25 -> 2036-12-31 | CK4: =Time!BX$25 -> 2037-03-31 | CL4: =Time!BY$25 -> 2037-06-30 | CM4: =Time!BZ$25 -> 2037-09-30 | CN4: =Time!CA$25 -> 2037-12-31 | CO4: =Time!CB$25 -> 2038-03-31 | CP4: =Time!CC$25 -> 2038-06-30 | CQ4: =Time!CD$25 -> 2038-09-30 | CR4: =Time!CE$25 -> 2038-12-31 | CS4: =Time!CF$25 -> 2039-03-31 | CT4: =Time!CG$25 -> 2039-06-30 | CU4: =Time!CH$25 -> 2039-09-30 | CV4: =Time!CI$25 -> 2039-12-31 | CW4: =Time!CJ$25 -> 2040-03-31 | CX4: =Time!CK$25 -> 2040-06-30 | CY4: =Time!CL$25 -> 2040-09-30 | CZ4: =Time!CM$25 -> 2040-12-31 | DA4: =Time!CN$25 -> 2041-03-31 | DB4: =Time!CO$25 -> 2041-06-30 | DC4: =Time!CP$25 -> 2041-09-30 | DD4: =Time!CQ$25 -> 2041-12-31 | DE4: =Time!CR$25 -> 2042-03-31 | DF4: =Time!CS$25 -> 2042-06-30 | DG4: =Time!CT$25 -> 2042-09-30 | DH4: =Time!CU$25 -> 2042-12-31 | DI4: =Time!CV$25 -> 2043-03-31 | DJ4: =Time!CW$25 -> 2043-06-30 | DK4: =Time!CX$25 -> 2043-09-30 | DL4: =Time!CY$25 -> 2043-12-31 | DM4: =Time!CZ$25 -> 2044-03-31 | DN4: =Time!DA$25 -> 2044-06-30 | DO4: =Time!DB$25 -> 2044-09-30 | DP4: =Time!DC$25 -> 2044-12-31 | DQ4: =Time!DD$25 -> 2045-03-31 | DR4: =Time!DE$25 -> 2045-06-30 | DS4: =Time!DF$25 -> 2045-09-30 | DT4: =Time!DG$25 -> 2045-12-31 | DU4: =Time!DH$25 -> 2046-03-31 | DV4: =Time!DI$25 -> 2046-06-30 | DW4: =Time!DJ$25 -> 2046-09-30 | DX4: =Time!DK$25 -> 2046-12-31 | DY4: =Time!DL$25 -> 2047-03-31 | DZ4: =Time!DM$25 -> 2047-06-30 | EA4: =Time!DN$25 -> 2047-09-30 | EB4: =Time!DO$25 -> 2047-12-31 | EC4: =Time!DP$25 -> 2048-03-31 | ED4: =Time!DQ$25 -> 2048-06-30 | EE4: =Time!DR$25 -> 2048-09-30 | EF4: =Time!DS$25 -> 2048-12-31 | EG4: =Time!DT$25 -> 2049-03-31 | EH4: =Time!DU$25 -> 2049-06-30 | EI4: =Time!DV$25 -> 2049-09-30 | EJ4: =Time!DW$25 -> 2049-12-31 | EK4: =Time!DX$25 -> 2050-03-31 | EL4: =Time!DY$25 -> 2050-06-30 | EM4: =Time!DZ$25 -> 2050-09-30 | EN4: =Time!EA$25 -> 2050-12-31 | EO4: =Time!EB$25 -> 2051-03-31 | EP4: =Time!EC$25 -> 2051-06-30 | EQ4: =Time!ED$25 -> 2051-09-30 | ER4: =Time!EE$25 -> 2051-12-31 | ES4: =Time!EF$25 -> 2052-03-31 | ET4: =Time!EG$25 -> 2052-06-30 | EU4: =Time!EH$25 -> 2052-09-30 | EV4: =Time!EI$25 -> 2052-12-31 | EW4: =Time!EJ$25 -> 2053-03-31 | EX4: =Time!EK$25 -> 2053-06-30 | EY4: =Time!EL$25 -> 2053-09-30 | EZ4: =Time!EM$25 -> 2053-12-31 | FA4: =Time!EN$25 -> 2054-03-31 | FB4: =Time!EO$25 -> 2054-06-30 | FC4: =Time!EP$25 -> 2054-09-30 | FD4: =Time!EQ$25 -> 2054-12-31 | FE4: =Time!ER$25 -> 2055-03-31 | FF4: =Time!ES$25 -> 2055-06-30 | FG4: =Time!ET$25 -> 2055-09-30 | FH4: =Time!EU$25 -> 2055-12-31 | FI4: =Time!EV$25 -> 2056-03-31 | FJ4: =Time!EW$25 -> 2056-06-30 | FK4: =Time!EX$25 -> 2056-09-30 | FL4: =Time!EY$25 -> 2056-12-31 | FM4: =Time!EZ$25 -> 2057-03-31 | FN4: =Time!FA$25 -> 2057-06-30 | FO4: =Time!FB$25 -> 2057-09-30 | FP4: =Time!FC$25 -> 2057-12-31 | FQ4: =Time!FD$25 -> 2058-03-31 | FR4: =Time!FE$25 -> 2058-06-30 | FS4: =Time!FF$25 -> 2058-09-30 | FT4: =Time!FG$25 -> 2058-12-31 | FU4: =Time!FH$25 -> 2059-03-31 | FV4: =Time!FI$25 -> 2059-06-30 | FW4: =Time!FJ$25 -> 2059-09-30 | FX4: =Time!FK$25 -> 2059-12-31 | FY4: =Time!FL$25 -> 2060-03-31 | FZ4: =Time!FM$25 -> 2060-06-30 | GA4: =Time!FN$25 -> 2060-09-30 | GB4: =Time!FO$25 -> 2060-12-31 | GC4: =Time!FP$25 -> 2061-03-31 | GD4: =Time!FQ$25 -> 2061-06-30 | GE4: =Time!FR$25 -> 2061-09-30 | GF4: =Time!FS$25 -> 2061-12-31 | GG4: =Time!FT$25 -> 2062-03-31 | GH4: =Time!FU$25 -> 2062-06-30 | GI4: =Time!FV$25 -> 2062-09-30 | GJ4: =Time!FW$25 -> 2062-12-31 | GK4: =Time!FX$25 -> 2063-03-31 | GL4: =Time!FY$25 -> 2063-06-30 | GM4: =Time!FZ$25 -> 2063-09-30 | GN4: =Time!GA$25 -> 2063-12-31 | GO4: =Time!GB$25 -> 2064-03-31 | GP4: =Time!GC$25 -> 2064-06-30 | GQ4: =Time!GD$25 -> 2064-09-30 | GR4: =Time!GE$25 -> 2064-12-31 | GS4: =Time!GF$25 -> 2065-03-31 | GT4: =Time!GG$25 -> 2065-06-30 | GU4: =Time!GH$25 -> 2065-09-30 | GV4: =Time!GI$25 -> 2065-12-31 | GW4: =Time!GJ$25 -> 2066-03-31
E5: Version | F5: Date | G5: Time | H5: Description | I5: Label link | J5: Current value | K5: Previous value | L5: Requested by | M5: Additional details | N5: Scenario | O5: =Output!$E$10 -> Blended equity IRR | P5: =Output!$E$11 -> Min DSCR | Q5: =Output!$E$12 -> Avg DSCR | R5: =Output!$E$13 -> Aurelius premium | S5: Scenario Active | V5: InpS_Qtr | W5: =Time!J$67 -> Pre-fcst | X5: =Time!K$67 -> Pre-fcst | Y5: =Time!L$67 -> Fin Close | Z5: =Time!M$67 -> Operations | AA5: =Time!N$67 -> Operations | AB5: =Time!O$67 -> Operations | AC5: =Time!P$67 -> Operations | AD5: =Time!Q$67 -> Operations | AE5: =Time!R$67 -> Operations | AF5: =Time!S$67 -> Operations | AG5: =Time!T$67 -> Operations | AH5: =Time!U$67 -> Operations | AI5: =Time!V$67 -> Operations | AJ5: =Time!W$67 -> Operations | AK5: =Time!X$67 -> Operations | AL5: =Time!Y$67 -> Operations | AM5: =Time!Z$67 -> Operations | AN5: =Time!AA$67 -> Operations | AO5: =Time!AB$67 -> Operations | AP5: =Time!AC$67 -> Operations | AQ5: =Time!AD$67 -> Operations | AR5: =Time!AE$67 -> Operations | AS5: =Time!AF$67 -> Operations | AT5: =Time!AG$67 -> Operations | AU5: =Time!AH$67 -> Operations | AV5: =Time!AI$67 -> Operations | AW5: =Time!AJ$67 -> Operations | AX5: =Time!AK$67 -> Operations | AY5: =Time!AL$67 -> Operations | AZ5: =Time!AM$67 -> Operations | BA5: =Time!AN$67 -> Operations | BB5: =Time!AO$67 -> Operations | BC5: =Time!AP$67 -> Operations | BD5: =Time!AQ$67 -> Operations | BE5: =Time!AR$67 -> Operations | BF5: =Time!AS$67 -> Operations | BG5: =Time!AT$67 -> Operations | BH5: =Time!AU$67 -> Operations | BI5: =Time!AV$67 -> Operations | BJ5: =Time!AW$67 -> Operations | BK5: =Time!AX$67 -> Operations | BL5: =Time!AY$67 -> Operations | BM5: =Time!AZ$67 -> Operations | BN5: =Time!BA$67 -> Operations | BO5: =Time!BB$67 -> Operations | BP5: =Time!BC$67 -> Operations | BQ5: =Time!BD$67 -> Operations | BR5: =Time!BE$67 -> Operations | BS5: =Time!BF$67 -> Operations | BT5: =Time!BG$67 -> Operations | BU5: =Time!BH$67 -> Operations | BV5: =Time!BI$67 -> Operations | BW5: =Time!BJ$67 -> Operations | BX5: =Time!BK$67 -> Operations | BY5: =Time!BL$67 -> Operations | BZ5: =Time!BM$67 -> Operations | CA5: =Time!BN$67 -> Operations | CB5: =Time!BO$67 -> Operations | CC5: =Time!BP$67 -> Operations | CD5: =Time!BQ$67 -> Operations | CE5: =Time!BR$67 -> Operations | CF5: =Time!BS$67 -> Operations | CG5: =Time!BT$67 -> Operations | CH5: =Time!BU$67 -> Operations | CI5: =Time!BV$67 -> Operations | CJ5: =Time!BW$67 -> Operations | CK5: =Time!BX$67 -> Operations | CL5: =Time!BY$67 -> Operations | CM5: =Time!BZ$67 -> Operations | CN5: =Time!CA$67 -> Operations | CO5: =Time!CB$67 -> Operations | CP5: =Time!CC$67 -> Operations | CQ5: =Time!CD$67 -> Operations | CR5: =Time!CE$67 -> Operations | CS5: =Time!CF$67 -> Operations | CT5: =Time!CG$67 -> Operations | CU5: =Time!CH$67 -> Operations | CV5: =Time!CI$67 -> Operations | CW5: =Time!CJ$67 -> Operations | CX5: =Time!CK$67 -> Operations | CY5: =Time!CL$67 -> Operations | CZ5: =Time!CM$67 -> Operations | DA5: =Time!CN$67 -> Operations | DB5: =Time!CO$67 -> Operations | DC5: =Time!CP$67 -> Operations | DD5: =Time!CQ$67 -> Operations | DE5: =Time!CR$67 -> Operations | DF5: =Time!CS$67 -> Operations | DG5: =Time!CT$67 -> Operations | DH5: =Time!CU$67 -> Operations | DI5: =Time!CV$67 -> Operations | DJ5: =Time!CW$67 -> Operations | DK5: =Time!CX$67 -> Operations | DL5: =Time!CY$67 -> Operations | DM5: =Time!CZ$67 -> Operations | DN5: =Time!DA$67 -> Operations | DO5: =Time!DB$67 -> Operations | DP5: =Time!DC$67 -> Operations | DQ5: =Time!DD$67 -> Operations | DR5: =Time!DE$67 -> Operations | DS5: =Time!DF$67 -> Operations | DT5: =Time!DG$67 -> Operations | DU5: =Time!DH$67 -> Operations | DV5: =Time!DI$67 -> Post ops | DW5: =Time!DJ$67 -> Post ops | DX5: =Time!DK$67 -> Post ops | DY5: =Time!DL$67 -> Post ops | DZ5: =Time!DM$67 -> Post ops | EA5: =Time!DN$67 -> Post ops | EB5: =Time!DO$67 -> Post ops | EC5: =Time!DP$67 -> Post ops | ED5: =Time!DQ$67 -> Post ops | EE5: =Time!DR$67 -> Post ops | EF5: =Time!DS$67 -> Post ops | EG5: =Time!DT$67 -> Post ops | EH5: =Time!DU$67 -> Post ops | EI5: =Time!DV$67 -> Post ops | EJ5: =Time!DW$67 -> Post ops | EK5: =Time!DX$67 -> Post ops | EL5: =Time!DY$67 -> Post ops | EM5: =Time!DZ$67 -> Post ops | EN5: =Time!EA$67 -> Post ops | EO5: =Time!EB$67 -> Post ops | EP5: =Time!EC$67 -> Post ops | EQ5: =Time!ED$67 -> Post ops | ER5: =Time!EE$67 -> Post ops | ES5: =Time!EF$67 -> Post ops | ET5: =Time!EG$67 -> Post ops | EU5: =Time!EH$67 -> Post ops | EV5: =Time!EI$67 -> Post ops | EW5: =Time!EJ$67 -> Post ops | EX5: =Time!EK$67 -> Post ops | EY5: =Time!EL$67 -> Post ops | EZ5: =Time!EM$67 -> Post ops | FA5: =Time!EN$67 -> Post ops | FB5: =Time!EO$67 -> Post ops | FC5: =Time!EP$67 -> Post ops | FD5: =Time!EQ$67 -> Post ops | FE5: =Time!ER$67 -> Post ops | FF5: =Time!ES$67 -> Post ops | FG5: =Time!ET$67 -> Post ops | FH5: =Time!EU$67 -> Post ops | FI5: =Time!EV$67 -> Post ops | FJ5: =Time!EW$67 -> Post ops | FK5: =Time!EX$67 -> Post ops | FL5: =Time!EY$67 -> Post ops | FM5: =Time!EZ$67 -> Post ops | FN5: =Time!FA$67 -> Post ops | FO5: =Time!FB$67 -> Post ops | FP5: =Time!FC$67 -> Post ops | FQ5: =Time!FD$67 -> Post ops | FR5: =Time!FE$67 -> Post ops | FS5: =Time!FF$67 -> Post ops | FT5: =Time!FG$67 -> Post ops | FU5: =Time!FH$67 -> Post ops | FV5: =Time!FI$67 -> Post ops | FW5: =Time!FJ$67 -> Post ops | FX5: =Time!FK$67 -> Post ops | FY5: =Time!FL$67 -> Post ops | FZ5: =Time!FM$67 -> Post ops | GA5: =Time!FN$67 -> Post ops | GB5: =Time!FO$67 -> Post ops | GC5: =Time!FP$67 -> Post ops | GD5: =Time!FQ$67 -> Post ops | GE5: =Time!FR$67 -> Post ops | GF5: =Time!FS$67 -> Post ops | GG5: =Time!FT$67 -> Post ops | GH5: =Time!FU$67 -> Post ops | GI5: =Time!FV$67 -> Post ops | GJ5: =Time!FW$67 -> Post ops | GK5: =Time!FX$67 -> Post ops | GL5: =Time!FY$67 -> Post ops | GM5: =Time!FZ$67 -> Post ops | GN5: =Time!GA$67 -> Post ops | GO5: =Time!GB$67 -> Post ops | GP5: =Time!GC$67 -> Post ops | GQ5: =Time!GD$67 -> Post ops | GR5: =Time!GE$67 -> Post ops | GS5: =Time!GF$67 -> Post ops | GT5: =Time!GG$67 -> Post ops | GU5: =Time!GH$67 -> Post ops | GV5: =Time!GI$67 -> Post ops | GW5: =Time!GJ$67 -> Post ops
A7: NOTE: CHANGES ARE LISTED IN REVERSE ORDER WITH MOST RECENT CHANGES AT THE TOP
F8: 2020-08-07T07:53:42 | G8: 44050.32896 | H8: Senior debt level DS repayment profile | O8: 0.1475514233 | P8: 0.6149336234 | Q8: 1.358484498 | R8: 3203.1151 | S8: Base case 1
F9: 2020-08-07T07:53:42 | G9: 44050.32896 | H9: Level ds principal repayment profile added as an input option | I9: =InpC!$E$61 -> Senior active principal repayment profile | J9: 3 | K9: 2 | L9: Financial team | M9: Demo only - not relevant for this project | N9: Base case 1
F10: 2020-08-07T07:53:17 | G10: 44050.32867 | H10: Level ds principal repayment profile added as an option | I10: =Debt!$E$105 -> Senior debt principal repayment POS | L10: Financial team | M10: Demo only - not relevant for this project | N10: ALL
F11: 2020-08-07T07:52:51 | G11: 44050.32837 | H11: Level ds principal repayment calculation added | I11: =Debt!$E$99 -> Senior debt level ds principal repayment | L11: Financial team | M11: Demo only - not relevant for this project | N11: ALL
F12: 2020-04-27T20:16:32 | G12: 43948.84481 | H12: Partial hedging of senior debt interest | O12: 0.142944175 | P12: 1.3 | Q12: 1.39 | R12: 2823.63582 | S12: Base case 1
F13: 2020-04-27T20:16:32 | G13: 43948.84481 | H13: Senior debt forward curve selection input added | I13: =InpC!$E$63 -> Senior debt forward curve selection | J13: 1 | K13: 0 | L13: Financial team | M13: Exploratory analysis - inputs not yet confirmed | N13: Base case 1
F14: 2020-04-27T20:10:30 | G14: 43948.84062 | H14: Adjustment to senior debt interest rate calculation | I14: =Debt!$E$129 -> Senior debt period interest rate | L14: Financial team | M14: Exploratory analysis - inputs not yet confirmed | N14: ALL
F15: 2020-04-27T20:06:42 | G15: 43948.83799 | H15: All in annual senior debt interest rate calculation added | I15: =Debt!$E$124 -> All in annual senior debt interest rate applicable in period | L15: Financial team | M15: Exploratory analysis - inputs not yet confirmed | N15: ALL
F16: 2020-04-27T20:06:20 | G16: 43948.83773 | H16: Proportion of senior debt hedged input added | I16: =InpC!$E$62 -> Propoprtion of senior debt swapped | J16: 0.8 | K16: 0 | L16: Financial team | M16: Exploratory analysis - inputs not yet confirmed | N16: Base case 1
F17: 2020-04-27T19:59:46 | G17: 43948.83317 | H17: Senior debt forward curve inputs added | I17: =InpS!$E$10 -> Senior debt forward curve as at April 27th | L17: Financial team | M17: Exploratory analysis - inputs not yet confirmed | N17: All | V17: New - InpS | W17: 0.02 | X17: 0.020062 | Y17: 0.020124 | Z17: 0.020184 | AA17: 0.020241 | AB17: 0.020308 | AC17: 0.020375 | AD17: 0.020434 | AE17: 0.020506 | AF17: 0.020569 | AG17: 0.02062 | AH17: 0.020666 | AI17: 0.020719 | AJ17: 0.020757 | AK17: 0.020795 | AL17: 0.02085 | AM17: 0.020888 | AN17: 0.020954 | AO17: 0.021024 | AP17: 0.021091 | AQ17: 0.021134 | AR17: 0.021205 | AS17: 0.021279 | AT17: 0.021316 | AU17: 0.021367 | AV17: 0.021421 | AW17: 0.02147 | AX17: 0.021516 | AY17: 0.02157 | AZ17: 0.021639 | BA17: 0.021709 | BB17: 0.021772 | BC17: 0.021813 | BD17: 0.021858 | BE17: 0.021913 | BF17: 0.021986 | BG17: 0.022041 | BH17: 0.022089 | BI17: 0.022148 | BJ17: 0.022216 | BK17: 0.022282 | BL17: 0.022351 | BM17: 0.022409 | BN17: 0.022445 | BO17: 0.022489 | BP17: 0.022535 | BQ17: 0.022607 | BR17: 0.022647 | BS17: 0.022684 | BT17: 0.022734 | BU17: 0.022806 | BV17: 0.022852 | BW17: 0.022899 | BX17: 0.022953 | BY17: 0.023028 | BZ17: 0.023094 | CA17: 0.023146 | CB17: 0.023212 | CC17: 0.023254 | CD17: 0.023289 | CE17: 0.023334 | CF17: 0.023373 | CG17: 0.023414 | CH17: 0.023473 | CI17: 0.02352 | CJ17: 0.023593 | CK17: 0.023661 | CL17: 0.023729 | CM17: 0.023786 | CN17: 0.023842 | CO17: 0.023908 | CP17: 0.023962 | CQ17: 0.024012 | CR17: 0.024071 | CS17: 0.02412 | CT17: 0.024167 | CU17: 0.024216 | CV17: 0.024264 | CW17: 0.024302 | CX17: 0.024366 | CY17: 0.024409 | CZ17: 0.024463 | DA17: 0.024531 | DB17: 0.024587 | DC17: 0.024623 | DD17: 0.024689 | DE17: 0.024739 | DF17: 0.02479 | DG17: 0.024835 | DH17: 0.024873 | DI17: 0.024931 | DJ17: 0.024984 | DK17: 0.025049 | DL17: 0.025112 | DM17: 0.025182 | DN17: 0.025252 | DO17: 0.02529 | DP17: 0.025333 | DQ17: 0.025394 | DR17: 0.025439 | DS17: 0.025491 | DT17: 0.025562 | DU17: 0.025624 | DV17: 0.025666 | DW17: 0.025739 | DX17: 0.025799 | DY17: 0.025837 | DZ17: 0.025907 | EA17: 0.025947 | EB17: 0.025986 | EC17: 0.026059 | ED17: 0.026104 | EE17: 0.026177 | EF17: 0.02622 | EG17: 0.026291 | EH17: 0.026347 | EI17: 0.026388 | EJ17: 0.026447 | EK17: 0.026511 | EL17: 0.026547 | EM17: 0.026589 | EN17: 0.026655 | EO17: 0.026693 | EP17: 0.026738 | EQ17: 0.026811 | ER17: 0.026864 | ES17: 0.026917 | ET17: 0.026985 | EU17: 0.027028 | EV17: 0.02709 | EW17: 0.027134 | EX17: 0.027205 | EY17: 0.02727 | EZ17: 0.027308 | FA17: 0.027346 | FB17: 0.027391 | FC17: 0.027437 | FD17: 0.027496 | FE17: 0.027551 | FF17: 0.027621 | FG17: 0.027689 | FH17: 0.027753 | FI17: 0.027788 | FJ17: 0.027828 | FK17: 0.027891 | FL17: 0.027952 | FM17: 0.028004 | FN17: 0.028051 | FO17: 0.028117 | FP17: 0.028162 | FQ17: 0.028226 | FR17: 0.028283 | FS17: 0.028351 | FT17: 0.028407 | FU17: 0.028452 | FV17: 0.028495 | FW17: 0.02857 | FX17: 0.028613 | FY17: 0.028678 | FZ17: 0.028726 | GA17: 0.028797 | GB17: 0.028861 | GC17: 0.028935 | GD17: 0.028995 | GE17: 0.02905 | GF17: 0.029109 | GG17: 0.029181 | GH17: 0.029232 | GI17: 0.029283 | GJ17: 0.029322 | GK17: 0.029382 | GL17: 0.029447 | GM17: 0.029488 | GN17: 0.029557 | GO17: 0.029595 | GP17: 0.02967 | GQ17: 0.029737 | GR17: 0.029788 | GS17: 0.029841 | GT17: 0.029881 | GU17: 0.029955 | GV17: 0.030029 | GW17: 0.030092 | GX17: =InpS!GK$10 -> 0 | GY17: =InpS!GL$10 -> 0 | GZ17: =InpS!GM$10 -> 0 | HA17: =InpS!GN$10 -> 0 | HB17: =InpS!GO$10 -> 0 | HC17: =InpS!GP$10 -> 0 | HD17: =InpS!GQ$10 -> 0 | HE17: =InpS!GR$10 -> 0 | HF17: =InpS!GS$10 -> 0 | HG17: =InpS!GT$10 -> 0 | HH17: =InpS!GU$10 -> 0 | HI17: =InpS!GV$10 -> 0 | HJ17: =InpS!GW$10 -> 0 | HK17: =InpS!GX$10 -> 0 | HL17: =InpS!GY$10 -> 0 | HM17: =InpS!GZ$10 -> 0 | HN17: =InpS!HA$10 -> 0 | HO17: =InpS!HB$10 -> 0 | HP17: =InpS!HC$10 -> 0 | HQ17: =InpS!HD$10 -> 0 | HR17: =InpS!HE$10 -> 0 | HS17: =InpS!HF$10 -> 0 | HT17: =InpS!HG$10 -> 0 | HU17: =InpS!HH$10 -> 0 | HV17: =InpS!HI$10 -> 0 | HW17: =InpS!HJ$10 -> 0 | HX17: =InpS!HK$10 -> 0 | HY17: =InpS!HL$10 -> 0 | HZ17: =InpS!HM$10 -> 0 | IA17: =InpS!HN$10 -> 0 | IB17: =InpS!HO$10 -> 0 | IC17: =InpS!HP$10 -> 0 | ID17: =InpS!HQ$10 -> 0 | IE17: =InpS!HR$10 -> 0 | IF17: =InpS!HS$10 -> 0 | IG17: =InpS!HT$10 -> 0 | IH17: =InpS!HU$10 -> 0 | II17: =InpS!HV$10 -> 0 | IJ17: =InpS!HW$10 -> 0 | IK17: =InpS!HX$10 -> 0 | IL17: =InpS!HY$10 -> 0 | IM17: =InpS!HZ$10 -> 0 | IN17: =InpS!IA$10 -> 0 | IO17: =InpS!IB$10 -> 0 | IP17: =InpS!IC$10 -> 0 | IQ17: =InpS!ID$10 -> 0 | IR17: =InpS!IE$10 -> 0 | IS17: =InpS!IF$10 -> 0 | IT17: =InpS!IG$10 -> 0 | IU17: =InpS!IH$10 -> 0 | IV17: =InpS!II$10 -> 0 | IW17: =InpS!IJ$10 -> 0 | IX17: =InpS!IK$10 -> 0 | IY17: =InpS!IL$10 -> 0 | IZ17: =InpS!IM$10 -> 0 | JA17: =InpS!IN$10 -> 0 | JB17: =InpS!IO$10 -> 0 | JC17: =InpS!IP$10 -> 0 | JD17: =InpS!IQ$10 -> 0 | JE17: =InpS!IR$10 -> 0 | JF17: =InpS!IS$10 -> 0 | JG17: =InpS!IT$10 -> 0 | JH17: =InpS!IU$10 -> 0 | JI17: =InpS!IV$10 -> 0 | JJ17: =InpS!IW$10 -> 0 | JK17: =InpS!IX$10 -> 0 | JL17: =InpS!IY$10 -> 0 | JM17: =InpS!IZ$10 -> 0 | JN17: =InpS!JA$10 -> 0 | JO17: =InpS!JB$10 -> 0 | JP17: =InpS!JC$10 -> 0 | JQ17: =InpS!JD$10 -> 0 | JR17: =InpS!JE$10 -> 0 | JS17: =InpS!JF$10 -> 0 | JT17: =InpS!JG$10 -> 0 | JU17: =InpS!JH$10 -> 0 | JV17: =InpS!JI$10 -> 0 | JW17: =InpS!JJ$10 -> 0 | JX17: =InpS!JK$10 -> 0 | JY17: =InpS!JL$10 -> 0 | JZ17: =InpS!JM$10 -> 0 | KA17: =InpS!JN$10 -> 0 | KB17: =InpS!JO$10 -> 0 | KC17: =InpS!JP$10 -> 0 | KD17: =InpS!JQ$10 -> 0 | KE17: =InpS!JR$10 -> 0 | KF17: =InpS!JS$10 -> 0 | KG17: =InpS!JT$10 -> 0 | KH17: =InpS!JU$10 -> 0 | KI17: =InpS!JV$10 -> 0 | KJ17: =InpS!JW$10 -> 0 | KK17: =InpS!JX$10 -> 0 | KL17: =InpS!JY$10 -> 0 | KM17: =InpS!JZ$10 -> 0 | KN17: =InpS!KA$10 -> 0 | KO17: =InpS!KB$10 -> 0 | KP17: =InpS!KC$10 -> 0 | KQ17: =InpS!KD$10 -> 0 | KR17: =InpS!KE$10 -> 0 | KS17: =InpS!KF$10 -> 0 | KT17: =InpS!KG$10 -> 0 | KU17: =InpS!KH$10 -> 0 | KV17: =InpS!KI$10 -> 0 | KW17: =InpS!KJ$10 -> 0 | KX17: =InpS!KK$10 -> 0 | KY17: =InpS!KL$10 -> 0 | KZ17: =InpS!KM$10 -> 0 | LA17: =InpS!KN$10 -> 0 | LB17: =InpS!KO$10 -> 0 | LC17: =InpS!KP$10 -> 0 | LD17: =InpS!KQ$10 -> 0 | LE17: =InpS!KR$10 -> 0 | LF17: =InpS!KS$10 -> 0 | LG17: =InpS!KT$10 -> 0 | LH17: =InpS!KU$10 -> 0 | LI17: =InpS!KV$10 -> 0 | LJ17: =InpS!KW$10 -> 0 | LK17: =InpS!KX$10 -> 0 | LL17: =InpS!KY$10 -> 0 | LM17: =InpS!KZ$10 -> 0 | LN17: =InpS!LA$10 -> 0 | LO17: =InpS!LB$10 -> 0 | LP17: =InpS!LC$10 -> 0 | LQ17: =InpS!LD$10 -> 0 | LR17: =InpS!LE$10 -> 0 | LS17: =InpS!LF$10 -> 0 | LT17: =InpS!LG$10 -> 0 | LU17: =InpS!LH$10 -> 0 | LV17: =InpS!LI$10 -> 0 | LW17: =InpS!LJ$10 -> 0 | LX17: =InpS!LK$10 -> 0 | LY17: =InpS!LL$10 -> 0 | LZ17: =InpS!LM$10 -> 0 | MA17: =InpS!LN$10 -> 0 | MB17: =InpS!LO$10 -> 0 | MC17: =InpS!LP$10 -> 0 | MD17: =InpS!LQ$10 -> 0 | ME17: =InpS!LR$10 -> 0 | MF17: =InpS!LS$10 -> 0 | MG17: =InpS!LT$10 -> 0 | MH17: =InpS!LU$10 -> 0 | MI17: =InpS!LV$10 -> 0 | MJ17: =InpS!LW$10 -> 0 | MK17: =InpS!LX$10 -> 0 | ML17: =InpS!LY$10 -> 0 | MM17: =InpS!LZ$10 -> 0 | MN17: =InpS!MA$10 -> 0 | MO17: =InpS!MB$10 -> 0 | MP17: =InpS!MC$10 -> 0 | MQ17: =InpS!MD$10 -> 0 | MR17: =InpS!ME$10 -> 0 | MS17: =InpS!MF$10 -> 0 | MT17: =InpS!MG$10 -> 0 | MU17: =InpS!MH$10 -> 0 | MV17: =InpS!MI$10 -> 0 | MW17: =InpS!MJ$10 -> 0 | MX17: =InpS!MK$10 -> 0 | MY17: =InpS!ML$10 -> 0 | MZ17: =InpS!MM$10 -> 0 | NA17: =InpS!MN$10 -> 0 | NB17: =InpS!MO$10 -> 0 | NC17: =InpS!MP$10 -> 0 | ND17: =InpS!MQ$10 -> 0 | NE17: =InpS!MR$10 -> 0 | NF17: =InpS!MS$10 -> 0 | NG17: =InpS!MT$10 -> 0 | NH17: =InpS!MU$10 -> 0 | NI17: =InpS!MV$10 -> 0 | NJ17: =InpS!MW$10 -> 0 | NK17: =InpS!MX$10 -> 0 | NL17: =InpS!MY$10 -> 0 | NM17: =InpS!MZ$10 -> 0 | NN17: =InpS!NA$10 -> 0 | NO17: =InpS!NB$10 -> 0 | NP17: =InpS!NC$10 -> 0 | NQ17: =InpS!ND$10 -> 0 | NR17: =InpS!NE$10 -> 0 | NS17: =InpS!NF$10 -> 0 | NT17: =InpS!NG$10 -> 0 | NU17: =InpS!NH$10 -> 0 | NV17: =InpS!NI$10 -> 0 | NW17: =InpS!NJ$10 -> 0 | NX17: =InpS!NK$10 -> 0 | NY17: =InpS!NL$10 -> 0 | NZ17: =InpS!NM$10 -> 0 | OA17: =InpS!NN$10 -> 0 | OB17: =InpS!NO$10 -> 0 | OC17: =InpS!NP$10 -> 0 | OD17: =InpS!NQ$10 -> 0 | OE17: =InpS!NR$10 -> 0 | OF17: =InpS!NS$10 -> 0 | OG17: =InpS!NT$10 -> 0 | OH17: =InpS!NU$10 -> 0 | OI17: =InpS!NV$10 -> 0 | OJ17: =InpS!NW$10 -> 0 | OK17: =InpS!NX$10 -> 0 | OL17: =InpS!NY$10 -> 0 | OM17: =InpS!NZ$10 -> 0 | ON17: =InpS!OA$10 -> 0 | OO17: =InpS!OB$10 -> 0 | OP17: =InpS!OC$10 -> 0 | OQ17: =InpS!OD$10 -> 0 | OR17: =InpS!OE$10 -> 0 | OS17: =InpS!OF$10 -> 0 | OT17: =InpS!OG$10 -> 0 | OU17: =InpS!OH$10 -> 0 | OV17: =InpS!OI$10 -> 0 | OW17: =InpS!OJ$10 -> 0 | OX17: =InpS!OK$10 -> 0 | OY17: =InpS!OL$10 -> 0 | OZ17: =InpS!OM$10 -> 0 | PA17: =InpS!ON$10 -> 0 | PB17: =InpS!OO$10 -> 0 | PC17: =InpS!OP$10 -> 0 | PD17: =InpS!OQ$10 -> 0 | PE17: =InpS!OR$10 -> 0 | PF17: =InpS!OS$10 -> 0 | PG17: =InpS!OT$10 -> 0 | PH17: =InpS!OU$10 -> 0 | PI17: =InpS!OV$10 -> 0 | PJ17: =InpS!OW$10 -> 0 | PK17: =InpS!OX$10 -> 0 | PL17: =InpS!OY$10 -> 0 | PM17: =InpS!OZ$10 -> 0 | PN17: =InpS!PA$10 -> 0 | PO17: =InpS!PB$10 -> 0 | PP17: =InpS!PC$10 -> 0 | PQ17: =InpS!PD$10 -> 0 | PR17: =InpS!PE$10 -> 0 | PS17: =InpS!PF$10 -> 0 | PT17: =InpS!PG$10 -> 0 | PU17: =InpS!PH$10 -> 0 | PV17: =InpS!PI$10 -> 0 | PW17: =InpS!PJ$10 -> 0 | PX17: =InpS!PK$10 -> 0 | PY17: =InpS!PL$10 -> 0 | PZ17: =InpS!PM$10 -> 0 | QA17: =InpS!PN$10 -> 0 | QB17: =InpS!PO$10 -> 0 | QC17: =InpS!PP$10 -> 0 | QD17: =InpS!PQ$10 -> 0 | QE17: =InpS!PR$10 -> 0 | QF17: =InpS!PS$10 -> 0 | QG17: =InpS!PT$10 -> 0 | QH17: =InpS!PU$10 -> 0 | QI17: =InpS!PV$10 -> 0 | QJ17: =InpS!PW$10 -> 0 | QK17: =InpS!PX$10 -> 0 | QL17: =InpS!PY$10 -> 0 | QM17: =InpS!PZ$10 -> 0 | QN17: =InpS!QA$10 -> 0 | QO17: =InpS!QB$10 -> 0 | QP17: =InpS!QC$10 -> 0 | QQ17: =InpS!QD$10 -> 0 | QR17: =InpS!QE$10 -> 0 | QS17: =InpS!QF$10 -> 0 | QT17: =InpS!QG$10 -> 0 | QU17: =InpS!QH$10 -> 0
F18: 2020-04-27T19:59:46 | G18: 43948.83317 | H18: Senior debt forward curve inputs added | I18: =InpS!$E$10 -> Senior debt forward curve as at April 27th | L18: Financial team | M18: Exploratory analysis - inputs not yet confirmed | N18: All | V18: Previous - InpS
F19: 2020-04-27T19:41:20 | G19: 43948.82037 | H19: Annual profile of senior debt DSCR | O19: 0.1420709193 | P19: 1.3 | Q19: 1.39 | R19: 2729.496077 | S19: Base case 1
F20: 2020-04-27T19:41:20 | G20: 43948.82037 | H20: Adjustment of senior debt service for debt sizing | I20: =Debt!$E$52 -> Senior debt service at target cover ratio | L20: Financial team | M20: Exploratory analysis - inputs not yet confirmed | N20: ALL
F21: 2020-04-27T19:35:54 | G21: 43948.8166 | H21: Senior debt DSCR profiling calculation added | I21: =Debt!$E$47 -> Senior debt DSCR applicable in year | L21: Financial team | M21: Exploratory analysis - inputs not yet confirmed | N21: ALL
F22: 2020-04-27T19:26:57 | G22: 43948.81038 | H22: Senior debt DSCR annual inputs added | I22: =InpC!$E$75 -> Senior debt DSCR - year 10 | J22: 1.45 | K22: 1.45 | L22: Financial team | M22: Exploratory analysis - inputs not yet confirmed | N22: Base case 1
F23: 2020-04-27T19:26:09 | G23: 43948.80983 | H23: Senior debt DSCR annual inputs added | I23: =InpC!$E$74 -> Senior debt DSCR - year 9 | J23: 1.45 | K23: 1.45 | L23: Financial team | M23: Exploratory analysis - inputs not yet confirmed | N23: Base case 1
F24: 2020-04-27T19:26:09 | G24: 43948.80983 | H24: Senior debt DSCR annual inputs added | I24: =InpC!$E$73 -> Senior debt DSCR - year 8 | J24: 1.45 | K24: 1.45 | L24: Financial team | M24: Exploratory analysis - inputs not yet confirmed | N24: Base case 1
F25: 2020-04-27T19:26:09 | G25: 43948.80983 | H25: Senior debt DSCR annual inputs added | I25: =InpC!$E$72 -> Senior debt DSCR - year 7 | J25: 1.45 | K25: 1.45 | L25: Financial team | M25: Exploratory analysis - inputs not yet confirmed | N25: Base case 1
F26: 2020-04-27T19:26:09 | G26: 43948.80983 | H26: Senior debt DSCR annual inputs added | I26: =InpC!$E$71 -> Senior debt DSCR - year 6 | J26: 1.45 | K26: 1.45 | L26: Financial team | M26: Exploratory analysis - inputs not yet confirmed | N26: Base case 1
F27: 2020-04-27T19:26:09 | G27: 43948.80983 | H27: Senior debt DSCR annual inputs added | I27: =InpC!$E$70 -> Senior debt DSCR - year 5 | J27: 1.45 | K27: 1.45 | L27: Financial team | M27: Exploratory analysis - inputs not yet confirmed | N27: Base case 1
F28: 2020-04-27T19:26:09 | G28: 43948.80983 | H28: Senior debt DSCR annual inputs added | I28: =InpC!$E$69 -> Senior debt DSCR - year 4 | J28: 1.3 | K28: 1.45 | L28: Financial team | M28: Exploratory analysis - inputs not yet confirmed | N28: Base case 1
F29: 2020-04-27T19:26:09 | G29: 43948.80983 | H29: Senior debt DSCR annual inputs added | I29: =InpC!$E$68 -> Senior debt DSCR - year 3 | J29: 1.3 | K29: 1.45 | L29: Financial team | M29: Exploratory analysis - inputs not yet confirmed | N29: Base case 1
F30: 2020-04-27T19:26:09 | G30: 43948.80983 | H30: Senior debt DSCR annual inputs added | I30: =InpC!$E$67 -> Senior debt DSCR - year 2 | J30: 1.3 | K30: 1.45 | L30: Financial team | M30: Exploratory analysis - inputs not yet confirmed | N30: Base case 1
F31: 2020-04-27T19:25:30 | G31: 43948.80937 | H31: Senior debt DSCR annual inputs added | I31: =InpC!$E$66 -> Senior debt DSCR - year 1 | J31: 1.3 | K31: 1.45 | L31: Financial team | M31: Exploratory analysis - inputs not yet confirmed | N31: Base case 1
F32: 2020-04-27T13:55:34 | G32: 43948.58025 | H32: Input assumption update from Technical team | O32: 0.1388480723 | P32: 1.44999998 | Q32: 1.449999999 | R32: 2391.098569 | S32: Scenario 1
F33: 2020-04-27T13:55:34 | G33: 43948.58025 | H33: O&M cost assumption update | I33: =InpC!$E$41 -> Annual real O&M cost | J33: 1700 | K33: 1500 | L33: Technical team | M33: Per update email April 27th | N33: Base case 1
F34: 2020-04-27T13:54:50 | G34: 43948.57975 | H34: Year 1 P50 production input update | I34: =InpC!$E$35 -> Year 1 P50 production | J34: 245 | K34: 250 | L34: Technical team | M34: Per update email April 27th | N34: Base case 1
F35: 2020-04-27T13:51:16 | G35: 43948.57727 | H35: Length of PPA assumption update | I35: =InpC!$E$21 -> Length of PPA | J35: 25 | K35: 30 | L35: Technical team | M35: Per update email April 27th | N35: Base case 1
F38: 2020-04-20 | H38: Indexation assignment solution | O38: 0.1566715419 | P38: 1.44999997 | Q38: 1.449999999 | R38: 4699.713637 | S38: Scenario 1

Sheet InpC
A1: =RIGHT(CELL("filename", A1), LEN(CELL("filename", A1)) - SEARCH("]", CELL("filename", A1))) & " - " & $F$3 -> InpC - Base case 1
K2: =IF(K4 = $F4, "q", "") -> q | L2: =IF(L4 = $F4, "q", "") -> 
F3: =INDEX(J3:S3,MATCH(F4,J4:S4)) -> Base case 1 | K3: Base case 1 | L3: Base case 1 | M3: Base case 3 | O3: Scenario 1 | P3: Scenario 2 | Q3: Scenario 3 | R3: Scenario 4
E4: Active scenario | F4: 1 | I4: =MATCH(F4, $J$4:$S$4) -> 2 | K4: 1 | L4: 2 | M4: 3 | O4: 4 | P4: 5 | Q4: 6 | R4: 7
E5: Comparison scenario | F5: 1 | I5: =MATCH(F5, $J$4:$S$4) -> 2
E6: Base case | F6: =INDEX(J6:S6,MATCH(F4,J4:S4,0)) -> 1 | I6: =MATCH(F6, $J$4:$S$4) -> 2 | K6: 1 | L6: 2 | M6: 3 | O6: 1 | P6: 1 | Q6: 2 | R6: 2
E7: Input differences | F7: =COUNTIF(I10:I132, "tu") -> 0 | K7: =IF(K6 = $F$6, "Base case", "") -> Base case | L7: =IF(L6 = $F$6, "Base case", "") ->  | M7: =IF(M6 = $F$6, "Base case", "") -> 
F9: Constant | G9: Unit | H9: Source
A11: TIMING ASSUMPTIONS
E13: First date of time rulers | F13: =IF( INDEX(J13:S13, $I$4) = "", INDEX(J13:R13, $I$6), INDEX(J13:S13, $I$4)) -> 2020-07-01 | G13: date | I13: =IF( INDEX(J13:S13, I$5) = "", IF( INDEX(J13:S13, I$6) = F13, "vw", "tu"), IF(INDEX(J13:S13, I$5) = F13, "vw", "tu")) -> vw | K13: 2020-07-01 | L13: 2020-07-01 | M13: 2020-07-01
E14: Annual year end date of first operating period | F14: =IF( INDEX(J14:S14, $I$4) = "", INDEX(J14:R14, $I$6), INDEX(J14:S14, $I$4)) -> 2020-03-31 | G14: date | I14: =IF( INDEX(J14:S14, I$5) = "", IF( INDEX(J14:S14, I$6) = F14, "vw", "tu"), IF(INDEX(J14:S14, I$5) = F14, "vw", "tu")) -> vw | K14: 2020-03-31 | L14: 2020-03-31 | M14: 2020-03-31
E15: Additional periods at start of operating timeline | F15: =IF( INDEX(J15:S15, $I$4) = "", INDEX(J15:R15, $I$6), INDEX(J15:S15, $I$4)) -> 2 | G15: periods | I15: =IF( INDEX(J15:S15, I$5) = "", IF( INDEX(J15:S15, I$6) = F15, "vw", "tu"), IF(INDEX(J15:S15, I$5) = F15, "vw", "tu")) -> vw | K15: 2 | L15: 2 | M15: 2
E16: Financial year end month number | F16: =IF( INDEX(J16:S16, $I$4) = "", INDEX(J16:R16, $I$6), INDEX(J16:S16, $I$4)) -> 12 | G16: month # | I16: =IF( INDEX(J16:S16, I$5) = "", IF( INDEX(J16:S16, I$6) = F16, "vw", "tu"), IF(INDEX(J16:S16, I$5) = F16, "vw", "tu")) -> vw | K16: 12 | L16: 12 | M16: 12
E17: Length of operating period | F17: =IF( INDEX(J17:S17, $I$4) = "", INDEX(J17:R17, $I$6), INDEX(J17:S17, $I$4)) -> 3 | G17: months | I17: =IF( INDEX(J17:S17, I$5) = "", IF( INDEX(J17:S17, I$6) = F17, "vw", "tu"), IF(INDEX(J17:S17, I$5) = F17, "vw", "tu")) -> vw | K17: 3 | L17: 3 | M17: 3
E19: Acquisition date | F19: =IF( INDEX(J19:S19, $I$4) = "", INDEX(J19:R19, $I$6), INDEX(J19:S19, $I$4)) -> 2021-03-31 | G19: date | I19: =IF( INDEX(J19:S19, I$5) = "", IF( INDEX(J19:S19, I$6) = F19, "vw", "tu"), IF(INDEX(J19:S19, I$5) = F19, "vw", "tu")) -> vw | K19: 2021-03-31 | L19: 2021-03-31 | M19: 2021-03-31
E21: Length of PPA | F21: =IF( INDEX(J21:S21, $I$4) = "", INDEX(J21:R21, $I$6), INDEX(J21:S21, $I$4)) -> 25 | G21: years | I21: =IF( INDEX(J21:S21, I$5) = "", IF( INDEX(J21:S21, I$6) = F21, "vw", "tu"), IF(INDEX(J21:S21, I$5) = F21, "vw", "tu")) -> vw | K21: 25 | L21: 30 | M21: 25
E22: Extend PPA in the event of delay | F22: =IF( INDEX(J22:S22, $I$4) = "", INDEX(J22:R22, $I$6), INDEX(J22:S22, $I$4)) -> 0 | G22: 1 = yes, 0 = no | I22: =IF( INDEX(J22:S22, I$5) = "", IF( INDEX(J22:S22, I$6) = F22, "vw", "tu"), IF(INDEX(J22:S22, I$5) = F22, "vw", "tu")) -> vw | K22: 0 | L22: 0 | M22: 0
E23: Contract extension | F23: =IF( INDEX(J23:S23, $I$4) = "", INDEX(J23:R23, $I$6), INDEX(J23:S23, $I$4)) -> 0 | G23: years | I23: =IF( INDEX(J23:S23, I$5) = "", IF( INDEX(J23:S23, I$6) = F23, "vw", "tu"), IF(INDEX(J23:S23, I$5) = F23, "vw", "tu")) -> vw | K23: 0 | L23: 0 | M23: 0
A26: OPERATIONS
B27: Revenue
E28: Q1 seasonal adjustment | F28: =IF( INDEX(J28:S28, $I$4) = "", INDEX(J28:R28, $I$6), INDEX(J28:S28, $I$4)) -> 0.33 | G28: % of annual yield | I28: =IF( INDEX(J28:S28, I$5) = "", IF( INDEX(J28:S28, I$6) = F28, "vw", "tu"), IF(INDEX(J28:S28, I$5) = F28, "vw", "tu")) -> vw | K28: 0.33 | L28: 0.33 | M28: 0.33
E29: Q2 seasonal adjustment | F29: =IF( INDEX(J29:S29, $I$4) = "", INDEX(J29:R29, $I$6), INDEX(J29:S29, $I$4)) -> 0.36 | G29: % of annual yield | I29: =IF( INDEX(J29:S29, I$5) = "", IF( INDEX(J29:S29, I$6) = F29, "vw", "tu"), IF(INDEX(J29:S29, I$5) = F29, "vw", "tu")) -> vw | K29: 0.36 | L29: 0.36 | M29: 0.36
E30: Q3 seasonal adjustment | F30: =IF( INDEX(J30:S30, $I$4) = "", INDEX(J30:R30, $I$6), INDEX(J30:S30, $I$4)) -> 0.155 | G30: % of annual yield | I30: =IF( INDEX(J30:S30, I$5) = "", IF( INDEX(J30:S30, I$6) = F30, "vw", "tu"), IF(INDEX(J30:S30, I$5) = F30, "vw", "tu")) -> vw | K30: 0.155 | L30: 0.155 | M30: 0.155
E31: Q4 seasonal adjustment | F31: =IF( INDEX(J31:S31, $I$4) = "", INDEX(J31:R31, $I$6), INDEX(J31:S31, $I$4)) -> 0.155 | G31: % of annual yield | I31: =IF( INDEX(J31:S31, I$5) = "", IF( INDEX(J31:S31, I$6) = F31, "vw", "tu"), IF(INDEX(J31:S31, I$5) = F31, "vw", "tu")) -> vw | K31: 0.155 | L31: 0.155 | M31: 0.155
E34: Annual degradation | F34: =IF( INDEX(J34:S34, $I$4) = "", INDEX(J34:R34, $I$6), INDEX(J34:S34, $I$4)) -> 0.005 | G34: % p.a. | H34: 0 | I34: =IF( INDEX(J34:S34, I$5) = "", IF( INDEX(J34:S34, I$6) = F34, "vw", "tu"), IF(INDEX(J34:S34, I$5) = F34, "vw", "tu")) -> vw | K34: 0.005 | L34: 0.005 | M34: 0.005
E35: Year 1 P50 production | F35: =IF( INDEX(J35:S35, $I$4) = "", INDEX(J35:R35, $I$6), INDEX(J35:S35, $I$4)) -> 245 | G35: GWh | I35: =IF( INDEX(J35:S35, I$5) = "", IF( INDEX(J35:S35, I$6) = F35, "vw", "tu"), IF(INDEX(J35:S35, I$5) = F35, "vw", "tu")) -> vw | K35: 245 | L35: 250 | M35: 245
E36: Availability | F36: =IF( INDEX(J36:S36, $I$4) = "", INDEX(J36:R36, $I$6), INDEX(J36:S36, $I$4)) -> 0.97 | G36: % | I36: =IF( INDEX(J36:S36, I$5) = "", IF( INDEX(J36:S36, I$6) = F36, "vw", "tu"), IF(INDEX(J36:S36, I$5) = F36, "vw", "tu")) -> vw | K36: 0.97 | L36: 0.97 | M36: 0.97
E38: Power tariff | F38: =IF( INDEX(J38:S38, $I$4) = "", INDEX(J38:R38, $I$6), INDEX(J38:S38, $I$4)) -> 0.065 | G38: USD / kWh | I38: =IF( INDEX(J38:S38, I$5) = "", IF( INDEX(J38:S38, I$6) = F38, "vw", "tu"), IF(INDEX(J38:S38, I$5) = F38, "vw", "tu")) -> vw | K38: 0.065 | L38: 0.065 | M38: 0.065
B40: Opex
E41: Annual real O&M cost | F41: =IF( INDEX(J41:S41, $I$4) = "", INDEX(J41:R41, $I$6), INDEX(J41:S41, $I$4)) -> 1700 | G41: =SMU -> $ 000s | I41: =IF( INDEX(J41:S41, I$5) = "", IF( INDEX(J41:S41, I$6) = F41, "vw", "tu"), IF(INDEX(J41:S41, I$5) = F41, "vw", "tu")) -> vw | K41: 1700 | L41: 1500 | M41: 1700
B43: Indexation
E44: Expected CPI at close | F44: =IF( INDEX(J44:S44, $I$4) = "", INDEX(J44:R44, $I$6), INDEX(J44:S44, $I$4)) -> 170 | G44: index | I44: =IF( INDEX(J44:S44, I$5) = "", IF( INDEX(J44:S44, I$6) = F44, "vw", "tu"), IF(INDEX(J44:S44, I$5) = F44, "vw", "tu")) -> vw | K44: 170 | L44: 170 | M44: 170
E45: CPI at O&M contract signature date | F45: =IF( INDEX(J45:S45, $I$4) = "", INDEX(J45:R45, $I$6), INDEX(J45:S45, $I$4)) -> 145 | G45: index | I45: =IF( INDEX(J45:S45, I$5) = "", IF( INDEX(J45:S45, I$6) = F45, "vw", "tu"), IF(INDEX(J45:S45, I$5) = F45, "vw", "tu")) -> vw | K45: 145 | L45: 145 | M45: 145
E46: Forecast CPI growth rate | F46: =IF( INDEX(J46:S46, $I$4) = "", INDEX(J46:R46, $I$6), INDEX(J46:S46, $I$4)) -> 0.025 | G46: % p.a. | I46: =IF( INDEX(J46:S46, I$5) = "", IF( INDEX(J46:S46, I$6) = F46, "vw", "tu"), IF(INDEX(J46:S46, I$5) = F46, "vw", "tu")) -> vw | K46: 0.025 | L46: 0.025 | M46: 0.025
A50: FINANCING
B52: Senior debt
E53: Senior debt gearing | F53: =IF( INDEX(J53:S53, $I$4) = "", INDEX(J53:R53, $I$6), INDEX(J53:S53, $I$4)) -> 0.7 | G53: % | I53: =IF( INDEX(J53:S53, I$5) = "", IF( INDEX(J53:S53, I$6) = F53, "vw", "tu"), IF(INDEX(J53:S53, I$5) = F53, "vw", "tu")) -> vw | K53: 0.7 | L53: 0.7 | M53: 0.7
E55: Senior debt day count convention | F55: =IF( INDEX(J55:S55, $I$4) = "", INDEX(J55:R55, $I$6), INDEX(J55:S55, $I$4)) -> 360 | G55: days | I55: =IF( INDEX(J55:S55, I$5) = "", IF( INDEX(J55:S55, I$6) = F55, "vw", "tu"), IF(INDEX(J55:S55, I$5) = F55, "vw", "tu")) -> vw | K55: 360 | L55: 360 | M55: 360
E56: Senior debt swap rate | F56: =IF( INDEX(J56:S56, $I$4) = "", INDEX(J56:R56, $I$6), INDEX(J56:S56, $I$4)) -> 0.025 | G56: % | I56: =IF( INDEX(J56:S56, I$5) = "", IF( INDEX(J56:S56, I$6) = F56, "vw", "tu"), IF(INDEX(J56:S56, I$5) = F56, "vw", "tu")) -> vw | K56: 0.025 | L56: 0.025 | M56: 0.025
E57: Senior debt interest margin | F57: =IF( INDEX(J57:S57, $I$4) = "", INDEX(J57:R57, $I$6), INDEX(J57:S57, $I$4)) -> 0.038 | G57: % | I57: =IF( INDEX(J57:S57, I$5) = "", IF( INDEX(J57:S57, I$6) = F57, "vw", "tu"), IF(INDEX(J57:S57, I$5) = F57, "vw", "tu")) -> vw | K57: 0.038 | L57: 0.038 | M57: 0.038
E58: Senior debt repayment term | F58: =IF( INDEX(J58:S58, $I$4) = "", INDEX(J58:R58, $I$6), INDEX(J58:S58, $I$4)) -> 10 | G58: years | I58: =IF( INDEX(J58:S58, I$5) = "", IF( INDEX(J58:S58, I$6) = F58, "vw", "tu"), IF(INDEX(J58:S58, I$5) = F58, "vw", "tu")) -> vw | K58: 10 | L58: 10 | M58: 10
E60: Senior debt sizing method | F60: =IF( INDEX(J60:S60, $I$4) = "", INDEX(J60:R60, $I$6), INDEX(J60:S60, $I$4)) -> 2 | G60: 1 = leverage, 2 = DSCR | I60: =IF( INDEX(J60:S60, I$5) = "", IF( INDEX(J60:S60, I$6) = F60, "vw", "tu"), IF(INDEX(J60:S60, I$5) = F60, "vw", "tu")) -> vw | K60: 2 | L60: 2 | M60: 2
E61: Senior active principal repayment profile | F61: =IF( INDEX(J61:S61, $I$4) = "", INDEX(J61:R61, $I$6), INDEX(J61:S61, $I$4)) -> 3 | G61: 1 = level p, 2 = sculpted, 3 = level ds | I61: =IF( INDEX(J61:S61, I$5) = "", IF( INDEX(J61:S61, I$6) = F61, "vw", "tu"), IF(INDEX(J61:S61, I$5) = F61, "vw", "tu")) -> vw | K61: 3 | L61: 2 | M61: 2
E62: Propoprtion of senior debt swapped | F62: =IF( INDEX(J62:S62, $I$4) = "", INDEX(J62:R62, $I$6), INDEX(J62:S62, $I$4)) -> 0.8 | G62: % | I62: =IF( INDEX(J62:S62, I$5) = "", IF( INDEX(J62:S62, I$6) = F62, "vw", "tu"), IF(INDEX(J62:S62, I$5) = F62, "vw", "tu")) -> vw | K62: 0.8 | L62: 0.8 | M62: 0.8
E63: Senior debt forward curve selection | F63: =IF( INDEX(J63:S63, $I$4) = "", INDEX(J63:R63, $I$6), INDEX(J63:S63, $I$4)) -> 1 | G63: profile | I63: =IF( INDEX(J63:S63, I$5) = "", IF( INDEX(J63:S63, I$6) = F63, "vw", "tu"), IF(INDEX(J63:S63, I$5) = F63, "vw", "tu")) -> vw | K63: 1 | L63: 1 | M63: 1
C65: Annual DSCR profile
E66: Senior debt DSCR - year 1 | F66: =IF( INDEX(J66:S66, $I$4) = "", INDEX(J66:R66, $I$6), INDEX(J66:S66, $I$4)) -> 1.3 | G66: ratio | I66: =IF( INDEX(J66:S66, I$5) = "", IF( INDEX(J66:S66, I$6) = F66, "vw", "tu"), IF(INDEX(J66:S66, I$5) = F66, "vw", "tu")) -> vw | K66: 1.3 | L66: 1.45 | M66: 1.45
E67: Senior debt DSCR - year 2 | F67: 1.3 | G67: ratio | I67: =IF( INDEX(J67:S67, I$5) = "", IF( INDEX(J67:S67, I$6) = F67, "vw", "tu"), IF(INDEX(J67:S67, I$5) = F67, "vw", "tu")) -> vw | K67: 1.3 | L67: 1.45 | M67: 1.45
E68: Senior debt DSCR - year 3 | F68: 1.3 | G68: ratio | I68: =IF( INDEX(J68:S68, I$5) = "", IF( INDEX(J68:S68, I$6) = F68, "vw", "tu"), IF(INDEX(J68:S68, I$5) = F68, "vw", "tu")) -> vw | K68: 1.3 | L68: 1.45 | M68: 1.45
E69: Senior debt DSCR - year 4 | F69: 1.3 | G69: ratio | I69: =IF( INDEX(J69:S69, I$5) = "", IF( INDEX(J69:S69, I$6) = F69, "vw", "tu"), IF(INDEX(J69:S69, I$5) = F69, "vw", "tu")) -> vw | K69: 1.3 | L69: 1.45 | M69: 1.45
E70: Senior debt DSCR - year 5 | F70: 1.45 | G70: ratio | I70: =IF( INDEX(J70:S70, I$5) = "", IF( INDEX(J70:S70, I$6) = F70, "vw", "tu"), IF(INDEX(J70:S70, I$5) = F70, "vw", "tu")) -> vw | K70: 1.45 | L70: 1.45 | M70: 1.45
E71: Senior debt DSCR - year 6 | F71: 1.45 | G71: ratio | I71: =IF( INDEX(J71:S71, I$5) = "", IF( INDEX(J71:S71, I$6) = F71, "vw", "tu"), IF(INDEX(J71:S71, I$5) = F71, "vw", "tu")) -> vw | K71: 1.45 | L71: 1.45 | M71: 1.45
E72: Senior debt DSCR - year 7 | F72: 1.45 | G72: ratio | I72: =IF( INDEX(J72:S72, I$5) = "", IF( INDEX(J72:S72, I$6) = F72, "vw", "tu"), IF(INDEX(J72:S72, I$5) = F72, "vw", "tu")) -> vw | K72: 1.45 | L72: 1.45 | M72: 1.45
E73: Senior debt DSCR - year 8 | F73: 1.45 | G73: ratio | I73: =IF( INDEX(J73:S73, I$5) = "", IF( INDEX(J73:S73, I$6) = F73, "vw", "tu"), IF(INDEX(J73:S73, I$5) = F73, "vw", "tu")) -> vw | K73: 1.45 | L73: 1.45 | M73: 1.45
E74: Senior debt DSCR - year 9 | F74: 1.45 | G74: ratio | I74: =IF( INDEX(J74:S74, I$5) = "", IF( INDEX(J74:S74, I$6) = F74, "vw", "tu"), IF(INDEX(J74:S74, I$5) = F74, "vw", "tu")) -> vw | K74: 1.45 | L74: 1.45 | M74: 1.45
E75: Senior debt DSCR - year 10 | F75: 1.45 | G75: ratio | I75: =IF( INDEX(J75:S75, I$5) = "", IF( INDEX(J75:S75, I$6) = F75, "vw", "tu"), IF(INDEX(J75:S75, I$5) = F75, "vw", "tu")) -> vw | K75: 1.45 | L75: 1.45 | M75: 1.45
E76: Senior debt DSCR - year 11 | F76: 0 | G76: ratio | I76: =IF( INDEX(J76:S76, I$5) = "", IF( INDEX(J76:S76, I$6) = F76, "vw", "tu"), IF(INDEX(J76:S76, I$5) = F76, "vw", "tu")) -> vw
E77: Senior debt DSCR - year 12 | F77: 0 | G77: ratio | I77: =IF( INDEX(J77:S77, I$5) = "", IF( INDEX(J77:S77, I$6) = F77, "vw", "tu"), IF(INDEX(J77:S77, I$5) = F77, "vw", "tu")) -> vw
E78: Senior debt DSCR - year 13 | F78: 0 | G78: ratio | I78: =IF( INDEX(J78:S78, I$5) = "", IF( INDEX(J78:S78, I$6) = F78, "vw", "tu"), IF(INDEX(J78:S78, I$5) = F78, "vw", "tu")) -> vw
E79: Senior debt DSCR - year 14 | F79: 0 | G79: ratio | I79: =IF( INDEX(J79:S79, I$5) = "", IF( INDEX(J79:S79, I$6) = F79, "vw", "tu"), IF(INDEX(J79:S79, I$5) = F79, "vw", "tu")) -> vw
E80: Senior debt DSCR - year 15 | F80: 0 | G80: ratio | I80: =IF( INDEX(J80:S80, I$5) = "", IF( INDEX(J80:S80, I$6) = F80, "vw", "tu"), IF(INDEX(J80:S80, I$5) = F80, "vw", "tu")) -> vw
E81: Senior debt DSCR - year 16 | F81: 0 | G81: ratio | I81: =IF( INDEX(J81:S81, I$5) = "", IF( INDEX(J81:S81, I$6) = F81, "vw", "tu"), IF(INDEX(J81:S81, I$5) = F81, "vw", "tu")) -> vw
E82: Senior debt DSCR - year 17 | F82: 0 | G82: ratio | I82: =IF( INDEX(J82:S82, I$5) = "", IF( INDEX(J82:S82, I$6) = F82, "vw", "tu"), IF(INDEX(J82:S82, I$5) = F82, "vw", "tu")) -> vw
E83: Senior debt DSCR - year 18 | F83: 0 | G83: ratio | I83: =IF( INDEX(J83:S83, I$5) = "", IF( INDEX(J83:S83, I$6) = F83, "vw", "tu"), IF(INDEX(J83:S83, I$5) = F83, "vw", "tu")) -> vw
E84: Senior debt DSCR - year 19 | F84: 0 | G84: ratio | I84: =IF( INDEX(J84:S84, I$5) = "", IF( INDEX(J84:S84, I$6) = F84, "vw", "tu"), IF(INDEX(J84:S84, I$5) = F84, "vw", "tu")) -> vw
E85: Senior debt DSCR - year 20 | F85: 0 | G85: ratio | I85: =IF( INDEX(J85:S85, I$5) = "", IF( INDEX(J85:S85, I$6) = F85, "vw", "tu"), IF(INDEX(J85:S85, I$5) = F85, "vw", "tu")) -> vw
E86: Senior debt DSCR - year 21 | F86: 0 | G86: ratio | I86: =IF( INDEX(J86:S86, I$5) = "", IF( INDEX(J86:S86, I$6) = F86, "vw", "tu"), IF(INDEX(J86:S86, I$5) = F86, "vw", "tu")) -> vw
E87: Senior debt DSCR - year 22 | F87: 0 | G87: ratio | I87: =IF( INDEX(J87:S87, I$5) = "", IF( INDEX(J87:S87, I$6) = F87, "vw", "tu"), IF(INDEX(J87:S87, I$5) = F87, "vw", "tu")) -> vw
E88: Senior debt DSCR - year 23 | F88: 0 | G88: ratio | I88: =IF( INDEX(J88:S88, I$5) = "", IF( INDEX(J88:S88, I$6) = F88, "vw", "tu"), IF(INDEX(J88:S88, I$5) = F88, "vw", "tu")) -> vw
E89: Senior debt DSCR - year 24 | F89: 0 | G89: ratio | I89: =IF( INDEX(J89:S89, I$5) = "", IF( INDEX(J89:S89, I$6) = F89, "vw", "tu"), IF(INDEX(J89:S89, I$5) = F89, "vw", "tu")) -> vw
E90: Senior debt DSCR - year 25 | F90: 0 | G90: ratio | I90: =IF( INDEX(J90:S90, I$5) = "", IF( INDEX(J90:S90, I$6) = F90, "vw", "tu"), IF(INDEX(J90:S90, I$5) = F90, "vw", "tu")) -> vw
B92: Revolving credit facility
E93: All in RCF annual interest rate | F93: =IF( INDEX(J93:S93, $I$4) = "", INDEX(J93:R93, $I$6), INDEX(J93:S93, $I$4)) -> 0.12 | G93: % | I93: =IF( INDEX(J93:S93, I$5) = "", IF( INDEX(J93:S93, I$6) = F93, "vw", "tu"), IF(INDEX(J93:S93, I$5) = F93, "vw", "tu")) -> vw | K93: 0.12 | L93: 0.12 | M93: 0.12
E94: RCF - initial balance | F94: =IF( INDEX(J94:S94, $I$4) = "", INDEX(J94:R94, $I$6), INDEX(J94:S94, $I$4)) -> 0 | G94: =SMU -> $ 000s | I94: =IF( INDEX(J94:S94, I$5) = "", IF( INDEX(J94:S94, I$6) = F94, "vw", "tu"), IF(INDEX(J94:S94, I$5) = F94, "vw", "tu")) -> vw
B96: Equity
E97: Aurelius share of ProjectCo | F97: =IF( INDEX(J97:S97, $I$4) = "", INDEX(J97:R97, $I$6), INDEX(J97:S97, $I$4)) -> 0.4 | G97: % | I97: =IF( INDEX(J97:S97, I$5) = "", IF( INDEX(J97:S97, I$6) = F97, "vw", "tu"), IF(INDEX(J97:S97, I$5) = F97, "vw", "tu")) -> vw | K97: 0.4 | L97: 0.4 | M97: 0.4
E98: Aurelius target IRR | F98: =IF( INDEX(J98:S98, $I$4) = "", INDEX(J98:R98, $I$6), INDEX(J98:S98, $I$4)) -> 0.12 | G98: % | I98: =IF( INDEX(J98:S98, I$5) = "", IF( INDEX(J98:S98, I$6) = F98, "vw", "tu"), IF(INDEX(J98:S98, I$5) = F98, "vw", "tu")) -> vw | K98: 0.12 | L98: 0.12 | M98: 0.12
A101: WORKING CAPITAL
E102: Accounts receivable days | F102: =IF( INDEX(J102:S102, $I$4) = "", INDEX(J102:R102, $I$6), INDEX(J102:S102, $I$4)) -> 60 | G102: days | I102: =IF( INDEX(J102:S102, I$5) = "", IF( INDEX(J102:S102, I$6) = F102, "vw", "tu"), IF(INDEX(J102:S102, I$5) = F102, "vw", "tu")) -> vw | K102: 60 | L102: 60 | M102: 60
E103: Accounts payable days | F103: =IF( INDEX(J103:S103, $I$4) = "", INDEX(J103:R103, $I$6), INDEX(J103:S103, $I$4)) -> 30 | G103: days | I103: =IF( INDEX(J103:S103, I$5) = "", IF( INDEX(J103:S103, I$6) = F103, "vw", "tu"), IF(INDEX(J103:S103, I$5) = F103, "vw", "tu")) -> vw | K103: 30 | L103: 30 | M103: 30
A106: ACCOUNTING
B108: Depreciation
E109: Useful life of solar asset | F109: =IF( INDEX(J109:S109, $I$4) = "", INDEX(J109:R109, $I$6), INDEX(J109:S109, $I$4)) -> 25 | G109: years | I109: =IF( INDEX(J109:S109, I$5) = "", IF( INDEX(J109:S109, I$6) = F109, "vw", "tu"), IF(INDEX(J109:S109, I$5) = F109, "vw", "tu")) -> vw | K109: 25 | L109: 25 | M109: 25
E110: Solar asset book value | F110: =IF( INDEX(J110:S110, $I$4) = "", INDEX(J110:R110, $I$6), INDEX(J110:S110, $I$4)) -> 100000 | G110: =SMU -> $ 000s | I110: =IF( INDEX(J110:S110, I$5) = "", IF( INDEX(J110:S110, I$6) = F110, "vw", "tu"), IF(INDEX(J110:S110, I$5) = F110, "vw", "tu")) -> vw | K110: 100000 | L110: 100000 | M110: 100000
B112: Initial balances
C113: Assets
E114: Retained cash - initial balance | F114: =IF( INDEX(J114:S114, $I$4) = "", INDEX(J114:R114, $I$6), INDEX(J114:S114, $I$4)) -> 0 | G114: =SMU -> $ 000s | I114: =IF( INDEX(J114:S114, I$5) = "", IF( INDEX(J114:S114, I$6) = F114, "vw", "tu"), IF(INDEX(J114:S114, I$5) = F114, "vw", "tu")) -> vw | K114: 0 | L114: 0 | M114: 0
E115: Accounts receivable - initial balance | F115: =IF( INDEX(J115:S115, $I$4) = "", INDEX(J115:R115, $I$6), INDEX(J115:S115, $I$4)) -> 0 | G115: =SMU -> $ 000s | I115: =IF( INDEX(J115:S115, I$5) = "", IF( INDEX(J115:S115, I$6) = F115, "vw", "tu"), IF(INDEX(J115:S115, I$5) = F115, "vw", "tu")) -> vw
C117: Liabilities
E118: Accounts payable - initial balance | F118: =IF( INDEX(J118:S118, $I$4) = "", INDEX(J118:R118, $I$6), INDEX(J118:S118, $I$4)) -> 0 | G118: =SMU -> $ 000s | I118: =IF( INDEX(J118:S118, I$5) = "", IF( INDEX(J118:S118, I$6) = F118, "vw", "tu"), IF(INDEX(J118:S118, I$5) = F118, "vw", "tu")) -> vw
E119: Retained earnings - initial balance | F119: =IF( INDEX(J119:S119, $I$4) = "", INDEX(J119:R119, $I$6), INDEX(J119:S119, $I$4)) -> 0 | G119: =SMU -> $ 000s | I119: =IF( INDEX(J119:S119, I$5) = "", IF( INDEX(J119:S119, I$6) = F119, "vw", "tu"), IF(INDEX(J119:S119, I$5) = F119, "vw", "tu")) -> vw | K119: 0 | L119: 0 | M119: 0
E120: Deferred tax - initial balance | F120: =IF( INDEX(J120:S120, $I$4) = "", INDEX(J120:R120, $I$6), INDEX(J120:S120, $I$4)) -> 0 | G120: =SMU -> $ 000s | I120: =IF( INDEX(J120:S120, I$5) = "", IF( INDEX(J120:S120, I$6) = F120, "vw", "tu"), IF(INDEX(J120:S120, I$5) = F120, "vw", "tu")) -> vw
A123: TAX
E124: Corporate income tax rate | F124: =IF( INDEX(J124:S124, $I$4) = "", INDEX(J124:R124, $I$6), INDEX(J124:S124, $I$4)) -> 0.2 | G124: % | I124: =IF( INDEX(J124:S124, I$5) = "", IF( INDEX(J124:S124, I$6) = F124, "vw", "tu"), IF(INDEX(J124:S124, I$5) = F124, "vw", "tu")) -> vw | K124: 0.2 | L124: 0.2 | M124: 0.2
E125: Tax depreciation rate | F125: =IF( INDEX(J125:S125, $I$4) = "", INDEX(J125:R125, $I$6), INDEX(J125:S125, $I$4)) -> 0.05 | G125: per quarter | I125: =IF( INDEX(J125:S125, I$5) = "", IF( INDEX(J125:S125, I$6) = F125, "vw", "tu"), IF(INDEX(J125:S125, I$5) = F125, "vw", "tu")) -> vw | K125: 0.05 | L125: 0.05 | M125: 0.05
E126: Tax losses carried forward - initial balance | F126: =IF( INDEX(J126:S126, $I$4) = "", INDEX(J126:R126, $I$6), INDEX(J126:S126, $I$4)) -> 0 | G126: =SMU -> $ 000s | I126: =IF( INDEX(J126:S126, I$5) = "", IF( INDEX(J126:S126, I$6) = F126, "vw", "tu"), IF(INDEX(J126:S126, I$5) = F126, "vw", "tu")) -> vw | K126: 0 | L126: 0 | M126: 0
A132: MODEL TECHNICAL INPUTS - DO NOT CHANGE
E134: Model track tolerance level | F134: 0.001 | G134: tolerance
E135: Model check tolerance level | F135: 0.001 | G135: tolerance
E136: Months in year | F136: 12 | G136: months
E137: Days in year | F137: 365 | G137: days
E138: Number of periods in a year | F138: 4 | G138: periods
E139: Standard Monetary Unit | F139: $ 000s | G139: named "SMU"
E140: US$c / US$ | F140: 100 | G140: US$c / US$
E141: GWh to KWh conversion | F141: 1000000 | G141: KWh / GWh
E142: Units in a thousand | F142: 1000 | G142: units
E143: Small negative value for IRR | F143: -1e-09 | G143: =SMU -> $ 000s
B145: Timeline label
E146: Pre-forecast period | F146: Pre-fcst | G146: label
E147: Financial Close | F147: Fin Close | G147: label
E148: Operations | F148: Operations | G148: label
E149: Post ops | F149: Post ops | G149: label
E151: Input row template for relocation macro | F151: =IF( INDEX(J151:S151, $I$4) = "", INDEX(J151:R151, $I$6), INDEX(J151:S151, $I$4)) -> 0 | G151: unit | I151: =IF( INDEX(J151:S151, I$5) = "", IF( INDEX(J151:S151, I$6) = F151, "vw", "tu"), IF(INDEX(J151:S151, I$5) = F151, "vw", "tu")) -> vw
A154: END

Sheet InpS
A1: =RIGHT(CELL("filename", A1), LEN(CELL("filename", A1)) - SEARCH("]", CELL("filename", A1))) & " - " & InpC!F3 -> InpS - Base case 1
E2: =Time!E$25 -> Model period ending | F2: =Check!$F$9 -> 0 | G2: Error chks | J2: =Time!J$25 -> 2020-09-30 | K2: =Time!K$25 -> 2020-12-31 | L2: =Time!L$25 -> 2021-03-31 | M2: =Time!M$25 -> 2021-06-30 | N2: =Time!N$25 -> 2021-09-30 | O2: =Time!O$25 -> 2021-12-31 | P2: =Time!P$25 -> 2022-03-31 | Q2: =Time!Q$25 -> 2022-06-30 | R2: =Time!R$25 -> 2022-09-30 | S2: =Time!S$25 -> 2022-12-31 | T2: =Time!T$25 -> 2023-03-31 | U2: =Time!U$25 -> 2023-06-30 | V2: =Time!V$25 -> 2023-09-30 | W2: =Time!W$25 -> 2023-12-31 | X2: =Time!X$25 -> 2024-03-31 | Y2: =Time!Y$25 -> 2024-06-30 | Z2: =Time!Z$25 -> 2024-09-30 | AA2: =Time!AA$25 -> 2024-12-31 | AB2: =Time!AB$25 -> 2025-03-31 | AC2: =Time!AC$25 -> 2025-06-30 | AD2: =Time!AD$25 -> 2025-09-30 | AE2: =Time!AE$25 -> 2025-12-31 | AF2: =Time!AF$25 -> 2026-03-31 | AG2: =Time!AG$25 -> 2026-06-30 | AH2: =Time!AH$25 -> 2026-09-30 | AI2: =Time!AI$25 -> 2026-12-31 | AJ2: =Time!AJ$25 -> 2027-03-31 | AK2: =Time!AK$25 -> 2027-06-30 | AL2: =Time!AL$25 -> 2027-09-30 | AM2: =Time!AM$25 -> 2027-12-31 | AN2: =Time!AN$25 -> 2028-03-31 | AO2: =Time!AO$25 -> 2028-06-30 | AP2: =Time!AP$25 -> 2028-09-30 | AQ2: =Time!AQ$25 -> 2028-12-31 | AR2: =Time!AR$25 -> 2029-03-31 | AS2: =Time!AS$25 -> 2029-06-30 | AT2: =Time!AT$25 -> 2029-09-30 | AU2: =Time!AU$25 -> 2029-12-31 | AV2: =Time!AV$25 -> 2030-03-31 | AW2: =Time!AW$25 -> 2030-06-30 | AX2: =Time!AX$25 -> 2030-09-30 | AY2: =Time!AY$25 -> 2030-12-31 | AZ2: =Time!AZ$25 -> 2031-03-31 | BA2: =Time!BA$25 -> 2031-06-30 | BB2: =Time!BB$25 -> 2031-09-30 | BC2: =Time!BC$25 -> 2031-12-31 | BD2: =Time!BD$25 -> 2032-03-31 | BE2: =Time!BE$25 -> 2032-06-30 | BF2: =Time!BF$25 -> 2032-09-30 | BG2: =Time!BG$25 -> 2032-12-31 | BH2: =Time!BH$25 -> 2033-03-31 | BI2: =Time!BI$25 -> 2033-06-30 | BJ2: =Time!BJ$25 -> 2033-09-30 | BK2: =Time!BK$25 -> 2033-12-31 | BL2: =Time!BL$25 -> 2034-03-31 | BM2: =Time!BM$25 -> 2034-06-30 | BN2: =Time!BN$25 -> 2034-09-30 | BO2: =Time!BO$25 -> 2034-12-31 | BP2: =Time!BP$25 -> 2035-03-31 | BQ2: =Time!BQ$25 -> 2035-06-30 | BR2: =Time!BR$25 -> 2035-09-30 | BS2: =Time!BS$25 -> 2035-12-31 | BT2: =Time!BT$25 -> 2036-03-31 | BU2: =Time!BU$25 -> 2036-06-30 | BV2: =Time!BV$25 -> 2036-09-30 | BW2: =Time!BW$25 -> 2036-12-31 | BX2: =Time!BX$25 -> 2037-03-31 | BY2: =Time!BY$25 -> 2037-06-30 | BZ2: =Time!BZ$25 -> 2037-09-30 | CA2: =Time!CA$25 -> 2037-12-31 | CB2: =Time!CB$25 -> 2038-03-31 | CC2: =Time!CC$25 -> 2038-06-30 | CD2: =Time!CD$25 -> 2038-09-30 | CE2: =Time!CE$25 -> 2038-12-31 | CF2: =Time!CF$25 -> 2039-03-31 | CG2: =Time!CG$25 -> 2039-06-30 | CH2: =Time!CH$25 -> 2039-09-30 | CI2: =Time!CI$25 -> 2039-12-31 | CJ2: =Time!CJ$25 -> 2040-03-31 | CK2: =Time!CK$25 -> 2040-06-30 | CL2: =Time!CL$25 -> 2040-09-30 | CM2: =Time!CM$25 -> 2040-12-31 | CN2: =Time!CN$25 -> 2041-03-31 | CO2: =Time!CO$25 -> 2041-06-30 | CP2: =Time!CP$25 -> 2041-09-30 | CQ2: =Time!CQ$25 -> 2041-12-31 | CR2: =Time!CR$25 -> 2042-03-31 | CS2: =Time!CS$25 -> 2042-06-30 | CT2: =Time!CT$25 -> 2042-09-30 | CU2: =Time!CU$25 -> 2042-12-31 | CV2: =Time!CV$25 -> 2043-03-31 | CW2: =Time!CW$25 -> 2043-06-30 | CX2: =Time!CX$25 -> 2043-09-30 | CY2: =Time!CY$25 -> 2043-12-31 | CZ2: =Time!CZ$25 -> 2044-03-31 | DA2: =Time!DA$25 -> 2044-06-30 | DB2: =Time!DB$25 -> 2044-09-30 | DC2: =Time!DC$25 -> 2044-12-31 | DD2: =Time!DD$25 -> 2045-03-31 | DE2: =Time!DE$25 -> 2045-06-30 | DF2: =Time!DF$25 -> 2045-09-30 | DG2: =Time!DG$25 -> 2045-12-31 | DH2: =Time!DH$25 -> 2046-03-31 | DI2: =Time!DI$25 -> 2046-06-30 | DJ2: =Time!DJ$25 -> 2046-09-30 | DK2: =Time!DK$25 -> 2046-12-31 | DL2: =Time!DL$25 -> 2047-03-31 | DM2: =Time!DM$25 -> 2047-06-30 | DN2: =Time!DN$25 -> 2047-09-30 | DO2: =Time!DO$25 -> 2047-12-31 | DP2: =Time!DP$25 -> 2048-03-31 | DQ2: =Time!DQ$25 -> 2048-06-30 | DR2: =Time!DR$25 -> 2048-09-30 | DS2: =Time!DS$25 -> 2048-12-31 | DT2: =Time!DT$25 -> 2049-03-31 | DU2: =Time!DU$25 -> 2049-06-30 | DV2: =Time!DV$25 -> 2049-09-30 | DW2: =Time!DW$25 -> 2049-12-31 | DX2: =Time!DX$25 -> 2050-03-31 | DY2: =Time!DY$25 -> 2050-06-30 | DZ2: =Time!DZ$25 -> 2050-09-30 | EA2: =Time!EA$25 -> 2050-12-31 | EB2: =Time!EB$25 -> 2051-03-31 | EC2: =Time!EC$25 -> 2051-06-30 | ED2: =Time!ED$25 -> 2051-09-30 | EE2: =Time!EE$25 -> 2051-12-31 | EF2: =Time!EF$25 -> 2052-03-31 | EG2: =Time!EG$25 -> 2052-06-30 | EH2: =Time!EH$25 -> 2052-09-30 | EI2: =Time!EI$25 -> 2052-12-31 | EJ2: =Time!EJ$25 -> 2053-03-31 | EK2: =Time!EK$25 -> 2053-06-30 | EL2: =Time!EL$25 -> 2053-09-30 | EM2: =Time!EM$25 -> 2053-12-31 | EN2: =Time!EN$25 -> 2054-03-31 | EO2: =Time!EO$25 -> 2054-06-30 | EP2: =Time!EP$25 -> 2054-09-30 | EQ2: =Time!EQ$25 -> 2054-12-31 | ER2: =Time!ER$25 -> 2055-03-31 | ES2: =Time!ES$25 -> 2055-06-30 | ET2: =Time!ET$25 -> 2055-09-30 | EU2: =Time!EU$25 -> 2055-12-31 | EV2: =Time!EV$25 -> 2056-03-31 | EW2: =Time!EW$25 -> 2056-06-30 | EX2: =Time!EX$25 -> 2056-09-30 | EY2: =Time!EY$25 -> 2056-12-31 | EZ2: =Time!EZ$25 -> 2057-03-31 | FA2: =Time!FA$25 -> 2057-06-30 | FB2: =Time!FB$25 -> 2057-09-30 | FC2: =Time!FC$25 -> 2057-12-31 | FD2: =Time!FD$25 -> 2058-03-31 | FE2: =Time!FE$25 -> 2058-06-30 | FF2: =Time!FF$25 -> 2058-09-30 | FG2: =Time!FG$25 -> 2058-12-31 | FH2: =Time!FH$25 -> 2059-03-31 | FI2: =Time!FI$25 -> 2059-06-30 | FJ2: =Time!FJ$25 -> 2059-09-30 | FK2: =Time!FK$25 -> 2059-12-31 | FL2: =Time!FL$25 -> 2060-03-31 | FM2: =Time!FM$25 -> 2060-06-30 | FN2: =Time!FN$25 -> 2060-09-30 | FO2: =Time!FO$25 -> 2060-12-31 | FP2: =Time!FP$25 -> 2061-03-31 | FQ2: =Time!FQ$25 -> 2061-06-30 | FR2: =Time!FR$25 -> 2061-09-30 | FS2: =Time!FS$25 -> 2061-12-31 | FT2: =Time!FT$25 -> 2062-03-31 | FU2: =Time!FU$25 -> 2062-06-30 | FV2: =Time!FV$25 -> 2062-09-30 | FW2: =Time!FW$25 -> 2062-12-31 | FX2: =Time!FX$25 -> 2063-03-31 | FY2: =Time!FY$25 -> 2063-06-30 | FZ2: =Time!FZ$25 -> 2063-09-30 | GA2: =Time!GA$25 -> 2063-12-31 | GB2: =Time!GB$25 -> 2064-03-31 | GC2: =Time!GC$25 -> 2064-06-30 | GD2: =Time!GD$25 -> 2064-09-30 | GE2: =Time!GE$25 -> 2064-12-31 | GF2: =Time!GF$25 -> 2065-03-31 | GG2: =Time!GG$25 -> 2065-06-30 | GH2: =Time!GH$25 -> 2065-09-30 | GI2: =Time!GI$25 -> 2065-12-31 | GJ2: =Time!GJ$25 -> 2066-03-31
E3: =Time!E$67 -> Timeline label | F3: =Output!J2 -> 0 | G3: Track chgs | J3: =Time!J$67 -> Pre-fcst | K3: =Time!K$67 -> Pre-fcst | L3: =Time!L$67 -> Fin Close | M3: =Time!M$67 -> Operations | N3: =Time!N$67 -> Operations | O3: =Time!O$67 -> Operations | P3: =Time!P$67 -> Operations | Q3: =Time!Q$67 -> Operations | R3: =Time!R$67 -> Operations | S3: =Time!S$67 -> Operations | T3: =Time!T$67 -> Operations | U3: =Time!U$67 -> Operations | V3: =Time!V$67 -> Operations | W3: =Time!W$67 -> Operations | X3: =Time!X$67 -> Operations | Y3: =Time!Y$67 -> Operations | Z3: =Time!Z$67 -> Operations | AA3: =Time!AA$67 -> Operations | AB3: =Time!AB$67 -> Operations | AC3: =Time!AC$67 -> Operations | AD3: =Time!AD$67 -> Operations | AE3: =Time!AE$67 -> Operations | AF3: =Time!AF$67 -> Operations | AG3: =Time!AG$67 -> Operations | AH3: =Time!AH$67 -> Operations | AI3: =Time!AI$67 -> Operations | AJ3: =Time!AJ$67 -> Operations | AK3: =Time!AK$67 -> Operations | AL3: =Time!AL$67 -> Operations | AM3: =Time!AM$67 -> Operations | AN3: =Time!AN$67 -> Operations | AO3: =Time!AO$67 -> Operations | AP3: =Time!AP$67 -> Operations | AQ3: =Time!AQ$67 -> Operations | AR3: =Time!AR$67 -> Operations | AS3: =Time!AS$67 -> Operations | AT3: =Time!AT$67 -> Operations | AU3: =Time!AU$67 -> Operations | AV3: =Time!AV$67 -> Operations | AW3: =Time!AW$67 -> Operations | AX3: =Time!AX$67 -> Operations | AY3: =Time!AY$67 -> Operations | AZ3: =Time!AZ$67 -> Operations | BA3: =Time!BA$67 -> Operations | BB3: =Time!BB$67 -> Operations | BC3: =Time!BC$67 -> Operations | BD3: =Time!BD$67 -> Operations | BE3: =Time!BE$67 -> Operations | BF3: =Time!BF$67 -> Operations | BG3: =Time!BG$67 -> Operations | BH3: =Time!BH$67 -> Operations | BI3: =Time!BI$67 -> Operations | BJ3: =Time!BJ$67 -> Operations | BK3: =Time!BK$67 -> Operations | BL3: =Time!BL$67 -> Operations | BM3: =Time!BM$67 -> Operations | BN3: =Time!BN$67 -> Operations | BO3: =Time!BO$67 -> Operations | BP3: =Time!BP$67 -> Operations | BQ3: =Time!BQ$67 -> Operations | BR3: =Time!BR$67 -> Operations | BS3: =Time!BS$67 -> Operations | BT3: =Time!BT$67 -> Operations | BU3: =Time!BU$67 -> Operations | BV3: =Time!BV$67 -> Operations | BW3: =Time!BW$67 -> Operations | BX3: =Time!BX$67 -> Operations | BY3: =Time!BY$67 -> Operations | BZ3: =Time!BZ$67 -> Operations | CA3: =Time!CA$67 -> Operations | CB3: =Time!CB$67 -> Operations | CC3: =Time!CC$67 -> Operations | CD3: =Time!CD$67 -> Operations | CE3: =Time!CE$67 -> Operations | CF3: =Time!CF$67 -> Operations | CG3: =Time!CG$67 -> Operations | CH3: =Time!CH$67 -> Operations | CI3: =Time!CI$67 -> Operations | CJ3: =Time!CJ$67 -> Operations | CK3: =Time!CK$67 -> Operations | CL3: =Time!CL$67 -> Operations | CM3: =Time!CM$67 -> Operations | CN3: =Time!CN$67 -> Operations | CO3: =Time!CO$67 -> Operations | CP3: =Time!CP$67 -> Operations | CQ3: =Time!CQ$67 -> Operations | CR3: =Time!CR$67 -> Operations | CS3: =Time!CS$67 -> Operations | CT3: =Time!CT$67 -> Operations | CU3: =Time!CU$67 -> Operations | CV3: =Time!CV$67 -> Operations | CW3: =Time!CW$67 -> Operations | CX3: =Time!CX$67 -> Operations | CY3: =Time!CY$67 -> Operations | CZ3: =Time!CZ$67 -> Operations | DA3: =Time!DA$67 -> Operations | DB3: =Time!DB$67 -> Operations | DC3: =Time!DC$67 -> Operations | DD3: =Time!DD$67 -> Operations | DE3: =Time!DE$67 -> Operations | DF3: =Time!DF$67 -> Operations | DG3: =Time!DG$67 -> Operations | DH3: =Time!DH$67 -> Operations | DI3: =Time!DI$67 -> Post ops | DJ3: =Time!DJ$67 -> Post ops | DK3: =Time!DK$67 -> Post ops | DL3: =Time!DL$67 -> Post ops | DM3: =Time!DM$67 -> Post ops | DN3: =Time!DN$67 -> Post ops | DO3: =Time!DO$67 -> Post ops | DP3: =Time!DP$67 -> Post ops | DQ3: =Time!DQ$67 -> Post ops | DR3: =Time!DR$67 -> Post ops | DS3: =Time!DS$67 -> Post ops | DT3: =Time!DT$67 -> Post ops | DU3: =Time!DU$67 -> Post ops | DV3: =Time!DV$67 -> Post ops | DW3: =Time!DW$67 -> Post ops | DX3: =Time!DX$67 -> Post ops | DY3: =Time!DY$67 -> Post ops | DZ3: =Time!DZ$67 -> Post ops | EA3: =Time!EA$67 -> Post ops | EB3: =Time!EB$67 -> Post ops | EC3: =Time!EC$67 -> Post ops | ED3: =Time!ED$67 -> Post ops | EE3: =Time!EE$67 -> Post ops | EF3: =Time!EF$67 -> Post ops | EG3: =Time!EG$67 -> Post ops | EH3: =Time!EH$67 -> Post ops | EI3: =Time!EI$67 -> Post ops | EJ3: =Time!EJ$67 -> Post ops | EK3: =Time!EK$67 -> Post ops | EL3: =Time!EL$67 -> Post ops | EM3: =Time!EM$67 -> Post ops | EN3: =Time!EN$67 -> Post ops | EO3: =Time!EO$67 -> Post ops | EP3: =Time!EP$67 -> Post ops | EQ3: =Time!EQ$67 -> Post ops | ER3: =Time!ER$67 -> Post ops | ES3: =Time!ES$67 -> Post ops | ET3: =Time!ET$67 -> Post ops | EU3: =Time!EU$67 -> Post ops | EV3: =Time!EV$67 -> Post ops | EW3: =Time!EW$67 -> Post ops | EX3: =Time!EX$67 -> Post ops | EY3: =Time!EY$67 -> Post ops | EZ3: =Time!EZ$67 -> Post ops | FA3: =Time!FA$67 -> Post ops | FB3: =Time!FB$67 -> Post ops | FC3: =Time!FC$67 -> Post ops | FD3: =Time!FD$67 -> Post ops | FE3: =Time!FE$67 -> Post ops | FF3: =Time!FF$67 -> Post ops | FG3: =Time!FG$67 -> Post ops | FH3: =Time!FH$67 -> Post ops | FI3: =Time!FI$67 -> Post ops | FJ3: =Time!FJ$67 -> Post ops | FK3: =Time!FK$67 -> Post ops | FL3: =Time!FL$67 -> Post ops | FM3: =Time!FM$67 -> Post ops | FN3: =Time!FN$67 -> Post ops | FO3: =Time!FO$67 -> Post ops | FP3: =Time!FP$67 -> Post ops | FQ3: =Time!FQ$67 -> Post ops | FR3: =Time!FR$67 -> Post ops | FS3: =Time!FS$67 -> Post ops | FT3: =Time!FT$67 -> Post ops | FU3: =Time!FU$67 -> Post ops | FV3: =Time!FV$67 -> Post ops | FW3: =Time!FW$67 -> Post ops | FX3: =Time!FX$67 -> Post ops | FY3: =Time!FY$67 -> Post ops | FZ3: =Time!FZ$67 -> Post ops | GA3: =Time!GA$67 -> Post ops | GB3: =Time!GB$67 -> Post ops | GC3: =Time!GC$67 -> Post ops | GD3: =Time!GD$67 -> Post ops | GE3: =Time!GE$67 -> Post ops | GF3: =Time!GF$67 -> Post ops | GG3: =Time!GG$67 -> Post ops | GH3: =Time!GH$67 -> Post ops | GI3: =Time!GI$67 -> Post ops | GJ3: =Time!GJ$67 -> Post ops
E4: =Time!E$42 -> Contract year | F4: =Check!$F$21 -> 0 | G4: Alerts | J4: =Time!J$42 -> 2020 | K4: =Time!K$42 -> 2020 | L4: =Time!L$42 -> 2020 | M4: =Time!M$42 -> 2021 | N4: =Time!N$42 -> 2021 | O4: =Time!O$42 -> 2021 | P4: =Time!P$42 -> 2021 | Q4: =Time!Q$42 -> 2022 | R4: =Time!R$42 -> 2022 | S4: =Time!S$42 -> 2022 | T4: =Time!T$42 -> 2022 | U4: =Time!U$42 -> 2023 | V4: =Time!V$42 -> 2023 | W4: =Time!W$42 -> 2023 | X4: =Time!X$42 -> 2023 | Y4: =Time!Y$42 -> 2024 | Z4: =Time!Z$42 -> 2024 | AA4: =Time!AA$42 -> 2024 | AB4: =Time!AB$42 -> 2024 | AC4: =Time!AC$42 -> 2025 | AD4: =Time!AD$42 -> 2025 | AE4: =Time!AE$42 -> 2025 | AF4: =Time!AF$42 -> 2025 | AG4: =Time!AG$42 -> 2026 | AH4: =Time!AH$42 -> 2026 | AI4: =Time!AI$42 -> 2026 | AJ4: =Time!AJ$42 -> 2026 | AK4: =Time!AK$42 -> 2027 | AL4: =Time!AL$42 -> 2027 | AM4: =Time!AM$42 -> 2027 | AN4: =Time!AN$42 -> 2027 | AO4: =Time!AO$42 -> 2028 | AP4: =Time!AP$42 -> 2028 | AQ4: =Time!AQ$42 -> 2028 | AR4: =Time!AR$42 -> 2028 | AS4: =Time!AS$42 -> 2029 | AT4: =Time!AT$42 -> 2029 | AU4: =Time!AU$42 -> 2029 | AV4: =Time!AV$42 -> 2029 | AW4: =Time!AW$42 -> 2030 | AX4: =Time!AX$42 -> 2030 | AY4: =Time!AY$42 -> 2030 | AZ4: =Time!AZ$42 -> 2030 | BA4: =Time!BA$42 -> 2031 | BB4: =Time!BB$42 -> 2031 | BC4: =Time!BC$42 -> 2031 | BD4: =Time!BD$42 -> 2031 | BE4: =Time!BE$42 -> 2032 | BF4: =Time!BF$42 -> 2032 | BG4: =Time!BG$42 -> 2032 | BH4: =Time!BH$42 -> 2032 | BI4: =Time!BI$42 -> 2033 | BJ4: =Time!BJ$42 -> 2033 | BK4: =Time!BK$42 -> 2033 | BL4: =Time!BL$42 -> 2033 | BM4: =Time!BM$42 -> 2034 | BN4: =Time!BN$42 -> 2034 | BO4: =Time!BO$42 -> 2034 | BP4: =Time!BP$42 -> 2034 | BQ4: =Time!BQ$42 -> 2035 | BR4: =Time!BR$42 -> 2035 | BS4: =Time!BS$42 -> 2035 | BT4: =Time!BT$42 -> 2035 | BU4: =Time!BU$42 -> 2036 | BV4: =Time!BV$42 -> 2036 | BW4: =Time!BW$42 -> 2036 | BX4: =Time!BX$42 -> 2036 | BY4: =Time!BY$42 -> 2037 | BZ4: =Time!BZ$42 -> 2037 | CA4: =Time!CA$42 -> 2037 | CB4: =Time!CB$42 -> 2037 | CC4: =Time!CC$42 -> 2038 | CD4: =Time!CD$42 -> 2038 | CE4: =Time!CE$42 -> 2038 | CF4: =Time!CF$42 -> 2038 | CG4: =Time!CG$42 -> 2039 | CH4: =Time!CH$42 -> 2039 | CI4: =Time!CI$42 -> 2039 | CJ4: =Time!CJ$42 -> 2039 | CK4: =Time!CK$42 -> 2040 | CL4: =Time!CL$42 -> 2040 | CM4: =Time!CM$42 -> 2040 | CN4: =Time!CN$42 -> 2040 | CO4: =Time!CO$42 -> 2041 | CP4: =Time!CP$42 -> 2041 | CQ4: =Time!CQ$42 -> 2041 | CR4: =Time!CR$42 -> 2041 | CS4: =Time!CS$42 -> 2042 | CT4: =Time!CT$42 -> 2042 | CU4: =Time!CU$42 -> 2042 | CV4: =Time!CV$42 -> 2042 | CW4: =Time!CW$42 -> 2043 | CX4: =Time!CX$42 -> 2043 | CY4: =Time!CY$42 -> 2043 | CZ4: =Time!CZ$42 -> 2043 | DA4: =Time!DA$42 -> 2044 | DB4: =Time!DB$42 -> 2044 | DC4: =Time!DC$42 -> 2044 | DD4: =Time!DD$42 -> 2044 | DE4: =Time!DE$42 -> 2045 | DF4: =Time!DF$42 -> 2045 | DG4: =Time!DG$42 -> 2045 | DH4: =Time!DH$42 -> 2045 | DI4: =Time!DI$42 -> 2046 | DJ4: =Time!DJ$42 -> 2046 | DK4: =Time!DK$42 -> 2046 | DL4: =Time!DL$42 -> 2046 | DM4: =Time!DM$42 -> 2047 | DN4: =Time!DN$42 -> 2047 | DO4: =Time!DO$42 -> 2047 | DP4: =Time!DP$42 -> 2047 | DQ4: =Time!DQ$42 -> 2048 | DR4: =Time!DR$42 -> 2048 | DS4: =Time!DS$42 -> 2048 | DT4: =Time!DT$42 -> 2048 | DU4: =Time!DU$42 -> 2049 | DV4: =Time!DV$42 -> 2049 | DW4: =Time!DW$42 -> 2049 | DX4: =Time!DX$42 -> 2049 | DY4: =Time!DY$42 -> 2050 | DZ4: =Time!DZ$42 -> 2050 | EA4: =Time!EA$42 -> 2050 | EB4: =Time!EB$42 -> 2050 | EC4: =Time!EC$42 -> 2051 | ED4: =Time!ED$42 -> 2051 | EE4: =Time!EE$42 -> 2051 | EF4: =Time!EF$42 -> 2051 | EG4: =Time!EG$42 -> 2052 | EH4: =Time!EH$42 -> 2052 | EI4: =Time!EI$42 -> 2052 | EJ4: =Time!EJ$42 -> 2052 | EK4: =Time!EK$42 -> 2053 | EL4: =Time!EL$42 -> 2053 | EM4: =Time!EM$42 -> 2053 | EN4: =Time!EN$42 -> 2053 | EO4: =Time!EO$42 -> 2054 | EP4: =Time!EP$42 -> 2054 | EQ4: =Time!EQ$42 -> 2054 | ER4: =Time!ER$42 -> 2054 | ES4: =Time!ES$42 -> 2055 | ET4: =Time!ET$42 -> 2055 | EU4: =Time!EU$42 -> 2055 | EV4: =Time!EV$42 -> 2055 | EW4: =Time!EW$42 -> 2056 | EX4: =Time!EX$42 -> 2056 | EY4: =Time!EY$42 -> 2056 | EZ4: =Time!EZ$42 -> 2056 | FA4: =Time!FA$42 -> 2057 | FB4: =Time!FB$42 -> 2057 | FC4: =Time!FC$42 -> 2057 | FD4: =Time!FD$42 -> 2057 | FE4: =Time!FE$42 -> 2058 | FF4: =Time!FF$42 -> 2058 | FG4: =Time!FG$42 -> 2058 | FH4: =Time!FH$42 -> 2058 | FI4: =Time!FI$42 -> 2059 | FJ4: =Time!FJ$42 -> 2059 | FK4: =Time!FK$42 -> 2059 | FL4: =Time!FL$42 -> 2059 | FM4: =Time!FM$42 -> 2060 | FN4: =Time!FN$42 -> 2060 | FO4: =Time!FO$42 -> 2060 | FP4: =Time!FP$42 -> 2060 | FQ4: =Time!FQ$42 -> 2061 | FR4: =Time!FR$42 -> 2061 | FS4: =Time!FS$42 -> 2061 | FT4: =Time!FT$42 -> 2061 | FU4: =Time!FU$42 -> 2062 | FV4: =Time!FV$42 -> 2062 | FW4: =Time!FW$42 -> 2062 | FX4: =Time!FX$42 -> 2062 | FY4: =Time!FY$42 -> 2063 | FZ4: =Time!FZ$42 -> 2063 | GA4: =Time!GA$42 -> 2063 | GB4: =Time!GB$42 -> 2063 | GC4: =Time!GC$42 -> 2064 | GD4: =Time!GD$42 -> 2064 | GE4: =Time!GE$42 -> 2064 | GF4: =Time!GF$42 -> 2064 | GG4: =Time!GG$42 -> 2065 | GH4: =Time!GH$42 -> 2065 | GI4: =Time!GI$42 -> 2065 | GJ4: =Time!GJ$42 -> 2065
E5: =Time!E$10 -> Model column counter | F5: Constant | G5: Unit | H5: Total | J5: =Time!J$10 -> 1 | K5: =Time!K$10 -> 2 | L5: =Time!L$10 -> 3 | M5: =Time!M$10 -> 4 | N5: =Time!N$10 -> 5 | O5: =Time!O$10 -> 6 | P5: =Time!P$10 -> 7 | Q5: =Time!Q$10 -> 8 | R5: =Time!R$10 -> 9 | S5: =Time!S$10 -> 10 | T5: =Time!T$10 -> 11 | U5: =Time!U$10 -> 12 | V5: =Time!V$10 -> 13 | W5: =Time!W$10 -> 14 | X5: =Time!X$10 -> 15 | Y5: =Time!Y$10 -> 16 | Z5: =Time!Z$10 -> 17 | AA5: =Time!AA$10 -> 18 | AB5: =Time!AB$10 -> 19 | AC5: =Time!AC$10 -> 20 | AD5: =Time!AD$10 -> 21 | AE5: =Time!AE$10 -> 22 | AF5: =Time!AF$10 -> 23 | AG5: =Time!AG$10 -> 24 | AH5: =Time!AH$10 -> 25 | AI5: =Time!AI$10 -> 26 | AJ5: =Time!AJ$10 -> 27 | AK5: =Time!AK$10 -> 28 | AL5: =Time!AL$10 -> 29 | AM5: =Time!AM$10 -> 30 | AN5: =Time!AN$10 -> 31 | AO5: =Time!AO$10 -> 32 | AP5: =Time!AP$10 -> 33 | AQ5: =Time!AQ$10 -> 34 | AR5: =Time!AR$10 -> 35 | AS5: =Time!AS$10 -> 36 | AT5: =Time!AT$10 -> 37 | AU5: =Time!AU$10 -> 38 | AV5: =Time!AV$10 -> 39 | AW5: =Time!AW$10 -> 40 | AX5: =Time!AX$10 -> 41 | AY5: =Time!AY$10 -> 42 | AZ5: =Time!AZ$10 -> 43 | BA5: =Time!BA$10 -> 44 | BB5: =Time!BB$10 -> 45 | BC5: =Time!BC$10 -> 46 | BD5: =Time!BD$10 -> 47 | BE5: =Time!BE$10 -> 48 | BF5: =Time!BF$10 -> 49 | BG5: =Time!BG$10 -> 50 | BH5: =Time!BH$10 -> 51 | BI5: =Time!BI$10 -> 52 | BJ5: =Time!BJ$10 -> 53 | BK5: =Time!BK$10 -> 54 | BL5: =Time!BL$10 -> 55 | BM5: =Time!BM$10 -> 56 | BN5: =Time!BN$10 -> 57 | BO5: =Time!BO$10 -> 58 | BP5: =Time!BP$10 -> 59 | BQ5: =Time!BQ$10 -> 60 | BR5: =Time!BR$10 -> 61 | BS5: =Time!BS$10 -> 62 | BT5: =Time!BT$10 -> 63 | BU5: =Time!BU$10 -> 64 | BV5: =Time!BV$10 -> 65 | BW5: =Time!BW$10 -> 66 | BX5: =Time!BX$10 -> 67 | BY5: =Time!BY$10 -> 68 | BZ5: =Time!BZ$10 -> 69 | CA5: =Time!CA$10 -> 70 | CB5: =Time!CB$10 -> 71 | CC5: =Time!CC$10 -> 72 | CD5: =Time!CD$10 -> 73 | CE5: =Time!CE$10 -> 74 | CF5: =Time!CF$10 -> 75 | CG5: =Time!CG$10 -> 76 | CH5: =Time!CH$10 -> 77 | CI5: =Time!CI$10 -> 78 | CJ5: =Time!CJ$10 -> 79 | CK5: =Time!CK$10 -> 80 | CL5: =Time!CL$10 -> 81 | CM5: =Time!CM$10 -> 82 | CN5: =Time!CN$10 -> 83 | CO5: =Time!CO$10 -> 84 | CP5: =Time!CP$10 -> 85 | CQ5: =Time!CQ$10 -> 86 | CR5: =Time!CR$10 -> 87 | CS5: =Time!CS$10 -> 88 | CT5: =Time!CT$10 -> 89 | CU5: =Time!CU$10 -> 90 | CV5: =Time!CV$10 -> 91 | CW5: =Time!CW$10 -> 92 | CX5: =Time!CX$10 -> 93 | CY5: =Time!CY$10 -> 94 | CZ5: =Time!CZ$10 -> 95 | DA5: =Time!DA$10 -> 96 | DB5: =Time!DB$10 -> 97 | DC5: =Time!DC$10 -> 98 | DD5: =Time!DD$10 -> 99 | DE5: =Time!DE$10 -> 100 | DF5: =Time!DF$10 -> 101 | DG5: =Time!DG$10 -> 102 | DH5: =Time!DH$10 -> 103 | DI5: =Time!DI$10 -> 104 | DJ5: =Time!DJ$10 -> 105 | DK5: =Time!DK$10 -> 106 | DL5: =Time!DL$10 -> 107 | DM5: =Time!DM$10 -> 108 | DN5: =Time!DN$10 -> 109 | DO5: =Time!DO$10 -> 110 | DP5: =Time!DP$10 -> 111 | DQ5: =Time!DQ$10 -> 112 | DR5: =Time!DR$10 -> 113 | DS5: =Time!DS$10 -> 114 | DT5: =Time!DT$10 -> 115 | DU5: =Time!DU$10 -> 116 | DV5: =Time!DV$10 -> 117 | DW5: =Time!DW$10 -> 118 | DX5: =Time!DX$10 -> 119 | DY5: =Time!DY$10 -> 120 | DZ5: =Time!DZ$10 -> 121 | EA5: =Time!EA$10 -> 122 | EB5: =Time!EB$10 -> 123 | EC5: =Time!EC$10 -> 124 | ED5: =Time!ED$10 -> 125 | EE5: =Time!EE$10 -> 126 | EF5: =Time!EF$10 -> 127 | EG5: =Time!EG$10 -> 128 | EH5: =Time!EH$10 -> 129 | EI5: =Time!EI$10 -> 130 | EJ5: =Time!EJ$10 -> 131 | EK5: =Time!EK$10 -> 132 | EL5: =Time!EL$10 -> 133 | EM5: =Time!EM$10 -> 134 | EN5: =Time!EN$10 -> 135 | EO5: =Time!EO$10 -> 136 | EP5: =Time!EP$10 -> 137 | EQ5: =Time!EQ$10 -> 138 | ER5: =Time!ER$10 -> 139 | ES5: =Time!ES$10 -> 140 | ET5: =Time!ET$10 -> 141 | EU5: =Time!EU$10 -> 142 | EV5: =Time!EV$10 -> 143 | EW5: =Time!EW$10 -> 144 | EX5: =Time!EX$10 -> 145 | EY5: =Time!EY$10 -> 146 | EZ5: =Time!EZ$10 -> 147 | FA5: =Time!FA$10 -> 148 | FB5: =Time!FB$10 -> 149 | FC5: =Time!FC$10 -> 150 | FD5: =Time!FD$10 -> 151 | FE5: =Time!FE$10 -> 152 | FF5: =Time!FF$10 -> 153 | FG5: =Time!FG$10 -> 154 | FH5: =Time!FH$10 -> 155 | FI5: =Time!FI$10 -> 156 | FJ5: =Time!FJ$10 -> 157 | FK5: =Time!FK$10 -> 158 | FL5: =Time!FL$10 -> 159 | FM5: =Time!FM$10 -> 160 | FN5: =Time!FN$10 -> 161 | FO5: =Time!FO$10 -> 162 | FP5: =Time!FP$10 -> 163 | FQ5: =Time!FQ$10 -> 164 | FR5: =Time!FR$10 -> 165 | FS5: =Time!FS$10 -> 166 | FT5: =Time!FT$10 -> 167 | FU5: =Time!FU$10 -> 168 | FV5: =Time!FV$10 -> 169 | FW5: =Time!FW$10 -> 170 | FX5: =Time!FX$10 -> 171 | FY5: =Time!FY$10 -> 172 | FZ5: =Time!FZ$10 -> 173 | GA5: =Time!GA$10 -> 174 | GB5: =Time!GB$10 -> 175 | GC5: =Time!GC$10 -> 176 | GD5: =Time!GD$10 -> 177 | GE5: =Time!GE$10 -> 178 | GF5: =Time!GF$10 -> 179 | GG5: =Time!GG$10 -> 180 | GH5: =Time!GH$10 -> 181 | GI5: =Time!GI$10 -> 182 | GJ5: =Time!GJ$10 -> 183
A7: SENIOR DEBT FORWARD CURVE
E9: =InpC!E$63 -> Senior debt forward curve selection | F9: =InpC!F$63 -> 1 | G9: =InpC!G$63 -> profile
E10: Senior debt forward curve as at April 27th | G10: % | J10: 0.02 | K10: 0.020062 | L10: 0.020124 | M10: 0.020184 | N10: 0.020241 | O10: 0.020308 | P10: 0.020375 | Q10: 0.020434 | R10: 0.020506 | S10: 0.020569 | T10: 0.02062 | U10: 0.020666 | V10: 0.020719 | W10: 0.020757 | X10: 0.020795 | Y10: 0.02085 | Z10: 0.020888 | AA10: 0.020954 | AB10: 0.021024 | AC10: 0.021091 | AD10: 0.021134 | AE10: 0.021205 | AF10: 0.021279 | AG10: 0.021316 | AH10: 0.021367 | AI10: 0.021421 | AJ10: 0.02147 | AK10: 0.021516 | AL10: 0.02157 | AM10: 0.021639 | AN10: 0.021709 | AO10: 0.021772 | AP10: 0.021813 | AQ10: 0.021858 | AR10: 0.021913 | AS10: 0.021986 | AT10: 0.022041 | AU10: 0.022089 | AV10: 0.022148 | AW10: 0.022216 | AX10: 0.022282 | AY10: 0.022351 | AZ10: 0.022409 | BA10: 0.022445 | BB10: 0.022489 | BC10: 0.022535 | BD10: 0.022607 | BE10: 0.022647 | BF10: 0.022684 | BG10: 0.022734 | BH10: 0.022806 | BI10: 0.022852 | BJ10: 0.022899 | BK10: 0.022953 | BL10: 0.023028 | BM10: 0.023094 | BN10: 0.023146 | BO10: 0.023212 | BP10: 0.023254 | BQ10: 0.023289 | BR10: 0.023334 | BS10: 0.023373 | BT10: 0.023414 | BU10: 0.023473 | BV10: 0.02352 | BW10: 0.023593 | BX10: 0.023661 | BY10: 0.023729 | BZ10: 0.023786 | CA10: 0.023842 | CB10: 0.023908 | CC10: 0.023962 | CD10: 0.024012 | CE10: 0.024071 | CF10: 0.02412 | CG10: 0.024167 | CH10: 0.024216 | CI10: 0.024264 | CJ10: 0.024302 | CK10: 0.024366 | CL10: 0.024409 | CM10: 0.024463 | CN10: 0.024531 | CO10: 0.024587 | CP10: 0.024623 | CQ10: 0.024689 | CR10: 0.024739 | CS10: 0.02479 | CT10: 0.024835 | CU10: 0.024873 | CV10: 0.024931 | CW10: 0.024984 | CX10: 0.025049 | CY10: 0.025112 | CZ10: 0.025182 | DA10: 0.025252 | DB10: 0.02529 | DC10: 0.025333 | DD10: 0.025394 | DE10: 0.025439 | DF10: 0.025491 | DG10: 0.025562 | DH10: 0.025624 | DI10: 0.025666 | DJ10: 0.025739 | DK10: 0.025799 | DL10: 0.025837 | DM10: 0.025907 | DN10: 0.025947 | DO10: 0.025986 | DP10: 0.026059 | DQ10: 0.026104 | DR10: 0.026177 | DS10: 0.02622 | DT10: 0.026291 | DU10: 0.026347 | DV10: 0.026388 | DW10: 0.026447 | DX10: 0.026511 | DY10: 0.026547 | DZ10: 0.026589 | EA10: 0.026655 | EB10: 0.026693 | EC10: 0.026738 | ED10: 0.026811 | EE10: 0.026864 | EF10: 0.026917 | EG10: 0.026985 | EH10: 0.027028 | EI10: 0.02709 | EJ10: 0.027134 | EK10: 0.027205 | EL10: 0.02727 | EM10: 0.027308 | EN10: 0.027346 | EO10: 0.027391 | EP10: 0.027437 | EQ10: 0.027496 | ER10: 0.027551 | ES10: 0.027621 | ET10: 0.027689 | EU10: 0.027753 | EV10: 0.027788 | EW10: 0.027828 | EX10: 0.027891 | EY10: 0.027952 | EZ10: 0.028004 | FA10: 0.028051 | FB10: 0.028117 | FC10: 0.028162 | FD10: 0.028226 | FE10: 0.028283 | FF10: 0.028351 | FG10: 0.028407 | FH10: 0.028452 | FI10: 0.028495 | FJ10: 0.02857 | FK10: 0.028613 | FL10: 0.028678 | FM10: 0.028726 | FN10: 0.028797 | FO10: 0.028861 | FP10: 0.028935 | FQ10: 0.028995 | FR10: 0.02905 | FS10: 0.029109 | FT10: 0.029181 | FU10: 0.029232 | FV10: 0.029283 | FW10: 0.029322 | FX10: 0.029382 | FY10: 0.029447 | FZ10: 0.029488 | GA10: 0.029557 | GB10: 0.029595 | GC10: 0.02967 | GD10: 0.029737 | GE10: 0.029788 | GF10: 0.029841 | GG10: 0.029881 | GH10: 0.029955 | GI10: 0.030029 | GJ10: 0.030092
E11: Spare | G11: %
E12: Spare | G12: %
E13: Active senior debt curve | G13: % | J13: =INDEX(J10:J12, $F9) -> 0.02 | K13: 0.020062 | L13: 0.020124 | M13: 0.020184 | N13: 0.020241 | O13: 0.020308 | P13: 0.020375 | Q13: 0.020434 | R13: 0.020506 | S13: 0.020569 | T13: 0.02062 | U13: 0.020666 | V13: 0.020719 | W13: 0.020757 | X13: 0.020795 | Y13: 0.02085 | Z13: 0.020888 | AA13: 0.020954 | AB13: 0.021024 | AC13: 0.021091 | AD13: 0.021134 | AE13: 0.021205 | AF13: 0.021279 | AG13: 0.021316 | AH13: 0.021367 | AI13: 0.021421 | AJ13: 0.02147 | AK13: 0.021516 | AL13: 0.02157 | AM13: 0.021639 | AN13: 0.021709 | AO13: 0.021772 | AP13: =INDEX(AP10:AP12, $F9) -> 0.021813 | AQ13: 0.021858 | AR13: 0.021913 | AS13: 0.021986 | AT13: 0.022041 | AU13: 0.022089 | AV13: 0.022148 | AW13: 0.022216 | AX13: 0.022282 | AY13: 0.022351 | AZ13: 0.022409 | BA13: 0.022445 | BB13: 0.022489 | BC13: 0.022535 | BD13: 0.022607 | BE13: 0.022647 | BF13: 0.022684 | BG13: 0.022734 | BH13: 0.022806 | BI13: 0.022852 | BJ13: 0.022899 | BK13: 0.022953 | BL13: 0.023028 | BM13: 0.023094 | BN13: 0.023146 | BO13: 0.023212 | BP13: 0.023254 | BQ13: 0.023289 | BR13: 0.023334 | BS13: 0.023373 | BT13: 0.023414 | BU13: 0.023473 | BV13: =INDEX(BV10:BV12, $F9) -> 0.02352 | BW13: 0.023593 | BX13: 0.023661 | BY13: 0.023729 | BZ13: 0.023786 | CA13: 0.023842 | CB13: 0.023908 | CC13: 0.023962 | CD13: 0.024012 | CE13: 0.024071 | CF13: 0.02412 | CG13: 0.024167 | CH13: 0.024216 | CI13: 0.024264 | CJ13: 0.024302 | CK13: 0.024366 | CL13: 0.024409 | CM13: 0.024463 | CN13: 0.024531 | CO13: 0.024587 | CP13: 0.024623 | CQ13: 0.024689 | CR13: 0.024739 | CS13: 0.02479 | CT13: 0.024835 | CU13: 0.024873 | CV13: 0.024931 | CW13: 0.024984 | CX13: 0.025049 | CY13: 0.025112 | CZ13: 0.025182 | DA13: 0.025252 | DB13: =INDEX(DB10:DB12, $F9) -> 0.02529 | DC13: 0.025333 | DD13: 0.025394 | DE13: 0.025439 | DF13: 0.025491 | DG13: 0.025562 | DH13: 0.025624 | DI13: 0.025666 | DJ13: 0.025739 | DK13: 0.025799 | DL13: 0.025837 | DM13: 0.025907 | DN13: 0.025947 | DO13: 0.025986 | DP13: 0.026059 | DQ13: 0.026104 | DR13: 0.026177 | DS13: 0.02622 | DT13: 0.026291 | DU13: 0.026347 | DV13: 0.026388 | DW13: 0.026447 | DX13: 0.026511 | DY13: 0.026547 | DZ13: 0.026589 | EA13: 0.026655 | EB13: 0.026693 | EC13: 0.026738 | ED13: 0.026811 | EE13: 0.026864 | EF13: 0.026917 | EG13: 0.026985 | EH13: =INDEX(EH10:EH12, $F9) -> 0.027028 | EI13: 0.02709 | EJ13: 0.027134 | EK13: 0.027205 | EL13: 0.02727 | EM13: 0.027308 | EN13: 0.027346 | EO13: 0.027391 | EP13: 0.027437 | EQ13: 0.027496 | ER13: 0.027551 | ES13: 0.027621 | ET13: 0.027689 | EU13: 0.027753 | EV13: 0.027788 | EW13: 0.027828 | EX13: 0.027891 | EY13: 0.027952 | EZ13: 0.028004 | FA13: 0.028051 | FB13: 0.028117 | FC13: 0.028162 | FD13: 0.028226 | FE13: 0.028283 | FF13: 0.028351 | FG13: 0.028407 | FH13: 0.028452 | FI13: 0.028495 | FJ13: 0.02857 | FK13: 0.028613 | FL13: 0.028678 | FM13: 0.028726 | FN13: =INDEX(FN10:FN12, $F9) -> 0.028797 | FO13: 0.028861 | FP13: 0.028935 | FQ13: 0.028995 | FR13: 0.02905 | FS13: 0.029109 | FT13: 0.029181 | FU13: 0.029232 | FV13: 0.029283 | FW13: 0.029322 | FX13: 0.029382 | FY13: 0.029447 | FZ13: 0.029488 | GA13: 0.029557 | GB13: 0.029595 | GC13: 0.02967 | GD13: 0.029737 | GE13: 0.029788 | GF13: 0.029841 | GG13: 0.029881 | GH13: 0.029955 | GI13: 0.030029 | GJ13: 0.030092

Sheet Time
A1: =RIGHT(CELL("filename", A1), LEN(CELL("filename", A1)) - SEARCH("]", CELL("filename", A1))) & " - " & InpC!F3 -> Time - Base case 1
E2: =Time!E$25 -> Model period ending | F2: =Check!$F$9 -> 0 | G2: Error chks | J2: =Time!J$25 -> 2020-09-30 | K2: =Time!K$25 -> 2020-12-31 | L2: =Time!L$25 -> 2021-03-31 | M2: =Time!M$25 -> 2021-06-30 | N2: =Time!N$25 -> 2021-09-30 | O2: =Time!O$25 -> 2021-12-31 | P2: =Time!P$25 -> 2022-03-31 | Q2: =Time!Q$25 -> 2022-06-30 | R2: =Time!R$25 -> 2022-09-30 | S2: =Time!S$25 -> 2022-12-31 | T2: =Time!T$25 -> 2023-03-31 | U2: =Time!U$25 -> 2023-06-30 | V2: =Time!V$25 -> 2023-09-30 | W2: =Time!W$25 -> 2023-12-31 | X2: =Time!X$25 -> 2024-03-31 | Y2: =Time!Y$25 -> 2024-06-30 | Z2: =Time!Z$25 -> 2024-09-30 | AA2: =Time!AA$25 -> 2024-12-31 | AB2: =Time!AB$25 -> 2025-03-31 | AC2: =Time!AC$25 -> 2025-06-30 | AD2: =Time!AD$25 -> 2025-09-30 | AE2: =Time!AE$25 -> 2025-12-31 | AF2: =Time!AF$25 -> 2026-03-31 | AG2: =Time!AG$25 -> 2026-06-30 | AH2: =Time!AH$25 -> 2026-09-30 | AI2: =Time!AI$25 -> 2026-12-31 | AJ2: =Time!AJ$25 -> 2027-03-31 | AK2: =Time!AK$25 -> 2027-06-30 | AL2: =Time!AL$25 -> 2027-09-30 | AM2: =Time!AM$25 -> 2027-12-31 | AN2: =Time!AN$25 -> 2028-03-31 | AO2: =Time!AO$25 -> 2028-06-30 | AP2: =Time!AP$25 -> 2028-09-30 | AQ2: =Time!AQ$25 -> 2028-12-31 | AR2: =Time!AR$25 -> 2029-03-31 | AS2: =Time!AS$25 -> 2029-06-30 | AT2: =Time!AT$25 -> 2029-09-30 | AU2: =Time!AU$25 -> 2029-12-31 | AV2: =Time!AV$25 -> 2030-03-31 | AW2: =Time!AW$25 -> 2030-06-30 | AX2: =Time!AX$25 -> 2030-09-30 | AY2: =Time!AY$25 -> 2030-12-31 | AZ2: =Time!AZ$25 -> 2031-03-31 | BA2: =Time!BA$25 -> 2031-06-30 | BB2: =Time!BB$25 -> 2031-09-30 | BC2: =Time!BC$25 -> 2031-12-31 | BD2: =Time!BD$25 -> 2032-03-31 | BE2: =Time!BE$25 -> 2032-06-30 | BF2: =Time!BF$25 -> 2032-09-30 | BG2: =Time!BG$25 -> 2032-12-31 | BH2: =Time!BH$25 -> 2033-03-31 | BI2: =Time!BI$25 -> 2033-06-30 | BJ2: =Time!BJ$25 -> 2033-09-30 | BK2: =Time!BK$25 -> 2033-12-31 | BL2: =Time!BL$25 -> 2034-03-31 | BM2: =Time!BM$25 -> 2034-06-30 | BN2: =Time!BN$25 -> 2034-09-30 | BO2: =Time!BO$25 -> 2034-12-31 | BP2: =Time!BP$25 -> 2035-03-31 | BQ2: =Time!BQ$25 -> 2035-06-30 | BR2: =Time!BR$25 -> 2035-09-30 | BS2: =Time!BS$25 -> 2035-12-31 | BT2: =Time!BT$25 -> 2036-03-31 | BU2: =Time!BU$25 -> 2036-06-30 | BV2: =Time!BV$25 -> 2036-09-30 | BW2: =Time!BW$25 -> 2036-12-31 | BX2: =Time!BX$25 -> 2037-03-31 | BY2: =Time!BY$25 -> 2037-06-30 | BZ2: =Time!BZ$25 -> 2037-09-30 | CA2: =Time!CA$25 -> 2037-12-31 | CB2: =Time!CB$25 -> 2038-03-31 | CC2: =Time!CC$25 -> 2038-06-30 | CD2: =Time!CD$25 -> 2038-09-30 | CE2: =Time!CE$25 -> 2038-12-31 | CF2: =Time!CF$25 -> 2039-03-31 | CG2: =Time!CG$25 -> 2039-06-30 | CH2: =Time!CH$25 -> 2039-09-30 | CI2: =Time!CI$25 -> 2039-12-31 | CJ2: =Time!CJ$25 -> 2040-03-31 | CK2: =Time!CK$25 -> 2040-06-30 | CL2: =Time!CL$25 -> 2040-09-30 | CM2: =Time!CM$25 -> 2040-12-31 | CN2: =Time!CN$25 -> 2041-03-31 | CO2: =Time!CO$25 -> 2041-06-30 | CP2: =Time!CP$25 -> 2041-09-30 | CQ2: =Time!CQ$25 -> 2041-12-31 | CR2: =Time!CR$25 -> 2042-03-31 | CS2: =Time!CS$25 -> 2042-06-30 | CT2: =Time!CT$25 -> 2042-09-30 | CU2: =Time!CU$25 -> 2042-12-31 | CV2: =Time!CV$25 -> 2043-03-31 | CW2: =Time!CW$25 -> 2043-06-30 | CX2: =Time!CX$25 -> 2043-09-30 | CY2: =Time!CY$25 -> 2043-12-31 | CZ2: =Time!CZ$25 -> 2044-03-31 | DA2: =Time!DA$25 -> 2044-06-30 | DB2: =Time!DB$25 -> 2044-09-30 | DC2: =Time!DC$25 -> 2044-12-31 | DD2: =Time!DD$25 -> 2045-03-31 | DE2: =Time!DE$25 -> 2045-06-30 | DF2: =Time!DF$25 -> 2045-09-30 | DG2: =Time!DG$25 -> 2045-12-31 | DH2: =Time!DH$25 -> 2046-03-31 | DI2: =Time!DI$25 -> 2046-06-30 | DJ2: =Time!DJ$25 -> 2046-09-30 | DK2: =Time!DK$25 -> 2046-12-31 | DL2: =Time!DL$25 -> 2047-03-31 | DM2: =Time!DM$25 -> 2047-06-30 | DN2: =Time!DN$25 -> 2047-09-30 | DO2: =Time!DO$25 -> 2047-12-31 | DP2: =Time!DP$25 -> 2048-03-31 | DQ2: =Time!DQ$25 -> 2048-06-30 | DR2: =Time!DR$25 -> 2048-09-30 | DS2: =Time!DS$25 -> 2048-12-31 | DT2: =Time!DT$25 -> 2049-03-31 | DU2: =Time!DU$25 -> 2049-06-30 | DV2: =Time!DV$25 -> 2049-09-30 | DW2: =Time!DW$25 -> 2049-12-31 | DX2: =Time!DX$25 -> 2050-03-31 | DY2: =Time!DY$25 -> 2050-06-30 | DZ2: =Time!DZ$25 -> 2050-09-30 | EA2: =Time!EA$25 -> 2050-12-31 | EB2: =Time!EB$25 -> 2051-03-31 | EC2: =Time!EC$25 -> 2051-06-30 | ED2: =Time!ED$25 -> 2051-09-30 | EE2: =Time!EE$25 -> 2051-12-31 | EF2: =Time!EF$25 -> 2052-03-31 | EG2: =Time!EG$25 -> 2052-06-30 | EH2: =Time!EH$25 -> 2052-09-30 | EI2: =Time!EI$25 -> 2052-12-31 | EJ2: =Time!EJ$25 -> 2053-03-31 | EK2: =Time!EK$25 -> 2053-06-30 | EL2: =Time!EL$25 -> 2053-09-30 | EM2: =Time!EM$25 -> 2053-12-31 | EN2: =Time!EN$25 -> 2054-03-31 | EO2: =Time!EO$25 -> 2054-06-30 | EP2: =Time!EP$25 -> 2054-09-30 | EQ2: =Time!EQ$25 -> 2054-12-31 | ER2: =Time!ER$25 -> 2055-03-31 | ES2: =Time!ES$25 -> 2055-06-30 | ET2: =Time!ET$25 -> 2055-09-30 | EU2: =Time!EU$25 -> 2055-12-31 | EV2: =Time!EV$25 -> 2056-03-31 | EW2: =Time!EW$25 -> 2056-06-30 | EX2: =Time!EX$25 -> 2056-09-30 | EY2: =Time!EY$25 -> 2056-12-31 | EZ2: =Time!EZ$25 -> 2057-03-31 | FA2: =Time!FA$25 -> 2057-06-30 | FB2: =Time!FB$25 -> 2057-09-30 | FC2: =Time!FC$25 -> 2057-12-31 | FD2: =Time!FD$25 -> 2058-03-31 | FE2: =Time!FE$25 -> 2058-06-30 | FF2: =Time!FF$25 -> 2058-09-30 | FG2: =Time!FG$25 -> 2058-12-31 | FH2: =Time!FH$25 -> 2059-03-31 | FI2: =Time!FI$25 -> 2059-06-30 | FJ2: =Time!FJ$25 -> 2059-09-30 | FK2: =Time!FK$25 -> 2059-12-31 | FL2: =Time!FL$25 -> 2060-03-31 | FM2: =Time!FM$25 -> 2060-06-30 | FN2: =Time!FN$25 -> 2060-09-30 | FO2: =Time!FO$25 -> 2060-12-31 | FP2: =Time!FP$25 -> 2061-03-31 | FQ2: =Time!FQ$25 -> 2061-06-30 | FR2: =Time!FR$25 -> 2061-09-30 | FS2: =Time!FS$25 -> 2061-12-31 | FT2: =Time!FT$25 -> 2062-03-31 | FU2: =Time!FU$25 -> 2062-06-30 | FV2: =Time!FV$25 -> 2062-09-30 | FW2: =Time!FW$25 -> 2062-12-31 | FX2: =Time!FX$25 -> 2063-03-31 | FY2: =Time!FY$25 -> 2063-06-30 | FZ2: =Time!FZ$25 -> 2063-09-30 | GA2: =Time!GA$25 -> 2063-12-31 | GB2: =Time!GB$25 -> 2064-03-31 | GC2: =Time!GC$25 -> 2064-06-30 | GD2: =Time!GD$25 -> 2064-09-30 | GE2: =Time!GE$25 -> 2064-12-31 | GF2: =Time!GF$25 -> 2065-03-31 | GG2: =Time!GG$25 -> 2065-06-30 | GH2: =Time!GH$25 -> 2065-09-30 | GI2: =Time!GI$25 -> 2065-12-31 | GJ2: =Time!GJ$25 -> 2066-03-31
E3: =Time!E$67 -> Timeline label | F3: =Output!J2 -> 0 | G3: Track chgs | J3: =Time!J$67 -> Pre-fcst | K3: =Time!K$67 -> Pre-fcst | L3: =Time!L$67 -> Fin Close | M3: =Time!M$67 -> Operations | N3: =Time!N$67 -> Operations | O3: =Time!O$67 -> Operations | P3: =Time!P$67 -> Operations | Q3: =Time!Q$67 -> Operations | R3: =Time!R$67 -> Operations | S3: =Time!S$67 -> Operations | T3: =Time!T$67 -> Operations | U3: =Time!U$67 -> Operations | V3: =Time!V$67 -> Operations | W3: =Time!W$67 -> Operations | X3: =Time!X$67 -> Operations | Y3: =Time!Y$67 -> Operations | Z3: =Time!Z$67 -> Operations | AA3: =Time!AA$67 -> Operations | AB3: =Time!AB$67 -> Operations | AC3: =Time!AC$67 -> Operations | AD3: =Time!AD$67 -> Operations | AE3: =Time!AE$67 -> Operations | AF3: =Time!AF$67 -> Operations | AG3: =Time!AG$67 -> Operations | AH3: =Time!AH$67 -> Operations | AI3: =Time!AI$67 -> Operations | AJ3: =Time!AJ$67 -> Operations | AK3: =Time!AK$67 -> Operations | AL3: =Time!AL$67 -> Operations | AM3: =Time!AM$67 -> Operations | AN3: =Time!AN$67 -> Operations | AO3: =Time!AO$67 -> Operations | AP3: =Time!AP$67 -> Operations | AQ3: =Time!AQ$67 -> Operations | AR3: =Time!AR$67 -> Operations | AS3: =Time!AS$67 -> Operations | AT3: =Time!AT$67 -> Operations | AU3: =Time!AU$67 -> Operations | AV3: =Time!AV$67 -> Operations | AW3: =Time!AW$67 -> Operations | AX3: =Time!AX$67 -> Operations | AY3: =Time!AY$67 -> Operations | AZ3: =Time!AZ$67 -> Operations | BA3: =Time!BA$67 -> Operations | BB3: =Time!BB$67 -> Operations | BC3: =Time!BC$67 -> Operations | BD3: =Time!BD$67 -> Operations | BE3: =Time!BE$67 -> Operations | BF3: =Time!BF$67 -> Operations | BG3: =Time!BG$67 -> Operations | BH3: =Time!BH$67 -> Operations | BI3: =Time!BI$67 -> Operations | BJ3: =Time!BJ$67 -> Operations | BK3: =Time!BK$67 -> Operations | BL3: =Time!BL$67 -> Operations | BM3: =Time!BM$67 -> Operations | BN3: =Time!BN$67 -> Operations | BO3: =Time!BO$67 -> Operations | BP3: =Time!BP$67 -> Operations | BQ3: =Time!BQ$67 -> Operations | BR3: =Time!BR$67 -> Operations | BS3: =Time!BS$67 -> Operations | BT3: =Time!BT$67 -> Operations | BU3: =Time!BU$67 -> Operations | BV3: =Time!BV$67 -> Operations | BW3: =Time!BW$67 -> Operations | BX3: =Time!BX$67 -> Operations | BY3: =Time!BY$67 -> Operations | BZ3: =Time!BZ$67 -> Operations | CA3: =Time!CA$67 -> Operations | CB3: =Time!CB$67 -> Operations | CC3: =Time!CC$67 -> Operations | CD3: =Time!CD$67 -> Operations | CE3: =Time!CE$67 -> Operations | CF3: =Time!CF$67 -> Operations | CG3: =Time!CG$67 -> Operations | CH3: =Time!CH$67 -> Operations | CI3: =Time!CI$67 -> Operations | CJ3: =Time!CJ$67 -> Operations | CK3: =Time!CK$67 -> Operations | CL3: =Time!CL$67 -> Operations | CM3: =Time!CM$67 -> Operations | CN3: =Time!CN$67 -> Operations | CO3: =Time!CO$67 -> Operations | CP3: =Time!CP$67 -> Operations | CQ3: =Time!CQ$67 -> Operations | CR3: =Time!CR$67 -> Operations | CS3: =Time!CS$67 -> Operations | CT3: =Time!CT$67 -> Operations | CU3: =Time!CU$67 -> Operations | CV3: =Time!CV$67 -> Operations | CW3: =Time!CW$67 -> Operations | CX3: =Time!CX$67 -> Operations | CY3: =Time!CY$67 -> Operations | CZ3: =Time!CZ$67 -> Operations | DA3: =Time!DA$67 -> Operations | DB3: =Time!DB$67 -> Operations | DC3: =Time!DC$67 -> Operations | DD3: =Time!DD$67 -> Operations | DE3: =Time!DE$67 -> Operations | DF3: =Time!DF$67 -> Operations | DG3: =Time!DG$67 -> Operations | DH3: =Time!DH$67 -> Operations | DI3: =Time!DI$67 -> Post ops | DJ3: =Time!DJ$67 -> Post ops | DK3: =Time!DK$67 -> Post ops | DL3: =Time!DL$67 -> Post ops | DM3: =Time!DM$67 -> Post ops | DN3: =Time!DN$67 -> Post ops | DO3: =Time!DO$67 -> Post ops | DP3: =Time!DP$67 -> Post ops | DQ3: =Time!DQ$67 -> Post ops | DR3: =Time!DR$67 -> Post ops | DS3: =Time!DS$67 -> Post ops | DT3: =Time!DT$67 -> Post ops | DU3: =Time!DU$67 -> Post ops | DV3: =Time!DV$67 -> Post ops | DW3: =Time!DW$67 -> Post ops | DX3: =Time!DX$67 -> Post ops | DY3: =Time!DY$67 -> Post ops | DZ3: =Time!DZ$67 -> Post ops | EA3: =Time!EA$67 -> Post ops | EB3: =Time!EB$67 -> Post ops | EC3: =Time!EC$67 -> Post ops | ED3: =Time!ED$67 -> Post ops | EE3: =Time!EE$67 -> Post ops | EF3: =Time!EF$67 -> Post ops | EG3: =Time!EG$67 -> Post ops | EH3: =Time!EH$67 -> Post ops | EI3: =Time!EI$67 -> Post ops | EJ3: =Time!EJ$67 -> Post ops | EK3: =Time!EK$67 -> Post ops | EL3: =Time!EL$67 -> Post ops | EM3: =Time!EM$67 -> Post ops | EN3: =Time!EN$67 -> Post ops | EO3: =Time!EO$67 -> Post ops | EP3: =Time!EP$67 -> Post ops | EQ3: =Time!EQ$67 -> Post ops | ER3: =Time!ER$67 -> Post ops | ES3: =Time!ES$67 -> Post ops | ET3: =Time!ET$67 -> Post ops | EU3: =Time!EU$67 -> Post ops | EV3: =Time!EV$67 -> Post ops | EW3: =Time!EW$67 -> Post ops | EX3: =Time!EX$67 -> Post ops | EY3: =Time!EY$67 -> Post ops | EZ3: =Time!EZ$67 -> Post ops | FA3: =Time!FA$67 -> Post ops | FB3: =Time!FB$67 -> Post ops | FC3: =Time!FC$67 -> Post ops | FD3: =Time!FD$67 -> Post ops | FE3: =Time!FE$67 -> Post ops | FF3: =Time!FF$67 -> Post ops | FG3: =Time!FG$67 -> Post ops | FH3: =Time!FH$67 -> Post ops | FI3: =Time!FI$67 -> Post ops | FJ3: =Time!FJ$67 -> Post ops | FK3: =Time!FK$67 -> Post ops | FL3: =Time!FL$67 -> Post ops | FM3: =Time!FM$67 -> Post ops | FN3: =Time!FN$67 -> Post ops | FO3: =Time!FO$67 -> Post ops | FP3: =Time!FP$67 -> Post ops | FQ3: =Time!FQ$67 -> Post ops | FR3: =Time!FR$67 -> Post ops | FS3: =Time!FS$67 -> Post ops | FT3: =Time!FT$67 -> Post ops | FU3: =Time!FU$67 -> Post ops | FV3: =Time!FV$67 -> Post ops | FW3: =Time!FW$67 -> Post ops | FX3: =Time!FX$67 -> Post ops | FY3: =Time!FY$67 -> Post ops | FZ3: =Time!FZ$67 -> Post ops | GA3: =Time!GA$67 -> Post ops | GB3: =Time!GB$67 -> Post ops | GC3: =Time!GC$67 -> Post ops | GD3: =Time!GD$67 -> Post ops | GE3: =Time!GE$67 -> Post ops | GF3: =Time!GF$67 -> Post ops | GG3: =Time!GG$67 -> Post ops | GH3: =Time!GH$67 -> Post ops | GI3: =Time!GI$67 -> Post ops | GJ3: =Time!GJ$67 -> Post ops
E4: =Time!E$42 -> Contract year | F4: =Check!$F$21 -> 0 | G4: Alerts | J4: =Time!J$42 -> 2020 | K4: =Time!K$42 -> 2020 | L4: =Time!L$42 -> 2020 | M4: =Time!M$42 -> 2021 | N4: =Time!N$42 -> 2021 | O4: =Time!O$42 -> 2021 | P4: =Time!P$42 -> 2021 | Q4: =Time!Q$42 -> 2022 | R4: =Time!R$42 -> 2022 | S4: =Time!S$42 -> 2022 | T4: =Time!T$42 -> 2022 | U4: =Time!U$42 -> 2023 | V4: =Time!V$42 -> 2023 | W4: =Time!W$42 -> 2023 | X4: =Time!X$42 -> 2023 | Y4: =Time!Y$42 -> 2024 | Z4: =Time!Z$42 -> 2024 | AA4: =Time!AA$42 -> 2024 | AB4: =Time!AB$42 -> 2024 | AC4: =Time!AC$42 -> 2025 | AD4: =Time!AD$42 -> 2025 | AE4: =Time!AE$42 -> 2025 | AF4: =Time!AF$42 -> 2025 | AG4: =Time!AG$42 -> 2026 | AH4: =Time!AH$42 -> 2026 | AI4: =Time!AI$42 -> 2026 | AJ4: =Time!AJ$42 -> 2026 | AK4: =Time!AK$42 -> 2027 | AL4: =Time!AL$42 -> 2027 | AM4: =Time!AM$42 -> 2027 | AN4: =Time!AN$42 -> 2027 | AO4: =Time!AO$42 -> 2028 | AP4: =Time!AP$42 -> 2028 | AQ4: =Time!AQ$42 -> 2028 | AR4: =Time!AR$42 -> 2028 | AS4: =Time!AS$42 -> 2029 | AT4: =Time!AT$42 -> 2029 | AU4: =Time!AU$42 -> 2029 | AV4: =Time!AV$42 -> 2029 | AW4: =Time!AW$42 -> 2030 | AX4: =Time!AX$42 -> 2030 | AY4: =Time!AY$42 -> 2030 | AZ4: =Time!AZ$42 -> 2030 | BA4: =Time!BA$42 -> 2031 | BB4: =Time!BB$42 -> 2031 | BC4: =Time!BC$42 -> 2031 | BD4: =Time!BD$42 -> 2031 | BE4: =Time!BE$42 -> 2032 | BF4: =Time!BF$42 -> 2032 | BG4: =Time!BG$42 -> 2032 | BH4: =Time!BH$42 -> 2032 | BI4: =Time!BI$42 -> 2033 | BJ4: =Time!BJ$42 -> 2033 | BK4: =Time!BK$42 -> 2033 | BL4: =Time!BL$42 -> 2033 | BM4: =Time!BM$42 -> 2034 | BN4: =Time!BN$42 -> 2034 | BO4: =Time!BO$42 -> 2034 | BP4: =Time!BP$42 -> 2034 | BQ4: =Time!BQ$42 -> 2035 | BR4: =Time!BR$42 -> 2035 | BS4: =Time!BS$42 -> 2035 | BT4: =Time!BT$42 -> 2035 | BU4: =Time!BU$42 -> 2036 | BV4: =Time!BV$42 -> 2036 | BW4: =Time!BW$42 -> 2036 | BX4: =Time!BX$42 -> 2036 | BY4: =Time!BY$42 -> 2037 | BZ4: =Time!BZ$42 -> 2037 | CA4: =Time!CA$42 -> 2037 | CB4: =Time!CB$42 -> 2037 | CC4: =Time!CC$42 -> 2038 | CD4: =Time!CD$42 -> 2038 | CE4: =Time!CE$42 -> 2038 | CF4: =Time!CF$42 -> 2038 | CG4: =Time!CG$42 -> 2039 | CH4: =Time!CH$42 -> 2039 | CI4: =Time!CI$42 -> 2039 | CJ4: =Time!CJ$42 -> 2039 | CK4: =Time!CK$42 -> 2040 | CL4: =Time!CL$42 -> 2040 | CM4: =Time!CM$42 -> 2040 | CN4: =Time!CN$42 -> 2040 | CO4: =Time!CO$42 -> 2041 | CP4: =Time!CP$42 -> 2041 | CQ4: =Time!CQ$42 -> 2041 | CR4: =Time!CR$42 -> 2041 | CS4: =Time!CS$42 -> 2042 | CT4: =Time!CT$42 -> 2042 | CU4: =Time!CU$42 -> 2042 | CV4: =Time!CV$42 -> 2042 | CW4: =Time!CW$42 -> 2043 | CX4: =Time!CX$42 -> 2043 | CY4: =Time!CY$42 -> 2043 | CZ4: =Time!CZ$42 -> 2043 | DA4: =Time!DA$42 -> 2044 | DB4: =Time!DB$42 -> 2044 | DC4: =Time!DC$42 -> 2044 | DD4: =Time!DD$42 -> 2044 | DE4: =Time!DE$42 -> 2045 | DF4: =Time!DF$42 -> 2045 | DG4: =Time!DG$42 -> 2045 | DH4: =Time!DH$42 -> 2045 | DI4: =Time!DI$42 -> 2046 | DJ4: =Time!DJ$42 -> 2046 | DK4: =Time!DK$42 -> 2046 | DL4: =Time!DL$42 -> 2046 | DM4: =Time!DM$42 -> 2047 | DN4: =Time!DN$42 -> 2047 | DO4: =Time!DO$42 -> 2047 | DP4: =Time!DP$42 -> 2047 | DQ4: =Time!DQ$42 -> 2048 | DR4: =Time!DR$42 -> 2048 | DS4: =Time!DS$42 -> 2048 | DT4: =Time!DT$42 -> 2048 | DU4: =Time!DU$42 -> 2049 | DV4: =Time!DV$42 -> 2049 | DW4: =Time!DW$42 -> 2049 | DX4: =Time!DX$42 -> 2049 | DY4: =Time!DY$42 -> 2050 | DZ4: =Time!DZ$42 -> 2050 | EA4: =Time!EA$42 -> 2050 | EB4: =Time!EB$42 -> 2050 | EC4: =Time!EC$42 -> 2051 | ED4: =Time!ED$42 -> 2051 | EE4: =Time!EE$42 -> 2051 | EF4: =Time!EF$42 -> 2051 | EG4: =Time!EG$42 -> 2052 | EH4: =Time!EH$42 -> 2052 | EI4: =Time!EI$42 -> 2052 | EJ4: =Time!EJ$42 -> 2052 | EK4: =Time!EK$42 -> 2053 | EL4: =Time!EL$42 -> 2053 | EM4: =Time!EM$42 -> 2053 | EN4: =Time!EN$42 -> 2053 | EO4: =Time!EO$42 -> 2054 | EP4: =Time!EP$42 -> 2054 | EQ4: =Time!EQ$42 -> 2054 | ER4: =Time!ER$42 -> 2054 | ES4: =Time!ES$42 -> 2055 | ET4: =Time!ET$42 -> 2055 | EU4: =Time!EU$42 -> 2055 | EV4: =Time!EV$42 -> 2055 | EW4: =Time!EW$42 -> 2056 | EX4: =Time!EX$42 -> 2056 | EY4: =Time!EY$42 -> 2056 | EZ4: =Time!EZ$42 -> 2056 | FA4: =Time!FA$42 -> 2057 | FB4: =Time!FB$42 -> 2057 | FC4: =Time!FC$42 -> 2057 | FD4: =Time!FD$42 -> 2057 | FE4: =Time!FE$42 -> 2058 | FF4: =Time!FF$42 -> 2058 | FG4: =Time!FG$42 -> 2058 | FH4: =Time!FH$42 -> 2058 | FI4: =Time!FI$42 -> 2059 | FJ4: =Time!FJ$42 -> 2059 | FK4: =Time!FK$42 -> 2059 | FL4: =Time!FL$42 -> 2059 | FM4: =Time!FM$42 -> 2060 | FN4: =Time!FN$42 -> 2060 | FO4: =Time!FO$42 -> 2060 | FP4: =Time!FP$42 -> 2060 | FQ4: =Time!FQ$42 -> 2061 | FR4: =Time!FR$42 -> 2061 | FS4: =Time!FS$42 -> 2061 | FT4: =Time!FT$42 -> 2061 | FU4: =Time!FU$42 -> 2062 | FV4: =Time!FV$42 -> 2062 | FW4: =Time!FW$42 -> 2062 | FX4: =Time!FX$42 -> 2062 | FY4: =Time!FY$42 -> 2063 | FZ4: =Time!FZ$42 -> 2063 | GA4: =Time!GA$42 -> 2063 | GB4: =Time!GB$42 -> 2063 | GC4: =Time!GC$42 -> 2064 | GD4: =Time!GD$42 -> 2064 | GE4: =Time!GE$42 -> 2064 | GF4: =Time!GF$42 -> 2064 | GG4: =Time!GG$42 -> 2065 | GH4: =Time!GH$42 -> 2065 | GI4: =Time!GI$42 -> 2065 | GJ4: =Time!GJ$42 -> 2065
E5: =Time!E$10 -> Model column counter | F5: Constant | G5: Unit | H5: Total | J5: =Time!J$10 -> 1 | K5: =Time!K$10 -> 2 | L5: =Time!L$10 -> 3 | M5: =Time!M$10 -> 4 | N5: =Time!N$10 -> 5 | O5: =Time!O$10 -> 6 | P5: =Time!P$10 -> 7 | Q5: =Time!Q$10 -> 8 | R5: =Time!R$10 -> 9 | S5: =Time!S$10 -> 10 | T5: =Time!T$10 -> 11 | U5: =Time!U$10 -> 12 | V5: =Time!V$10 -> 13 | W5: =Time!W$10 -> 14 | X5: =Time!X$10 -> 15 | Y5: =Time!Y$10 -> 16 | Z5: =Time!Z$10 -> 17 | AA5: =Time!AA$10 -> 18 | AB5: =Time!AB$10 -> 19 | AC5: =Time!AC$10 -> 20 | AD5: =Time!AD$10 -> 21 | AE5: =Time!AE$10 -> 22 | AF5: =Time!AF$10 -> 23 | AG5: =Time!AG$10 -> 24 | AH5: =Time!AH$10 -> 25 | AI5: =Time!AI$10 -> 26 | AJ5: =Time!AJ$10 -> 27 | AK5: =Time!AK$10 -> 28 | AL5: =Time!AL$10 -> 29 | AM5: =Time!AM$10 -> 30 | AN5: =Time!AN$10 -> 31 | AO5: =Time!AO$10 -> 32 | AP5: =Time!AP$10 -> 33 | AQ5: =Time!AQ$10 -> 34 | AR5: =Time!AR$10 -> 35 | AS5: =Time!AS$10 -> 36 | AT5: =Time!AT$10 -> 37 | AU5: =Time!AU$10 -> 38 | AV5: =Time!AV$10 -> 39 | AW5: =Time!AW$10 -> 40 | AX5: =Time!AX$10 -> 41 | AY5: =Time!AY$10 -> 42 | AZ5: =Time!AZ$10 -> 43 | BA5: =Time!BA$10 -> 44 | BB5: =Time!BB$10 -> 45 | BC5: =Time!BC$10 -> 46 | BD5: =Time!BD$10 -> 47 | BE5: =Time!BE$10 -> 48 | BF5: =Time!BF$10 -> 49 | BG5: =Time!BG$10 -> 50 | BH5: =Time!BH$10 -> 51 | BI5: =Time!BI$10 -> 52 | BJ5: =Time!BJ$10 -> 53 | BK5: =Time!BK$10 -> 54 | BL5: =Time!BL$10 -> 55 | BM5: =Time!BM$10 -> 56 | BN5: =Time!BN$10 -> 57 | BO5: =Time!BO$10 -> 58 | BP5: =Time!BP$10 -> 59 | BQ5: =Time!BQ$10 -> 60 | BR5: =Time!BR$10 -> 61 | BS5: =Time!BS$10 -> 62 | BT5: =Time!BT$10 -> 63 | BU5: =Time!BU$10 -> 64 | BV5: =Time!BV$10 -> 65 | BW5: =Time!BW$10 -> 66 | BX5: =Time!BX$10 -> 67 | BY5: =Time!BY$10 -> 68 | BZ5: =Time!BZ$10 -> 69 | CA5: =Time!CA$10 -> 70 | CB5: =Time!CB$10 -> 71 | CC5: =Time!CC$10 -> 72 | CD5: =Time!CD$10 -> 73 | CE5: =Time!CE$10 -> 74 | CF5: =Time!CF$10 -> 75 | CG5: =Time!CG$10 -> 76 | CH5: =Time!CH$10 -> 77 | CI5: =Time!CI$10 -> 78 | CJ5: =Time!CJ$10 -> 79 | CK5: =Time!CK$10 -> 80 | CL5: =Time!CL$10 -> 81 | CM5: =Time!CM$10 -> 82 | CN5: =Time!CN$10 -> 83 | CO5: =Time!CO$10 -> 84 | CP5: =Time!CP$10 -> 85 | CQ5: =Time!CQ$10 -> 86 | CR5: =Time!CR$10 -> 87 | CS5: =Time!CS$10 -> 88 | CT5: =Time!CT$10 -> 89 | CU5: =Time!CU$10 -> 90 | CV5: =Time!CV$10 -> 91 | CW5: =Time!CW$10 -> 92 | CX5: =Time!CX$10 -> 93 | CY5: =Time!CY$10 -> 94 | CZ5: =Time!CZ$10 -> 95 | DA5: =Time!DA$10 -> 96 | DB5: =Time!DB$10 -> 97 | DC5: =Time!DC$10 -> 98 | DD5: =Time!DD$10 -> 99 | DE5: =Time!DE$10 -> 100 | DF5: =Time!DF$10 -> 101 | DG5: =Time!DG$10 -> 102 | DH5: =Time!DH$10 -> 103 | DI5: =Time!DI$10 -> 104 | DJ5: =Time!DJ$10 -> 105 | DK5: =Time!DK$10 -> 106 | DL5: =Time!DL$10 -> 107 | DM5: =Time!DM$10 -> 108 | DN5: =Time!DN$10 -> 109 | DO5: =Time!DO$10 -> 110 | DP5: =Time!DP$10 -> 111 | DQ5: =Time!DQ$10 -> 112 | DR5: =Time!DR$10 -> 113 | DS5: =Time!DS$10 -> 114 | DT5: =Time!DT$10 -> 115 | DU5: =Time!DU$10 -> 116 | DV5: =Time!DV$10 -> 117 | DW5: =Time!DW$10 -> 118 | DX5: =Time!DX$10 -> 119 | DY5: =Time!DY$10 -> 120 | DZ5: =Time!DZ$10 -> 121 | EA5: =Time!EA$10 -> 122 | EB5: =Time!EB$10 -> 123 | EC5: =Time!EC$10 -> 124 | ED5: =Time!ED$10 -> 125 | EE5: =Time!EE$10 -> 126 | EF5: =Time!EF$10 -> 127 | EG5: =Time!EG$10 -> 128 | EH5: =Time!EH$10 -> 129 | EI5: =Time!EI$10 -> 130 | EJ5: =Time!EJ$10 -> 131 | EK5: =Time!EK$10 -> 132 | EL5: =Time!EL$10 -> 133 | EM5: =Time!EM$10 -> 134 | EN5: =Time!EN$10 -> 135 | EO5: =Time!EO$10 -> 136 | EP5: =Time!EP$10 -> 137 | EQ5: =Time!EQ$10 -> 138 | ER5: =Time!ER$10 -> 139 | ES5: =Time!ES$10 -> 140 | ET5: =Time!ET$10 -> 141 | EU5: =Time!EU$10 -> 142 | EV5: =Time!EV$10 -> 143 | EW5: =Time!EW$10 -> 144 | EX5: =Time!EX$10 -> 145 | EY5: =Time!EY$10 -> 146 | EZ5: =Time!EZ$10 -> 147 | FA5: =Time!FA$10 -> 148 | FB5: =Time!FB$10 -> 149 | FC5: =Time!FC$10 -> 150 | FD5: =Time!FD$10 -> 151 | FE5: =Time!FE$10 -> 152 | FF5: =Time!FF$10 -> 153 | FG5: =Time!FG$10 -> 154 | FH5: =Time!FH$10 -> 155 | FI5: =Time!FI$10 -> 156 | FJ5: =Time!FJ$10 -> 157 | FK5: =Time!FK$10 -> 158 | FL5: =Time!FL$10 -> 159 | FM5: =Time!FM$10 -> 160 | FN5: =Time!FN$10 -> 161 | FO5: =Time!FO$10 -> 162 | FP5: =Time!FP$10 -> 163 | FQ5: =Time!FQ$10 -> 164 | FR5: =Time!FR$10 -> 165 | FS5: =Time!FS$10 -> 166 | FT5: =Time!FT$10 -> 167 | FU5: =Time!FU$10 -> 168 | FV5: =Time!FV$10 -> 169 | FW5: =Time!FW$10 -> 170 | FX5: =Time!FX$10 -> 171 | FY5: =Time!FY$10 -> 172 | FZ5: =Time!FZ$10 -> 173 | GA5: =Time!GA$10 -> 174 | GB5: =Time!GB$10 -> 175 | GC5: =Time!GC$10 -> 176 | GD5: =Time!GD$10 -> 177 | GE5: =Time!GE$10 -> 178 | GF5: =Time!GF$10 -> 179 | GG5: =Time!GG$10 -> 180 | GH5: =Time!GH$10 -> 181 | GI5: =Time!GI$10 -> 182 | GJ5: =Time!GJ$10 -> 183
A7: TIME RULER
B9: First model column
E10: Model column counter | G10: counter | J10: =I10 + 1 -> 1 | K10: 2 | L10: 3 | M10: 4 | N10: 5 | O10: 6 | P10: 7 | Q10: 8 | R10: 9 | S10: 10 | T10: 11 | U10: 12 | V10: 13 | W10: 14 | X10: 15 | Y10: 16 | Z10: 17 | AA10: 18 | AB10: 19 | AC10: 20 | AD10: 21 | AE10: 22 | AF10: 23 | AG10: 24 | AH10: 25 | AI10: 26 | AJ10: 27 | AK10: 28 | AL10: 29 | AM10: 30 | AN10: 31 | AO10: 32 | AP10: 33 | AQ10: 34 | AR10: 35 | AS10: 36 | AT10: 37 | AU10: 38 | AV10: 39 | AW10: 40 | AX10: 41 | AY10: 42 | AZ10: 43 | BA10: 44 | BB10: 45 | BC10: 46 | BD10: 47 | BE10: 48 | BF10: 49 | BG10: 50 | BH10: 51 | BI10: 52 | BJ10: 53 | BK10: 54 | BL10: 55 | BM10: 56 | BN10: 57 | BO10: 58 | BP10: 59 | BQ10: 60 | BR10: 61 | BS10: 62 | BT10: 63 | BU10: 64 | BV10: =BU10 + 1 -> 65 | BW10: 66 | BX10: 67 | BY10: 68 | BZ10: 69 | CA10: 70 | CB10: 71 | CC10: 72 | CD10: 73 | CE10: 74 | CF10: 75 | CG10: 76 | CH10: 77 | CI10: 78 | CJ10: 79 | CK10: 80 | CL10: 81 | CM10: 82 | CN10: 83 | CO10: 84 | CP10: 85 | CQ10: 86 | CR10: 87 | CS10: 88 | CT10: 89 | CU10: 90 | CV10: 91 | CW10: 92 | CX10: 93 | CY10: 94 | CZ10: 95 | DA10: 96 | DB10: 97 | DC10: 98 | DD10: 99 | DE10: 100 | DF10: 101 | DG10: 102 | DH10: 103 | DI10: 104 | DJ10: 105 | DK10: 106 | DL10: 107 | DM10: 108 | DN10: 109 | DO10: 110 | DP10: 111 | DQ10: 112 | DR10: 113 | DS10: 114 | DT10: 115 | DU10: 116 | DV10: 117 | DW10: 118 | DX10: 119 | DY10: 120 | DZ10: 121 | EA10: 122 | EB10: 123 | EC10: 124 | ED10: 125 | EE10: 126 | EF10: 127 | EG10: 128 | EH10: =EG10 + 1 -> 129 | EI10: 130 | EJ10: 131 | EK10: 132 | EL10: 133 | EM10: 134 | EN10: 135 | EO10: 136 | EP10: 137 | EQ10: 138 | ER10: 139 | ES10: 140 | ET10: 141 | EU10: 142 | EV10: 143 | EW10: 144 | EX10: 145 | EY10: 146 | EZ10: 147 | FA10: 148 | FB10: 149 | FC10: 150 | FD10: 151 | FE10: 152 | FF10: 153 | FG10: 154 | FH10: 155 | FI10: 156 | FJ10: 157 | FK10: 158 | FL10: 159 | FM10: 160 | FN10: 161 | FO10: 162 | FP10: 163 | FQ10: 164 | FR10: 165 | FS10: 166 | FT10: 167 | FU10: 168 | FV10: 169 | FW10: 170 | FX10: 171 | FY10: 172 | FZ10: 173 | GA10: 174 | GB10: 175 | GC10: 176 | GD10: 177 | GE10: 178 | GF10: 179 | GG10: 180 | GH10: =GG10 + 1 -> 181 | GI10: 182 | GJ10: 183
E11: Model column total | F11: =MAX(J10:PU10) -> 183 | G11: columns
E13: =E$10 -> Model column counter | F13: 0 | G13: counter | H13: 0 | I13: 0 | J13: 1 | K13: 2 | L13: 3 | M13: 4 | N13: 5 | O13: 6 | P13: 7 | Q13: 8 | R13: 9 | S13: 10 | T13: 11 | U13: 12 | V13: 13 | W13: 14 | X13: 15 | Y13: 16 | Z13: 17 | AA13: 18 | AB13: 19 | AC13: 20 | AD13: 21 | AE13: 22 | AF13: 23 | AG13: 24 | AH13: 25 | AI13: 26 | AJ13: 27 | AK13: 28 | AL13: 29 | AM13: 30 | AN13: 31 | AO13: 32 | AP13: 33 | AQ13: 34 | AR13: 35 | AS13: 36 | AT13: 37 | AU13: 38 | AV13: 39 | AW13: 40 | AX13: 41 | AY13: 42 | AZ13: 43 | BA13: 44 | BB13: 45 | BC13: 46 | BD13: 47 | BE13: 48 | BF13: 49 | BG13: 50 | BH13: 51 | BI13: 52 | BJ13: 53 | BK13: 54 | BL13: 55 | BM13: 56 | BN13: 57 | BO13: 58 | BP13: 59 | BQ13: =BQ$10 -> 60 | BR13: 61 | BS13: 62 | BT13: 63 | BU13: 64 | BV13: 65 | BW13: 66 | BX13: 67 | BY13: 68 | BZ13: 69 | CA13: 70 | CB13: 71 | CC13: 72 | CD13: 73 | CE13: 74 | CF13: 75 | CG13: 76 | CH13: 77 | CI13: 78 | CJ13: 79 | CK13: 80 | CL13: 81 | CM13: 82 | CN13: 83 | CO13: 84 | CP13: 85 | CQ13: 86 | CR13: 87 | CS13: 88 | CT13: 89 | CU13: 90 | CV13: 91 | CW13: 92 | CX13: 93 | CY13: 94 | CZ13: 95 | DA13: 96 | DB13: 97 | DC13: 98 | DD13: 99 | DE13: 100 | DF13: 101 | DG13: 102 | DH13: 103 | DI13: 104 | DJ13: 105 | DK13: 106 | DL13: 107 | DM13: 108 | DN13: 109 | DO13: 110 | DP13: 111 | DQ13: 112 | DR13: 113 | DS13: 114 | DT13: 115 | DU13: 116 | DV13: 117 | DW13: 118 | DX13: 119 | DY13: 120 | DZ13: 121 | EA13: 122 | EB13: 123 | EC13: =EC$10 -> 124 | ED13: 125 | EE13: 126 | EF13: 127 | EG13: 128 | EH13: 129 | EI13: 130 | EJ13: 131 | EK13: 132 | EL13: 133 | EM13: 134 | EN13: 135 | EO13: 136 | EP13: 137 | EQ13: 138 | ER13: 139 | ES13: 140 | ET13: 141 | EU13: 142 | EV13: 143 | EW13: 144 | EX13: 145 | EY13: 146 | EZ13: 147 | FA13: 148 | FB13: 149 | FC13: 150 | FD13: 151 | FE13: 152 | FF13: 153 | FG13: 154 | FH13: 155 | FI13: 156 | FJ13: 157 | FK13: 158 | FL13: 159 | FM13: 160 | FN13: 161 | FO13: 162 | FP13: 163 | FQ13: 164 | FR13: 165 | FS13: 166 | FT13: 167 | FU13: 168 | FV13: 169 | FW13: 170 | FX13: 171 | FY13: 172 | FZ13: 173 | GA13: 174 | GB13: 175 | GC13: 176 | GD13: 177 | GE13: 178 | GF13: 179 | GG13: 180 | GH13: 181 | GI13: 182 | GJ13: 183
E14: First model column flag | G14: flag | H14: =SUM(J14:GJ14) -> 1 | J14: =IF(J13 = 1, 1, 0) -> 1 | K14: 0 | L14: 0 | M14: 0 | N14: 0 | O14: 0 | P14: 0 | Q14: 0 | R14: 0 | S14: 0 | T14: 0 | U14: 0 | V14: 0 | W14: 0 | X14: 0 | Y14: 0 | Z14: 0 | AA14: 0 | AB14: 0 | AC14: 0 | AD14: 0 | AE14: 0 | AF14: 0 | AG14: 0 | AH14: 0 | AI14: 0 | AJ14: 0 | AK14: 0 | AL14: 0 | AM14: 0 | AN14: 0 | AO14: 0 | AP14: 0 | AQ14: 0 | AR14: 0 | AS14: 0 | AT14: 0 | AU14: 0 | AV14: 0 | AW14: 0 | AX14: 0 | AY14: 0 | AZ14: 0 | BA14: 0 | BB14: 0 | BC14: 0 | BD14: 0 | BE14: 0 | BF14: 0 | BG14: 0 | BH14: 0 | BI14: 0 | BJ14: 0 | BK14: 0 | BL14: 0 | BM14: 0 | BN14: 0 | BO14: 0 | BP14: 0 | BQ14: 0 | BR14: 0 | BS14: 0 | BT14: 0 | BU14: 0 | BV14: =IF(BV13 = 1, 1, 0) -> 0 | BW14: 0 | BX14: 0 | BY14: 0 | BZ14: 0 | CA14: 0 | CB14: 0 | CC14: 0 | CD14: 0 | CE14: 0 | CF14: 0 | CG14: 0 | CH14: 0 | CI14: 0 | CJ14: 0 | CK14: 0 | CL14: 0 | CM14: 0 | CN14: 0 | CO14: 0 | CP14: 0 | CQ14: 0 | CR14: 0 | CS14: 0 | CT14: 0 | CU14: 0 | CV14: 0 | CW14: 0 | CX14: 0 | CY14: 0 | CZ14: 0 | DA14: 0 | DB14: 0 | DC14: 0 | DD14: 0 | DE14: 0 | DF14: 0 | DG14: 0 | DH14: 0 | DI14: 0 | DJ14: 0 | DK14: 0 | DL14: 0 | DM14: 0 | DN14: 0 | DO14: 0 | DP14: 0 | DQ14: 0 | DR14: 0 | DS14: 0 | DT14: 0 | DU14: 0 | DV14: 0 | DW14: 0 | DX14: 0 | DY14: 0 | DZ14: 0 | EA14: 0 | EB14: 0 | EC14: 0 | ED14: 0 | EE14: 0 | EF14: 0 | EG14: 0 | EH14: =IF(EH13 = 1, 1, 0) -> 0 | EI14: 0 | EJ14: 0 | EK14: 0 | EL14: 0 | EM14: 0 | EN14: 0 | EO14: 0 | EP14: 0 | EQ14: 0 | ER14: 0 | ES14: 0 | ET14: 0 | EU14: 0 | EV14: 0 | EW14: 0 | EX14: 0 | EY14: 0 | EZ14: 0 | FA14: 0 | FB14: 0 | FC14: 0 | FD14: 0 | FE14: 0 | FF14: 0 | FG14: 0 | FH14: 0 | FI14: 0 | FJ14: 0 | FK14: 0 | FL14: 0 | FM14: 0 | FN14: 0 | FO14: 0 | FP14: 0 | FQ14: 0 | FR14: 0 | FS14: 0 | FT14: 0 | FU14: 0 | FV14: 0 | FW14: 0 | FX14: 0 | FY14: 0 | FZ14: 0 | GA14: 0 | GB14: 0 | GC14: 0 | GD14: 0 | GE14: 0 | GF14: 0 | GG14: 0 | GH14: =IF(GH13 = 1, 1, 0) -> 0 | GI14: 0 | GJ14: 0
B16: Model period beginning
E17: =InpC!E$13 -> First date of time rulers | F17: =InpC!F$13 -> 2020-07-01 | G17: =InpC!G$13 -> date
E18: =InpC!E$17 -> Length of operating period | F18: =InpC!F$17 -> 3 | G18: =InpC!G$17 -> months
E19: =E$14 -> First model column flag | F19: 0 | G19: flag | H19: 1 | I19: 0 | J19: 1 | K19: 0 | L19: 0 | M19: 0 | N19: 0 | O19: 0 | P19: 0 | Q19: 0 | R19: 0 | S19: 0 | T19: 0 | U19: 0 | V19: 0 | W19: 0 | X19: 0 | Y19: 0 | Z19: 0 | AA19: 0 | AB19: 0 | AC19: 0 | AD19: 0 | AE19: 0 | AF19: 0 | AG19: 0 | AH19: 0 | AI19: 0 | AJ19: 0 | AK19: 0 | AL19: 0 | AM19: 0 | AN19: 0 | AO19: 0 | AP19: 0 | AQ19: 0 | AR19: 0 | AS19: 0 | AT19: 0 | AU19: 0 | AV19: 0 | AW19: 0 | AX19: 0 | AY19: 0 | AZ19: 0 | BA19: 0 | BB19: 0 | BC19: 0 | BD19: 0 | BE19: 0 | BF19: 0 | BG19: 0 | BH19: 0 | BI19: 0 | BJ19: 0 | BK19: 0 | BL19: 0 | BM19: 0 | BN19: 0 | BO19: 0 | BP19: 0 | BQ19: =BQ$14 -> 0 | BR19: 0 | BS19: 0 | BT19: 0 | BU19: 0 | BV19: 0 | BW19: 0 | BX19: 0 | BY19: 0 | BZ19: 0 | CA19: 0 | CB19: 0 | CC19: 0 | CD19: 0 | CE19: 0 | CF19: 0 | CG19: 0 | CH19: 0 | CI19: 0 | CJ19: 0 | CK19: 0 | CL19: 0 | CM19: 0 | CN19: 0 | CO19: 0 | CP19: 0 | CQ19: 0 | CR19: 0 | CS19: 0 | CT19: 0 | CU19: 0 | CV19: 0 | CW19: 0 | CX19: 0 | CY19: 0 | CZ19: 0 | DA19: 0 | DB19: 0 | DC19: 0 | DD19: 0 | DE19: 0 | DF19: 0 | DG19: 0 | DH19: 0 | DI19: 0 | DJ19: 0 | DK19: 0 | DL19: 0 | DM19: 0 | DN19: 0 | DO19: 0 | DP19: 0 | DQ19: 0 | DR19: 0 | DS19: 0 | DT19: 0 | DU19: 0 | DV19: 0 | DW19: 0 | DX19: 0 | DY19: 0 | DZ19: 0 | EA19: 0 | EB19: 0 | EC19: =EC$14 -> 0 | ED19: 0 | EE19: 0 | EF19: 0 | EG19: 0 | EH19: 0 | EI19: 0 | EJ19: 0 | EK19: 0 | EL19: 0 | EM19: 0 | EN19: 0 | EO19: 0 | EP19: 0 | EQ19: 0 | ER19: 0 | ES19: 0 | ET19: 0 | EU19: 0 | EV19: 0 | EW19: 0 | EX19: 0 | EY19: 0 | EZ19: 0 | FA19: 0 | FB19: 0 | FC19: 0 | FD19: 0 | FE19: 0 | FF19: 0 | FG19: 0 | FH19: 0 | FI19: 0 | FJ19: 0 | FK19: 0 | FL19: 0 | FM19: 0 | FN19: 0 | FO19: 0 | FP19: 0 | FQ19: 0 | FR19: 0 | FS19: 0 | FT19: 0 | FU19: 0 | FV19: 0 | FW19: 0 | FX19: 0 | FY19: 0 | FZ19: 0 | GA19: 0 | GB19: 0 | GC19: 0 | GD19: 0 | GE19: 0 | GF19: 0 | GG19: 0 | GH19: 0 | GI19: 0 | GJ19: 0
E20: Model period beginning | G20: date | J20: =IF(J19 = 1, $F17, DATE(YEAR(I20), MONTH(I20) + $F18, DAY(1))) -> 2020-07-01 | K20: 2020-10-01 | L20: 2021-01-01 | M20: 2021-04-01 | N20: 2021-07-01 | O20: 2021-10-01 | P20: 2022-01-01 | Q20: 2022-04-01 | R20: 2022-07-01 | S20: 2022-10-01 | T20: 2023-01-01 | U20: 2023-04-01 | V20: 2023-07-01 | W20: 2023-10-01 | X20: 2024-01-01 | Y20: 2024-04-01 | Z20: 2024-07-01 | AA20: 2024-10-01 | AB20: 2025-01-01 | AC20: 2025-04-01 | AD20: 2025-07-01 | AE20: 2025-10-01 | AF20: 2026-01-01 | AG20: 2026-04-01 | AH20: 2026-07-01 | AI20: 2026-10-01 | AJ20: 2027-01-01 | AK20: 2027-04-01 | AL20: 2027-07-01 | AM20: 2027-10-01 | AN20: 2028-01-01 | AO20: 2028-04-01 | AP20: 2028-07-01 | AQ20: 2028-10-01 | AR20: 2029-01-01 | AS20: 2029-04-01 | AT20: 2029-07-01 | AU20: 2029-10-01 | AV20: 2030-01-01 | AW20: 2030-04-01 | AX20: 2030-07-01 | AY20: 2030-10-01 | AZ20: 2031-01-01 | BA20: 2031-04-01 | BB20: 2031-07-01 | BC20: 2031-10-01 | BD20: 2032-01-01 | BE20: 2032-04-01 | BF20: 2032-07-01 | BG20: 2032-10-01 | BH20: 2033-01-01 | BI20: 2033-04-01 | BJ20: 2033-07-01 | BK20: 2033-10-01 | BL20: 2034-01-01 | BM20: 2034-04-01 | BN20: 2034-07-01 | BO20: 2034-10-01 | BP20: 2035-01-01 | BQ20: 2035-04-01 | BR20: 2035-07-01 | BS20: 2035-10-01 | BT20: 2036-01-01 | BU20: 2036-04-01 | BV20: =IF(BV19 = 1, $F17, DATE(YEAR(BU20), MONTH(BU20) + $F18, DAY(1))) -> 2036-07-01 | BW20: 2036-10-01 | BX20: 2037-01-01 | BY20: 2037-04-01 | BZ20: 2037-07-01 | CA20: 2037-10-01 | CB20: 2038-01-01 | CC20: 2038-04-01 | CD20: 2038-07-01 | CE20: 2038-10-01 | CF20: 2039-01-01 | CG20: 2039-04-01 | CH20: 2039-07-01 | CI20: 2039-10-01 | CJ20: 2040-01-01 | CK20: 2040-04-01 | CL20: 2040-07-01 | CM20: 2040-10-01 | CN20: 2041-01-01 | CO20: 2041-04-01 | CP20: 2041-07-01 | CQ20: 2041-10-01 | CR20: 2042-01-01 | CS20: 2042-04-01 | CT20: 2042-07-01 | CU20: 2042-10-01 | CV20: 2043-01-01 | CW20: 2043-04-01 | CX20: 2043-07-01 | CY20: 2043-10-01 | CZ20: 2044-01-01 | DA20: 2044-04-01 | DB20: 2044-07-01 | DC20: 2044-10-01 | DD20: 2045-01-01 | DE20: 2045-04-01 | DF20: 2045-07-01 | DG20: 2045-10-01 | DH20: 2046-01-01 | DI20: 2046-04-01 | DJ20: 2046-07-01 | DK20: 2046-10-01 | DL20: 2047-01-01 | DM20: 2047-04-01 | DN20: 2047-07-01 | DO20: 2047-10-01 | DP20: 2048-01-01 | DQ20: 2048-04-01 | DR20: 2048-07-01 | DS20: 2048-10-01 | DT20: 2049-01-01 | DU20: 2049-04-01 | DV20: 2049-07-01 | DW20: 2049-10-01 | DX20: 2050-01-01 | DY20: 2050-04-01 | DZ20: 2050-07-01 | EA20: 2050-10-01 | EB20: 2051-01-01 | EC20: 2051-04-01 | ED20: 2051-07-01 | EE20: 2051-10-01 | EF20: 2052-01-01 | EG20: 2052-04-01 | EH20: =IF(EH19 = 1, $F17, DATE(YEAR(EG20), MONTH(EG20) + $F18, DAY(1))) -> 2052-07-01 | EI20: 2052-10-01 | EJ20: 2053-01-01 | EK20: 2053-04-01 | EL20: 2053-07-01 | EM20: 2053-10-01 | EN20: 2054-01-01 | EO20: 2054-04-01 | EP20: 2054-07-01 | EQ20: 2054-10-01 | ER20: 2055-01-01 | ES20: 2055-04-01 | ET20: 2055-07-01 | EU20: 2055-10-01 | EV20: 2056-01-01 | EW20: 2056-04-01 | EX20: 2056-07-01 | EY20: 2056-10-01 | EZ20: 2057-01-01 | FA20: 2057-04-01 | FB20: 2057-07-01 | FC20: 2057-10-01 | FD20: 2058-01-01 | FE20: 2058-04-01 | FF20: 2058-07-01 | FG20: 2058-10-01 | FH20: 2059-01-01 | FI20: 2059-04-01 | FJ20: 2059-07-01 | FK20: 2059-10-01 | FL20: 2060-01-01 | FM20: 2060-04-01 | FN20: 2060-07-01 | FO20: 2060-10-01 | FP20: 2061-01-01 | FQ20: 2061-04-01 | FR20: 2061-07-01 | FS20: 2061-10-01 | FT20: 2062-01-01 | FU20: 2062-04-01 | FV20: 2062-07-01 | FW20: 2062-10-01 | FX20: 2063-01-01 | FY20: 2063-04-01 | FZ20: 2063-07-01 | GA20: 2063-10-01 | GB20: 2064-01-01 | GC20: 2064-04-01 | GD20: 2064-07-01 | GE20: 2064-10-01 | GF20: 2065-01-01 | GG20: 2065-04-01 | GH20: =IF(GH19 = 1, $F17, DATE(YEAR(GG20), MONTH(GG20) + $F18, DAY(1))) -> 2065-07-01 | GI20: 2065-10-01 | GJ20: 2066-01-01
B22: Model period ending
E23: =InpC!E$17 -> Length of operating period | F23: =InpC!F$17 -> 3 | G23: =InpC!G$17 -> months
E24: =E$20 -> Model period beginning | F24: 00:00:00 | G24: date | H24: 00:00:00 | I24: 00:00:00 | J24: 2020-07-01 | K24: 2020-10-01 | L24: 2021-01-01 | M24: 2021-04-01 | N24: 2021-07-01 | O24: 2021-10-01 | P24: 2022-01-01 | Q24: 2022-04-01 | R24: 2022-07-01 | S24: 2022-10-01 | T24: 2023-01-01 | U24: 2023-04-01 | V24: 2023-07-01 | W24: 2023-10-01 | X24: 2024-01-01 | Y24: 2024-04-01 | Z24: 2024-07-01 | AA24: 2024-10-01 | AB24: 2025-01-01 | AC24: 2025-04-01 | AD24: 2025-07-01 | AE24: 2025-10-01 | AF24: 2026-01-01 | AG24: 2026-04-01 | AH24: 2026-07-01 | AI24: 2026-10-01 | AJ24: 2027-01-01 | AK24: 2027-04-01 | AL24: 2027-07-01 | AM24: 2027-10-01 | AN24: 2028-01-01 | AO24: 2028-04-01 | AP24: 2028-07-01 | AQ24: 2028-10-01 | AR24: 2029-01-01 | AS24: 2029-04-01 | AT24: 2029-07-01 | AU24: 2029-10-01 | AV24: 2030-01-01 | AW24: 2030-04-01 | AX24: 2030-07-01 | AY24: 2030-10-01 | AZ24: 2031-01-01 | BA24: 2031-04-01 | BB24: 2031-07-01 | BC24: 2031-10-01 | BD24: 2032-01-01 | BE24: 2032-04-01 | BF24: 2032-07-01 | BG24: 2032-10-01 | BH24: 2033-01-01 | BI24: 2033-04-01 | BJ24: 2033-07-01 | BK24: 2033-10-01 | BL24: 2034-01-01 | BM24: 2034-04-01 | BN24: 2034-07-01 | BO24: 2034-10-01 | BP24: 2035-01-01 | BQ24: =BQ$20 -> 2035-04-01 | BR24: 2035-07-01 | BS24: 2035-10-01 | BT24: 2036-01-01 | BU24: 2036-04-01 | BV24: 2036-07-01 | BW24: 2036-10-01 | BX24: 2037-01-01 | BY24: 2037-04-01 | BZ24: 2037-07-01 | CA24: 2037-10-01 | CB24: 2038-01-01 | CC24: 2038-04-01 | CD24: 2038-07-01 | CE24: 2038-10-01 | CF24: 2039-01-01 | CG24: 2039-04-01 | CH24: 2039-07-01 | CI24: 2039-10-01 | CJ24: 2040-01-01 | CK24: 2040-04-01 | CL24: 2040-07-01 | CM24: 2040-10-01 | CN24: 2041-01-01 | CO24: 2041-04-01 | CP24: 2041-07-01 | CQ24: 2041-10-01 | CR24: 2042-01-01 | CS24: 2042-04-01 | CT24: 2042-07-01 | CU24: 2042-10-01 | CV24: 2043-01-01 | CW24: 2043-04-01 | CX24: 2043-07-01 | CY24: 2043-10-01 | CZ24: 2044-01-01 | DA24: 2044-04-01 | DB24: 2044-07-01 | DC24: 2044-10-01 | DD24: 2045-01-01 | DE24: 2045-04-01 | DF24: 2045-07-01 | DG24: 2045-10-01 | DH24: 2046-01-01 | DI24: 2046-04-01 | DJ24: 2046-07-01 | DK24: 2046-10-01 | DL24: 2047-01-01 | DM24: 2047-04-01 | DN24: 2047-07-01 | DO24: 2047-10-01 | DP24: 2048-01-01 | DQ24: 2048-04-01 | DR24: 2048-07-01 | DS24: 2048-10-01 | DT24: 2049-01-01 | DU24: 2049-04-01 | DV24: 2049-07-01 | DW24: 2049-10-01 | DX24: 2050-01-01 | DY24: 2050-04-01 | DZ24: 2050-07-01 | EA24: 2050-10-01 | EB24: 2051-01-01 | EC24: =EC$20 -> 2051-04-01 | ED24: 2051-07-01 | EE24: 2051-10-01 | EF24: 2052-01-01 | EG24: 2052-04-01 | EH24: 2052-07-01 | EI24: 2052-10-01 | EJ24: 2053-01-01 | EK24: 2053-04-01 | EL24: 2053-07-01 | EM24: 2053-10-01 | EN24: 2054-01-01 | EO24: 2054-04-01 | EP24: 2054-07-01 | EQ24: 2054-10-01 | ER24: 2055-01-01 | ES24: 2055-04-01 | ET24: 2055-07-01 | EU24: 2055-10-01 | EV24: 2056-01-01 | EW24: 2056-04-01 | EX24: 2056-07-01 | EY24: 2056-10-01 | EZ24: 2057-01-01 | FA24: 2057-04-01 | FB24: 2057-07-01 | FC24: 2057-10-01 | FD24: 2058-01-01 | FE24: 2058-04-01 | FF24: 2058-07-01 | FG24: 2058-10-01 | FH24: 2059-01-01 | FI24: =FI$20 -> 2059-04-01 | FJ24: 2059-07-01 | FK24: 2059-10-01 | FL24: 2060-01-01 | FM24: 2060-04-01 | FN24: 2060-07-01 | FO24: 2060-10-01 | FP24: 2061-01-01 | FQ24: 2061-04-01 | FR24: 2061-07-01 | FS24: 2061-10-01 | FT24: 2062-01-01 | FU24: 2062-04-01 | FV24: 2062-07-01 | FW24: 2062-10-01 | FX24: 2063-01-01 | FY24: 2063-04-01 | FZ24: 2063-07-01 | GA24: 2063-10-01 | GB24: 2064-01-01 | GC24: 2064-04-01 | GD24: 2064-07-01 | GE24: 2064-10-01 | GF24: 2065-01-01 | GG24: 2065-04-01 | GH24: 2065-07-01 | GI24: 2065-10-01 | GJ24: 2066-01-01
E25: Model period ending | G25: date | J25: =DATE(YEAR(J24), MONTH(J24) + $F23, DAY(J24) -1) -> 2020-09-30 | K25: 2020-12-31 | L25: 2021-03-31 | M25: 2021-06-30 | N25: 2021-09-30 | O25: 2021-12-31 | P25: 2022-03-31 | Q25: 2022-06-30 | R25: 2022-09-30 | S25: 2022-12-31 | T25: 2023-03-31 | U25: 2023-06-30 | V25: 2023-09-30 | W25: 2023-12-31 | X25: 2024-03-31 | Y25: 2024-06-30 | Z25: 2024-09-30 | AA25: 2024-12-31 | AB25: 2025-03-31 | AC25: 2025-06-30 | AD25: 2025-09-30 | AE25: 2025-12-31 | AF25: 2026-03-31 | AG25: 2026-06-30 | AH25: 2026-09-30 | AI25: 2026-12-31 | AJ25: 2027-03-31 | AK25: 2027-06-30 | AL25: 2027-09-30 | AM25: 2027-12-31 | AN25: 2028-03-31 | AO25: 2028-06-30 | AP25: 2028-09-30 | AQ25: 2028-12-31 | AR25: 2029-03-31 | AS25: 2029-06-30 | AT25: 2029-09-30 | AU25: 2029-12-31 | AV25: 2030-03-31 | AW25: 2030-06-30 | AX25: 2030-09-30 | AY25: 2030-12-31 | AZ25: 2031-03-31 | BA25: 2031-06-30 | BB25: 2031-09-30 | BC25: 2031-12-31 | BD25: 2032-03-31 | BE25: 2032-06-30 | BF25: 2032-09-30 | BG25: 2032-12-31 | BH25: 2033-03-31 | BI25: 2033-06-30 | BJ25: 2033-09-30 | BK25: 2033-12-31 | BL25: 2034-03-31 | BM25: 2034-06-30 | BN25: 2034-09-30 | BO25: 2034-12-31 | BP25: 2035-03-31 | BQ25: 2035-06-30 | BR25: 2035-09-30 | BS25: 2035-12-31 | BT25: 2036-03-31 | BU25: 2036-06-30 | BV25: =DATE(YEAR(BV24), MONTH(BV24) + $F23, DAY(BV24) -1) -> 2036-09-30 | BW25: 2036-12-31 | BX25: 2037-03-31 | BY25: 2037-06-30 | BZ25: 2037-09-30 | CA25: 2037-12-31 | CB25: 2038-03-31 | CC25: 2038-06-30 | CD25: 2038-09-30 | CE25: 2038-12-31 | CF25: 2039-03-31 | CG25: 2039-06-30 | CH25: 2039-09-30 | CI25: 2039-12-31 | CJ25: 2040-03-31 | CK25: 2040-06-30 | CL25: 2040-09-30 | CM25: 2040-12-31 | CN25: 2041-03-31 | CO25: 2041-06-30 | CP25: 2041-09-30 | CQ25: 2041-12-31 | CR25: 2042-03-31 | CS25: 2042-06-30 | CT25: 2042-09-30 | CU25: 2042-12-31 | CV25: 2043-03-31 | CW25: 2043-06-30 | CX25: 2043-09-30 | CY25: 2043-12-31 | CZ25: 2044-03-31 | DA25: 2044-06-30 | DB25: 2044-09-30 | DC25: 2044-12-31 | DD25: 2045-03-31 | DE25: 2045-06-30 | DF25: 2045-09-30 | DG25: 2045-12-31 | DH25: 2046-03-31 | DI25: 2046-06-30 | DJ25: 2046-09-30 | DK25: 2046-12-31 | DL25: 2047-03-31 | DM25: 2047-06-30 | DN25: 2047-09-30 | DO25: 2047-12-31 | DP25: 2048-03-31 | DQ25: 2048-06-30 | DR25: 2048-09-30 | DS25: 2048-12-31 | DT25: 2049-03-31 | DU25: 2049-06-30 | DV25: 2049-09-30 | DW25: 2049-12-31 | DX25: 2050-03-31 | DY25: 2050-06-30 | DZ25: 2050-09-30 | EA25: 2050-12-31 | EB25: 2051-03-31 | EC25: 2051-06-30 | ED25: 2051-09-30 | EE25: 2051-12-31 | EF25: 2052-03-31 | EG25: 2052-06-30 | EH25: =DATE(YEAR(EH24), MONTH(EH24) + $F23, DAY(EH24) -1) -> 2052-09-30 | EI25: 2052-12-31 | EJ25: 2053-03-31 | EK25: 2053-06-30 | EL25: 2053-09-30 | EM25: 2053-12-31 | EN25: 2054-03-31 | EO25: 2054-06-30 | EP25: 2054-09-30 | EQ25: 2054-12-31 | ER25: 2055-03-31 | ES25: 2055-06-30 | ET25: 2055-09-30 | EU25: 2055-12-31 | EV25: 2056-03-31 | EW25: 2056-06-30 | EX25: 2056-09-30 | EY25: 2056-12-31 | EZ25: 2057-03-31 | FA25: 2057-06-30 | FB25: 2057-09-30 | FC25: 2057-12-31 | FD25: 2058-03-31 | FE25: 2058-06-30 | FF25: 2058-09-30 | FG25: 2058-12-31 | FH25: 2059-03-31 | FI25: 2059-06-30 | FJ25: 2059-09-30 | FK25: 2059-12-31 | FL25: 2060-03-31 | FM25: 2060-06-30 | FN25: 2060-09-30 | FO25: 2060-12-31 | FP25: 2061-03-31 | FQ25: 2061-06-30 | FR25: 2061-09-30 | FS25: 2061-12-31 | FT25: 2062-03-31 | FU25: 2062-06-30 | FV25: 2062-09-30 | FW25: 2062-12-31 | FX25: 2063-03-31 | FY25: 2063-06-30 | FZ25: 2063-09-30 | GA25: 2063-12-31 | GB25: 2064-03-31 | GC25: 2064-06-30 | GD25: 2064-09-30 | GE25: 2064-12-31 | GF25: 2065-03-31 | GG25: 2065-06-30 | GH25: =DATE(YEAR(GH24), MONTH(GH24) + $F23, DAY(GH24) -1) -> 2065-09-30 | GI25: 2065-12-31 | GJ25: 2066-03-31
B27: Contract year
E28: =InpC!E$19 -> Acquisition date | F28: =InpC!F$19 -> 2021-03-31 | G28: =InpC!G$19 -> date
E29: Contract year end month | F29: =MONTH(F28) -> 3 | G29: month
E31: =E$29 -> Contract year end month | F31: =F$29 -> 3 | G31: =G$29 -> month
E32: =E$25 -> Model period ending | F32: 00:00:00 | G32: date | H32: 00:00:00 | I32: 00:00:00 | J32: 2020-09-30 | K32: 2020-12-31 | L32: 2021-03-31 | M32: 2021-06-30 | N32: 2021-09-30 | O32: 2021-12-31 | P32: 2022-03-31 | Q32: 2022-06-30 | R32: 2022-09-30 | S32: 2022-12-31 | T32: 2023-03-31 | U32: 2023-06-30 | V32: 2023-09-30 | W32: 2023-12-31 | X32: 2024-03-31 | Y32: 2024-06-30 | Z32: 2024-09-30 | AA32: 2024-12-31 | AB32: 2025-03-31 | AC32: 2025-06-30 | AD32: 2025-09-30 | AE32: 2025-12-31 | AF32: 2026-03-31 | AG32: 2026-06-30 | AH32: 2026-09-30 | AI32: 2026-12-31 | AJ32: 2027-03-31 | AK32: 2027-06-30 | AL32: 2027-09-30 | AM32: 2027-12-31 | AN32: 2028-03-31 | AO32: 2028-06-30 | AP32: 2028-09-30 | AQ32: 2028-12-31 | AR32: 2029-03-31 | AS32: 2029-06-30 | AT32: 2029-09-30 | AU32: 2029-12-31 | AV32: 2030-03-31 | AW32: 2030-06-30 | AX32: 2030-09-30 | AY32: 2030-12-31 | AZ32: 2031-03-31 | BA32: 2031-06-30 | BB32: 2031-09-30 | BC32: 2031-12-31 | BD32: 2032-03-31 | BE32: 2032-06-30 | BF32: 2032-09-30 | BG32: 2032-12-31 | BH32: 2033-03-31 | BI32: 2033-06-30 | BJ32: 2033-09-30 | BK32: 2033-12-31 | BL32: 2034-03-31 | BM32: 2034-06-30 | BN32: 2034-09-30 | BO32: 2034-12-31 | BP32: 2035-03-31 | BQ32: =BQ$25 -> 2035-06-30 | BR32: 2035-09-30 | BS32: 2035-12-31 | BT32: 2036-03-31 | BU32: 2036-06-30 | BV32: 2036-09-30 | BW32: 2036-12-31 | BX32: 2037-03-31 | BY32: 2037-06-30 | BZ32: 2037-09-30 | CA32: 2037-12-31 | CB32: 2038-03-31 | CC32: 2038-06-30 | CD32: 2038-09-30 | CE32: 2038-12-31 | CF32: 2039-03-31 | CG32: 2039-06-30 | CH32: 2039-09-30 | CI32: 2039-12-31 | CJ32: 2040-03-31 | CK32: 2040-06-30 | CL32: 2040-09-30 | CM32: 2040-12-31 | CN32: 2041-03-31 | CO32: 2041-06-30 | CP32: 2041-09-30 | CQ32: 2041-12-31 | CR32: 2042-03-31 | CS32: 2042-06-30 | CT32: 2042-09-30 | CU32: 2042-12-31 | CV32: 2043-03-31 | CW32: 2043-06-30 | CX32: 2043-09-30 | CY32: 2043-12-31 | CZ32: 2044-03-31 | DA32: 2044-06-30 | DB32: 2044-09-30 | DC32: 2044-12-31 | DD32: 2045-03-31 | DE32: 2045-06-30 | DF32: 2045-09-30 | DG32: 2045-12-31 | DH32: 2046-03-31 | DI32: 2046-06-30 | DJ32: 2046-09-30 | DK32: 2046-12-31 | DL32: 2047-03-31 | DM32: 2047-06-30 | DN32: 2047-09-30 | DO32: 2047-12-31 | DP32: 2048-03-31 | DQ32: 2048-06-30 | DR32: 2048-09-30 | DS32: 2048-12-31 | DT32: 2049-03-31 | DU32: 2049-06-30 | DV32: 2049-09-30 | DW32: 2049-12-31 | DX32: 2050-03-31 | DY32: 2050-06-30 | DZ32: 2050-09-30 | EA32: 2050-12-31 | EB32: 2051-03-31 | EC32: =EC$25 -> 2051-06-30 | ED32: 2051-09-30 | EE32: 2051-12-31 | EF32: 2052-03-31 | EG32: 2052-06-30 | EH32: 2052-09-30 | EI32: 2052-12-31 | EJ32: 2053-03-31 | EK32: 2053-06-30 | EL32: 2053-09-30 | EM32: 2053-12-31 | EN32: 2054-03-31 | EO32: 2054-06-30 | EP32: 2054-09-30 | EQ32: 2054-12-31 | ER32: 2055-03-31 | ES32: 2055-06-30 | ET32: 2055-09-30 | EU32: 2055-12-31 | EV32: 2056-03-31 | EW32: 2056-06-30 | EX32: 2056-09-30 | EY32: 2056-12-31 | EZ32: 2057-03-31 | FA32: 2057-06-30 | FB32: 2057-09-30 | FC32: 2057-12-31 | FD32: 2058-03-31 | FE32: 2058-06-30 | FF32: 2058-09-30 | FG32: 2058-12-31 | FH32: 2059-03-31 | FI32: =FI$25 -> 2059-06-30 | FJ32: 2059-09-30 | FK32: 2059-12-31 | FL32: 2060-03-31 | FM32: 2060-06-30 | FN32: 2060-09-30 | FO32: 2060-12-31 | FP32: 2061-03-31 | FQ32: 2061-06-30 | FR32: 2061-09-30 | FS32: 2061-12-31 | FT32: 2062-03-31 | FU32: 2062-06-30 | FV32: 2062-09-30 | FW32: 2062-12-31 | FX32: 2063-03-31 | FY32: 2063-06-30 | FZ32: 2063-09-30 | GA32: 2063-12-31 | GB32: 2064-03-31 | GC32: 2064-06-30 | GD32: 2064-09-30 | GE32: 2064-12-31 | GF32: 2065-03-31 | GG32: 2065-06-30 | GH32: 2065-09-30 | GI32: 2065-12-31 | GJ32: 2066-03-31
E33: End of contract year flag | J33: =IF( MONTH(J32) = $F31, 1, 0) -> 0 | K33: 0 | L33: 1 | M33: 0 | N33: 0 | O33: 0 | P33: 1 | Q33: 0 | R33: 0 | S33: 0 | T33: 1 | U33: 0 | V33: 0 | W33: 0 | X33: 1 | Y33: 0 | Z33: 0 | AA33: 0 | AB33: 1 | AC33: 0 | AD33: 0 | AE33: 0 | AF33: 1 | AG33: 0 | AH33: 0 | AI33: 0 | AJ33: 1 | AK33: 0 | AL33: 0 | AM33: 0 | AN33: 1 | AO33: 0 | AP33: =IF( MONTH(AP32) = $F31, 1, 0) -> 0 | AQ33: 0 | AR33: 1 | AS33: 0 | AT33: 0 | AU33: 0 | AV33: 1 | AW33: 0 | AX33: 0 | AY33: 0 | AZ33: 1 | BA33: 0 | BB33: 0 | BC33: 0 | BD33: 1 | BE33: 0 | BF33: 0 | BG33: 0 | BH33: 1 | BI33: 0 | BJ33: 0 | BK33: 0 | BL33: 1 | BM33: 0 | BN33: 0 | BO33: 0 | BP33: 1 | BQ33: 0 | BR33: 0 | BS33: 0 | BT33: 1 | BU33: 0 | BV33: =IF( MONTH(BV32) = $F31, 1, 0) -> 0 | BW33: 0 | BX33: 1 | BY33: 0 | BZ33: 0 | CA33: 0 | CB33: 1 | CC33: 0 | CD33: 0 | CE33: 0 | CF33: 1 | CG33: 0 | CH33: 0 | CI33: 0 | CJ33: 1 | CK33: 0 | CL33: 0 | CM33: 0 | CN33: 1 | CO33: 0 | CP33: 0 | CQ33: 0 | CR33: 1 | CS33: 0 | CT33: 0 | CU33: 0 | CV33: 1 | CW33: 0 | CX33: 0 | CY33: 0 | CZ33: 1 | DA33: 0 | DB33: =IF( MONTH(DB32) = $F31, 1, 0) -> 0 | DC33: 0 | DD33: 1 | DE33: 0 | DF33: 0 | DG33: 0 | DH33: 1 | DI33: 0 | DJ33: 0 | DK33: 0 | DL33: 1 | DM33: 0 | DN33: 0 | DO33: 0 | DP33: 1 | DQ33: 0 | DR33: 0 | DS33: 0 | DT33: 1 | DU33: 0 | DV33: 0 | DW33: 0 | DX33: 1 | DY33: 0 | DZ33: 0 | EA33: 0 | EB33: 1 | EC33: 0 | ED33: 0 | EE33: 0 | EF33: 1 | EG33: 0 | EH33: =IF( MONTH(EH32) = $F31, 1, 0) -> 0 | EI33: 0 | EJ33: 1 | EK33: 0 | EL33: 0 | EM33: 0 | EN33: 1 | EO33: 0 | EP33: 0 | EQ33: 0 | ER33: 1 | ES33: 0 | ET33: 0 | EU33: 0 | EV33: 1 | EW33: 0 | EX33: 0 | EY33: 0 | EZ33: 1 | FA33: 0 | FB33: 0 | FC33: 0 | FD33: 1 | FE33: 0 | FF33: 0 | FG33: 0 | FH33: 1 | FI33: 0 | FJ33: 0 | FK33: 0 | FL33: 1 | FM33: 0 | FN33: =IF( MONTH(FN32) = $F31, 1, 0) -> 0 | FO33: 0 | FP33: 1 | FQ33: 0 | FR33: 0 | FS33: 0 | FT33: 1 | FU33: 0 | FV33: 0 | FW33: 0 | FX33: 1 | FY33: 0 | FZ33: 0 | GA33: 0 | GB33: 1 | GC33: 0 | GD33: 0 | GE33: 0 | GF33: 1 | GG33: 0 | GH33: =IF( MONTH(GH32) = $F31, 1, 0) -> 0 | GI33: 0 | GJ33: 1
E35: =InpC!E$14 -> Annual year end date of first operating period | F35: =InpC!F$14 -> 2020-03-31 | G35: =InpC!G$14 -> date
E36: =InpC!E$136 -> Months in year | F36: =InpC!F$136 -> 12 | G36: =InpC!G$136 -> months
E37: =E$14 -> First model column flag | F37: 0 | G37: flag | H37: 1 | I37: 0 | J37: 1 | K37: 0 | L37: 0 | M37: 0 | N37: 0 | O37: 0 | P37: 0 | Q37: 0 | R37: 0 | S37: 0 | T37: 0 | U37: 0 | V37: 0 | W37: 0 | X37: 0 | Y37: 0 | Z37: 0 | AA37: 0 | AB37: 0 | AC37: 0 | AD37: 0 | AE37: 0 | AF37: 0 | AG37: 0 | AH37: 0 | AI37: 0 | AJ37: 0 | AK37: 0 | AL37: 0 | AM37: 0 | AN37: 0 | AO37: 0 | AP37: 0 | AQ37: 0 | AR37: 0 | AS37: 0 | AT37: 0 | AU37: 0 | AV37: 0 | AW37: 0 | AX37: 0 | AY37: 0 | AZ37: 0 | BA37: 0 | BB37: 0 | BC37: 0 | BD37: 0 | BE37: 0 | BF37: 0 | BG37: 0 | BH37: 0 | BI37: 0 | BJ37: 0 | BK37: 0 | BL37: 0 | BM37: 0 | BN37: 0 | BO37: 0 | BP37: 0 | BQ37: =BQ$14 -> 0 | BR37: 0 | BS37: 0 | BT37: 0 | BU37: 0 | BV37: 0 | BW37: 0 | BX37: 0 | BY37: 0 | BZ37: 0 | CA37: 0 | CB37: 0 | CC37: 0 | CD37: 0 | CE37: 0 | CF37: 0 | CG37: 0 | CH37: 0 | CI37: 0 | CJ37: 0 | CK37: 0 | CL37: 0 | CM37: 0 | CN37: 0 | CO37: 0 | CP37: 0 | CQ37: 0 | CR37: 0 | CS37: 0 | CT37: 0 | CU37: 0 | CV37: 0 | CW37: 0 | CX37: 0 | CY37: 0 | CZ37: 0 | DA37: 0 | DB37: 0 | DC37: 0 | DD37: 0 | DE37: 0 | DF37: 0 | DG37: 0 | DH37: 0 | DI37: 0 | DJ37: 0 | DK37: 0 | DL37: 0 | DM37: 0 | DN37: 0 | DO37: 0 | DP37: 0 | DQ37: 0 | DR37: 0 | DS37: 0 | DT37: 0 | DU37: 0 | DV37: 0 | DW37: 0 | DX37: 0 | DY37: 0 | DZ37: 0 | EA37: 0 | EB37: 0 | EC37: =EC$14 -> 0 | ED37: 0 | EE37: 0 | EF37: 0 | EG37: 0 | EH37: 0 | EI37: 0 | EJ37: 0 | EK37: 0 | EL37: 0 | EM37: 0 | EN37: 0 | EO37: 0 | EP37: 0 | EQ37: 0 | ER37: 0 | ES37: 0 | ET37: 0 | EU37: 0 | EV37: 0 | EW37: 0 | EX37: 0 | EY37: 0 | EZ37: 0 | FA37: 0 | FB37: 0 | FC37: 0 | FD37: 0 | FE37: 0 | FF37: 0 | FG37: 0 | FH37: 0 | FI37: 0 | FJ37: 0 | FK37: 0 | FL37: 0 | FM37: 0 | FN37: 0 | FO37: 0 | FP37: 0 | FQ37: 0 | FR37: 0 | FS37: 0 | FT37: 0 | FU37: 0 | FV37: 0 | FW37: 0 | FX37: 0 | FY37: 0 | FZ37: 0 | GA37: 0 | GB37: 0 | GC37: 0 | GD37: 0 | GE37: 0 | GF37: 0 | GG37: 0 | GH37: 0 | GI37: 0 | GJ37: 0
E38: =E$33 -> End of contract year flag | F38: 0 | G38: 0 | H38: 0 | I38: 0 | J38: 0 | K38: 0 | L38: 1 | M38: 0 | N38: 0 | O38: 0 | P38: 1 | Q38: 0 | R38: 0 | S38: 0 | T38: 1 | U38: 0 | V38: 0 | W38: 0 | X38: 1 | Y38: 0 | Z38: 0 | AA38: 0 | AB38: 1 | AC38: 0 | AD38: 0 | AE38: 0 | AF38: 1 | AG38: 0 | AH38: 0 | AI38: 0 | AJ38: 1 | AK38: =AK$33 -> 0 | AL38: 0 | AM38: 0 | AN38: 1 | AO38: 0 | AP38: 0 | AQ38: 0 | AR38: 1 | AS38: 0 | AT38: 0 | AU38: 0 | AV38: 1 | AW38: 0 | AX38: 0 | AY38: 0 | AZ38: 1 | BA38: 0 | BB38: 0 | BC38: 0 | BD38: 1 | BE38: 0 | BF38: 0 | BG38: 0 | BH38: 1 | BI38: 0 | BJ38: 0 | BK38: 0 | BL38: 1 | BM38: 0 | BN38: 0 | BO38: 0 | BP38: 1 | BQ38: =BQ$33 -> 0 | BR38: 0 | BS38: 0 | BT38: 1 | BU38: 0 | BV38: 0 | BW38: 0 | BX38: 1 | BY38: 0 | BZ38: 0 | CA38: 0 | CB38: 1 | CC38: 0 | CD38: 0 | CE38: 0 | CF38: 1 | CG38: 0 | CH38: 0 | CI38: 0 | CJ38: 1 | CK38: 0 | CL38: 0 | CM38: 0 | CN38: 1 | CO38: 0 | CP38: 0 | CQ38: 0 | CR38: 1 | CS38: 0 | CT38: 0 | CU38: 0 | CV38: 1 | CW38: =CW$33 -> 0 | CX38: 0 | CY38: 0 | CZ38: 1 | DA38: 0 | DB38: 0 | DC38: 0 | DD38: 1 | DE38: 0 | DF38: 0 | DG38: 0 | DH38: 1 | DI38: 0 | DJ38: 0 | DK38: 0 | DL38: 1 | DM38: 0 | DN38: 0 | DO38: 0 | DP38: 1 | DQ38: 0 | DR38: 0 | DS38: 0 | DT38: 1 | DU38: 0 | DV38: 0 | DW38: 0 | DX38: 1 | DY38: 0 | DZ38: 0 | EA38: 0 | EB38: 1 | EC38: =EC$33 -> 0 | ED38: 0 | EE38: 0 | EF38: 1 | EG38: 0 | EH38: 0 | EI38: 0 | EJ38: 1 | EK38: 0 | EL38: 0 | EM38: 0 | EN38: 1 | EO38: 0 | EP38: 0 | EQ38: 0 | ER38: 1 | ES38: 0 | ET38: 0 | EU38: 0 | EV38: 1 | EW38: 0 | EX38: 0 | EY38: 0 | EZ38: 1 | FA38: 0 | FB38: 0 | FC38: 0 | FD38: 1 | FE38: 0 | FF38: 0 | FG38: 0 | FH38: 1 | FI38: =FI$33 -> 0 | FJ38: 0 | FK38: 0 | FL38: 1 | FM38: 0 | FN38: 0 | FO38: 0 | FP38: 1 | FQ38: 0 | FR38: 0 | FS38: 0 | FT38: 1 | FU38: 0 | FV38: 0 | FW38: 0 | FX38: 1 | FY38: 0 | FZ38: 0 | GA38: 0 | GB38: 1 | GC38: 0 | GD38: 0 | GE38: 0 | GF38: 1 | GG38: 0 | GH38: 0 | GI38: 0 | GJ38: 1
E39: Contract year applicable to period | G39: date | J39: =IF( J37 = 1, $F35, IF( I38 = 1, EOMONTH(I39, 12), I39)) -> 2020-03-31 | K39: 2020-03-31 | L39: 2020-03-31 | M39: 2021-03-31 | N39: 2021-03-31 | O39: 2021-03-31 | P39: 2021-03-31 | Q39: 2022-03-31 | R39: 2022-03-31 | S39: 2022-03-31 | T39: 2022-03-31 | U39: 2023-03-31 | V39: 2023-03-31 | W39: 2023-03-31 | X39: 2023-03-31 | Y39: 2024-03-31 | Z39: 2024-03-31 | AA39: 2024-03-31 | AB39: 2024-03-31 | AC39: 2025-03-31 | AD39: 2025-03-31 | AE39: 2025-03-31 | AF39: 2025-03-31 | AG39: 2026-03-31 | AH39: 2026-03-31 | AI39: 2026-03-31 | AJ39: 2026-03-31 | AK39: 2027-03-31 | AL39: 2027-03-31 | AM39: 2027-03-31 | AN39: 2027-03-31 | AO39: 2028-03-31 | AP39: =IF( AP37 = 1, $F35, IF( AO38 = 1, EOMONTH(AO39, 12), AO39)) -> 2028-03-31 | AQ39: 2028-03-31 | AR39: 2028-03-31 | AS39: 2029-03-31 | AT39: 2029-03-31 | AU39: 2029-03-31 | AV39: 2029-03-31 | AW39: 2030-03-31 | AX39: 2030-03-31 | AY39: 2030-03-31 | AZ39: 2030-03-31 | BA39: 2031-03-31 | BB39: 2031-03-31 | BC39: 2031-03-31 | BD39: 2031-03-31 | BE39: 2032-03-31 | BF39: 2032-03-31 | BG39: 2032-03-31 | BH39: 2032-03-31 | BI39: 2033-03-31 | BJ39: 2033-03-31 | BK39: 2033-03-31 | BL39: 2033-03-31 | BM39: 2034-03-31 | BN39: 2034-03-31 | BO39: 2034-03-31 | BP39: 2034-03-31 | BQ39: 2035-03-31 | BR39: 2035-03-31 | BS39: 2035-03-31 | BT39: 2035-03-31 | BU39: 2036-03-31 | BV39: =IF( BV37 = 1, $F35, IF( BU38 = 1, EOMONTH(BU39, 12), BU39)) -> 2036-03-31 | BW39: 2036-03-31 | BX39: 2036-03-31 | BY39: 2037-03-31 | BZ39: 2037-03-31 | CA39: 2037-03-31 | CB39: 2037-03-31 | CC39: 2038-03-31 | CD39: 2038-03-31 | CE39: 2038-03-31 | CF39: 2038-03-31 | CG39: 2039-03-31 | CH39: 2039-03-31 | CI39: 2039-03-31 | CJ39: 2039-03-31 | CK39: 2040-03-31 | CL39: 2040-03-31 | CM39: 2040-03-31 | CN39: 2040-03-31 | CO39: 2041-03-31 | CP39: 2041-03-31 | CQ39: 2041-03-31 | CR39: 2041-03-31 | CS39: 2042-03-31 | CT39: 2042-03-31 | CU39: 2042-03-31 | CV39: 2042-03-31 | CW39: 2043-03-31 | CX39: 2043-03-31 | CY39: 2043-03-31 | CZ39: 2043-03-31 | DA39: 2044-03-31 | DB39: =IF( DB37 = 1, $F35, IF( DA38 = 1, EOMONTH(DA39, 12), DA39)) -> 2044-03-31 | DC39: 2044-03-31 | DD39: 2044-03-31 | DE39: 2045-03-31 | DF39: 2045-03-31 | DG39: 2045-03-31 | DH39: 2045-03-31 | DI39: 2046-03-31 | DJ39: 2046-03-31 | DK39: 2046-03-31 | DL39: 2046-03-31 | DM39: 2047-03-31 | DN39: 2047-03-31 | DO39: 2047-03-31 | DP39: 2047-03-31 | DQ39: 2048-03-31 | DR39: 2048-03-31 | DS39: 2048-03-31 | DT39: 2048-03-31 | DU39: 2049-03-31 | DV39: 2049-03-31 | DW39: 2049-03-31 | DX39: 2049-03-31 | DY39: 2050-03-31 | DZ39: 2050-03-31 | EA39: 2050-03-31 | EB39: 2050-03-31 | EC39: 2051-03-31 | ED39: 2051-03-31 | EE39: 2051-03-31 | EF39: 2051-03-31 | EG39: 2052-03-31 | EH39: =IF( EH37 = 1, $F35, IF( EG38 = 1, EOMONTH(EG39, 12), EG39)) -> 2052-03-31 | EI39: 2052-03-31 | EJ39: 2052-03-31 | EK39: 2053-03-31 | EL39: 2053-03-31 | EM39: 2053-03-31 | EN39: 2053-03-31 | EO39: 2054-03-31 | EP39: 2054-03-31 | EQ39: 2054-03-31 | ER39: 2054-03-31 | ES39: 2055-03-31 | ET39: 2055-03-31 | EU39: 2055-03-31 | EV39: 2055-03-31 | EW39: 2056-03-31 | EX39: 2056-03-31 | EY39: 2056-03-31 | EZ39: 2056-03-31 | FA39: 2057-03-31 | FB39: 2057-03-31 | FC39: 2057-03-31 | FD39: 2057-03-31 | FE39: 2058-03-31 | FF39: 2058-03-31 | FG39: 2058-03-31 | FH39: 2058-03-31 | FI39: 2059-03-31 | FJ39: 2059-03-31 | FK39: 2059-03-31 | FL39: 2059-03-31 | FM39: 2060-03-31 | FN39: =IF( FN37 = 1, $F35, IF( FM38 = 1, EOMONTH(FM39, 12), FM39)) -> 2060-03-31 | FO39: 2060-03-31 | FP39: 2060-03-31 | FQ39: 2061-03-31 | FR39: 2061-03-31 | FS39: 2061-03-31 | FT39: 2061-03-31 | FU39: 2062-03-31 | FV39: 2062-03-31 | FW39: 2062-03-31 | FX39: 2062-03-31 | FY39: 2063-03-31 | FZ39: 2063-03-31 | GA39: 2063-03-31 | GB39: 2063-03-31 | GC39: 2064-03-31 | GD39: 2064-03-31 | GE39: 2064-03-31 | GF39: 2064-03-31 | GG39: 2065-03-31 | GH39: =IF( GH37 = 1, $F35, IF( GG38 = 1, EOMONTH(GG39, 12), GG39)) -> 2065-03-31 | GI39: 2065-03-31 | GJ39: 2065-03-31
E41: =E$39 -> Contract year applicable to period | F41: 00:00:00 | G41: date | H41: 00:00:00 | I41: 00:00:00 | J41: 2020-03-31 | K41: 2020-03-31 | L41: 2020-03-31 | M41: 2021-03-31 | N41: 2021-03-31 | O41: 2021-03-31 | P41: 2021-03-31 | Q41: 2022-03-31 | R41: 2022-03-31 | S41: 2022-03-31 | T41: 2022-03-31 | U41: 2023-03-31 | V41: 2023-03-31 | W41: 2023-03-31 | X41: 2023-03-31 | Y41: 2024-03-31 | Z41: 2024-03-31 | AA41: 2024-03-31 | AB41: 2024-03-31 | AC41: 2025-03-31 | AD41: 2025-03-31 | AE41: 2025-03-31 | AF41: 2025-03-31 | AG41: 2026-03-31 | AH41: 2026-03-31 | AI41: 2026-03-31 | AJ41: 2026-03-31 | AK41: =AK$39 -> 2027-03-31 | AL41: 2027-03-31 | AM41: 2027-03-31 | AN41: 2027-03-31 | AO41: 2028-03-31 | AP41: 2028-03-31 | AQ41: 2028-03-31 | AR41: 2028-03-31 | AS41: 2029-03-31 | AT41: 2029-03-31 | AU41: 2029-03-31 | AV41: 2029-03-31 | AW41: 2030-03-31 | AX41: 2030-03-31 | AY41: 2030-03-31 | AZ41: 2030-03-31 | BA41: 2031-03-31 | BB41: 2031-03-31 | BC41: 2031-03-31 | BD41: 2031-03-31 | BE41: 2032-03-31 | BF41: 2032-03-31 | BG41: 2032-03-31 | BH41: 2032-03-31 | BI41: 2033-03-31 | BJ41: 2033-03-31 | BK41: 2033-03-31 | BL41: 2033-03-31 | BM41: 2034-03-31 | BN41: 2034-03-31 | BO41: 2034-03-31 | BP41: 2034-03-31 | BQ41: =BQ$39 -> 2035-03-31 | BR41: 2035-03-31 | BS41: 2035-03-31 | BT41: 2035-03-31 | BU41: 2036-03-31 | BV41: 2036-03-31 | BW41: 2036-03-31 | BX41: 2036-03-31 | BY41: 2037-03-31 | BZ41: 2037-03-31 | CA41: 2037-03-31 | CB41: 2037-03-31 | CC41: 2038-03-31 | CD41: 2038-03-31 | CE41: 2038-03-31 | CF41: 2038-03-31 | CG41: 2039-03-31 | CH41: 2039-03-31 | CI41: 2039-03-31 | CJ41: 2039-03-31 | CK41: 2040-03-31 | CL41: 2040-03-31 | CM41: 2040-03-31 | CN41: 2040-03-31 | CO41: 2041-03-31 | CP41: 2041-03-31 | CQ41: 2041-03-31 | CR41: 2041-03-31 | CS41: 2042-03-31 | CT41: 2042-03-31 | CU41: 2042-03-31 | CV41: 2042-03-31 | CW41: =CW$39 -> 2043-03-31 | CX41: 2043-03-31 | CY41: 2043-03-31 | CZ41: 2043-03-31 | DA41: 2044-03-31 | DB41: 2044-03-31 | DC41: 2044-03-31 | DD41: 2044-03-31 | DE41: 2045-03-31 | DF41: 2045-03-31 | DG41: 2045-03-31 | DH41: 2045-03-31 | DI41: 2046-03-31 | DJ41: 2046-03-31 | DK41: 2046-03-31 | DL41: 2046-03-31 | DM41: 2047-03-31 | DN41: 2047-03-31 | DO41: 2047-03-31 | DP41: 2047-03-31 | DQ41: 2048-03-31 | DR41: 2048-03-31 | DS41: 2048-03-31 | DT41: 2048-03-31 | DU41: 2049-03-31 | DV41: 2049-03-31 | DW41: 2049-03-31 | DX41: 2049-03-31 | DY41: 2050-03-31 | DZ41: 2050-03-31 | EA41: 2050-03-31 | EB41: 2050-03-31 | EC41: =EC$39 -> 2051-03-31 | ED41: 2051-03-31 | EE41: 2051-03-31 | EF41: 2051-03-31 | EG41: 2052-03-31 | EH41: 2052-03-31 | EI41: 2052-03-31 | EJ41: 2052-03-31 | EK41: 2053-03-31 | EL41: 2053-03-31 | EM41: 2053-03-31 | EN41: 2053-03-31 | EO41: 2054-03-31 | EP41: 2054-03-31 | EQ41: 2054-03-31 | ER41: 2054-03-31 | ES41: 2055-03-31 | ET41: 2055-03-31 | EU41: 2055-03-31 | EV41: 2055-03-31 | EW41: 2056-03-31 | EX41: 2056-03-31 | EY41: 2056-03-31 | EZ41: 2056-03-31 | FA41: 2057-03-31 | FB41: 2057-03-31 | FC41: 2057-03-31 | FD41: 2057-03-31 | FE41: 2058-03-31 | FF41: 2058-03-31 | FG41: 2058-03-31 | FH41: 2058-03-31 | FI41: =FI$39 -> 2059-03-31 | FJ41: 2059-03-31 | FK41: 2059-03-31 | FL41: 2059-03-31 | FM41: 2060-03-31 | FN41: 2060-03-31 | FO41: 2060-03-31 | FP41: 2060-03-31 | FQ41: 2061-03-31 | FR41: 2061-03-31 | FS41: 2061-03-31 | FT41: 2061-03-31 | FU41: 2062-03-31 | FV41: 2062-03-31 | FW41: 2062-03-31 | FX41: 2062-03-31 | FY41: 2063-03-31 | FZ41: 2063-03-31 | GA41: 2063-03-31 | GB41: 2063-03-31 | GC41: 2064-03-31 | GD41: 2064-03-31 | GE41: 2064-03-31 | GF41: 2064-03-31 | GG41: 2065-03-31 | GH41: 2065-03-31 | GI41: 2065-03-31 | GJ41: 2065-03-31
E42: Contract year | G42: year # | J42: =YEAR(J41) -> 2020 | K42: =YEAR(K41) -> 2020 | L42: 2020 | M42: 2021 | N42: 2021 | O42: 2021 | P42: 2021 | Q42: 2022 | R42: 2022 | S42: 2022 | T42: 2022 | U42: 2023 | V42: 2023 | W42: 2023 | X42: 2023 | Y42: 2024 | Z42: 2024 | AA42: 2024 | AB42: 2024 | AC42: 2025 | AD42: 2025 | AE42: 2025 | AF42: 2025 | AG42: 2026 | AH42: 2026 | AI42: 2026 | AJ42: 2026 | AK42: 2027 | AL42: 2027 | AM42: 2027 | AN42: 2027 | AO42: 2028 | AP42: 2028 | AQ42: 2028 | AR42: 2028 | AS42: 2029 | AT42: 2029 | AU42: 2029 | AV42: 2029 | AW42: 2030 | AX42: 2030 | AY42: 2030 | AZ42: 2030 | BA42: 2031 | BB42: 2031 | BC42: 2031 | BD42: 2031 | BE42: 2032 | BF42: 2032 | BG42: 2032 | BH42: 2032 | BI42: 2033 | BJ42: 2033 | BK42: 2033 | BL42: 2033 | BM42: 2034 | BN42: 2034 | BO42: 2034 | BP42: 2034 | BQ42: 2035 | BR42: 2035 | BS42: 2035 | BT42: 2035 | BU42: 2036 | BV42: 2036 | BW42: =YEAR(BW41) -> 2036 | BX42: 2036 | BY42: 2037 | BZ42: 2037 | CA42: 2037 | CB42: 2037 | CC42: 2038 | CD42: 2038 | CE42: 2038 | CF42: 2038 | CG42: 2039 | CH42: 2039 | CI42: 2039 | CJ42: 2039 | CK42: 2040 | CL42: 2040 | CM42: 2040 | CN42: 2040 | CO42: 2041 | CP42: 2041 | CQ42: 2041 | CR42: 2041 | CS42: 2042 | CT42: 2042 | CU42: 2042 | CV42: 2042 | CW42: 2043 | CX42: 2043 | CY42: 2043 | CZ42: 2043 | DA42: 2044 | DB42: 2044 | DC42: 2044 | DD42: 2044 | DE42: 2045 | DF42: 2045 | DG42: 2045 | DH42: 2045 | DI42: 2046 | DJ42: 2046 | DK42: 2046 | DL42: 2046 | DM42: 2047 | DN42: 2047 | DO42: 2047 | DP42: 2047 | DQ42: 2048 | DR42: 2048 | DS42: 2048 | DT42: 2048 | DU42: 2049 | DV42: 2049 | DW42: 2049 | DX42: 2049 | DY42: 2050 | DZ42: 2050 | EA42: 2050 | EB42: 2050 | EC42: 2051 | ED42: 2051 | EE42: 2051 | EF42: 2051 | EG42: 2052 | EH42: 2052 | EI42: =YEAR(EI41) -> 2052 | EJ42: 2052 | EK42: 2053 | EL42: 2053 | EM42: 2053 | EN42: 2053 | EO42: 2054 | EP42: 2054 | EQ42: 2054 | ER42: 2054 | ES42: 2055 | ET42: 2055 | EU42: 2055 | EV42: 2055 | EW42: 2056 | EX42: 2056 | EY42: 2056 | EZ42: 2056 | FA42: 2057 | FB42: 2057 | FC42: 2057 | FD42: 2057 | FE42: 2058 | FF42: 2058 | FG42: 2058 | FH42: 2058 | FI42: 2059 | FJ42: 2059 | FK42: 2059 | FL42: 2059 | FM42: 2060 | FN42: 2060 | FO42: 2060 | FP42: 2060 | FQ42: 2061 | FR42: 2061 | FS42: 2061 | FT42: 2061 | FU42: 2062 | FV42: 2062 | FW42: 2062 | FX42: 2062 | FY42: 2063 | FZ42: 2063 | GA42: 2063 | GB42: 2063 | GC42: 2064 | GD42: 2064 | GE42: 2064 | GF42: 2064 | GG42: 2065 | GH42: =YEAR(GH41) -> 2065 | GI42: 2065 | GJ42: 2065
B44: Annual timeline
E45: =InpC!E$14 -> Annual year end date of first operating period | F45: =InpC!F$14 -> 2020-03-31 | G45: =InpC!G$14 -> date
E46: =InpC!E$136 -> Months in year | F46: =InpC!F$136 -> 12 | G46: =InpC!G$136 -> months
E47: =E$14 -> First model column flag | F47: 0 | G47: flag | H47: 1 | I47: 0 | J47: 1 | K47: 0 | L47: 0 | M47: 0 | N47: 0 | O47: 0 | P47: 0 | Q47: 0 | R47: 0 | S47: 0 | T47: 0 | U47: 0 | V47: 0 | W47: 0 | X47: 0 | Y47: 0 | Z47: 0 | AA47: 0 | AB47: 0 | AC47: 0 | AD47: 0 | AE47: 0 | AF47: 0 | AG47: 0 | AH47: 0 | AI47: 0 | AJ47: 0 | AK47: 0 | AL47: 0 | AM47: 0 | AN47: 0 | AO47: 0 | AP47: 0 | AQ47: 0 | AR47: 0 | AS47: 0 | AT47: 0 | AU47: 0 | AV47: 0 | AW47: 0 | AX47: 0 | AY47: 0 | AZ47: 0 | BA47: 0 | BB47: 0 | BC47: 0 | BD47: 0 | BE47: 0 | BF47: 0 | BG47: 0 | BH47: 0 | BI47: 0 | BJ47: 0 | BK47: 0 | BL47: 0 | BM47: 0 | BN47: 0 | BO47: 0 | BP47: 0 | BQ47: =BQ$14 -> 0 | BR47: 0 | BS47: 0 | BT47: 0 | BU47: 0 | BV47: 0 | BW47: 0 | BX47: 0 | BY47: 0 | BZ47: 0 | CA47: 0 | CB47: 0 | CC47: 0 | CD47: 0 | CE47: 0 | CF47: 0 | CG47: 0 | CH47: 0 | CI47: 0 | CJ47: 0 | CK47: 0 | CL47: 0 | CM47: 0 | CN47: 0 | CO47: 0 | CP47: 0 | CQ47: 0 | CR47: 0 | CS47: 0 | CT47: 0 | CU47: 0 | CV47: 0 | CW47: 0 | CX47: 0 | CY47: 0 | CZ47: 0 | DA47: 0 | DB47: 0 | DC47: 0 | DD47: 0 | DE47: 0 | DF47: 0 | DG47: 0 | DH47: 0 | DI47: 0 | DJ47: 0 | DK47: 0 | DL47: 0 | DM47: 0 | DN47: 0 | DO47: 0 | DP47: 0 | DQ47: 0 | DR47: 0 | DS47: 0 | DT47: 0 | DU47: 0 | DV47: 0 | DW47: 0 | DX47: 0 | DY47: 0 | DZ47: 0 | EA47: 0 | EB47: 0 | EC47: =EC$14 -> 0 | ED47: 0 | EE47: 0 | EF47: 0 | EG47: 0 | EH47: 0 | EI47: 0 | EJ47: 0 | EK47: 0 | EL47: 0 | EM47: 0 | EN47: 0 | EO47: 0 | EP47: 0 | EQ47: 0 | ER47: 0 | ES47: 0 | ET47: 0 | EU47: 0 | EV47: 0 | EW47: 0 | EX47: 0 | EY47: 0 | EZ47: 0 | FA47: 0 | FB47: 0 | FC47: 0 | FD47: 0 | FE47: 0 | FF47: 0 | FG47: 0 | FH47: 0 | FI47: 0 | FJ47: 0 | FK47: 0 | FL47: 0 | FM47: 0 | FN47: 0 | FO47: 0 | FP47: 0 | FQ47: 0 | FR47: 0 | FS47: 0 | FT47: 0 | FU47: 0 | FV47: 0 | FW47: 0 | FX47: 0 | FY47: 0 | FZ47: 0 | GA47: 0 | GB47: 0 | GC47: 0 | GD47: 0 | GE47: 0 | GF47: 0 | GG47: 0 | GH47: 0 | GI47: 0 | GJ47: 0
E48: Model period ending - annual | G48: date | J48: =IF(J47 = 1, $F45, EOMONTH(I48, $F46)) -> 2020-03-31 | K48: =IF(K47 = 1, $F45, EOMONTH(J48, $F46)) -> 2021-03-31 | L48: 2022-03-31 | M48: 2023-03-31 | N48: 2024-03-31 | O48: 2025-03-31 | P48: 2026-03-31 | Q48: 2027-03-31 | R48: 2028-03-31 | S48: 2029-03-31 | T48: 2030-03-31 | U48: 2031-03-31 | V48: 2032-03-31 | W48: 2033-03-31 | X48: 2034-03-31 | Y48: 2035-03-31 | Z48: 2036-03-31 | AA48: 2037-03-31 | AB48: 2038-03-31 | AC48: 2039-03-31 | AD48: 2040-03-31 | AE48: 2041-03-31 | AF48: 2042-03-31 | AG48: 2043-03-31 | AH48: 2044-03-31 | AI48: 2045-03-31 | AJ48: 2046-03-31 | AK48: 2047-03-31 | AL48: 2048-03-31 | AM48: 2049-03-31 | AN48: 2050-03-31 | AO48: 2051-03-31 | AP48: =IF(AP47 = 1, $F45, EOMONTH(AO48, $F46)) -> 2052-03-31 | AQ48: 2053-03-31 | AR48: 2054-03-31 | AS48: 2055-03-31 | AT48: 2056-03-31 | AU48: 2057-03-31 | AV48: 2058-03-31 | AW48: 2059-03-31 | AX48: 2060-03-31 | AY48: 2061-03-31 | AZ48: 2062-03-31 | BA48: 2063-03-31 | BB48: 2064-03-31 | BC48: 2065-03-31 | BD48: 2066-03-31 | BE48: 2067-03-31 | BF48: 2068-03-31 | BG48: 2069-03-31 | BH48: 2070-03-31 | BI48: 2071-03-31 | BJ48: 2072-03-31 | BK48: 2073-03-31 | BL48: 2074-03-31 | BM48: 2075-03-31 | BN48: 2076-03-31 | BO48: 2077-03-31 | BP48: 2078-03-31 | BQ48: 2079-03-31 | BR48: 2080-03-31 | BS48: 2081-03-31 | BT48: 2082-03-31 | BU48: 2083-03-31 | BV48: =IF(BV47 = 1, $F45, EOMONTH(BU48, $F46)) -> 2084-03-31 | BW48: 2085-03-31 | BX48: 2086-03-31 | BY48: 2087-03-31 | BZ48: 2088-03-31 | CA48: 2089-03-31 | CB48: 2090-03-31 | CC48: 2091-03-31 | CD48: 2092-03-31 | CE48: 2093-03-31 | CF48: 2094-03-31 | CG48: 2095-03-31 | CH48: 2096-03-31 | CI48: 2097-03-31 | CJ48: 2098-03-31 | CK48: 2099-03-31 | CL48: 2100-03-31 | CM48: 2101-03-31 | CN48: 2102-03-31 | CO48: 2103-03-31 | CP48: 2104-03-31 | CQ48: 2105-03-31 | CR48: 2106-03-31 | CS48: 2107-03-31 | CT48: 2108-03-31 | CU48: 2109-03-31 | CV48: 2110-03-31 | CW48: 2111-03-31 | CX48: 2112-03-31 | CY48: 2113-03-31 | CZ48: 2114-03-31 | DA48: 2115-03-31 | DB48: =IF(DB47 = 1, $F45, EOMONTH(DA48, $F46)) -> 2116-03-31 | DC48: 2117-03-31 | DD48: 2118-03-31 | DE48: 2119-03-31 | DF48: 2120-03-31 | DG48: 2121-03-31 | DH48: 2122-03-31 | DI48: 2123-03-31 | DJ48: 2124-03-31 | DK48: 2125-03-31 | DL48: 2126-03-31 | DM48: 2127-03-31 | DN48: 2128-03-31 | DO48: 2129-03-31 | DP48: 2130-03-31 | DQ48: 2131-03-31 | DR48: 2132-03-31 | DS48: 2133-03-31 | DT48: 2134-03-31 | DU48: 2135-03-31 | DV48: 2136-03-31 | DW48: 2137-03-31 | DX48: 2138-03-31 | DY48: 2139-03-31 | DZ48: 2140-03-31 | EA48: 2141-03-31 | EB48: 2142-03-31 | EC48: 2143-03-31 | ED48: 2144-03-31 | EE48: 2145-03-31 | EF48: 2146-03-31 | EG48: 2147-03-31 | EH48: =IF(EH47 = 1, $F45, EOMONTH(EG48, $F46)) -> 2148-03-31 | EI48: 2149-03-31 | EJ48: 2150-03-31 | EK48: 2151-03-31 | EL48: 2152-03-31 | EM48: 2153-03-31 | EN48: 2154-03-31 | EO48: 2155-03-31 | EP48: 2156-03-31 | EQ48: 2157-03-31 | ER48: 2158-03-31 | ES48: 2159-03-31 | ET48: 2160-03-31 | EU48: 2161-03-31 | EV48: 2162-03-31 | EW48: 2163-03-31 | EX48: 2164-03-31 | EY48: 2165-03-31 | EZ48: 2166-03-31 | FA48: 2167-03-31 | FB48: 2168-03-31 | FC48: 2169-03-31 | FD48: 2170-03-31 | FE48: 2171-03-31 | FF48: 2172-03-31 | FG48: 2173-03-31 | FH48: 2174-03-31 | FI48: 2175-03-31 | FJ48: 2176-03-31 | FK48: 2177-03-31 | FL48: 2178-03-31 | FM48: 2179-03-31 | FN48: =IF(FN47 = 1, $F45, EOMONTH(FM48, $F46)) -> 2180-03-31 | FO48: 2181-03-31 | FP48: 2182-03-31 | FQ48: 2183-03-31 | FR48: 2184-03-31 | FS48: 2185-03-31 | FT48: 2186-03-31 | FU48: 2187-03-31 | FV48: 2188-03-31 | FW48: 2189-03-31 | FX48: 2190-03-31 | FY48: 2191-03-31 | FZ48: 2192-03-31 | GA48: 2193-03-31 | GB48: 2194-03-31 | GC48: 2195-03-31 | GD48: 2196-03-31 | GE48: 2197-03-31 | GF48: 2198-03-31 | GG48: 2199-03-31 | GH48: 2200-03-31 | GI48: 2201-03-31 | GJ48: 2202-03-31
E50: =E$67 -> Timeline label | F50: 0 | G50: label | H50: 0 | I50: 0 | J50: Pre-fcst | K50: Pre-fcst | L50: Fin Close | M50: Operations | N50: Operations | O50: Operations | P50: Operations | Q50: Operations | R50: Operations | S50: Operations | T50: Operations | U50: Operations | V50: Operations | W50: Operations | X50: Operations | Y50: Operations | Z50: Operations | AA50: Operations | AB50: Operations | AC50: Operations | AD50: Operations | AE50: Operations | AF50: Operations | AG50: Operations | AH50: Operations | AI50: Operations | AJ50: Operations | AK50: =AK$67 -> Operations | AL50: Operations | AM50: Operations | AN50: Operations | AO50: Operations | AP50: Operations | AQ50: Operations | AR50: Operations | AS50: Operations | AT50: Operations | AU50: Operations | AV50: Operations | AW50: Operations | AX50: Operations | AY50: Operations | AZ50: Operations | BA50: Operations | BB50: Operations | BC50: Operations | BD50: Operations | BE50: Operations | BF50: Operations | BG50: Operations | BH50: Operations | BI50: Operations | BJ50: Operations | BK50: Operations | BL50: Operations | BM50: Operations | BN50: Operations | BO50: Operations | BP50: Operations | BQ50: =BQ$67 -> Operations | BR50: Operations | BS50: Operations | BT50: Operations | BU50: Operations | BV50: Operations | BW50: Operations | BX50: Operations | BY50: Operations | BZ50: Operations | CA50: Operations | CB50: Operations | CC50: Operations | CD50: Operations | CE50: Operations | CF50: Operations | CG50: Operations | CH50: Operations | CI50: Operations | CJ50: Operations | CK50: Operations | CL50: Operations | CM50: Operations | CN50: Operations | CO50: Operations | CP50: Operations | CQ50: Operations | CR50: Operations | CS50: Operations | CT50: Operations | CU50: Operations | CV50: Operations | CW50: =CW$67 -> Operations | CX50: Operations | CY50: Operations | CZ50: Operations | DA50: Operations | DB50: Operations | DC50: Operations | DD50: Operations | DE50: Operations | DF50: Operations | DG50: Operations | DH50: Operations | DI50: Post ops | DJ50: Post ops | DK50: Post ops | DL50: Post ops | DM50: Post ops | DN50: Post ops | DO50: Post ops | DP50: Post ops | DQ50: Post ops | DR50: Post ops | DS50: Post ops | DT50: Post ops | DU50: Post ops | DV50: Post ops | DW50: Post ops | DX50: Post ops | DY50: Post ops | DZ50: Post ops | EA50: Post ops | EB50: Post ops | EC50: =EC$67 -> Post ops | ED50: Post ops | EE50: Post ops | EF50: Post ops | EG50: Post ops | EH50: Post ops | EI50: Post ops | EJ50: Post ops | EK50: Post ops | EL50: Post ops | EM50: Post ops | EN50: Post ops | EO50: Post ops | EP50: Post ops | EQ50: Post ops | ER50: Post ops | ES50: Post ops | ET50: Post ops | EU50: Post ops | EV50: Post ops | EW50: Post ops | EX50: Post ops | EY50: Post ops | EZ50: Post ops | FA50: Post ops | FB50: Post ops | FC50: Post ops | FD50: Post ops | FE50: Post ops | FF50: Post ops | FG50: Post ops | FH50: Post ops | FI50: =FI$67 -> Post ops | FJ50: Post ops | FK50: Post ops | FL50: Post ops | FM50: Post ops | FN50: Post ops | FO50: Post ops | FP50: Post ops | FQ50: Post ops | FR50: Post ops | FS50: Post ops | FT50: Post ops | FU50: Post ops | FV50: Post ops | FW50: Post ops | FX50: Post ops | FY50: Post ops | FZ50: Post ops | GA50: Post ops | GB50: Post ops | GC50: Post ops | GD50: Post ops | GE50: Post ops | GF50: Post ops | GG50: Post ops | GH50: Post ops | GI50: Post ops | GJ50: Post ops
E51: =E$48 -> Model period ending - annual | F51: 00:00:00 | G51: date | H51: 00:00:00 | I51: 00:00:00 | J51: 2020-03-31 | K51: 2021-03-31 | L51: 2022-03-31 | M51: 2023-03-31 | N51: 2024-03-31 | O51: 2025-03-31 | P51: 2026-03-31 | Q51: 2027-03-31 | R51: 2028-03-31 | S51: 2029-03-31 | T51: 2030-03-31 | U51: 2031-03-31 | V51: 2032-03-31 | W51: 2033-03-31 | X51: 2034-03-31 | Y51: 2035-03-31 | Z51: 2036-03-31 | AA51: 2037-03-31 | AB51: 2038-03-31 | AC51: 2039-03-31 | AD51: 2040-03-31 | AE51: 2041-03-31 | AF51: 2042-03-31 | AG51: 2043-03-31 | AH51: 2044-03-31 | AI51: 2045-03-31 | AJ51: 2046-03-31 | AK51: =AK$48 -> 2047-03-31 | AL51: 2048-03-31 | AM51: 2049-03-31 | AN51: 2050-03-31 | AO51: 2051-03-31 | AP51: 2052-03-31 | AQ51: 2053-03-31 | AR51: 2054-03-31 | AS51: 2055-03-31 | AT51: 2056-03-31 | AU51: 2057-03-31 | AV51: 2058-03-31 | AW51: 2059-03-31 | AX51: 2060-03-31 | AY51: 2061-03-31 | AZ51: 2062-03-31 | BA51: 2063-03-31 | BB51: 2064-03-31 | BC51: 2065-03-31 | BD51: 2066-03-31 | BE51: 2067-03-31 | BF51: 2068-03-31 | BG51: 2069-03-31 | BH51: 2070-03-31 | BI51: 2071-03-31 | BJ51: 2072-03-31 | BK51: 2073-03-31 | BL51: 2074-03-31 | BM51: 2075-03-31 | BN51: 2076-03-31 | BO51: 2077-03-31 | BP51: 2078-03-31 | BQ51: =BQ$48 -> 2079-03-31 | BR51: 2080-03-31 | BS51: 2081-03-31 | BT51: 2082-03-31 | BU51: 2083-03-31 | BV51: 2084-03-31 | BW51: 2085-03-31 | BX51: 2086-03-31 | BY51: 2087-03-31 | BZ51: 2088-03-31 | CA51: 2089-03-31 | CB51: 2090-03-31 | CC51: 2091-03-31 | CD51: 2092-03-31 | CE51: 2093-03-31 | CF51: 2094-03-31 | CG51: 2095-03-31 | CH51: 2096-03-31 | CI51: 2097-03-31 | CJ51: 2098-03-31 | CK51: 2099-03-31 | CL51: 2100-03-31 | CM51: 2101-03-31 | CN51: 2102-03-31 | CO51: 2103-03-31 | CP51: 2104-03-31 | CQ51: 2105-03-31 | CR51: 2106-03-31 | CS51: 2107-03-31 | CT51: 2108-03-31 | CU51: 2109-03-31 | CV51: 2110-03-31 | CW51: =CW$48 -> 2111-03-31 | CX51: 2112-03-31 | CY51: 2113-03-31 | CZ51: 2114-03-31 | DA51: 2115-03-31 | DB51: 2116-03-31 | DC51: 2117-03-31 | DD51: 2118-03-31 | DE51: 2119-03-31 | DF51: 2120-03-31 | DG51: 2121-03-31 | DH51: 2122-03-31 | DI51: 2123-03-31 | DJ51: 2124-03-31 | DK51: 2125-03-31 | DL51: 2126-03-31 | DM51: 2127-03-31 | DN51: 2128-03-31 | DO51: 2129-03-31 | DP51: 2130-03-31 | DQ51: 2131-03-31 | DR51: 2132-03-31 | DS51: 2133-03-31 | DT51: 2134-03-31 | DU51: 2135-03-31 | DV51: 2136-03-31 | DW51: 2137-03-31 | DX51: 2138-03-31 | DY51: 2139-03-31 | DZ51: 2140-03-31 | EA51: 2141-03-31 | EB51: 2142-03-31 | EC51: =EC$48 -> 2143-03-31 | ED51: 2144-03-31 | EE51: 2145-03-31 | EF51: 2146-03-31 | EG51: 2147-03-31 | EH51: 2148-03-31 | EI51: 2149-03-31 | EJ51: 2150-03-31 | EK51: 2151-03-31 | EL51: 2152-03-31 | EM51: 2153-03-31 | EN51: 2154-03-31 | EO51: 2155-03-31 | EP51: 2156-03-31 | EQ51: 2157-03-31 | ER51: 2158-03-31 | ES51: 2159-03-31 | ET51: 2160-03-31 | EU51: 2161-03-31 | EV51: 2162-03-31 | EW51: 2163-03-31 | EX51: 2164-03-31 | EY51: 2165-03-31 | EZ51: 2166-03-31 | FA51: 2167-03-31 | FB51: 2168-03-31 | FC51: 2169-03-31 | FD51: 2170-03-31 | FE51: 2171-03-31 | FF51: 2172-03-31 | FG51: 2173-03-31 | FH51: 2174-03-31 | FI51: =FI$48 -> 2175-03-31 | FJ51: 2176-03-31 | FK51: 2177-03-31 | FL51: 2178-03-31 | FM51: 2179-03-31 | FN51: 2180-03-31 | FO51: 2181-03-31 | FP51: 2182-03-31 | FQ51: 2183-03-31 | FR51: 2184-03-31 | FS51: 2185-03-31 | FT51: 2186-03-31 | FU51: 2187-03-31 | FV51: 2188-03-31 | FW51: 2189-03-31 | FX51: 2190-03-31 | FY51: 2191-03-31 | FZ51: 2192-03-31 | GA51: 2193-03-31 | GB51: 2194-03-31 | GC51: 2195-03-31 | GD51: 2196-03-31 | GE51: 2197-03-31 | GF51: 2198-03-31 | GG51: 2199-03-31 | GH51: 2200-03-31 | GI51: 2201-03-31 | GJ51: 2202-03-31
E52: =E$41 -> Contract year applicable to period | F52: 00:00:00 | G52: date | H52: 00:00:00 | I52: 00:00:00 | J52: 2020-03-31 | K52: 2020-03-31 | L52: 2020-03-31 | M52: 2021-03-31 | N52: 2021-03-31 | O52: 2021-03-31 | P52: 2021-03-31 | Q52: 2022-03-31 | R52: 2022-03-31 | S52: 2022-03-31 | T52: 2022-03-31 | U52: 2023-03-31 | V52: 2023-03-31 | W52: 2023-03-31 | X52: 2023-03-31 | Y52: 2024-03-31 | Z52: 2024-03-31 | AA52: 2024-03-31 | AB52: 2024-03-31 | AC52: 2025-03-31 | AD52: 2025-03-31 | AE52: 2025-03-31 | AF52: 2025-03-31 | AG52: 2026-03-31 | AH52: 2026-03-31 | AI52: 2026-03-31 | AJ52: 2026-03-31 | AK52: =AK$41 -> 2027-03-31 | AL52: 2027-03-31 | AM52: 2027-03-31 | AN52: 2027-03-31 | AO52: 2028-03-31 | AP52: 2028-03-31 | AQ52: 2028-03-31 | AR52: 2028-03-31 | AS52: 2029-03-31 | AT52: 2029-03-31 | AU52: 2029-03-31 | AV52: 2029-03-31 | AW52: 2030-03-31 | AX52: 2030-03-31 | AY52: 2030-03-31 | AZ52: 2030-03-31 | BA52: 2031-03-31 | BB52: 2031-03-31 | BC52: 2031-03-31 | BD52: =BD$41 -> 2031-03-31 | BE52: 2032-03-31 | BF52: 2032-03-31 | BG52: 2032-03-31 | BH52: 2032-03-31 | BI52: 2033-03-31 | BJ52: 2033-03-31 | BK52: 2033-03-31 | BL52: 2033-03-31 | BM52: 2034-03-31 | BN52: 2034-03-31 | BO52: 2034-03-31 | BP52: 2034-03-31 | BQ52: 2035-03-31 | BR52: 2035-03-31 | BS52: 2035-03-31 | BT52: 2035-03-31 | BU52: 2036-03-31 | BV52: 2036-03-31 | BW52: 2036-03-31 | BX52: 2036-03-31 | BY52: 2037-03-31 | BZ52: 2037-03-31 | CA52: 2037-03-31 | CB52: 2037-03-31 | CC52: 2038-03-31 | CD52: 2038-03-31 | CE52: 2038-03-31 | CF52: 2038-03-31 | CG52: 2039-03-31 | CH52: 2039-03-31 | CI52: 2039-03-31 | CJ52: =CJ$41 -> 2039-03-31 | CK52: 2040-03-31 | CL52: 2040-03-31 | CM52: 2040-03-31 | CN52: 2040-03-31 | CO52: 2041-03-31 | CP52: 2041-03-31 | CQ52: 2041-03-31 | CR52: 2041-03-31 | CS52: 2042-03-31 | CT52: 2042-03-31 | CU52: 2042-03-31 | CV52: 2042-03-31 | CW52: 2043-03-31 | CX52: 2043-03-31 | CY52: 2043-03-31 | CZ52: 2043-03-31 | DA52: 2044-03-31 | DB52: 2044-03-31 | DC52: 2044-03-31 | DD52: 2044-03-31 | DE52: 2045-03-31 | DF52: 2045-03-31 | DG52: 2045-03-31 | DH52: 2045-03-31 | DI52: 2046-03-31 | DJ52: 2046-03-31 | DK52: 2046-03-31 | DL52: 2046-03-31 | DM52: 2047-03-31 | DN52: 2047-03-31 | DO52: 2047-03-31 | DP52: =DP$41 -> 2047-03-31 | DQ52: 2048-03-31 | DR52: 2048-03-31 | DS52: 2048-03-31 | DT52: 2048-03-31 | DU52: 2049-03-31 | DV52: 2049-03-31 | DW52: 2049-03-31 | DX52: 2049-03-31 | DY52: 2050-03-31 | DZ52: 2050-03-31 | EA52: 2050-03-31 | EB52: 2050-03-31 | EC52: 2051-03-31 | ED52: 2051-03-31 | EE52: 2051-03-31 | EF52: 2051-03-31 | EG52: 2052-03-31 | EH52: 2052-03-31 | EI52: 2052-03-31 | EJ52: 2052-03-31 | EK52: 2053-03-31 | EL52: 2053-03-31 | EM52: 2053-03-31 | EN52: 2053-03-31 | EO52: 2054-03-31 | EP52: 2054-03-31 | EQ52: 2054-03-31 | ER52: 2054-03-31 | ES52: 2055-03-31 | ET52: 2055-03-31 | EU52: 2055-03-31 | EV52: =EV$41 -> 2055-03-31 | EW52: 2056-03-31 | EX52: 2056-03-31 | EY52: 2056-03-31 | EZ52: 2056-03-31 | FA52: 2057-03-31 | FB52: 2057-03-31 | FC52: 2057-03-31 | FD52: 2057-03-31 | FE52: 2058-03-31 | FF52: 2058-03-31 | FG52: 2058-03-31 | FH52: 2058-03-31 | FI52: 2059-03-31 | FJ52: 2059-03-31 | FK52: 2059-03-31 | FL52: 2059-03-31 | FM52: 2060-03-31 | FN52: 2060-03-31 | FO52: 2060-03-31 | FP52: 2060-03-31 | FQ52: 2061-03-31 | FR52: 2061-03-31 | FS52: 2061-03-31 | FT52: 2061-03-31 | FU52: 2062-03-31 | FV52: 2062-03-31 | FW52: 2062-03-31 | FX52: 2062-03-31 | FY52: 2063-03-31 | FZ52: 2063-03-31 | GA52: 2063-03-31 | GB52: =GB$41 -> 2063-03-31 | GC52: 2064-03-31 | GD52: 2064-03-31 | GE52: 2064-03-31 | GF52: 2064-03-31 | GG52: 2065-03-31 | GH52: 2065-03-31 | GI52: 2065-03-31 | GJ52: 2065-03-31
E53: Timeline label - annual | J53: =IF(ISNA(INDEX($J$50:$IU$50,MATCH(J51,$J$52:$IU$52,0))),"Pre-fcst",INDEX($J$50:$IU$50,MATCH(J51,$J$52:$IU$52,0))) -> Pre-fcst | K53: Operations | L53: Operations | M53: Operations | N53: Operations | O53: Operations | P53: Operations | Q53: Operations | R53: Operations | S53: Operations | T53: Operations | U53: Operations | V53: Operations | W53: Operations | X53: Operations | Y53: Operations | Z53: Operations | AA53: Operations | AB53: Operations | AC53: Operations | AD53: Operations | AE53: Operations | AF53: Operations | AG53: Operations | AH53: Operations | AI53: Operations | AJ53: Post ops | AK53: Post ops | AL53: Post ops | AM53: Post ops | AN53: Post ops | AO53: Post ops | AP53: Post ops | AQ53: Post ops | AR53: Post ops | AS53: Post ops | AT53: Post ops | AU53: Post ops | AV53: Post ops | AW53: Post ops | AX53: Post ops | AY53: Post ops | AZ53: Post ops | BA53: Post ops | BB53: Post ops | BC53: Post ops
B55: Quarterly timeline
E56: =E$14 -> First model column flag | F56: =F$14 -> 0 | G56: flag | H56: 1 | I56: 0 | J56: 1 | K56: 0 | L56: 0 | M56: 0 | N56: 0 | O56: 0 | P56: 0 | Q56: 0 | R56: 0 | S56: 0 | T56: 0 | U56: 0 | V56: 0 | W56: 0 | X56: 0 | Y56: 0 | Z56: 0 | AA56: 0 | AB56: 0 | AC56: 0 | AD56: 0 | AE56: 0 | AF56: 0 | AG56: 0 | AH56: 0 | AI56: 0 | AJ56: 0 | AK56: 0 | AL56: 0 | AM56: 0 | AN56: 0 | AO56: 0 | AP56: 0 | AQ56: 0 | AR56: 0 | AS56: 0 | AT56: 0 | AU56: 0 | AV56: 0 | AW56: 0 | AX56: 0 | AY56: 0 | AZ56: 0 | BA56: 0 | BB56: 0 | BC56: 0 | BD56: 0 | BE56: 0 | BF56: 0 | BG56: 0 | BH56: 0 | BI56: 0 | BJ56: 0 | BK56: 0 | BL56: 0 | BM56: 0 | BN56: 0 | BO56: 0 | BP56: 0 | BQ56: 0 | BR56: =BR$14 -> 0 | BS56: 0 | BT56: 0 | BU56: 0 | BV56: 0 | BW56: 0 | BX56: 0 | BY56: 0 | BZ56: 0 | CA56: 0 | CB56: 0 | CC56: 0 | CD56: 0 | CE56: 0 | CF56: 0 | CG56: 0 | CH56: 0 | CI56: 0 | CJ56: 0 | CK56: 0 | CL56: 0 | CM56: 0 | CN56: 0 | CO56: 0 | CP56: 0 | CQ56: 0 | CR56: 0 | CS56: 0 | CT56: 0 | CU56: 0 | CV56: 0 | CW56: 0 | CX56: 0 | CY56: 0 | CZ56: 0 | DA56: 0 | DB56: 0 | DC56: 0 | DD56: 0 | DE56: 0 | DF56: 0 | DG56: 0 | DH56: 0 | DI56: 0 | DJ56: 0 | DK56: 0 | DL56: 0 | DM56: 0 | DN56: 0 | DO56: 0 | DP56: 0 | DQ56: 0 | DR56: 0 | DS56: 0 | DT56: 0 | DU56: 0 | DV56: 0 | DW56: 0 | DX56: 0 | DY56: 0 | DZ56: 0 | EA56: 0 | EB56: 0 | EC56: 0 | ED56: =ED$14 -> 0 | EE56: 0 | EF56: 0 | EG56: 0 | EH56: 0 | EI56: 0 | EJ56: 0 | EK56: 0 | EL56: 0 | EM56: 0 | EN56: 0 | EO56: 0 | EP56: 0 | EQ56: 0 | ER56: 0 | ES56: 0 | ET56: 0 | EU56: 0 | EV56: 0 | EW56: 0 | EX56: 0 | EY56: 0 | EZ56: 0 | FA56: 0 | FB56: 0 | FC56: 0 | FD56: 0 | FE56: 0 | FF56: 0 | FG56: 0 | FH56: 0 | FI56: 0 | FJ56: 0 | FK56: 0 | FL56: 0 | FM56: 0 | FN56: 0 | FO56: 0 | FP56: 0 | FQ56: 0 | FR56: 0 | FS56: 0 | FT56: 0 | FU56: 0 | FV56: 0 | FW56: 0 | FX56: 0 | FY56: 0 | FZ56: 0 | GA56: 0 | GB56: 0 | GC56: 0 | GD56: 0 | GE56: 0 | GF56: 0 | GG56: 0 | GH56: 0 | GI56: 0 | GJ56: 0
E57: =E$76 -> Financial close date flag | F57: =F$76 -> 0 | G57: flag | H57: 1 | I57: 0 | J57: 0 | K57: 0 | L57: 1 | M57: 0 | N57: 0 | O57: 0 | P57: 0 | Q57: 0 | R57: 0 | S57: 0 | T57: 0 | U57: 0 | V57: 0 | W57: 0 | X57: 0 | Y57: 0 | Z57: 0 | AA57: 0 | AB57: 0 | AC57: 0 | AD57: 0 | AE57: 0 | AF57: 0 | AG57: 0 | AH57: 0 | AI57: 0 | AJ57: 0 | AK57: 0 | AL57: 0 | AM57: 0 | AN57: 0 | AO57: 0 | AP57: 0 | AQ57: 0 | AR57: 0 | AS57: 0 | AT57: 0 | AU57: 0 | AV57: 0 | AW57: 0 | AX57: 0 | AY57: 0 | AZ57: 0 | BA57: 0 | BB57: 0 | BC57: 0 | BD57: 0 | BE57: 0 | BF57: 0 | BG57: 0 | BH57: 0 | BI57: 0 | BJ57: 0 | BK57: 0 | BL57: 0 | BM57: 0 | BN57: 0 | BO57: 0 | BP57: 0 | BQ57: 0 | BR57: =BR$76 -> 0 | BS57: 0 | BT57: 0 | BU57: 0 | BV57: 0 | BW57: 0 | BX57: 0 | BY57: 0 | BZ57: 0 | CA57: 0 | CB57: 0 | CC57: 0 | CD57: 0 | CE57: 0 | CF57: 0 | CG57: 0 | CH57: 0 | CI57: 0 | CJ57: 0 | CK57: 0 | CL57: 0 | CM57: 0 | CN57: 0 | CO57: 0 | CP57: 0 | CQ57: 0 | CR57: 0 | CS57: 0 | CT57: 0 | CU57: 0 | CV57: 0 | CW57: 0 | CX57: 0 | CY57: 0 | CZ57: 0 | DA57: 0 | DB57: 0 | DC57: 0 | DD57: 0 | DE57: 0 | DF57: 0 | DG57: 0 | DH57: 0 | DI57: 0 | DJ57: 0 | DK57: 0 | DL57: 0 | DM57: 0 | DN57: 0 | DO57: 0 | DP57: 0 | DQ57: 0 | DR57: 0 | DS57: 0 | DT57: 0 | DU57: 0 | DV57: 0 | DW57: 0 | DX57: 0 | DY57: 0 | DZ57: 0 | EA57: 0 | EB57: 0 | EC57: 0 | ED57: =ED$76 -> 0 | EE57: 0 | EF57: 0 | EG57: 0 | EH57: 0 | EI57: 0 | EJ57: 0 | EK57: 0 | EL57: 0 | EM57: 0 | EN57: 0 | EO57: 0 | EP57: 0 | EQ57: 0 | ER57: 0 | ES57: 0 | ET57: 0 | EU57: 0 | EV57: 0 | EW57: 0 | EX57: 0 | EY57: 0 | EZ57: 0 | FA57: 0 | FB57: 0 | FC57: 0 | FD57: 0 | FE57: 0 | FF57: 0 | FG57: 0 | FH57: 0 | FI57: 0 | FJ57: =FJ$76 -> 0 | FK57: 0 | FL57: 0 | FM57: 0 | FN57: 0 | FO57: 0 | FP57: 0 | FQ57: 0 | FR57: 0 | FS57: 0 | FT57: 0 | FU57: 0 | FV57: 0 | FW57: 0 | FX57: 0 | FY57: 0 | FZ57: 0 | GA57: 0 | GB57: 0 | GC57: 0 | GD57: 0 | GE57: 0 | GF57: 0 | GG57: 0 | GH57: 0 | GI57: 0 | GJ57: 0
E58: =E$80 -> First operating period flag | F58: 0 | G58: flag | H58: 1 | I58: 0 | J58: 0 | K58: 0 | L58: 0 | M58: 1 | N58: 0 | O58: 0 | P58: 0 | Q58: 0 | R58: 0 | S58: 0 | T58: 0 | U58: 0 | V58: 0 | W58: 0 | X58: 0 | Y58: 0 | Z58: 0 | AA58: 0 | AB58: 0 | AC58: 0 | AD58: 0 | AE58: 0 | AF58: 0 | AG58: 0 | AH58: 0 | AI58: 0 | AJ58: 0 | AK58: =AK$80 -> 0 | AL58: 0 | AM58: 0 | AN58: 0 | AO58: 0 | AP58: 0 | AQ58: 0 | AR58: 0 | AS58: 0 | AT58: 0 | AU58: 0 | AV58: 0 | AW58: 0 | AX58: 0 | AY58: 0 | AZ58: 0 | BA58: 0 | BB58: 0 | BC58: 0 | BD58: 0 | BE58: 0 | BF58: 0 | BG58: 0 | BH58: 0 | BI58: 0 | BJ58: 0 | BK58: 0 | BL58: 0 | BM58: 0 | BN58: 0 | BO58: 0 | BP58: 0 | BQ58: =BQ$80 -> 0 | BR58: 0 | BS58: 0 | BT58: 0 | BU58: 0 | BV58: 0 | BW58: 0 | BX58: 0 | BY58: 0 | BZ58: 0 | CA58: 0 | CB58: 0 | CC58: 0 | CD58: 0 | CE58: 0 | CF58: 0 | CG58: 0 | CH58: 0 | CI58: 0 | CJ58: 0 | CK58: 0 | CL58: 0 | CM58: 0 | CN58: 0 | CO58: 0 | CP58: 0 | CQ58: 0 | CR58: 0 | CS58: 0 | CT58: 0 | CU58: 0 | CV58: 0 | CW58: =CW$80 -> 0 | CX58: 0 | CY58: 0 | CZ58: 0 | DA58: 0 | DB58: 0 | DC58: 0 | DD58: 0 | DE58: 0 | DF58: 0 | DG58: 0 | DH58: 0 | DI58: 0 | DJ58: 0 | DK58: 0 | DL58: 0 | DM58: 0 | DN58: 0 | DO58: 0 | DP58: 0 | DQ58: 0 | DR58: 0 | DS58: 0 | DT58: 0 | DU58: 0 | DV58: 0 | DW58: 0 | DX58: 0 | DY58: 0 | DZ58: 0 | EA58: 0 | EB58: 0 | EC58: =EC$80 -> 0 | ED58: 0 | EE58: 0 | EF58: 0 | EG58: 0 | EH58: 0 | EI58: 0 | EJ58: 0 | EK58: 0 | EL58: 0 | EM58: 0 | EN58: 0 | EO58: 0 | EP58: 0 | EQ58: 0 | ER58: 0 | ES58: 0 | ET58: 0 | EU58: 0 | EV58: 0 | EW58: 0 | EX58: 0 | EY58: 0 | EZ58: 0 | FA58: 0 | FB58: 0 | FC58: 0 | FD58: 0 | FE58: 0 | FF58: 0 | FG58: 0 | FH58: 0 | FI58: =FI$80 -> 0 | FJ58: 0 | FK58: 0 | FL58: 0 | FM58: 0 | FN58: 0 | FO58: 0 | FP58: 0 | FQ58: 0 | FR58: 0 | FS58: 0 | FT58: 0 | FU58: 0 | FV58: 0 | FW58: 0 | FX58: 0 | FY58: 0 | FZ58: 0 | GA58: 0 | GB58: 0 | GC58: 0 | GD58: 0 | GE58: 0 | GF58: 0 | GG58: 0 | GH58: 0 | GI58: 0 | GJ58: 0
E59: =E$101 -> First post operating period flag | F59: 0 | G59: 0 | H59: 0 | I59: 0 | J59: 0 | K59: 0 | L59: 0 | M59: 0 | N59: 0 | O59: 0 | P59: 0 | Q59: 0 | R59: 0 | S59: 0 | T59: 0 | U59: 0 | V59: 0 | W59: 0 | X59: 0 | Y59: 0 | Z59: 0 | AA59: 0 | AB59: 0 | AC59: 0 | AD59: 0 | AE59: 0 | AF59: 0 | AG59: 0 | AH59: 0 | AI59: 0 | AJ59: 0 | AK59: =AK$101 -> 0 | AL59: 0 | AM59: 0 | AN59: 0 | AO59: 0 | AP59: 0 | AQ59: 0 | AR59: 0 | AS59: 0 | AT59: 0 | AU59: 0 | AV59: 0 | AW59: 0 | AX59: 0 | AY59: 0 | AZ59: 0 | BA59: 0 | BB59: 0 | BC59: 0 | BD59: 0 | BE59: 0 | BF59: 0 | BG59: 0 | BH59: 0 | BI59: 0 | BJ59: 0 | BK59: 0 | BL59: 0 | BM59: 0 | BN59: 0 | BO59: 0 | BP59: 0 | BQ59: =BQ$101 -> 0 | BR59: 0 | BS59: 0 | BT59: 0 | BU59: 0 | BV59: 0 | BW59: 0 | BX59: 0 | BY59: 0 | BZ59: 0 | CA59: 0 | CB59: 0 | CC59: 0 | CD59: 0 | CE59: 0 | CF59: 0 | CG59: 0 | CH59: 0 | CI59: 0 | CJ59: 0 | CK59: 0 | CL59: 0 | CM59: 0 | CN59: 0 | CO59: 0 | CP59: 0 | CQ59: 0 | CR59: 0 | CS59: 0 | CT59: 0 | CU59: 0 | CV59: 0 | CW59: =CW$101 -> 0 | CX59: 0 | CY59: 0 | CZ59: 0 | DA59: 0 | DB59: 0 | DC59: 0 | DD59: 0 | DE59: 0 | DF59: 0 | DG59: 0 | DH59: 0 | DI59: 1 | DJ59: 0 | DK59: 0 | DL59: 0 | DM59: 0 | DN59: 0 | DO59: 0 | DP59: 0 | DQ59: 0 | DR59: 0 | DS59: 0 | DT59: 0 | DU59: 0 | DV59: 0 | DW59: 0 | DX59: 0 | DY59: 0 | DZ59: 0 | EA59: 0 | EB59: 0 | EC59: =EC$101 -> 0 | ED59: 0 | EE59: 0 | EF59: 0 | EG59: 0 | EH59: 0 | EI59: 0 | EJ59: 0 | EK59: 0 | EL59: 0 | EM59: 0 | EN59: 0 | EO59: 0 | EP59: 0 | EQ59: 0 | ER59: 0 | ES59: 0 | ET59: 0 | EU59: 0 | EV59: 0 | EW59: 0 | EX59: 0 | EY59: 0 | EZ59: 0 | FA59: 0 | FB59: 0 | FC59: 0 | FD59: 0 | FE59: 0 | FF59: 0 | FG59: 0 | FH59: 0 | FI59: =FI$101 -> 0 | FJ59: 0 | FK59: 0 | FL59: 0 | FM59: 0 | FN59: 0 | FO59: 0 | FP59: 0 | FQ59: 0 | FR59: 0 | FS59: 0 | FT59: 0 | FU59: 0 | FV59: 0 | FW59: 0 | FX59: 0 | FY59: 0 | FZ59: 0 | GA59: 0 | GB59: 0 | GC59: 0 | GD59: 0 | GE59: 0 | GF59: 0 | GG59: 0 | GH59: 0 | GI59: 0 | GJ59: 0
E60: Timeline label counter | G60: counter | J60: =I60 + MAX(J56:J59) -> 1 | K60: 1 | L60: 2 | M60: 3 | N60: 3 | O60: 3 | P60: 3 | Q60: 3 | R60: 3 | S60: 3 | T60: 3 | U60: 3 | V60: 3 | W60: 3 | X60: 3 | Y60: 3 | Z60: 3 | AA60: 3 | AB60: 3 | AC60: 3 | AD60: 3 | AE60: 3 | AF60: 3 | AG60: 3 | AH60: 3 | AI60: 3 | AJ60: 3 | AK60: 3 | AL60: 3 | AM60: 3 | AN60: 3 | AO60: 3 | AP60: =AO60 + MAX(AP56:AP59) -> 3 | AQ60: 3 | AR60: 3 | AS60: 3 | AT60: 3 | AU60: 3 | AV60: 3 | AW60: 3 | AX60: 3 | AY60: 3 | AZ60: 3 | BA60: 3 | BB60: 3 | BC60: 3 | BD60: 3 | BE60: 3 | BF60: 3 | BG60: 3 | BH60: 3 | BI60: 3 | BJ60: 3 | BK60: 3 | BL60: 3 | BM60: 3 | BN60: 3 | BO60: 3 | BP60: 3 | BQ60: 3 | BR60: 3 | BS60: 3 | BT60: 3 | BU60: 3 | BV60: =BU60 + MAX(BV56:BV59) -> 3 | BW60: 3 | BX60: 3 | BY60: 3 | BZ60: 3 | CA60: 3 | CB60: 3 | CC60: 3 | CD60: 3 | CE60: 3 | CF60: 3 | CG60: 3 | CH60: 3 | CI60: 3 | CJ60: 3 | CK60: 3 | CL60: 3 | CM60: 3 | CN60: 3 | CO60: 3 | CP60: 3 | CQ60: 3 | CR60: 3 | CS60: 3 | CT60: 3 | CU60: 3 | CV60: 3 | CW60: 3 | CX60: 3 | CY60: 3 | CZ60: 3 | DA60: 3 | DB60: =DA60 + MAX(DB56:DB59) -> 3 | DC60: 3 | DD60: 3 | DE60: 3 | DF60: 3 | DG60: 3 | DH60: 3 | DI60: 4 | DJ60: 4 | DK60: 4 | DL60: 4 | DM60: 4 | DN60: 4 | DO60: 4 | DP60: 4 | DQ60: 4 | DR60: 4 | DS60: 4 | DT60: 4 | DU60: 4 | DV60: 4 | DW60: 4 | DX60: 4 | DY60: 4 | DZ60: 4 | EA60: 4 | EB60: 4 | EC60: 4 | ED60: 4 | EE60: 4 | EF60: 4 | EG60: 4 | EH60: =EG60 + MAX(EH56:EH59) -> 4 | EI60: 4 | EJ60: 4 | EK60: 4 | EL60: 4 | EM60: 4 | EN60: 4 | EO60: 4 | EP60: 4 | EQ60: 4 | ER60: 4 | ES60: 4 | ET60: 4 | EU60: 4 | EV60: 4 | EW60: 4 | EX60: 4 | EY60: 4 | EZ60: 4 | FA60: 4 | FB60: 4 | FC60: 4 | FD60: 4 | FE60: 4 | FF60: 4 | FG60: 4 | FH60: 4 | FI60: 4 | FJ60: 4 | FK60: 4 | FL60: 4 | FM60: 4 | FN60: =FM60 + MAX(FN56:FN59) -> 4 | FO60: 4 | FP60: 4 | FQ60: 4 | FR60: 4 | FS60: 4 | FT60: 4 | FU60: 4 | FV60: 4 | FW60: 4 | FX60: 4 | FY60: 4 | FZ60: 4 | GA60: 4 | GB60: 4 | GC60: 4 | GD60: 4 | GE60: 4 | GF60: 4 | GG60: 4 | GH60: 4 | GI60: 4 | GJ60: 4
E62: =InpC!E$146 -> Pre-forecast period | F62: =InpC!F$146 -> Pre-fcst | G62: =InpC!G$146 -> label
E63: =InpC!E$147 -> Financial Close | F63: =InpC!F$147 -> Fin Close | G63: =InpC!G$147 -> label
E64: =InpC!E$148 -> Operations | F64: =InpC!F$148 -> Operations | G64: =InpC!G$148 -> label
E65: =InpC!E$149 -> Post ops | F65: =InpC!F$149 -> Post ops | G65: =InpC!G$149 -> label
E66: =E$60 -> Timeline label counter | F66: 0 | G66: counter | H66: 0 | I66: 0 | J66: 1 | K66: 1 | L66: 2 | M66: 3 | N66: 3 | O66: 3 | P66: 3 | Q66: 3 | R66: 3 | S66: 3 | T66: 3 | U66: 3 | V66: 3 | W66: 3 | X66: 3 | Y66: 3 | Z66: 3 | AA66: 3 | AB66: 3 | AC66: 3 | AD66: 3 | AE66: 3 | AF66: 3 | AG66: 3 | AH66: 3 | AI66: 3 | AJ66: 3 | AK66: =AK$60 -> 3 | AL66: 3 | AM66: 3 | AN66: 3 | AO66: 3 | AP66: 3 | AQ66: 3 | AR66: 3 | AS66: 3 | AT66: 3 | AU66: 3 | AV66: 3 | AW66: 3 | AX66: 3 | AY66: 3 | AZ66: 3 | BA66: 3 | BB66: 3 | BC66: 3 | BD66: 3 | BE66: 3 | BF66: 3 | BG66: 3 | BH66: 3 | BI66: 3 | BJ66: 3 | BK66: 3 | BL66: 3 | BM66: 3 | BN66: 3 | BO66: 3 | BP66: 3 | BQ66: =BQ$60 -> 3 | BR66: 3 | BS66: 3 | BT66: 3 | BU66: 3 | BV66: 3 | BW66: 3 | BX66: 3 | BY66: 3 | BZ66: 3 | CA66: 3 | CB66: 3 | CC66: 3 | CD66: 3 | CE66: 3 | CF66: 3 | CG66: 3 | CH66: 3 | CI66: 3 | CJ66: 3 | CK66: 3 | CL66: 3 | CM66: 3 | CN66: 3 | CO66: 3 | CP66: 3 | CQ66: 3 | CR66: 3 | CS66: 3 | CT66: 3 | CU66: 3 | CV66: 3 | CW66: =CW$60 -> 3 | CX66: 3 | CY66: 3 | CZ66: 3 | DA66: 3 | DB66: 3 | DC66: 3 | DD66: 3 | DE66: 3 | DF66: 3 | DG66: 3 | DH66: 3 | DI66: 4 | DJ66: 4 | DK66: 4 | DL66: 4 | DM66: 4 | DN66: 4 | DO66: 4 | DP66: 4 | DQ66: 4 | DR66: 4 | DS66: 4 | DT66: 4 | DU66: 4 | DV66: 4 | DW66: 4 | DX66: 4 | DY66: 4 | DZ66: 4 | EA66: 4 | EB66: 4 | EC66: =EC$60 -> 4 | ED66: 4 | EE66: 4 | EF66: 4 | EG66: 4 | EH66: 4 | EI66: 4 | EJ66: 4 | EK66: 4 | EL66: 4 | EM66: 4 | EN66: 4 | EO66: 4 | EP66: 4 | EQ66: 4 | ER66: 4 | ES66: 4 | ET66: 4 | EU66: 4 | EV66: 4 | EW66: 4 | EX66: 4 | EY66: 4 | EZ66: 4 | FA66: 4 | FB66: 4 | FC66: 4 | FD66: 4 | FE66: 4 | FF66: 4 | FG66: 4 | FH66: 4 | FI66: =FI$60 -> 4 | FJ66: 4 | FK66: 4 | FL66: 4 | FM66: 4 | FN66: 4 | FO66: 4 | FP66: 4 | FQ66: 4 | FR66: 4 | FS66: 4 | FT66: 4 | FU66: 4 | FV66: 4 | FW66: 4 | FX66: 4 | FY66: 4 | FZ66: 4 | GA66: 4 | GB66: 4 | GC66: 4 | GD66: 4 | GE66: 4 | GF66: 4 | GG66: 4 | GH66: 4 | GI66: 4 | GJ66: 4
E67: Timeline label | G67: label | J67: =INDEX($F62:$F65, J66) -> Pre-fcst | K67: Pre-fcst | L67: Fin Close | M67: Operations | N67: Operations | O67: Operations | P67: Operations | Q67: Operations | R67: Operations | S67: Operations | T67: Operations | U67: Operations | V67: Operations | W67: Operations | X67: Operations | Y67: Operations | Z67: Operations | AA67: Operations | AB67: Operations | AC67: Operations | AD67: Operations | AE67: Operations | AF67: Operations | AG67: Operations | AH67: Operations | AI67: Operations | AJ67: Operations | AK67: Operations | AL67: Operations | AM67: Operations | AN67: Operations | AO67: Operations | AP67: =INDEX($F62:$F65, AP66) -> Operations | AQ67: Operations | AR67: Operations | AS67: Operations | AT67: Operations | AU67: Operations | AV67: Operations | AW67: Operations | AX67: Operations | AY67: Operations | AZ67: Operations | BA67: Operations | BB67: Operations | BC67: Operations | BD67: Operations | BE67: Operations | BF67: Operations | BG67: Operations | BH67: Operations | BI67: Operations | BJ67: Operations | BK67: Operations | BL67: Operations | BM67: Operations | BN67: Operations | BO67: Operations | BP67: Operations | BQ67: Operations | BR67: Operations | BS67: Operations | BT67: Operations | BU67: Operations | BV67: =INDEX($F62:$F65, BV66) -> Operations | BW67: Operations | BX67: Operations | BY67: Operations | BZ67: Operations | CA67: Operations | CB67: Operations | CC67: Operations | CD67: Operations | CE67: Operations | CF67: Operations | CG67: Operations | CH67: Operations | CI67: Operations | CJ67: Operations | CK67: Operations | CL67: Operations | CM67: Operations | CN67: Operations | CO67: Operations | CP67: Operations | CQ67: Operations | CR67: Operations | CS67: Operations | CT67: Operations | CU67: Operations | CV67: Operations | CW67: Operations | CX67: Operations | CY67: Operations | CZ67: Operations | DA67: Operations | DB67: =INDEX($F62:$F65, DB66) -> Operations | DC67: Operations | DD67: Operations | DE67: Operations | DF67: Operations | DG67: Operations | DH67: Operations | DI67: Post ops | DJ67: Post ops | DK67: Post ops | DL67: Post ops | DM67: Post ops | DN67: Post ops | DO67: Post ops | DP67: Post ops | DQ67: Post ops | DR67: Post ops | DS67: Post ops | DT67: Post ops | DU67: Post ops | DV67: Post ops | DW67: Post ops | DX67: Post ops | DY67: Post ops | DZ67: Post ops | EA67: Post ops | EB67: Post ops | EC67: Post ops | ED67: Post ops | EE67: Post ops | EF67: Post ops | EG67: Post ops | EH67: =INDEX($F62:$F65, EH66) -> Post ops | EI67: Post ops | EJ67: Post ops | EK67: Post ops | EL67: Post ops | EM67: Post ops | EN67: Post ops | EO67: Post ops | EP67: Post ops | EQ67: Post ops | ER67: Post ops | ES67: Post ops | ET67: Post ops | EU67: Post ops | EV67: Post ops | EW67: Post ops | EX67: Post ops | EY67: Post ops | EZ67: Post ops | FA67: Post ops | FB67: Post ops | FC67: Post ops | FD67: Post ops | FE67: Post ops | FF67: Post ops | FG67: Post ops | FH67: Post ops | FI67: Post ops | FJ67: Post ops | FK67: Post ops | FL67: Post ops | FM67: Post ops | FN67: =INDEX($F62:$F65, FN66) -> Post ops | FO67: Post ops | FP67: Post ops | FQ67: Post ops | FR67: Post ops | FS67: Post ops | FT67: Post ops | FU67: Post ops | FV67: Post ops | FW67: Post ops | FX67: Post ops | FY67: Post ops | FZ67: Post ops | GA67: Post ops | GB67: Post ops | GC67: Post ops | GD67: Post ops | GE67: Post ops | GF67: Post ops | GG67: Post ops | GH67: Post ops | GI67: Post ops | GJ67: Post ops
A71: FLAGS
B73: Financial close date flag
E74: =InpC!E$19 -> Acquisition date | F74: =InpC!F$19 -> 2021-03-31 | G74: =InpC!G$19 -> date
E75: =E$25 -> Model period ending | F75: 00:00:00 | G75: date | H75: 00:00:00 | I75: 00:00:00 | J75: 2020-09-30 | K75: 2020-12-31 | L75: 2021-03-31 | M75: 2021-06-30 | N75: 2021-09-30 | O75: 2021-12-31 | P75: 2022-03-31 | Q75: 2022-06-30 | R75: 2022-09-30 | S75: 2022-12-31 | T75: 2023-03-31 | U75: 2023-06-30 | V75: 2023-09-30 | W75: 2023-12-31 | X75: 2024-03-31 | Y75: 2024-06-30 | Z75: 2024-09-30 | AA75: 2024-12-31 | AB75: 2025-03-31 | AC75: 2025-06-30 | AD75: 2025-09-30 | AE75: 2025-12-31 | AF75: 2026-03-31 | AG75: 2026-06-30 | AH75: 2026-09-30 | AI75: 2026-12-31 | AJ75: 2027-03-31 | AK75: 2027-06-30 | AL75: 2027-09-30 | AM75: 2027-12-31 | AN75: 2028-03-31 | AO75: 2028-06-30 | AP75: 2028-09-30 | AQ75: 2028-12-31 | AR75: 2029-03-31 | AS75: 2029-06-30 | AT75: 2029-09-30 | AU75: 2029-12-31 | AV75: 2030-03-31 | AW75: 2030-06-30 | AX75: 2030-09-30 | AY75: 2030-12-31 | AZ75: 2031-03-31 | BA75: 2031-06-30 | BB75: 2031-09-30 | BC75: 2031-12-31 | BD75: 2032-03-31 | BE75: 2032-06-30 | BF75: 2032-09-30 | BG75: 2032-12-31 | BH75: 2033-03-31 | BI75: 2033-06-30 | BJ75: 2033-09-30 | BK75: 2033-12-31 | BL75: 2034-03-31 | BM75: 2034-06-30 | BN75: 2034-09-30 | BO75: 2034-12-31 | BP75: 2035-03-31 | BQ75: =BQ$25 -> 2035-06-30 | BR75: 2035-09-30 | BS75: 2035-12-31 | BT75: 2036-03-31 | BU75: 2036-06-30 | BV75: 2036-09-30 | BW75: 2036-12-31 | BX75: 2037-03-31 | BY75: 2037-06-30 | BZ75: 2037-09-30 | CA75: 2037-12-31 | CB75: 2038-03-31 | CC75: 2038-06-30 | CD75: 2038-09-30 | CE75: 2038-12-31 | CF75: 2039-03-31 | CG75: 2039-06-30 | CH75: 2039-09-30 | CI75: 2039-12-31 | CJ75: 2040-03-31 | CK75: 2040-06-30 | CL75: 2040-09-30 | CM75: 2040-12-31 | CN75: 2041-03-31 | CO75: 2041-06-30 | CP75: 2041-09-30 | CQ75: 2041-12-31 | CR75: 2042-03-31 | CS75: 2042-06-30 | CT75: 2042-09-30 | CU75: 2042-12-31 | CV75: 2043-03-31 | CW75: 2043-06-30 | CX75: 2043-09-30 | CY75: 2043-12-31 | CZ75: 2044-03-31 | DA75: 2044-06-30 | DB75: 2044-09-30 | DC75: 2044-12-31 | DD75: 2045-03-31 | DE75: 2045-06-30 | DF75: 2045-09-30 | DG75: 2045-12-31 | DH75: 2046-03-31 | DI75: 2046-06-30 | DJ75: 2046-09-30 | DK75: 2046-12-31 | DL75: 2047-03-31 | DM75: 2047-06-30 | DN75: 2047-09-30 | DO75: 2047-12-31 | DP75: 2048-03-31 | DQ75: 2048-06-30 | DR75: 2048-09-30 | DS75: 2048-12-31 | DT75: 2049-03-31 | DU75: 2049-06-30 | DV75: 2049-09-30 | DW75: 2049-12-31 | DX75: 2050-03-31 | DY75: 2050-06-30 | DZ75: 2050-09-30 | EA75: 2050-12-31 | EB75: 2051-03-31 | EC75: =EC$25 -> 2051-06-30 | ED75: 2051-09-30 | EE75: 2051-12-31 | EF75: 2052-03-31 | EG75: 2052-06-30 | EH75: 2052-09-30 | EI75: 2052-12-31 | EJ75: 2053-03-31 | EK75: 2053-06-30 | EL75: 2053-09-30 | EM75: 2053-12-31 | EN75: 2054-03-31 | EO75: 2054-06-30 | EP75: 2054-09-30 | EQ75: 2054-12-31 | ER75: 2055-03-31 | ES75: 2055-06-30 | ET75: 2055-09-30 | EU75: 2055-12-31 | EV75: 2056-03-31 | EW75: 2056-06-30 | EX75: 2056-09-30 | EY75: 2056-12-31 | EZ75: 2057-03-31 | FA75: 2057-06-30 | FB75: 2057-09-30 | FC75: 2057-12-31 | FD75: 2058-03-31 | FE75: 2058-06-30 | FF75: 2058-09-30 | FG75: 2058-12-31 | FH75: 2059-03-31 | FI75: =FI$25 -> 2059-06-30 | FJ75: 2059-09-30 | FK75: 2059-12-31 | FL75: 2060-03-31 | FM75: 2060-06-30 | FN75: 2060-09-30 | FO75: 2060-12-31 | FP75: 2061-03-31 | FQ75: 2061-06-30 | FR75: 2061-09-30 | FS75: 2061-12-31 | FT75: 2062-03-31 | FU75: 2062-06-30 | FV75: 2062-09-30 | FW75: 2062-12-31 | FX75: 2063-03-31 | FY75: 2063-06-30 | FZ75: 2063-09-30 | GA75: 2063-12-31 | GB75: 2064-03-31 | GC75: 2064-06-30 | GD75: 2064-09-30 | GE75: 2064-12-31 | GF75: 2065-03-31 | GG75: 2065-06-30 | GH75: 2065-09-30 | GI75: 2065-12-31 | GJ75: 2066-03-31
E76: Financial close date flag | G76: flag | H76: =SUM(J76:GJ76) -> 1 | J76: =IF(AND(I75 < $F74, J75 >= $F74), 1, 0) -> 0 | K76: =IF(AND(J75 < $F74, K75 >= $F74), 1, 0) -> 0 | L76: 1 | M76: 0 | N76: 0 | O76: 0 | P76: 0 | Q76: 0 | R76: 0 | S76: 0 | T76: 0 | U76: 0 | V76: 0 | W76: 0 | X76: 0 | Y76: 0 | Z76: 0 | AA76: 0 | AB76: 0 | AC76: 0 | AD76: 0 | AE76: 0 | AF76: 0 | AG76: 0 | AH76: 0 | AI76: 0 | AJ76: 0 | AK76: 0 | AL76: 0 | AM76: 0 | AN76: 0 | AO76: 0 | AP76: 0 | AQ76: 0 | AR76: 0 | AS76: 0 | AT76: 0 | AU76: 0 | AV76: 0 | AW76: 0 | AX76: 0 | AY76: 0 | AZ76: 0 | BA76: 0 | BB76: 0 | BC76: 0 | BD76: 0 | BE76: 0 | BF76: 0 | BG76: 0 | BH76: 0 | BI76: 0 | BJ76: 0 | BK76: 0 | BL76: 0 | BM76: 0 | BN76: 0 | BO76: 0 | BP76: 0 | BQ76: 0 | BR76: 0 | BS76: 0 | BT76: 0 | BU76: 0 | BV76: 0 | BW76: =IF(AND(BV75 < $F74, BW75 >= $F74), 1, 0) -> 0 | BX76: 0 | BY76: 0 | BZ76: 0 | CA76: 0 | CB76: 0 | CC76: 0 | CD76: 0 | CE76: 0 | CF76: 0 | CG76: 0 | CH76: 0 | CI76: 0 | CJ76: 0 | CK76: 0 | CL76: 0 | CM76: 0 | CN76: 0 | CO76: 0 | CP76: 0 | CQ76: 0 | CR76: 0 | CS76: 0 | CT76: 0 | CU76: 0 | CV76: 0 | CW76: 0 | CX76: 0 | CY76: 0 | CZ76: 0 | DA76: 0 | DB76: 0 | DC76: 0 | DD76: 0 | DE76: 0 | DF76: 0 | DG76: 0 | DH76: 0 | DI76: 0 | DJ76: 0 | DK76: 0 | DL76: 0 | DM76: 0 | DN76: 0 | DO76: 0 | DP76: 0 | DQ76: 0 | DR76: 0 | DS76: 0 | DT76: 0 | DU76: 0 | DV76: 0 | DW76: 0 | DX76: 0 | DY76: 0 | DZ76: 0 | EA76: 0 | EB76: 0 | EC76: 0 | ED76: 0 | EE76: 0 | EF76: 0 | EG76: 0 | EH76: 0 | EI76: =IF(AND(EH75 < $F74, EI75 >= $F74), 1, 0) -> 0 | EJ76: 0 | EK76: 0 | EL76: 0 | EM76: 0 | EN76: 0 | EO76: 0 | EP76: 0 | EQ76: 0 | ER76: 0 | ES76: 0 | ET76: 0 | EU76: 0 | EV76: 0 | EW76: 0 | EX76: 0 | EY76: 0 | EZ76: 0 | FA76: 0 | FB76: 0 | FC76: 0 | FD76: 0 | FE76: 0 | FF76: 0 | FG76: 0 | FH76: 0 | FI76: 0 | FJ76: 0 | FK76: 0 | FL76: 0 | FM76: 0 | FN76: 0 | FO76: 0 | FP76: 0 | FQ76: 0 | FR76: 0 | FS76: 0 | FT76: 0 | FU76: 0 | FV76: 0 | FW76: 0 | FX76: 0 | FY76: 0 | FZ76: 0 | GA76: 0 | GB76: 0 | GC76: 0 | GD76: 0 | GE76: 0 | GF76: 0 | GG76: 0 | GH76: =IF(AND(GG75 < $F74, GH75 >= $F74), 1, 0) -> 0 | GI76: 0 | GJ76: 0
B78: First operating period flag
E79: =E$76 -> Financial close date flag | F79: 0 | G79: flag | H79: 1 | I79: 0 | J79: 0 | K79: 0 | L79: 1 | M79: 0 | N79: 0 | O79: 0 | P79: 0 | Q79: 0 | R79: 0 | S79: 0 | T79: 0 | U79: 0 | V79: 0 | W79: 0 | X79: 0 | Y79: 0 | Z79: 0 | AA79: 0 | AB79: 0 | AC79: 0 | AD79: 0 | AE79: 0 | AF79: 0 | AG79: 0 | AH79: 0 | AI79: 0 | AJ79: 0 | AK79: =AK$76 -> 0 | AL79: 0 | AM79: 0 | AN79: 0 | AO79: 0 | AP79: 0 | AQ79: 0 | AR79: 0 | AS79: 0 | AT79: 0 | AU79: 0 | AV79: 0 | AW79: 0 | AX79: 0 | AY79: 0 | AZ79: 0 | BA79: 0 | BB79: 0 | BC79: 0 | BD79: 0 | BE79: 0 | BF79: 0 | BG79: 0 | BH79: 0 | BI79: 0 | BJ79: 0 | BK79: 0 | BL79: 0 | BM79: 0 | BN79: 0 | BO79: 0 | BP79: 0 | BQ79: =BQ$76 -> 0 | BR79: 0 | BS79: 0 | BT79: 0 | BU79: 0 | BV79: 0 | BW79: 0 | BX79: 0 | BY79: 0 | BZ79: 0 | CA79: 0 | CB79: 0 | CC79: 0 | CD79: 0 | CE79: 0 | CF79: 0 | CG79: 0 | CH79: 0 | CI79: 0 | CJ79: 0 | CK79: 0 | CL79: 0 | CM79: 0 | CN79: 0 | CO79: 0 | CP79: 0 | CQ79: 0 | CR79: 0 | CS79: 0 | CT79: 0 | CU79: 0 | CV79: 0 | CW79: =CW$76 -> 0 | CX79: 0 | CY79: 0 | CZ79: 0 | DA79: 0 | DB79: 0 | DC79: 0 | DD79: 0 | DE79: 0 | DF79: 0 | DG79: 0 | DH79: 0 | DI79: 0 | DJ79: 0 | DK79: 0 | DL79: 0 | DM79: 0 | DN79: 0 | DO79: 0 | DP79: 0 | DQ79: 0 | DR79: 0 | DS79: 0 | DT79: 0 | DU79: 0 | DV79: 0 | DW79: 0 | DX79: 0 | DY79: 0 | DZ79: 0 | EA79: 0 | EB79: 0 | EC79: =EC$76 -> 0 | ED79: 0 | EE79: 0 | EF79: 0 | EG79: 0 | EH79: 0 | EI79: 0 | EJ79: 0 | EK79: 0 | EL79: 0 | EM79: 0 | EN79: 0 | EO79: 0 | EP79: 0 | EQ79: 0 | ER79: 0 | ES79: 0 | ET79: 0 | EU79: 0 | EV79: 0 | EW79: 0 | EX79: 0 | EY79: 0 | EZ79: 0 | FA79: 0 | FB79: 0 | FC79: 0 | FD79: 0 | FE79: 0 | FF79: 0 | FG79: 0 | FH79: 0 | FI79: =FI$76 -> 0 | FJ79: 0 | FK79: 0 | FL79: 0 | FM79: 0 | FN79: 0 | FO79: 0 | FP79: 0 | FQ79: 0 | FR79: 0 | FS79: 0 | FT79: 0 | FU79: 0 | FV79: 0 | FW79: 0 | FX79: 0 | FY79: 0 | FZ79: 0 | GA79: 0 | GB79: 0 | GC79: 0 | GD79: 0 | GE79: 0 | GF79: 0 | GG79: 0 | GH79: 0 | GI79: 0 | GJ79: 0
E80: First operating period flag | G80: flag | H80: =SUM(J80:GJ80) -> 1 | J80: =I79 -> 0 | K80: 0 | L80: 0 | M80: 1 | N80: 0 | O80: 0 | P80: 0 | Q80: 0 | R80: 0 | S80: 0 | T80: 0 | U80: 0 | V80: 0 | W80: 0 | X80: 0 | Y80: 0 | Z80: 0 | AA80: 0 | AB80: 0 | AC80: 0 | AD80: 0 | AE80: 0 | AF80: 0 | AG80: 0 | AH80: 0 | AI80: 0 | AJ80: 0 | AK80: 0 | AL80: 0 | AM80: 0 | AN80: 0 | AO80: 0 | AP80: =AO79 -> 0 | AQ80: 0 | AR80: 0 | AS80: 0 | AT80: 0 | AU80: 0 | AV80: 0 | AW80: 0 | AX80: 0 | AY80: 0 | AZ80: 0 | BA80: 0 | BB80: 0 | BC80: 0 | BD80: 0 | BE80: 0 | BF80: 0 | BG80: 0 | BH80: 0 | BI80: 0 | BJ80: 0 | BK80: 0 | BL80: 0 | BM80: 0 | BN80: 0 | BO80: 0 | BP80: 0 | BQ80: 0 | BR80: 0 | BS80: 0 | BT80: 0 | BU80: 0 | BV80: =BU79 -> 0 | BW80: 0 | BX80: 0 | BY80: 0 | BZ80: 0 | CA80: 0 | CB80: 0 | CC80: 0 | CD80: 0 | CE80: 0 | CF80: 0 | CG80: 0 | CH80: 0 | CI80: 0 | CJ80: 0 | CK80: 0 | CL80: 0 | CM80: 0 | CN80: 0 | CO80: 0 | CP80: 0 | CQ80: 0 | CR80: 0 | CS80: 0 | CT80: 0 | CU80: 0 | CV80: 0 | CW80: 0 | CX80: 0 | CY80: 0 | CZ80: 0 | DA80: 0 | DB80: =DA79 -> 0 | DC80: 0 | DD80: 0 | DE80: 0 | DF80: 0 | DG80: 0 | DH80: 0 | DI80: 0 | DJ80: 0 | DK80: 0 | DL80: 0 | DM80: 0 | DN80: 0 | DO80: 0 | DP80: 0 | DQ80: 0 | DR80: 0 | DS80: 0 | DT80: 0 | DU80: 0 | DV80: 0 | DW80: 0 | DX80: 0 | DY80: 0 | DZ80: 0 | EA80: 0 | EB80: 0 | EC80: 0 | ED80: 0 | EE80: 0 | EF80: 0 | EG80: 0 | EH80: =EG79 -> 0 | EI80: 0 | EJ80: 0 | EK80: 0 | EL80: 0 | EM80: 0 | EN80: 0 | EO80: 0 | EP80: 0 | EQ80: 0 | ER80: 0 | ES80: 0 | ET80: 0 | EU80: 0 | EV80: 0 | EW80: 0 | EX80: 0 | EY80: 0 | EZ80: 0 | FA80: 0 | FB80: 0 | FC80: 0 | FD80: 0 | FE80: 0 | FF80: 0 | FG80: 0 | FH80: 0 | FI80: 0 | FJ80: 0 | FK80: 0 | FL80: 0 | FM80: 0 | FN80: =FM79 -> 0 | FO80: 0 | FP80: 0 | FQ80: 0 | FR80: 0 | FS80: 0 | FT80: 0 | FU80: 0 | FV80: 0 | FW80: 0 | FX80: 0 | FY80: 0 | FZ80: 0 | GA80: 0 | GB80: 0 | GC80: 0 | GD80: 0 | GE80: 0 | GF80: 0 | GG80: 0 | GH80: 0 | GI80: 0 | GJ80: 0
B82: Last operating period flag
E83: =InpC!E$19 -> Acquisition date | F83: =InpC!F$19 -> 2021-03-31 | G83: =InpC!G$19 -> date
E84: =InpC!E$21 -> Length of PPA | F84: =InpC!F$21 -> 25 | G84: =InpC!G$21 -> years
E85: =InpC!E$23 -> Contract extension | F85: =InpC!F$23 -> 0 | G85: =InpC!G$23 -> years
E86: =InpC!E$136 -> Months in year | F86: =InpC!F$136 -> 12 | G86: =InpC!G$136 -> months
E87: End of operating period | F87: =EOMONTH(F83, ((F84 + F85) * F86)) -> 2046-03-31 | G87: date
E89: =E$87 -> End of operating period | F89: =F$87 -> 2046-03-31 | G89: =G$87 -> date
E90: =E$25 -> Model period ending | F90: 00:00:00 | G90: date | H90: 00:00:00 | I90: 00:00:00 | J90: 2020-09-30 | K90: 2020-12-31 | L90: 2021-03-31 | M90: 2021-06-30 | N90: 2021-09-30 | O90: 2021-12-31 | P90: 2022-03-31 | Q90: 2022-06-30 | R90: 2022-09-30 | S90: 2022-12-31 | T90: 2023-03-31 | U90: 2023-06-30 | V90: 2023-09-30 | W90: 2023-12-31 | X90: 2024-03-31 | Y90: 2024-06-30 | Z90: 2024-09-30 | AA90: 2024-12-31 | AB90: 2025-03-31 | AC90: 2025-06-30 | AD90: 2025-09-30 | AE90: 2025-12-31 | AF90: 2026-03-31 | AG90: 2026-06-30 | AH90: 2026-09-30 | AI90: 2026-12-31 | AJ90: 2027-03-31 | AK90: 2027-06-30 | AL90: 2027-09-30 | AM90: 2027-12-31 | AN90: 2028-03-31 | AO90: 2028-06-30 | AP90: 2028-09-30 | AQ90: 2028-12-31 | AR90: 2029-03-31 | AS90: 2029-06-30 | AT90: 2029-09-30 | AU90: 2029-12-31 | AV90: 2030-03-31 | AW90: 2030-06-30 | AX90: 2030-09-30 | AY90: 2030-12-31 | AZ90: 2031-03-31 | BA90: 2031-06-30 | BB90: 2031-09-30 | BC90: 2031-12-31 | BD90: 2032-03-31 | BE90: 2032-06-30 | BF90: 2032-09-30 | BG90: 2032-12-31 | BH90: 2033-03-31 | BI90: 2033-06-30 | BJ90: 2033-09-30 | BK90: 2033-12-31 | BL90: 2034-03-31 | BM90: 2034-06-30 | BN90: 2034-09-30 | BO90: 2034-12-31 | BP90: 2035-03-31 | BQ90: =BQ$25 -> 2035-06-30 | BR90: 2035-09-30 | BS90: 2035-12-31 | BT90: 2036-03-31 | BU90: 2036-06-30 | BV90: 2036-09-30 | BW90: 2036-12-31 | BX90: 2037-03-31 | BY90: 2037-06-30 | BZ90: 2037-09-30 | CA90: 2037-12-31 | CB90: 2038-03-31 | CC90: 2038-06-30 | CD90: 2038-09-30 | CE90: 2038-12-31 | CF90: 2039-03-31 | CG90: 2039-06-30 | CH90: 2039-09-30 | CI90: 2039-12-31 | CJ90: 2040-03-31 | CK90: 2040-06-30 | CL90: 2040-09-30 | CM90: 2040-12-31 | CN90: 2041-03-31 | CO90: 2041-06-30 | CP90: 2041-09-30 | CQ90: 2041-12-31 | CR90: 2042-03-31 | CS90: 2042-06-30 | CT90: 2042-09-30 | CU90: 2042-12-31 | CV90: 2043-03-31 | CW90: 2043-06-30 | CX90: 2043-09-30 | CY90: 2043-12-31 | CZ90: 2044-03-31 | DA90: 2044-06-30 | DB90: 2044-09-30 | DC90: 2044-12-31 | DD90: 2045-03-31 | DE90: 2045-06-30 | DF90: 2045-09-30 | DG90: 2045-12-31 | DH90: 2046-03-31 | DI90: 2046-06-30 | DJ90: 2046-09-30 | DK90: 2046-12-31 | DL90: 2047-03-31 | DM90: 2047-06-30 | DN90: 2047-09-30 | DO90: 2047-12-31 | DP90: 2048-03-31 | DQ90: 2048-06-30 | DR90: 2048-09-30 | DS90: 2048-12-31 | DT90: 2049-03-31 | DU90: 2049-06-30 | DV90: 2049-09-30 | DW90: 2049-12-31 | DX90: 2050-03-31 | DY90: 2050-06-30 | DZ90: 2050-09-30 | EA90: 2050-12-31 | EB90: 2051-03-31 | EC90: =EC$25 -> 2051-06-30 | ED90: 2051-09-30 | EE90: 2051-12-31 | EF90: 2052-03-31 | EG90: 2052-06-30 | EH90: 2052-09-30 | EI90: 2052-12-31 | EJ90: 2053-03-31 | EK90: 2053-06-30 | EL90: 2053-09-30 | EM90: 2053-12-31 | EN90: 2054-03-31 | EO90: 2054-06-30 | EP90: 2054-09-30 | EQ90: 2054-12-31 | ER90: 2055-03-31 | ES90: 2055-06-30 | ET90: 2055-09-30 | EU90: 2055-12-31 | EV90: 2056-03-31 | EW90: 2056-06-30 | EX90: 2056-09-30 | EY90: 2056-12-31 | EZ90: 2057-03-31 | FA90: 2057-06-30 | FB90: 2057-09-30 | FC90: 2057-12-31 | FD90: 2058-03-31 | FE90: 2058-06-30 | FF90: 2058-09-30 | FG90: 2058-12-31 | FH90: 2059-03-31 | FI90: =FI$25 -> 2059-06-30 | FJ90: 2059-09-30 | FK90: 2059-12-31 | FL90: 2060-03-31 | FM90: 2060-06-30 | FN90: 2060-09-30 | FO90: 2060-12-31 | FP90: 2061-03-31 | FQ90: 2061-06-30 | FR90: 2061-09-30 | FS90: 2061-12-31 | FT90: 2062-03-31 | FU90: 2062-06-30 | FV90: 2062-09-30 | FW90: 2062-12-31 | FX90: 2063-03-31 | FY90: 2063-06-30 | FZ90: 2063-09-30 | GA90: 2063-12-31 | GB90: 2064-03-31 | GC90: 2064-06-30 | GD90: 2064-09-30 | GE90: 2064-12-31 | GF90: 2065-03-31 | GG90: 2065-06-30 | GH90: 2065-09-30 | GI90: 2065-12-31 | GJ90: 2066-03-31
E91: Last operating period flag | G91: flag | H91: =SUM(J91:GJ91) -> 1 | J91: =IF(J90 = $F89, 1, 0) -> 0 | K91: 0 | L91: 0 | M91: 0 | N91: 0 | O91: 0 | P91: 0 | Q91: 0 | R91: 0 | S91: 0 | T91: 0 | U91: 0 | V91: 0 | W91: 0 | X91: 0 | Y91: 0 | Z91: 0 | AA91: 0 | AB91: 0 | AC91: 0 | AD91: 0 | AE91: 0 | AF91: 0 | AG91: 0 | AH91: 0 | AI91: 0 | AJ91: 0 | AK91: 0 | AL91: 0 | AM91: 0 | AN91: 0 | AO91: 0 | AP91: =IF(AP90 = $F89, 1, 0) -> 0 | AQ91: 0 | AR91: 0 | AS91: 0 | AT91: 0 | AU91: 0 | AV91: 0 | AW91: 0 | AX91: 0 | AY91: 0 | AZ91: 0 | BA91: 0 | BB91: 0 | BC91: 0 | BD91: 0 | BE91: 0 | BF91: 0 | BG91: 0 | BH91: 0 | BI91: 0 | BJ91: 0 | BK91: 0 | BL91: 0 | BM91: 0 | BN91: 0 | BO91: 0 | BP91: 0 | BQ91: 0 | BR91: 0 | BS91: 0 | BT91: 0 | BU91: 0 | BV91: =IF(BV90 = $F89, 1, 0) -> 0 | BW91: 0 | BX91: 0 | BY91: 0 | BZ91: 0 | CA91: 0 | CB91: 0 | CC91: 0 | CD91: 0 | CE91: 0 | CF91: 0 | CG91: 0 | CH91: 0 | CI91: 0 | CJ91: 0 | CK91: 0 | CL91: 0 | CM91: 0 | CN91: 0 | CO91: 0 | CP91: 0 | CQ91: 0 | CR91: 0 | CS91: 0 | CT91: 0 | CU91: 0 | CV91: 0 | CW91: 0 | CX91: 0 | CY91: 0 | CZ91: 0 | DA91: 0 | DB91: =IF(DB90 = $F89, 1, 0) -> 0 | DC91: 0 | DD91: 0 | DE91: 0 | DF91: 0 | DG91: 0 | DH91: 1 | DI91: 0 | DJ91: 0 | DK91: 0 | DL91: 0 | DM91: 0 | DN91: 0 | DO91: 0 | DP91: 0 | DQ91: 0 | DR91: 0 | DS91: 0 | DT91: 0 | DU91: 0 | DV91: 0 | DW91: 0 | DX91: 0 | DY91: 0 | DZ91: 0 | EA91: 0 | EB91: 0 | EC91: 0 | ED91: 0 | EE91: 0 | EF91: 0 | EG91: 0 | EH91: =IF(EH90 = $F89, 1, 0) -> 0 | EI91: 0 | EJ91: 0 | EK91: 0 | EL91: 0 | EM91: 0 | EN91: 0 | EO91: 0 | EP91: 0 | EQ91: 0 | ER91: 0 | ES91: 0 | ET91: 0 | EU91: 0 | EV91: 0 | EW91: 0 | EX91: 0 | EY91: 0 | EZ91: 0 | FA91: 0 | FB91: 0 | FC91: 0 | FD91: 0 | FE91: 0 | FF91: 0 | FG91: 0 | FH91: 0 | FI91: 0 | FJ91: 0 | FK91: 0 | FL91: 0 | FM91: 0 | FN91: =IF(FN90 = $F89, 1, 0) -> 0 | FO91: 0 | FP91: 0 | FQ91: 0 | FR91: 0 | FS91: 0 | FT91: 0 | FU91: 0 | FV91: 0 | FW91: 0 | FX91: 0 | FY91: 0 | FZ91: 0 | GA91: 0 | GB91: 0 | GC91: 0 | GD91: 0 | GE91: 0 | GF91: 0 | GG91: 0 | GH91: 0 | GI91: 0 | GJ91: 0
B93: Operating period flag
E94: =InpC!E$19 -> Acquisition date | F94: =InpC!F$19 -> 2021-03-31 | G94: =InpC!G$19 -> date
E95: =E$87 -> End of operating period | F95: =F$87 -> 2046-03-31 | G95: =G$87 -> date
E96: =E$25 -> Model period ending | F96: 00:00:00 | G96: date | H96: 00:00:00 | I96: 00:00:00 | J96: 2020-09-30 | K96: 2020-12-31 | L96: 2021-03-31 | M96: 2021-06-30 | N96: 2021-09-30 | O96: 2021-12-31 | P96: 2022-03-31 | Q96: 2022-06-30 | R96: 2022-09-30 | S96: 2022-12-31 | T96: 2023-03-31 | U96: 2023-06-30 | V96: 2023-09-30 | W96: 2023-12-31 | X96: 2024-03-31 | Y96: 2024-06-30 | Z96: 2024-09-30 | AA96: 2024-12-31 | AB96: 2025-03-31 | AC96: 2025-06-30 | AD96: 2025-09-30 | AE96: 2025-12-31 | AF96: 2026-03-31 | AG96: 2026-06-30 | AH96: 2026-09-30 | AI96: 2026-12-31 | AJ96: 2027-03-31 | AK96: 2027-06-30 | AL96: 2027-09-30 | AM96: 2027-12-31 | AN96: 2028-03-31 | AO96: 2028-06-30 | AP96: 2028-09-30 | AQ96: 2028-12-31 | AR96: 2029-03-31 | AS96: 2029-06-30 | AT96: 2029-09-30 | AU96: 2029-12-31 | AV96: 2030-03-31 | AW96: 2030-06-30 | AX96: 2030-09-30 | AY96: 2030-12-31 | AZ96: 2031-03-31 | BA96: 2031-06-30 | BB96: 2031-09-30 | BC96: 2031-12-31 | BD96: 2032-03-31 | BE96: 2032-06-30 | BF96: 2032-09-30 | BG96: 2032-12-31 | BH96: 2033-03-31 | BI96: 2033-06-30 | BJ96: 2033-09-30 | BK96: 2033-12-31 | BL96: 2034-03-31 | BM96: 2034-06-30 | BN96: 2034-09-30 | BO96: 2034-12-31 | BP96: 2035-03-31 | BQ96: =BQ$25 -> 2035-06-30 | BR96: 2035-09-30 | BS96: 2035-12-31 | BT96: 2036-03-31 | BU96: 2036-06-30 | BV96: 2036-09-30 | BW96: 2036-12-31 | BX96: 2037-03-31 | BY96: 2037-06-30 | BZ96: 2037-09-30 | CA96: 2037-12-31 | CB96: 2038-03-31 | CC96: 2038-06-30 | CD96: 2038-09-30 | CE96: 2038-12-31 | CF96: 2039-03-31 | CG96: 2039-06-30 | CH96: 2039-09-30 | CI96: 2039-12-31 | CJ96: 2040-03-31 | CK96: 2040-06-30 | CL96: 2040-09-30 | CM96: 2040-12-31 | CN96: 2041-03-31 | CO96: 2041-06-30 | CP96: 2041-09-30 | CQ96: 2041-12-31 | CR96: 2042-03-31 | CS96: 2042-06-30 | CT96: 2042-09-30 | CU96: 2042-12-31 | CV96: 2043-03-31 | CW96: 2043-06-30 | CX96: 2043-09-30 | CY96: 2043-12-31 | CZ96: 2044-03-31 | DA96: 2044-06-30 | DB96: 2044-09-30 | DC96: 2044-12-31 | DD96: 2045-03-31 | DE96: 2045-06-30 | DF96: 2045-09-30 | DG96: 2045-12-31 | DH96: 2046-03-31 | DI96: 2046-06-30 | DJ96: 2046-09-30 | DK96: 2046-12-31 | DL96: 2047-03-31 | DM96: 2047-06-30 | DN96: 2047-09-30 | DO96: 2047-12-31 | DP96: 2048-03-31 | DQ96: 2048-06-30 | DR96: 2048-09-30 | DS96: 2048-12-31 | DT96: 2049-03-31 | DU96: 2049-06-30 | DV96: 2049-09-30 | DW96: 2049-12-31 | DX96: 2050-03-31 | DY96: 2050-06-30 | DZ96: 2050-09-30 | EA96: 2050-12-31 | EB96: 2051-03-31 | EC96: =EC$25 -> 2051-06-30 | ED96: 2051-09-30 | EE96: 2051-12-31 | EF96: 2052-03-31 | EG96: 2052-06-30 | EH96: 2052-09-30 | EI96: 2052-12-31 | EJ96: 2053-03-31 | EK96: 2053-06-30 | EL96: 2053-09-30 | EM96: 2053-12-31 | EN96: 2054-03-31 | EO96: 2054-06-30 | EP96: 2054-09-30 | EQ96: 2054-12-31 | ER96: 2055-03-31 | ES96: 2055-06-30 | ET96: 2055-09-30 | EU96: 2055-12-31 | EV96: 2056-03-31 | EW96: 2056-06-30 | EX96: 2056-09-30 | EY96: 2056-12-31 | EZ96: 2057-03-31 | FA96: 2057-06-30 | FB96: 2057-09-30 | FC96: 2057-12-31 | FD96: 2058-03-31 | FE96: 2058-06-30 | FF96: 2058-09-30 | FG96: 2058-12-31 | FH96: 2059-03-31 | FI96: 2059-06-30 | FJ96: 2059-09-30 | FK96: 2059-12-31 | FL96: 2060-03-31 | FM96: 2060-06-30 | FN96: 2060-09-30 | FO96: 2060-12-31 | FP96: 2061-03-31 | FQ96: 2061-06-30 | FR96: 2061-09-30 | FS96: 2061-12-31 | FT96: 2062-03-31 | FU96: 2062-06-30 | FV96: 2062-09-30 | FW96: 2062-12-31 | FX96: 2063-03-31 | FY96: 2063-06-30 | FZ96: 2063-09-30 | GA96: 2063-12-31 | GB96: 2064-03-31 | GC96: 2064-06-30 | GD96: 2064-09-30 | GE96: 2064-12-31 | GF96: 2065-03-31 | GG96: 2065-06-30 | GH96: 2065-09-30 | GI96: 2065-12-31 | GJ96: 2066-03-31
E97: Operating period flag | G97: flag | H97: =SUM(J97:GJ97) -> 100 | J97: =IF( AND(J96 > $F94, J96 <= $F95), 1, 0) -> 0 | K97: 0 | L97: 0 | M97: 1 | N97: 1 | O97: 1 | P97: 1 | Q97: 1 | R97: 1 | S97: 1 | T97: 1 | U97: 1 | V97: 1 | W97: 1 | X97: 1 | Y97: 1 | Z97: 1 | AA97: 1 | AB97: 1 | AC97: 1 | AD97: 1 | AE97: 1 | AF97: 1 | AG97: 1 | AH97: 1 | AI97: 1 | AJ97: 1 | AK97: 1 | AL97: 1 | AM97: 1 | AN97: 1 | AO97: 1 | AP97: =IF( AND(AP96 > $F94, AP96 <= $F95), 1, 0) -> 1 | AQ97: 1 | AR97: 1 | AS97: 1 | AT97: 1 | AU97: 1 | AV97: 1 | AW97: 1 | AX97: 1 | AY97: 1 | AZ97: 1 | BA97: 1 | BB97: 1 | BC97: 1 | BD97: 1 | BE97: 1 | BF97: 1 | BG97: 1 | BH97: 1 | BI97: 1 | BJ97: 1 | BK97: 1 | BL97: 1 | BM97: 1 | BN97: 1 | BO97: 1 | BP97: 1 | BQ97: 1 | BR97: 1 | BS97: 1 | BT97: 1 | BU97: 1 | BV97: =IF( AND(BV96 > $F94, BV96 <= $F95), 1, 0) -> 1 | BW97: 1 | BX97: 1 | BY97: 1 | BZ97: 1 | CA97: 1 | CB97: 1 | CC97: 1 | CD97: 1 | CE97: 1 | CF97: 1 | CG97: 1 | CH97: 1 | CI97: 1 | CJ97: 1 | CK97: 1 | CL97: 1 | CM97: 1 | CN97: 1 | CO97: 1 | CP97: 1 | CQ97: 1 | CR97: 1 | CS97: 1 | CT97: 1 | CU97: 1 | CV97: 1 | CW97: 1 | CX97: 1 | CY97: 1 | CZ97: 1 | DA97: 1 | DB97: =IF( AND(DB96 > $F94, DB96 <= $F95), 1, 0) -> 1 | DC97: 1 | DD97: 1 | DE97: 1 | DF97: 1 | DG97: 1 | DH97: 1 | DI97: 0 | DJ97: 0 | DK97: 0 | DL97: 0 | DM97: 0 | DN97: 0 | DO97: 0 | DP97: 0 | DQ97: 0 | DR97: 0 | DS97: 0 | DT97: 0 | DU97: 0 | DV97: 0 | DW97: 0 | DX97: 0 | DY97: 0 | DZ97: 0 | EA97: 0 | EB97: 0 | EC97: 0 | ED97: 0 | EE97: 0 | EF97: 0 | EG97: 0 | EH97: =IF( AND(EH96 > $F94, EH96 <= $F95), 1, 0) -> 0 | EI97: 0 | EJ97: 0 | EK97: 0 | EL97: 0 | EM97: 0 | EN97: 0 | EO97: 0 | EP97: 0 | EQ97: 0 | ER97: 0 | ES97: 0 | ET97: 0 | EU97: 0 | EV97: 0 | EW97: 0 | EX97: 0 | EY97: 0 | EZ97: 0 | FA97: 0 | FB97: 0 | FC97: 0 | FD97: 0 | FE97: 0 | FF97: 0 | FG97: 0 | FH97: 0 | FI97: 0 | FJ97: 0 | FK97: 0 | FL97: 0 | FM97: 0 | FN97: =IF( AND(FN96 > $F94, FN96 <= $F95), 1, 0) -> 0 | FO97: 0 | FP97: 0 | FQ97: 0 | FR97: 0 | FS97: 0 | FT97: 0 | FU97: 0 | FV97: 0 | FW97: 0 | FX97: 0 | FY97: 0 | FZ97: 0 | GA97: 0 | GB97: 0 | GC97: 0 | GD97: 0 | GE97: 0 | GF97: 0 | GG97: 0 | GH97: 0 | GI97: 0 | GJ97: 0
B99: First post operating period flag
E100: =E$91 -> Last operating period flag | F100: 0 | G100: flag | H100: 1 | I100: 0 | J100: 0 | K100: 0 | L100: 0 | M100: 0 | N100: 0 | O100: 0 | P100: 0 | Q100: 0 | R100: 0 | S100: 0 | T100: 0 | U100: 0 | V100: 0 | W100: 0 | X100: 0 | Y100: 0 | Z100: 0 | AA100: 0 | AB100: 0 | AC100: 0 | AD100: 0 | AE100: 0 | AF100: 0 | AG100: 0 | AH100: 0 | AI100: 0 | AJ100: 0 | AK100: =AK$91 -> 0 | AL100: 0 | AM100: 0 | AN100: 0 | AO100: 0 | AP100: 0 | AQ100: 0 | AR100: 0 | AS100: 0 | AT100: 0 | AU100: 0 | AV100: 0 | AW100: 0 | AX100: 0 | AY100: 0 | AZ100: 0 | BA100: 0 | BB100: 0 | BC100: 0 | BD100: 0 | BE100: 0 | BF100: 0 | BG100: 0 | BH100: 0 | BI100: 0 | BJ100: 0 | BK100: 0 | BL100: 0 | BM100: 0 | BN100: 0 | BO100: 0 | BP100: 0 | BQ100: =BQ$91 -> 0 | BR100: 0 | BS100: 0 | BT100: 0 | BU100: 0 | BV100: 0 | BW100: 0 | BX100: 0 | BY100: 0 | BZ100: 0 | CA100: 0 | CB100: 0 | CC100: 0 | CD100: 0 | CE100: 0 | CF100: 0 | CG100: 0 | CH100: 0 | CI100: 0 | CJ100: 0 | CK100: 0 | CL100: 0 | CM100: 0 | CN100: 0 | CO100: 0 | CP100: 0 | CQ100: 0 | CR100: 0 | CS100: 0 | CT100: 0 | CU100: 0 | CV100: 0 | CW100: =CW$91 -> 0 | CX100: 0 | CY100: 0 | CZ100: 0 | DA100: 0 | DB100: 0 | DC100: 0 | DD100: 0 | DE100: 0 | DF100: 0 | DG100: 0 | DH100: 1 | DI100: 0 | DJ100: 0 | DK100: 0 | DL100: 0 | DM100: 0 | DN100: 0 | DO100: 0 | DP100: 0 | DQ100: 0 | DR100: 0 | DS100: 0 | DT100: 0 | DU100: 0 | DV100: 0 | DW100: 0 | DX100: 0 | DY100: 0 | DZ100: 0 | EA100: 0 | EB100: 0 | EC100: =EC$91 -> 0 | ED100: 0 | EE100: 0 | EF100: 0 | EG100: 0 | EH100: 0 | EI100: 0 | EJ100: 0 | EK100: 0 | EL100: 0 | EM100: 0 | EN100: 0 | EO100: 0 | EP100: 0 | EQ100: 0 | ER100: 0 | ES100: 0 | ET100: 0 | EU100: 0 | EV100: 0 | EW100: 0 | EX100: 0 | EY100: 0 | EZ100: 0 | FA100: 0 | FB100: 0 | FC100: 0 | FD100: 0 | FE100: 0 | FF100: 0 | FG100: 0 | FH100: 0 | FI100: =FI$91 -> 0 | FJ100: 0 | FK100: 0 | FL100: 0 | FM100: 0 | FN100: 0 | FO100: 0 | FP100: 0 | FQ100: 0 | FR100: 0 | FS100: 0 | FT100: 0 | FU100: 0 | FV100: 0 | FW100: 0 | FX100: 0 | FY100: 0 | FZ100: 0 | GA100: 0 | GB100: 0 | GC100: 0 | GD100: 0 | GE100: 0 | GF100: 0 | GG100: 0 | GH100: 0 | GI100: 0 | GJ100: 0
E101: First post operating period flag | J101: =I100 -> 0 | K101: 0 | L101: 0 | M101: 0 | N101: 0 | O101: 0 | P101: 0 | Q101: 0 | R101: 0 | S101: 0 | T101: 0 | U101: 0 | V101: 0 | W101: 0 | X101: 0 | Y101: 0 | Z101: 0 | AA101: 0 | AB101: 0 | AC101: 0 | AD101: 0 | AE101: 0 | AF101: 0 | AG101: 0 | AH101: 0 | AI101: 0 | AJ101: 0 | AK101: 0 | AL101: 0 | AM101: 0 | AN101: 0 | AO101: 0 | AP101: =AO100 -> 0 | AQ101: 0 | AR101: 0 | AS101: 0 | AT101: 0 | AU101: 0 | AV101: 0 | AW101: 0 | AX101: 0 | AY101: 0 | AZ101: 0 | BA101: 0 | BB101: 0 | BC101: 0 | BD101: 0 | BE101: 0 | BF101: 0 | BG101: 0 | BH101: 0 | BI101: 0 | BJ101: 0 | BK101: 0 | BL101: 0 | BM101: 0 | BN101: 0 | BO101: 0 | BP101: 0 | BQ101: 0 | BR101: 0 | BS101: 0 | BT101: 0 | BU101: 0 | BV101: =BU100 -> 0 | BW101: 0 | BX101: 0 | BY101: 0 | BZ101: 0 | CA101: 0 | CB101: 0 | CC101: 0 | CD101: 0 | CE101: 0 | CF101: 0 | CG101: 0 | CH101: 0 | CI101: 0 | CJ101: 0 | CK101: 0 | CL101: 0 | CM101: 0 | CN101: 0 | CO101: 0 | CP101: 0 | CQ101: 0 | CR101: 0 | CS101: 0 | CT101: 0 | CU101: 0 | CV101: 0 | CW101: 0 | CX101: 0 | CY101: 0 | CZ101: 0 | DA101: 0 | DB101: =DA100 -> 0 | DC101: 0 | DD101: 0 | DE101: 0 | DF101: 0 | DG101: 0 | DH101: 0 | DI101: 1 | DJ101: 0 | DK101: 0 | DL101: 0 | DM101: 0 | DN101: 0 | DO101: 0 | DP101: 0 | DQ101: 0 | DR101: 0 | DS101: 0 | DT101: 0 | DU101: 0 | DV101: 0 | DW101: 0 | DX101: 0 | DY101: 0 | DZ101: 0 | EA101: 0 | EB101: 0 | EC101: 0 | ED101: 0 | EE101: 0 | EF101: 0 | EG101: 0 | EH101: =EG100 -> 0 | EI101: 0 | EJ101: 0 | EK101: 0 | EL101: 0 | EM101: 0 | EN101: 0 | EO101: 0 | EP101: 0 | EQ101: 0 | ER101: 0 | ES101: 0 | ET101: 0 | EU101: 0 | EV101: 0 | EW101: 0 | EX101: 0 | EY101: 0 | EZ101: 0 | FA101: 0 | FB101: 0 | FC101: 0 | FD101: 0 | FE101: 0 | FF101: 0 | FG101: 0 | FH101: 0 | FI101: 0 | FJ101: 0 | FK101: 0 | FL101: 0 | FM101: 0 | FN101: =FM100 -> 0 | FO101: 0 | FP101: 0 | FQ101: 0 | FR101: 0 | FS101: 0 | FT101: 0 | FU101: 0 | FV101: 0 | FW101: 0 | FX101: 0 | FY101: 0 | FZ101: 0 | GA101: 0 | GB101: 0 | GC101: 0 | GD101: 0 | GE101: 0 | GF101: 0 | GG101: 0 | GH101: 0 | GI101: 0 | GJ101: 0
B103: Useful life of solar asset flag
E104: =InpC!E$19 -> Acquisition date | F104: =InpC!F$19 -> 2021-03-31 | G104: =InpC!G$19 -> date
E105: =InpC!E$109 -> Useful life of solar asset | F105: =InpC!F$109 -> 25 | G105: =InpC!G$109 -> years
E106: =InpC!E$136 -> Months in year | F106: =InpC!F$136 -> 12 | G106: =InpC!G$136 -> months
E107: End of useful life of solar asset | F107: =EOMONTH(F104, (F105 * F106)) -> 2046-03-31 | G107: date
E109: =InpC!E$19 -> Acquisition date | F109: =InpC!F$19 -> 2021-03-31 | G109: =InpC!G$19 -> date
E110: =E$107 -> End of useful life of solar asset | F110: =F$107 -> 2046-03-31 | G110: =G$107 -> date
E111: =E$25 -> Model period ending | F111: 00:00:00 | G111: date | H111: 00:00:00 | I111: 00:00:00 | J111: 2020-09-30 | K111: 2020-12-31 | L111: 2021-03-31 | M111: 2021-06-30 | N111: 2021-09-30 | O111: 2021-12-31 | P111: 2022-03-31 | Q111: 2022-06-30 | R111: 2022-09-30 | S111: 2022-12-31 | T111: 2023-03-31 | U111: 2023-06-30 | V111: 2023-09-30 | W111: 2023-12-31 | X111: 2024-03-31 | Y111: 2024-06-30 | Z111: 2024-09-30 | AA111: 2024-12-31 | AB111: 2025-03-31 | AC111: 2025-06-30 | AD111: 2025-09-30 | AE111: 2025-12-31 | AF111: 2026-03-31 | AG111: 2026-06-30 | AH111: 2026-09-30 | AI111: 2026-12-31 | AJ111: 2027-03-31 | AK111: 2027-06-30 | AL111: 2027-09-30 | AM111: 2027-12-31 | AN111: 2028-03-31 | AO111: 2028-06-30 | AP111: 2028-09-30 | AQ111: 2028-12-31 | AR111: 2029-03-31 | AS111: 2029-06-30 | AT111: 2029-09-30 | AU111: 2029-12-31 | AV111: 2030-03-31 | AW111: 2030-06-30 | AX111: 2030-09-30 | AY111: 2030-12-31 | AZ111: 2031-03-31 | BA111: 2031-06-30 | BB111: 2031-09-30 | BC111: 2031-12-31 | BD111: 2032-03-31 | BE111: 2032-06-30 | BF111: 2032-09-30 | BG111: 2032-12-31 | BH111: 2033-03-31 | BI111: 2033-06-30 | BJ111: 2033-09-30 | BK111: 2033-12-31 | BL111: 2034-03-31 | BM111: 2034-06-30 | BN111: 2034-09-30 | BO111: 2034-12-31 | BP111: 2035-03-31 | BQ111: =BQ$25 -> 2035-06-30 | BR111: 2035-09-30 | BS111: 2035-12-31 | BT111: 2036-03-31 | BU111: 2036-06-30 | BV111: 2036-09-30 | BW111: 2036-12-31 | BX111: 2037-03-31 | BY111: 2037-06-30 | BZ111: 2037-09-30 | CA111: 2037-12-31 | CB111: 2038-03-31 | CC111: 2038-06-30 | CD111: 2038-09-30 | CE111: 2038-12-31 | CF111: 2039-03-31 | CG111: 2039-06-30 | CH111: 2039-09-30 | CI111: 2039-12-31 | CJ111: 2040-03-31 | CK111: 2040-06-30 | CL111: 2040-09-30 | CM111: 2040-12-31 | CN111: 2041-03-31 | CO111: 2041-06-30 | CP111: 2041-09-30 | CQ111: 2041-12-31 | CR111: 2042-03-31 | CS111: 2042-06-30 | CT111: 2042-09-30 | CU111: 2042-12-31 | CV111: 2043-03-31 | CW111: 2043-06-30 | CX111: 2043-09-30 | CY111: 2043-12-31 | CZ111: 2044-03-31 | DA111: 2044-06-30 | DB111: 2044-09-30 | DC111: 2044-12-31 | DD111: 2045-03-31 | DE111: 2045-06-30 | DF111: 2045-09-30 | DG111: 2045-12-31 | DH111: 2046-03-31 | DI111: 2046-06-30 | DJ111: 2046-09-30 | DK111: 2046-12-31 | DL111: 2047-03-31 | DM111: 2047-06-30 | DN111: 2047-09-30 | DO111: 2047-12-31 | DP111: 2048-03-31 | DQ111: 2048-06-30 | DR111: 2048-09-30 | DS111: 2048-12-31 | DT111: 2049-03-31 | DU111: 2049-06-30 | DV111: 2049-09-30 | DW111: 2049-12-31 | DX111: 2050-03-31 | DY111: 2050-06-30 | DZ111: 2050-09-30 | EA111: 2050-12-31 | EB111: 2051-03-31 | EC111: =EC$25 -> 2051-06-30 | ED111: 2051-09-30 | EE111: 2051-12-31 | EF111: 2052-03-31 | EG111: 2052-06-30 | EH111: 2052-09-30 | EI111: 2052-12-31 | EJ111: 2053-03-31 | EK111: 2053-06-30 | EL111: 2053-09-30 | EM111: 2053-12-31 | EN111: 2054-03-31 | EO111: 2054-06-30 | EP111: 2054-09-30 | EQ111: 2054-12-31 | ER111: 2055-03-31 | ES111: 2055-06-30 | ET111: 2055-09-30 | EU111: 2055-12-31 | EV111: 2056-03-31 | EW111: 2056-06-30 | EX111: 2056-09-30 | EY111: 2056-12-31 | EZ111: 2057-03-31 | FA111: 2057-06-30 | FB111: 2057-09-30 | FC111: 2057-12-31 | FD111: 2058-03-31 | FE111: 2058-06-30 | FF111: 2058-09-30 | FG111: 2058-12-31 | FH111: 2059-03-31 | FI111: 2059-06-30 | FJ111: 2059-09-30 | FK111: 2059-12-31 | FL111: 2060-03-31 | FM111: 2060-06-30 | FN111: 2060-09-30 | FO111: 2060-12-31 | FP111: 2061-03-31 | FQ111: 2061-06-30 | FR111: 2061-09-30 | FS111: 2061-12-31 | FT111: 2062-03-31 | FU111: 2062-06-30 | FV111: 2062-09-30 | FW111: 2062-12-31 | FX111: 2063-03-31 | FY111: 2063-06-30 | FZ111: 2063-09-30 | GA111: 2063-12-31 | GB111: 2064-03-31 | GC111: 2064-06-30 | GD111: 2064-09-30 | GE111: 2064-12-31 | GF111: 2065-03-31 | GG111: 2065-06-30 | GH111: 2065-09-30 | GI111: 2065-12-31 | GJ111: 2066-03-31
E112: Useful life of solar asset flag | G112: flag | H112: =SUM(J112:GJ112) -> 100 | J112: =IF( AND(J111 > $F109, J111 <= $F110), 1, 0) -> 0 | K112: 0 | L112: 0 | M112: 1 | N112: 1 | O112: 1 | P112: 1 | Q112: 1 | R112: 1 | S112: 1 | T112: 1 | U112: 1 | V112: 1 | W112: 1 | X112: 1 | Y112: 1 | Z112: 1 | AA112: 1 | AB112: 1 | AC112: 1 | AD112: 1 | AE112: 1 | AF112: 1 | AG112: 1 | AH112: 1 | AI112: 1 | AJ112: 1 | AK112: 1 | AL112: 1 | AM112: 1 | AN112: 1 | AO112: 1 | AP112: 1 | AQ112: 1 | AR112: 1 | AS112: 1 | AT112: 1 | AU112: 1 | AV112: 1 | AW112: 1 | AX112: 1 | AY112: 1 | AZ112: 1 | BA112: 1 | BB112: 1 | BC112: 1 | BD112: 1 | BE112: 1 | BF112: 1 | BG112: 1 | BH112: 1 | BI112: 1 | BJ112: 1 | BK112: 1 | BL112: 1 | BM112: 1 | BN112: 1 | BO112: 1 | BP112: 1 | BQ112: 1 | BR112: 1 | BS112: 1 | BT112: 1 | BU112: 1 | BV112: =IF( AND(BV111 > $F109, BV111 <= $F110), 1, 0) -> 1 | BW112: 1 | BX112: 1 | BY112: 1 | BZ112: 1 | CA112: 1 | CB112: 1 | CC112: 1 | CD112: 1 | CE112: 1 | CF112: 1 | CG112: 1 | CH112: 1 | CI112: 1 | CJ112: 1 | CK112: 1 | CL112: 1 | CM112: 1 | CN112: 1 | CO112: 1 | CP112: 1 | CQ112: 1 | CR112: 1 | CS112: 1 | CT112: 1 | CU112: 1 | CV112: 1 | CW112: 1 | CX112: 1 | CY112: 1 | CZ112: 1 | DA112: 1 | DB112: 1 | DC112: 1 | DD112: 1 | DE112: 1 | DF112: 1 | DG112: 1 | DH112: 1 | DI112: 0 | DJ112: 0 | DK112: 0 | DL112: 0 | DM112: 0 | DN112: 0 | DO112: 0 | DP112: 0 | DQ112: 0 | DR112: 0 | DS112: 0 | DT112: 0 | DU112: 0 | DV112: 0 | DW112: 0 | DX112: 0 | DY112: 0 | DZ112: 0 | EA112: 0 | EB112: 0 | EC112: 0 | ED112: 0 | EE112: 0 | EF112: 0 | EG112: 0 | EH112: =IF( AND(EH111 > $F109, EH111 <= $F110), 1, 0) -> 0 | EI112: 0 | EJ112: 0 | EK112: 0 | EL112: 0 | EM112: 0 | EN112: 0 | EO112: 0 | EP112: 0 | EQ112: 0 | ER112: 0 | ES112: 0 | ET112: 0 | EU112: 0 | EV112: 0 | EW112: 0 | EX112: 0 | EY112: 0 | EZ112: 0 | FA112: 0 | FB112: 0 | FC112: 0 | FD112: 0 | FE112: 0 | FF112: 0 | FG112: 0 | FH112: 0 | FI112: 0 | FJ112: 0 | FK112: 0 | FL112: 0 | FM112: 0 | FN112: 0 | FO112: 0 | FP112: 0 | FQ112: 0 | FR112: 0 | FS112: 0 | FT112: 0 | FU112: 0 | FV112: 0 | FW112: 0 | FX112: 0 | FY112: 0 | FZ112: 0 | GA112: 0 | GB112: 0 | GC112: 0 | GD112: 0 | GE112: 0 | GF112: 0 | GG112: 0 | GH112: 0 | GI112: 0 | GJ112: 0
B114: Senior debt repayment period flag
E115: =InpC!E$19 -> Acquisition date | F115: =InpC!F$19 -> 2021-03-31 | G115: =InpC!G$19 -> date
E116: =InpC!E$58 -> Senior debt repayment term | F116: =InpC!F$58 -> 10 | G116: =InpC!G$58 -> years
E117: =InpC!E$136 -> Months in year | F117: =InpC!F$136 -> 12 | G117: =InpC!G$136 -> months
E118: End of senior debt repayment period date | F118: =EOMONTH(F115, (F116 * F117)) -> 2031-03-31 | G118: date
E120: =InpC!E$19 -> Acquisition date | F120: =InpC!F$19 -> 2021-03-31 | G120: =InpC!G$19 -> date
E121: =E$118 -> End of senior debt repayment period date | F121: =F$118 -> 2031-03-31 | G121: =G$118 -> date
E122: =E$25 -> Model period ending | F122: 00:00:00 | G122: date | H122: 00:00:00 | I122: 00:00:00 | J122: 2020-09-30 | K122: 2020-12-31 | L122: 2021-03-31 | M122: 2021-06-30 | N122: 2021-09-30 | O122: 2021-12-31 | P122: 2022-03-31 | Q122: 2022-06-30 | R122: 2022-09-30 | S122: 2022-12-31 | T122: 2023-03-31 | U122: 2023-06-30 | V122: 2023-09-30 | W122: 2023-12-31 | X122: 2024-03-31 | Y122: 2024-06-30 | Z122: 2024-09-30 | AA122: 2024-12-31 | AB122: 2025-03-31 | AC122: 2025-06-30 | AD122: 2025-09-30 | AE122: 2025-12-31 | AF122: 2026-03-31 | AG122: 2026-06-30 | AH122: 2026-09-30 | AI122: 2026-12-31 | AJ122: 2027-03-31 | AK122: 2027-06-30 | AL122: 2027-09-30 | AM122: 2027-12-31 | AN122: 2028-03-31 | AO122: 2028-06-30 | AP122: 2028-09-30 | AQ122: 2028-12-31 | AR122: 2029-03-31 | AS122: 2029-06-30 | AT122: 2029-09-30 | AU122: 2029-12-31 | AV122: 2030-03-31 | AW122: 2030-06-30 | AX122: 2030-09-30 | AY122: 2030-12-31 | AZ122: 2031-03-31 | BA122: 2031-06-30 | BB122: 2031-09-30 | BC122: 2031-12-31 | BD122: 2032-03-31 | BE122: 2032-06-30 | BF122: 2032-09-30 | BG122: 2032-12-31 | BH122: 2033-03-31 | BI122: 2033-06-30 | BJ122: 2033-09-30 | BK122: 2033-12-31 | BL122: 2034-03-31 | BM122: 2034-06-30 | BN122: 2034-09-30 | BO122: 2034-12-31 | BP122: 2035-03-31 | BQ122: =BQ$25 -> 2035-06-30 | BR122: 2035-09-30 | BS122: 2035-12-31 | BT122: 2036-03-31 | BU122: 2036-06-30 | BV122: 2036-09-30 | BW122: 2036-12-31 | BX122: 2037-03-31 | BY122: 2037-06-30 | BZ122: 2037-09-30 | CA122: 2037-12-31 | CB122: 2038-03-31 | CC122: 2038-06-30 | CD122: 2038-09-30 | CE122: 2038-12-31 | CF122: 2039-03-31 | CG122: 2039-06-30 | CH122: 2039-09-30 | CI122: 2039-12-31 | CJ122: 2040-03-31 | CK122: 2040-06-30 | CL122: 2040-09-30 | CM122: 2040-12-31 | CN122: 2041-03-31 | CO122: 2041-06-30 | CP122: 2041-09-30 | CQ122: 2041-12-31 | CR122: 2042-03-31 | CS122: 2042-06-30 | CT122: 2042-09-30 | CU122: 2042-12-31 | CV122: 2043-03-31 | CW122: 2043-06-30 | CX122: 2043-09-30 | CY122: 2043-12-31 | CZ122: 2044-03-31 | DA122: 2044-06-30 | DB122: 2044-09-30 | DC122: 2044-12-31 | DD122: 2045-03-31 | DE122: 2045-06-30 | DF122: 2045-09-30 | DG122: 2045-12-31 | DH122: 2046-03-31 | DI122: 2046-06-30 | DJ122: 2046-09-30 | DK122: 2046-12-31 | DL122: 2047-03-31 | DM122: 2047-06-30 | DN122: 2047-09-30 | DO122: 2047-12-31 | DP122: 2048-03-31 | DQ122: 2048-06-30 | DR122: 2048-09-30 | DS122: 2048-12-31 | DT122: 2049-03-31 | DU122: 2049-06-30 | DV122: 2049-09-30 | DW122: 2049-12-31 | DX122: 2050-03-31 | DY122: 2050-06-30 | DZ122: 2050-09-30 | EA122: 2050-12-31 | EB122: 2051-03-31 | EC122: =EC$25 -> 2051-06-30 | ED122: 2051-09-30 | EE122: 2051-12-31 | EF122: 2052-03-31 | EG122: 2052-06-30 | EH122: 2052-09-30 | EI122: 2052-12-31 | EJ122: 2053-03-31 | EK122: 2053-06-30 | EL122: 2053-09-30 | EM122: 2053-12-31 | EN122: 2054-03-31 | EO122: 2054-06-30 | EP122: 2054-09-30 | EQ122: 2054-12-31 | ER122: 2055-03-31 | ES122: 2055-06-30 | ET122: 2055-09-30 | EU122: 2055-12-31 | EV122: 2056-03-31 | EW122: 2056-06-30 | EX122: 2056-09-30 | EY122: 2056-12-31 | EZ122: 2057-03-31 | FA122: 2057-06-30 | FB122: 2057-09-30 | FC122: 2057-12-31 | FD122: 2058-03-31 | FE122: 2058-06-30 | FF122: 2058-09-30 | FG122: 2058-12-31 | FH122: 2059-03-31 | FI122: 2059-06-30 | FJ122: 2059-09-30 | FK122: 2059-12-31 | FL122: 2060-03-31 | FM122: 2060-06-30 | FN122: 2060-09-30 | FO122: 2060-12-31 | FP122: 2061-03-31 | FQ122: 2061-06-30 | FR122: 2061-09-30 | FS122: 2061-12-31 | FT122: 2062-03-31 | FU122: 2062-06-30 | FV122: 2062-09-30 | FW122: 2062-12-31 | FX122: 2063-03-31 | FY122: 2063-06-30 | FZ122: 2063-09-30 | GA122: 2063-12-31 | GB122: 2064-03-31 | GC122: 2064-06-30 | GD122: 2064-09-30 | GE122: 2064-12-31 | GF122: 2065-03-31 | GG122: 2065-06-30 | GH122: 2065-09-30 | GI122: 2065-12-31 | GJ122: 2066-03-31
E123: Senior debt repayment period flag | G123: flag | H123: =SUM(J123:GJ123) -> 40 | J123: =IF( AND(J122 > $F120, J122 <= $F121), 1, 0) -> 0 | K123: 0 | L123: 0 | M123: 1 | N123: 1 | O123: 1 | P123: 1 | Q123: 1 | R123: 1 | S123: 1 | T123: 1 | U123: 1 | V123: 1 | W123: 1 | X123: 1 | Y123: 1 | Z123: 1 | AA123: 1 | AB123: 1 | AC123: 1 | AD123: 1 | AE123: 1 | AF123: 1 | AG123: 1 | AH123: 1 | AI123: 1 | AJ123: 1 | AK123: 1 | AL123: 1 | AM123: 1 | AN123: 1 | AO123: 1 | AP123: 1 | AQ123: 1 | AR123: 1 | AS123: 1 | AT123: 1 | AU123: 1 | AV123: 1 | AW123: 1 | AX123: 1 | AY123: 1 | AZ123: 1 | BA123: 0 | BB123: 0 | BC123: 0 | BD123: 0 | BE123: 0 | BF123: 0 | BG123: 0 | BH123: 0 | BI123: 0 | BJ123: 0 | BK123: 0 | BL123: 0 | BM123: 0 | BN123: 0 | BO123: 0 | BP123: 0 | BQ123: 0 | BR123: 0 | BS123: 0 | BT123: 0 | BU123: 0 | BV123: =IF( AND(BV122 > $F120, BV122 <= $F121), 1, 0) -> 0 | BW123: 0 | BX123: 0 | BY123: 0 | BZ123: 0 | CA123: 0 | CB123: 0 | CC123: 0 | CD123: 0 | CE123: 0 | CF123: 0 | CG123: 0 | CH123: 0 | CI123: 0 | CJ123: 0 | CK123: 0 | CL123: 0 | CM123: 0 | CN123: 0 | CO123: 0 | CP123: 0 | CQ123: 0 | CR123: 0 | CS123: 0 | CT123: 0 | CU123: 0 | CV123: 0 | CW123: 0 | CX123: 0 | CY123: 0 | CZ123: 0 | DA123: 0 | DB123: 0 | DC123: 0 | DD123: 0 | DE123: 0 | DF123: 0 | DG123: 0 | DH123: 0 | DI123: 0 | DJ123: 0 | DK123: 0 | DL123: 0 | DM123: 0 | DN123: 0 | DO123: 0 | DP123: 0 | DQ123: 0 | DR123: 0 | DS123: 0 | DT123: 0 | DU123: 0 | DV123: 0 | DW123: 0 | DX123: 0 | DY123: 0 | DZ123: 0 | EA123: 0 | EB123: 0 | EC123: 0 | ED123: 0 | EE123: 0 | EF123: 0 | EG123: 0 | EH123: =IF( AND(EH122 > $F120, EH122 <= $F121), 1, 0) -> 0 | EI123: 0 | EJ123: 0 | EK123: 0 | EL123: 0 | EM123: 0 | EN123: 0 | EO123: 0 | EP123: 0 | EQ123: 0 | ER123: 0 | ES123: 0 | ET123: 0 | EU123: 0 | EV123: 0 | EW123: 0 | EX123: 0 | EY123: 0 | EZ123: 0 | FA123: 0 | FB123: 0 | FC123: 0 | FD123: 0 | FE123: 0 | FF123: 0 | FG123: 0 | FH123: 0 | FI123: 0 | FJ123: 0 | FK123: 0 | FL123: 0 | FM123: 0 | FN123: 0 | FO123: 0 | FP123: 0 | FQ123: 0 | FR123: 0 | FS123: 0 | FT123: 0 | FU123: 0 | FV123: 0 | FW123: 0 | FX123: 0 | FY123: 0 | FZ123: 0 | GA123: 0 | GB123: 0 | GC123: 0 | GD123: 0 | GE123: 0 | GF123: 0 | GG123: 0 | GH123: 0 | GI123: 0 | GJ123: 0
B125: Contract year end flag
E126: Escalation period end month | F126: 3 | G126: month
E127: =E$25 -> Model period ending | F127: 00:00:00 | G127: date | H127: 00:00:00 | I127: 00:00:00 | J127: 2020-09-30 | K127: 2020-12-31 | L127: 2021-03-31 | M127: 2021-06-30 | N127: 2021-09-30 | O127: 2021-12-31 | P127: 2022-03-31 | Q127: 2022-06-30 | R127: 2022-09-30 | S127: 2022-12-31 | T127: 2023-03-31 | U127: 2023-06-30 | V127: 2023-09-30 | W127: 2023-12-31 | X127: 2024-03-31 | Y127: 2024-06-30 | Z127: 2024-09-30 | AA127: 2024-12-31 | AB127: 2025-03-31 | AC127: 2025-06-30 | AD127: 2025-09-30 | AE127: 2025-12-31 | AF127: 2026-03-31 | AG127: 2026-06-30 | AH127: 2026-09-30 | AI127: 2026-12-31 | AJ127: 2027-03-31 | AK127: 2027-06-30 | AL127: 2027-09-30 | AM127: 2027-12-31 | AN127: 2028-03-31 | AO127: 2028-06-30 | AP127: 2028-09-30 | AQ127: 2028-12-31 | AR127: 2029-03-31 | AS127: 2029-06-30 | AT127: 2029-09-30 | AU127: 2029-12-31 | AV127: 2030-03-31 | AW127: 2030-06-30 | AX127: 2030-09-30 | AY127: 2030-12-31 | AZ127: 2031-03-31 | BA127: 2031-06-30 | BB127: 2031-09-30 | BC127: 2031-12-31 | BD127: 2032-03-31 | BE127: 2032-06-30 | BF127: 2032-09-30 | BG127: 2032-12-31 | BH127: 2033-03-31 | BI127: 2033-06-30 | BJ127: 2033-09-30 | BK127: 2033-12-31 | BL127: 2034-03-31 | BM127: 2034-06-30 | BN127: 2034-09-30 | BO127: 2034-12-31 | BP127: 2035-03-31 | BQ127: =BQ$25 -> 2035-06-30 | BR127: 2035-09-30 | BS127: 2035-12-31 | BT127: 2036-03-31 | BU127: 2036-06-30 | BV127: 2036-09-30 | BW127: 2036-12-31 | BX127: 2037-03-31 | BY127: 2037-06-30 | BZ127: 2037-09-30 | CA127: 2037-12-31 | CB127: 2038-03-31 | CC127: 2038-06-30 | CD127: 2038-09-30 | CE127: 2038-12-31 | CF127: 2039-03-31 | CG127: 2039-06-30 | CH127: 2039-09-30 | CI127: 2039-12-31 | CJ127: 2040-03-31 | CK127: 2040-06-30 | CL127: 2040-09-30 | CM127: 2040-12-31 | CN127: 2041-03-31 | CO127: 2041-06-30 | CP127: 2041-09-30 | CQ127: 2041-12-31 | CR127: 2042-03-31 | CS127: 2042-06-30 | CT127: 2042-09-30 | CU127: 2042-12-31 | CV127: 2043-03-31 | CW127: 2043-06-30 | CX127: 2043-09-30 | CY127: 2043-12-31 | CZ127: 2044-03-31 | DA127: 2044-06-30 | DB127: 2044-09-30 | DC127: 2044-12-31 | DD127: 2045-03-31 | DE127: 2045-06-30 | DF127: 2045-09-30 | DG127: 2045-12-31 | DH127: 2046-03-31 | DI127: 2046-06-30 | DJ127: 2046-09-30 | DK127: 2046-12-31 | DL127: 2047-03-31 | DM127: 2047-06-30 | DN127: 2047-09-30 | DO127: 2047-12-31 | DP127: 2048-03-31 | DQ127: 2048-06-30 | DR127: 2048-09-30 | DS127: 2048-12-31 | DT127: 2049-03-31 | DU127: 2049-06-30 | DV127: 2049-09-30 | DW127: 2049-12-31 | DX127: 2050-03-31 | DY127: 2050-06-30 | DZ127: 2050-09-30 | EA127: 2050-12-31 | EB127: 2051-03-31 | EC127: =EC$25 -> 2051-06-30 | ED127: 2051-09-30 | EE127: 2051-12-31 | EF127: 2052-03-31 | EG127: 2052-06-30 | EH127: 2052-09-30 | EI127: 2052-12-31 | EJ127: 2053-03-31 | EK127: 2053-06-30 | EL127: 2053-09-30 | EM127: 2053-12-31 | EN127: 2054-03-31 | EO127: 2054-06-30 | EP127: 2054-09-30 | EQ127: 2054-12-31 | ER127: 2055-03-31 | ES127: 2055-06-30 | ET127: 2055-09-30 | EU127: 2055-12-31 | EV127: 2056-03-31 | EW127: 2056-06-30 | EX127: 2056-09-30 | EY127: 2056-12-31 | EZ127: 2057-03-31 | FA127: 2057-06-30 | FB127: 2057-09-30 | FC127: 2057-12-31 | FD127: 2058-03-31 | FE127: 2058-06-30 | FF127: 2058-09-30 | FG127: 2058-12-31 | FH127: 2059-03-31 | FI127: 2059-06-30 | FJ127: 2059-09-30 | FK127: 2059-12-31 | FL127: 2060-03-31 | FM127: 2060-06-30 | FN127: 2060-09-30 | FO127: 2060-12-31 | FP127: 2061-03-31 | FQ127: 2061-06-30 | FR127: 2061-09-30 | FS127: 2061-12-31 | FT127: 2062-03-31 | FU127: 2062-06-30 | FV127: 2062-09-30 | FW127: 2062-12-31 | FX127: 2063-03-31 | FY127: 2063-06-30 | FZ127: 2063-09-30 | GA127: 2063-12-31 | GB127: 2064-03-31 | GC127: 2064-06-30 | GD127: 2064-09-30 | GE127: 2064-12-31 | GF127: 2065-03-31 | GG127: 2065-06-30 | GH127: 2065-09-30 | GI127: 2065-12-31 | GJ127: 2066-03-31
E128: Escalation year end month flag | J128: =IF(MONTH(J127) = $F126, 1, 0) -> 0 | K128: 0 | L128: 1 | M128: 0 | N128: 0 | O128: 0 | P128: 1 | Q128: 0 | R128: 0 | S128: 0 | T128: 1 | U128: 0 | V128: 0 | W128: 0 | X128: 1 | Y128: 0 | Z128: 0 | AA128: 0 | AB128: 1 | AC128: 0 | AD128: 0 | AE128: 0 | AF128: 1 | AG128: 0 | AH128: 0 | AI128: 0 | AJ128: 1 | AK128: 0 | AL128: 0 | AM128: 0 | AN128: 1 | AO128: 0 | AP128: =IF(MONTH(AP127) = $F126, 1, 0) -> 0 | AQ128: 0 | AR128: 1 | AS128: 0 | AT128: 0 | AU128: 0 | AV128: 1 | AW128: 0 | AX128: 0 | AY128: 0 | AZ128: 1 | BA128: 0 | BB128: 0 | BC128: 0 | BD128: 1 | BE128: 0 | BF128: 0 | BG128: 0 | BH128: 1 | BI128: 0 | BJ128: 0 | BK128: 0 | BL128: 1 | BM128: 0 | BN128: 0 | BO128: 0 | BP128: 1 | BQ128: 0 | BR128: 0 | BS128: 0 | BT128: 1 | BU128: 0 | BV128: =IF(MONTH(BV127) = $F126, 1, 0) -> 0 | BW128: 0 | BX128: 1 | BY128: 0 | BZ128: 0 | CA128: 0 | CB128: 1 | CC128: 0 | CD128: 0 | CE128: 0 | CF128: 1 | CG128: 0 | CH128: 0 | CI128: 0 | CJ128: 1 | CK128: 0 | CL128: 0 | CM128: 0 | CN128: 1 | CO128: 0 | CP128: 0 | CQ128: 0 | CR128: 1 | CS128: 0 | CT128: 0 | CU128: 0 | CV128: 1 | CW128: 0 | CX128: 0 | CY128: 0 | CZ128: 1 | DA128: 0 | DB128: =IF(MONTH(DB127) = $F126, 1, 0) -> 0 | DC128: 0 | DD128: 1 | DE128: 0 | DF128: 0 | DG128: 0 | DH128: 1 | DI128: 0 | DJ128: 0 | DK128: 0 | DL128: 1 | DM128: 0 | DN128: 0 | DO128: 0 | DP128: 1 | DQ128: 0 | DR128: 0 | DS128: 0 | DT128: 1 | DU128: 0 | DV128: 0 | DW128: 0 | DX128: 1 | DY128: 0 | DZ128: 0 | EA128: 0 | EB128: 1 | EC128: 0 | ED128: 0 | EE128: 0 | EF128: 1 | EG128: 0 | EH128: =IF(MONTH(EH127) = $F126, 1, 0) -> 0 | EI128: 0 | EJ128: 1 | EK128: 0 | EL128: 0 | EM128: 0 | EN128: 1 | EO128: 0 | EP128: 0 | EQ128: 0 | ER128: 1 | ES128: 0 | ET128: 0 | EU128: 0 | EV128: 1 | EW128: 0 | EX128: 0 | EY128: 0 | EZ128: 1 | FA128: 0 | FB128: 0 | FC128: 0 | FD128: 1 | FE128: 0 | FF128: 0 | FG128: 0 | FH128: 1 | FI128: 0 | FJ128: 0 | FK128: 0 | FL128: 1 | FM128: 0 | FN128: =IF(MONTH(FN127) = $F126, 1, 0) -> 0 | FO128: 0 | FP128: 1 | FQ128: 0 | FR128: 0 | FS128: 0 | FT128: 1 | FU128: 0 | FV128: 0 | FW128: 0 | FX128: 1 | FY128: 0 | FZ128: 0 | GA128: 0 | GB128: 1 | GC128: 0 | GD128: 0 | GE128: 0 | GF128: 1 | GG128: 0 | GH128: 0 | GI128: 0 | GJ128: 1
A131: COUNTERS / PERIOD NUMBERS
B133: Period number
E134: =E$97 -> Operating period flag | F134: 0 | G134: flag | H134: 100 | I134: 0 | J134: 0 | K134: 0 | L134: 0 | M134: 1 | N134: 1 | O134: 1 | P134: 1 | Q134: 1 | R134: 1 | S134: 1 | T134: 1 | U134: 1 | V134: 1 | W134: 1 | X134: 1 | Y134: 1 | Z134: 1 | AA134: 1 | AB134: 1 | AC134: 1 | AD134: 1 | AE134: 1 | AF134: 1 | AG134: 1 | AH134: 1 | AI134: 1 | AJ134: 1 | AK134: =AK$97 -> 1 | AL134: 1 | AM134: 1 | AN134: 1 | AO134: 1 | AP134: 1 | AQ134: 1 | AR134: 1 | AS134: 1 | AT134: 1 | AU134: 1 | AV134: 1 | AW134: 1 | AX134: 1 | AY134: 1 | AZ134: 1 | BA134: 1 | BB134: 1 | BC134: 1 | BD134: 1 | BE134: 1 | BF134: 1 | BG134: 1 | BH134: 1 | BI134: 1 | BJ134: 1 | BK134: 1 | BL134: 1 | BM134: 1 | BN134: 1 | BO134: 1 | BP134: 1 | BQ134: =BQ$97 -> 1 | BR134: 1 | BS134: 1 | BT134: 1 | BU134: 1 | BV134: 1 | BW134: 1 | BX134: 1 | BY134: 1 | BZ134: 1 | CA134: 1 | CB134: 1 | CC134: 1 | CD134: 1 | CE134: 1 | CF134: 1 | CG134: 1 | CH134: 1 | CI134: 1 | CJ134: 1 | CK134: 1 | CL134: 1 | CM134: 1 | CN134: 1 | CO134: 1 | CP134: 1 | CQ134: 1 | CR134: 1 | CS134: 1 | CT134: 1 | CU134: 1 | CV134: 1 | CW134: =CW$97 -> 1 | CX134: 1 | CY134: 1 | CZ134: 1 | DA134: 1 | DB134: 1 | DC134: 1 | DD134: 1 | DE134: 1 | DF134: 1 | DG134: 1 | DH134: 1 | DI134: 0 | DJ134: 0 | DK134: 0 | DL134: 0 | DM134: 0 | DN134: 0 | DO134: 0 | DP134: 0 | DQ134: 0 | DR134: 0 | DS134: 0 | DT134: 0 | DU134: 0 | DV134: 0 | DW134: 0 | DX134: 0 | DY134: 0 | DZ134: 0 | EA134: 0 | EB134: 0 | EC134: =EC$97 -> 0 | ED134: 0 | EE134: 0 | EF134: 0 | EG134: 0 | EH134: 0 | EI134: 0 | EJ134: 0 | EK134: 0 | EL134: 0 | EM134: 0 | EN134: 0 | EO134: 0 | EP134: 0 | EQ134: 0 | ER134: 0 | ES134: 0 | ET134: 0 | EU134: 0 | EV134: 0 | EW134: 0 | EX134: 0 | EY134: 0 | EZ134: 0 | FA134: 0 | FB134: 0 | FC134: 0 | FD134: 0 | FE134: 0 | FF134: 0 | FG134: 0 | FH134: 0 | FI134: =FI$97 -> 0 | FJ134: 0 | FK134: 0 | FL134: 0 | FM134: 0 | FN134: 0 | FO134: 0 | FP134: 0 | FQ134: 0 | FR134: 0 | FS134: 0 | FT134: 0 | FU134: 0 | FV134: 0 | FW134: 0 | FX134: 0 | FY134: 0 | FZ134: 0 | GA134: 0 | GB134: 0 | GC134: 0 | GD134: 0 | GE134: 0 | GF134: 0 | GG134: 0 | GH134: 0 | GI134: 0 | GJ134: 0
E135: Contract period number | J135: =I135 + J134 -> 0 | K135: 0 | L135: 0 | M135: 1 | N135: 2 | O135: 3 | P135: 4 | Q135: 5 | R135: 6 | S135: 7 | T135: 8 | U135: 9 | V135: 10 | W135: 11 | X135: 12 | Y135: 13 | Z135: 14 | AA135: 15 | AB135: 16 | AC135: 17 | AD135: 18 | AE135: 19 | AF135: 20 | AG135: 21 | AH135: 22 | AI135: 23 | AJ135: 24 | AK135: 25 | AL135: 26 | AM135: 27 | AN135: 28 | AO135: 29 | AP135: =AO135 + AP134 -> 30 | AQ135: 31 | AR135: 32 | AS135: 33 | AT135: 34 | AU135: 35 | AV135: 36 | AW135: 37 | AX135: 38 | AY135: 39 | AZ135: 40 | BA135: 41 | BB135: 42 | BC135: 43 | BD135: 44 | BE135: 45 | BF135: 46 | BG135: 47 | BH135: 48 | BI135: 49 | BJ135: 50 | BK135: 51 | BL135: 52 | BM135: 53 | BN135: 54 | BO135: 55 | BP135: 56 | BQ135: 57 | BR135: 58 | BS135: 59 | BT135: 60 | BU135: 61 | BV135: =BU135 + BV134 -> 62 | BW135: 63 | BX135: 64 | BY135: 65 | BZ135: 66 | CA135: 67 | CB135: 68 | CC135: 69 | CD135: 70 | CE135: 71 | CF135: 72 | CG135: 73 | CH135: 74 | CI135: 75 | CJ135: 76 | CK135: 77 | CL135: 78 | CM135: 79 | CN135: 80 | CO135: 81 | CP135: 82 | CQ135: 83 | CR135: 84 | CS135: 85 | CT135: 86 | CU135: 87 | CV135: 88 | CW135: 89 | CX135: 90 | CY135: 91 | CZ135: 92 | DA135: 93 | DB135: =DA135 + DB134 -> 94 | DC135: 95 | DD135: 96 | DE135: 97 | DF135: 98 | DG135: 99 | DH135: 100 | DI135: 100 | DJ135: 100 | DK135: 100 | DL135: 100 | DM135: 100 | DN135: 100 | DO135: 100 | DP135: 100 | DQ135: 100 | DR135: 100 | DS135: 100 | DT135: 100 | DU135: 100 | DV135: 100 | DW135: 100 | DX135: 100 | DY135: 100 | DZ135: 100 | EA135: 100 | EB135: 100 | EC135: 100 | ED135: 100 | EE135: 100 | EF135: 100 | EG135: 100 | EH135: =EG135 + EH134 -> 100 | EI135: 100 | EJ135: 100 | EK135: 100 | EL135: 100 | EM135: 100 | EN135: 100 | EO135: 100 | EP135: 100 | EQ135: 100 | ER135: 100 | ES135: 100 | ET135: 100 | EU135: 100 | EV135: 100 | EW135: 100 | EX135: 100 | EY135: 100 | EZ135: 100 | FA135: 100 | FB135: 100 | FC135: 100 | FD135: 100 | FE135: 100 | FF135: 100 | FG135: 100 | FH135: 100 | FI135: 100 | FJ135: 100 | FK135: 100 | FL135: 100 | FM135: 100 | FN135: =FM135 + FN134 -> 100 | FO135: 100 | FP135: 100 | FQ135: 100 | FR135: 100 | FS135: 100 | FT135: 100 | FU135: 100 | FV135: 100 | FW135: 100 | FX135: 100 | FY135: 100 | FZ135: 100 | GA135: 100 | GB135: 100 | GC135: 100 | GD135: 100 | GE135: 100 | GF135: 100 | GG135: 100 | GH135: 100 | GI135: 100 | GJ135: 100
E137: =InpC!E$138 -> Number of periods in a year | F137: =InpC!F$138 -> 4 | G137: =InpC!G$138 -> periods
E138: =E$135 -> Contract period number | F138: 0 | G138: 0 | H138: 0 | I138: 0 | J138: 0 | K138: 0 | L138: 0 | M138: 1 | N138: 2 | O138: 3 | P138: 4 | Q138: 5 | R138: 6 | S138: 7 | T138: 8 | U138: 9 | V138: 10 | W138: 11 | X138: 12 | Y138: 13 | Z138: 14 | AA138: 15 | AB138: 16 | AC138: 17 | AD138: 18 | AE138: 19 | AF138: 20 | AG138: 21 | AH138: 22 | AI138: 23 | AJ138: 24 | AK138: =AK$135 -> 25 | AL138: 26 | AM138: 27 | AN138: 28 | AO138: 29 | AP138: 30 | AQ138: 31 | AR138: 32 | AS138: 33 | AT138: 34 | AU138: 35 | AV138: 36 | AW138: 37 | AX138: 38 | AY138: 39 | AZ138: 40 | BA138: 41 | BB138: 42 | BC138: 43 | BD138: 44 | BE138: 45 | BF138: 46 | BG138: 47 | BH138: 48 | BI138: 49 | BJ138: 50 | BK138: 51 | BL138: 52 | BM138: 53 | BN138: 54 | BO138: 55 | BP138: 56 | BQ138: =BQ$135 -> 57 | BR138: 58 | BS138: 59 | BT138: 60 | BU138: 61 | BV138: 62 | BW138: 63 | BX138: 64 | BY138: 65 | BZ138: 66 | CA138: 67 | CB138: 68 | CC138: 69 | CD138: 70 | CE138: 71 | CF138: 72 | CG138: 73 | CH138: 74 | CI138: 75 | CJ138: 76 | CK138: 77 | CL138: 78 | CM138: 79 | CN138: 80 | CO138: 81 | CP138: 82 | CQ138: 83 | CR138: 84 | CS138: 85 | CT138: 86 | CU138: 87 | CV138: 88 | CW138: =CW$135 -> 89 | CX138: 90 | CY138: 91 | CZ138: 92 | DA138: 93 | DB138: 94 | DC138: 95 | DD138: 96 | DE138: 97 | DF138: 98 | DG138: 99 | DH138: 100 | DI138: 100 | DJ138: 100 | DK138: 100 | DL138: 100 | DM138: 100 | DN138: 100 | DO138: 100 | DP138: 100 | DQ138: 100 | DR138: 100 | DS138: 100 | DT138: 100 | DU138: 100 | DV138: 100 | DW138: 100 | DX138: 100 | DY138: 100 | DZ138: 100 | EA138: 100 | EB138: 100 | EC138: =EC$135 -> 100 | ED138: 100 | EE138: 100 | EF138: 100 | EG138: 100 | EH138: 100 | EI138: 100 | EJ138: 100 | EK138: 100 | EL138: 100 | EM138: 100 | EN138: 100 | EO138: 100 | EP138: 100 | EQ138: 100 | ER138: 100 | ES138: 100 | ET138: 100 | EU138: 100 | EV138: 100 | EW138: 100 | EX138: 100 | EY138: 100 | EZ138: 100 | FA138: 100 | FB138: 100 | FC138: 100 | FD138: 100 | FE138: 100 | FF138: 100 | FG138: 100 | FH138: 100 | FI138: =FI$135 -> 100 | FJ138: 100 | FK138: 100 | FL138: 100 | FM138: 100 | FN138: 100 | FO138: 100 | FP138: 100 | FQ138: 100 | FR138: 100 | FS138: 100 | FT138: 100 | FU138: 100 | FV138: 100 | FW138: 100 | FX138: 100 | FY138: 100 | FZ138: 100 | GA138: 100 | GB138: 100 | GC138: 100 | GD138: 100 | GE138: 100 | GF138: 100 | GG138: 100 | GH138: 100 | GI138: 100 | GJ138: 100
E139: =E$97 -> Operating period flag | F139: 0 | G139: flag | H139: 100 | I139: 0 | J139: 0 | K139: 0 | L139: 0 | M139: 1 | N139: 1 | O139: 1 | P139: 1 | Q139: 1 | R139: 1 | S139: 1 | T139: 1 | U139: 1 | V139: 1 | W139: 1 | X139: 1 | Y139: 1 | Z139: 1 | AA139: 1 | AB139: 1 | AC139: 1 | AD139: 1 | AE139: 1 | AF139: 1 | AG139: 1 | AH139: 1 | AI139: 1 | AJ139: 1 | AK139: 1 | AL139: 1 | AM139: 1 | AN139: 1 | AO139: 1 | AP139: 1 | AQ139: 1 | AR139: 1 | AS139: 1 | AT139: 1 | AU139: 1 | AV139: 1 | AW139: 1 | AX139: 1 | AY139: 1 | AZ139: 1 | BA139: 1 | BB139: 1 | BC139: 1 | BD139: 1 | BE139: 1 | BF139: 1 | BG139: 1 | BH139: 1 | BI139: 1 | BJ139: 1 | BK139: 1 | BL139: 1 | BM139: 1 | BN139: 1 | BO139: 1 | BP139: 1 | BQ139: =BQ$97 -> 1 | BR139: 1 | BS139: 1 | BT139: 1 | BU139: 1 | BV139: 1 | BW139: 1 | BX139: 1 | BY139: 1 | BZ139: 1 | CA139: 1 | CB139: 1 | CC139: 1 | CD139: 1 | CE139: 1 | CF139: 1 | CG139: 1 | CH139: 1 | CI139: 1 | CJ139: 1 | CK139: 1 | CL139: 1 | CM139: 1 | CN139: 1 | CO139: 1 | CP139: 1 | CQ139: 1 | CR139: 1 | CS139: 1 | CT139: 1 | CU139: 1 | CV139: 1 | CW139: 1 | CX139: 1 | CY139: 1 | CZ139: 1 | DA139: 1 | DB139: 1 | DC139: 1 | DD139: 1 | DE139: 1 | DF139: 1 | DG139: 1 | DH139: 1 | DI139: 0 | DJ139: 0 | DK139: 0 | DL139: 0 | DM139: 0 | DN139: 0 | DO139: 0 | DP139: 0 | DQ139: 0 | DR139: 0 | DS139: 0 | DT139: 0 | DU139: 0 | DV139: 0 | DW139: 0 | DX139: 0 | DY139: 0 | DZ139: 0 | EA139: 0 | EB139: 0 | EC139: =EC$97 -> 0 | ED139: 0 | EE139: 0 | EF139: 0 | EG139: 0 | EH139: 0 | EI139: 0 | EJ139: 0 | EK139: 0 | EL139: 0 | EM139: 0 | EN139: 0 | EO139: 0 | EP139: 0 | EQ139: 0 | ER139: 0 | ES139: 0 | ET139: 0 | EU139: 0 | EV139: 0 | EW139: 0 | EX139: 0 | EY139: 0 | EZ139: 0 | FA139: 0 | FB139: 0 | FC139: 0 | FD139: 0 | FE139: 0 | FF139: 0 | FG139: 0 | FH139: 0 | FI139: 0 | FJ139: 0 | FK139: 0 | FL139: 0 | FM139: 0 | FN139: 0 | FO139: 0 | FP139: 0 | FQ139: 0 | FR139: 0 | FS139: 0 | FT139: 0 | FU139: 0 | FV139: 0 | FW139: 0 | FX139: 0 | FY139: 0 | FZ139: 0 | GA139: 0 | GB139: 0 | GC139: 0 | GD139: 0 | GE139: 0 | GF139: 0 | GG139: 0 | GH139: 0 | GI139: 0 | GJ139: 0
E140: Period number | G140: counter | J140: =IF( I140 = $F137, 1, I140 + 1) * J139 -> 0 | K140: 0 | L140: 0 | M140: 1 | N140: 2 | O140: 3 | P140: 4 | Q140: 1 | R140: 2 | S140: 3 | T140: 4 | U140: 1 | V140: 2 | W140: 3 | X140: 4 | Y140: 1 | Z140: 2 | AA140: 3 | AB140: 4 | AC140: 1 | AD140: 2 | AE140: 3 | AF140: 4 | AG140: 1 | AH140: 2 | AI140: 3 | AJ140: 4 | AK140: 1 | AL140: 2 | AM140: 3 | AN140: 4 | AO140: 1 | AP140: =IF( AO140 = $F137, 1, AO140 + 1) * AP139 -> 2 | AQ140: 3 | AR140: 4 | AS140: 1 | AT140: 2 | AU140: 3 | AV140: 4 | AW140: 1 | AX140: 2 | AY140: 3 | AZ140: 4 | BA140: 1 | BB140: 2 | BC140: 3 | BD140: 4 | BE140: 1 | BF140: 2 | BG140: 3 | BH140: 4 | BI140: 1 | BJ140: 2 | BK140: 3 | BL140: 4 | BM140: 1 | BN140: 2 | BO140: 3 | BP140: 4 | BQ140: 1 | BR140: 2 | BS140: 3 | BT140: 4 | BU140: 1 | BV140: =IF( BU140 = $F137, 1, BU140 + 1) * BV139 -> 2 | BW140: 3 | BX140: 4 | BY140: 1 | BZ140: 2 | CA140: 3 | CB140: 4 | CC140: 1 | CD140: 2 | CE140: 3 | CF140: 4 | CG140: 1 | CH140: 2 | CI140: 3 | CJ140: 4 | CK140: 1 | CL140: 2 | CM140: 3 | CN140: 4 | CO140: 1 | CP140: 2 | CQ140: 3 | CR140: 4 | CS140: 1 | CT140: 2 | CU140: 3 | CV140: 4 | CW140: 1 | CX140: 2 | CY140: 3 | CZ140: 4 | DA140: 1 | DB140: =IF( DA140 = $F137, 1, DA140 + 1) * DB139 -> 2 | DC140: 3 | DD140: 4 | DE140: 1 | DF140: 2 | DG140: 3 | DH140: 4 | DI140: 0 | DJ140: 0 | DK140: 0 | DL140: 0 | DM140: 0 | DN140: 0 | DO140: 0 | DP140: 0 | DQ140: 0 | DR140: 0 | DS140: 0 | DT140: 0 | DU140: 0 | DV140: 0 | DW140: 0 | DX140: 0 | DY140: 0 | DZ140: 0 | EA140: 0 | EB140: 0 | EC140: 0 | ED140: 0 | EE140: 0 | EF140: 0 | EG140: 0 | EH140: =IF( EG140 = $F137, 1, EG140 + 1) * EH139 -> 0 | EI140: 0 | EJ140: 0 | EK140: 0 | EL140: 0 | EM140: 0 | EN140: 0 | EO140: 0 | EP140: 0 | EQ140: 0 | ER140: 0 | ES140: 0 | ET140: 0 | EU140: 0 | EV140: 0 | EW140: 0 | EX140: 0 | EY140: 0 | EZ140: 0 | FA140: 0 | FB140: 0 | FC140: 0 | FD140: 0 | FE140: 0 | FF140: 0 | FG140: 0 | FH140: 0 | FI140: 0 | FJ140: 0 | FK140: 0 | FL140: 0 | FM140: 0 | FN140: =IF( FM140 = $F137, 1, FM140 + 1) * FN139 -> 0 | FO140: 0 | FP140: 0 | FQ140: 0 | FR140: 0 | FS140: 0 | FT140: 0 | FU140: 0 | FV140: 0 | FW140: 0 | FX140: 0 | FY140: 0 | FZ140: 0 | GA140: 0 | GB140: 0 | GC140: 0 | GD140: 0 | GE140: 0 | GF140: 0 | GG140: 0 | GH140: 0 | GI140: 0 | GJ140: 0
B142: Contract year number
E143: =InpC!E$138 -> Number of periods in a year | F143: =InpC!F$138 -> 4 | G143: =InpC!G$138 -> periods
E144: =E$33 -> End of contract year flag | F144: 0 | G144: 0 | H144: 0 | I144: 0 | J144: 0 | K144: 0 | L144: 1 | M144: 0 | N144: 0 | O144: 0 | P144: 1 | Q144: 0 | R144: 0 | S144: 0 | T144: 1 | U144: 0 | V144: 0 | W144: 0 | X144: 1 | Y144: 0 | Z144: 0 | AA144: 0 | AB144: 1 | AC144: 0 | AD144: 0 | AE144: 0 | AF144: 1 | AG144: 0 | AH144: 0 | AI144: 0 | AJ144: 1 | AK144: =AK$33 -> 0 | AL144: 0 | AM144: 0 | AN144: 1 | AO144: 0 | AP144: 0 | AQ144: 0 | AR144: 1 | AS144: 0 | AT144: 0 | AU144: 0 | AV144: 1 | AW144: 0 | AX144: 0 | AY144: 0 | AZ144: 1 | BA144: 0 | BB144: 0 | BC144: 0 | BD144: 1 | BE144: 0 | BF144: 0 | BG144: 0 | BH144: 1 | BI144: 0 | BJ144: 0 | BK144: 0 | BL144: 1 | BM144: 0 | BN144: 0 | BO144: 0 | BP144: 1 | BQ144: =BQ$33 -> 0 | BR144: 0 | BS144: 0 | BT144: 1 | BU144: 0 | BV144: 0 | BW144: 0 | BX144: 1 | BY144: 0 | BZ144: 0 | CA144: 0 | CB144: 1 | CC144: 0 | CD144: 0 | CE144: 0 | CF144: 1 | CG144: 0 | CH144: 0 | CI144: 0 | CJ144: 1 | CK144: 0 | CL144: 0 | CM144: 0 | CN144: 1 | CO144: 0 | CP144: 0 | CQ144: 0 | CR144: 1 | CS144: 0 | CT144: 0 | CU144: 0 | CV144: 1 | CW144: =CW$33 -> 0 | CX144: 0 | CY144: 0 | CZ144: 1 | DA144: 0 | DB144: 0 | DC144: 0 | DD144: 1 | DE144: 0 | DF144: 0 | DG144: 0 | DH144: 1 | DI144: 0 | DJ144: 0 | DK144: 0 | DL144: 1 | DM144: 0 | DN144: 0 | DO144: 0 | DP144: 1 | DQ144: 0 | DR144: 0 | DS144: 0 | DT144: 1 | DU144: 0 | DV144: 0 | DW144: 0 | DX144: 1 | DY144: 0 | DZ144: 0 | EA144: 0 | EB144: 1 | EC144: =EC$33 -> 0 | ED144: 0 | EE144: 0 | EF144: 1 | EG144: 0 | EH144: 0 | EI144: 0 | EJ144: 1 | EK144: 0 | EL144: 0 | EM144: 0 | EN144: 1 | EO144: 0 | EP144: 0 | EQ144: 0 | ER144: 1 | ES144: 0 | ET144: 0 | EU144: 0 | EV144: 1 | EW144: 0 | EX144: 0 | EY144: 0 | EZ144: 1 | FA144: 0 | FB144: 0 | FC144: 0 | FD144: 1 | FE144: 0 | FF144: 0 | FG144: 0 | FH144: 1 | FI144: =FI$33 -> 0 | FJ144: 0 | FK144: 0 | FL144: 1 | FM144: 0 | FN144: 0 | FO144: 0 | FP144: 1 | FQ144: 0 | FR144: 0 | FS144: 0 | FT144: 1 | FU144: 0 | FV144: 0 | FW144: 0 | FX144: 1 | FY144: 0 | FZ144: 0 | GA144: 0 | GB144: 1 | GC144: 0 | GD144: 0 | GE144: 0 | GF144: 1 | GG144: 0 | GH144: 0 | GI144: 0 | GJ144: 1
E145: =E$97 -> Operating period flag | F145: 0 | G145: flag | H145: 100 | I145: 0 | J145: 0 | K145: 0 | L145: 0 | M145: 1 | N145: 1 | O145: 1 | P145: 1 | Q145: 1 | R145: 1 | S145: 1 | T145: 1 | U145: 1 | V145: 1 | W145: 1 | X145: 1 | Y145: 1 | Z145: 1 | AA145: 1 | AB145: 1 | AC145: 1 | AD145: 1 | AE145: 1 | AF145: 1 | AG145: 1 | AH145: 1 | AI145: 1 | AJ145: 1 | AK145: 1 | AL145: 1 | AM145: 1 | AN145: 1 | AO145: 1 | AP145: 1 | AQ145: 1 | AR145: 1 | AS145: 1 | AT145: 1 | AU145: 1 | AV145: 1 | AW145: 1 | AX145: 1 | AY145: 1 | AZ145: 1 | BA145: 1 | BB145: 1 | BC145: 1 | BD145: 1 | BE145: 1 | BF145: 1 | BG145: 1 | BH145: 1 | BI145: 1 | BJ145: 1 | BK145: 1 | BL145: 1 | BM145: 1 | BN145: 1 | BO145: 1 | BP145: 1 | BQ145: =BQ$97 -> 1 | BR145: 1 | BS145: 1 | BT145: 1 | BU145: 1 | BV145: 1 | BW145: 1 | BX145: 1 | BY145: 1 | BZ145: 1 | CA145: 1 | CB145: 1 | CC145: 1 | CD145: 1 | CE145: 1 | CF145: 1 | CG145: 1 | CH145: 1 | CI145: 1 | CJ145: 1 | CK145: 1 | CL145: 1 | CM145: 1 | CN145: 1 | CO145: 1 | CP145: 1 | CQ145: 1 | CR145: 1 | CS145: 1 | CT145: 1 | CU145: 1 | CV145: 1 | CW145: 1 | CX145: 1 | CY145: 1 | CZ145: 1 | DA145: 1 | DB145: 1 | DC145: 1 | DD145: 1 | DE145: 1 | DF145: 1 | DG145: 1 | DH145: 1 | DI145: 0 | DJ145: 0 | DK145: 0 | DL145: 0 | DM145: 0 | DN145: 0 | DO145: 0 | DP145: 0 | DQ145: 0 | DR145: 0 | DS145: 0 | DT145: 0 | DU145: 0 | DV145: 0 | DW145: 0 | DX145: 0 | DY145: 0 | DZ145: 0 | EA145: 0 | EB145: 0 | EC145: =EC$97 -> 0 | ED145: 0 | EE145: 0 | EF145: 0 | EG145: 0 | EH145: 0 | EI145: 0 | EJ145: 0 | EK145: 0 | EL145: 0 | EM145: 0 | EN145: 0 | EO145: 0 | EP145: 0 | EQ145: 0 | ER145: 0 | ES145: 0 | ET145: 0 | EU145: 0 | EV145: 0 | EW145: 0 | EX145: 0 | EY145: 0 | EZ145: 0 | FA145: 0 | FB145: 0 | FC145: 0 | FD145: 0 | FE145: 0 | FF145: 0 | FG145: 0 | FH145: 0 | FI145: 0 | FJ145: 0 | FK145: 0 | FL145: 0 | FM145: 0 | FN145: 0 | FO145: 0 | FP145: 0 | FQ145: 0 | FR145: 0 | FS145: 0 | FT145: 0 | FU145: 0 | FV145: 0 | FW145: 0 | FX145: 0 | FY145: 0 | FZ145: 0 | GA145: 0 | GB145: 0 | GC145: 0 | GD145: 0 | GE145: 0 | GF145: 0 | GG145: 0 | GH145: 0 | GI145: 0 | GJ145: 0
E146: Contract year number | G146: counter | J146: =(I146 + I144) * J145 -> 0 | K146: 0 | L146: 0 | M146: 1 | N146: 1 | O146: 1 | P146: 1 | Q146: 2 | R146: 2 | S146: 2 | T146: 2 | U146: 3 | V146: 3 | W146: 3 | X146: 3 | Y146: 4 | Z146: 4 | AA146: 4 | AB146: 4 | AC146: 5 | AD146: 5 | AE146: 5 | AF146: 5 | AG146: 6 | AH146: 6 | AI146: 6 | AJ146: 6 | AK146: 7 | AL146: 7 | AM146: 7 | AN146: 7 | AO146: 8 | AP146: =(AO146 + AO144) * AP145 -> 8 | AQ146: 8 | AR146: 8 | AS146: 9 | AT146: 9 | AU146: 9 | AV146: 9 | AW146: 10 | AX146: 10 | AY146: 10 | AZ146: 10 | BA146: 11 | BB146: 11 | BC146: 11 | BD146: 11 | BE146: 12 | BF146: 12 | BG146: 12 | BH146: 12 | BI146: 13 | BJ146: 13 | BK146: 13 | BL146: 13 | BM146: 14 | BN146: 14 | BO146: 14 | BP146: 14 | BQ146: 15 | BR146: 15 | BS146: 15 | BT146: 15 | BU146: 16 | BV146: =(BU146 + BU144) * BV145 -> 16 | BW146: 16 | BX146: 16 | BY146: 17 | BZ146: 17 | CA146: 17 | CB146: 17 | CC146: 18 | CD146: 18 | CE146: 18 | CF146: 18 | CG146: 19 | CH146: 19 | CI146: 19 | CJ146: 19 | CK146: 20 | CL146: 20 | CM146: 20 | CN146: 20 | CO146: 21 | CP146: 21 | CQ146: 21 | CR146: 21 | CS146: 22 | CT146: 22 | CU146: 22 | CV146: 22 | CW146: 23 | CX146: 23 | CY146: 23 | CZ146: 23 | DA146: 24 | DB146: =(DA146 + DA144) * DB145 -> 24 | DC146: 24 | DD146: 24 | DE146: 25 | DF146: 25 | DG146: 25 | DH146: 25 | DI146: 0 | DJ146: 0 | DK146: 0 | DL146: 0 | DM146: 0 | DN146: 0 | DO146: 0 | DP146: 0 | DQ146: 0 | DR146: 0 | DS146: 0 | DT146: 0 | DU146: 0 | DV146: 0 | DW146: 0 | DX146: 0 | DY146: 0 | DZ146: 0 | EA146: 0 | EB146: 0 | EC146: 0 | ED146: 0 | EE146: 0 | EF146: 0 | EG146: 0 | EH146: =(EG146 + EG144) * EH145 -> 0 | EI146: 0 | EJ146: 0 | EK146: 0 | EL146: 0 | EM146: 0 | EN146: 0 | EO146: 0 | EP146: 0 | EQ146: 0 | ER146: 0 | ES146: 0 | ET146: 0 | EU146: 0 | EV146: 0 | EW146: 0 | EX146: 0 | EY146: 0 | EZ146: 0 | FA146: 0 | FB146: 0 | FC146: 0 | FD146: 0 | FE146: 0 | FF146: 0 | FG146: 0 | FH146: 0 | FI146: 0 | FJ146: 0 | FK146: 0 | FL146: 0 | FM146: 0 | FN146: =(FM146 + FM144) * FN145 -> 0 | FO146: 0 | FP146: 0 | FQ146: 0 | FR146: 0 | FS146: 0 | FT146: 0 | FU146: 0 | FV146: 0 | FW146: 0 | FX146: 0 | FY146: 0 | FZ146: 0 | GA146: 0 | GB146: 0 | GC146: 0 | GD146: 0 | GE146: 0 | GF146: 0 | GG146: 0 | GH146: 0 | GI146: 0 | GJ146: 0
A150: DAYS IN PERIOD
E151: =E$20 -> Model period beginning | F151: 00:00:00 | G151: date | H151: 00:00:00 | I151: 00:00:00 | J151: 2020-07-01 | K151: 2020-10-01 | L151: 2021-01-01 | M151: 2021-04-01 | N151: 2021-07-01 | O151: 2021-10-01 | P151: 2022-01-01 | Q151: 2022-04-01 | R151: 2022-07-01 | S151: 2022-10-01 | T151: 2023-01-01 | U151: 2023-04-01 | V151: 2023-07-01 | W151: 2023-10-01 | X151: 2024-01-01 | Y151: 2024-04-01 | Z151: 2024-07-01 | AA151: 2024-10-01 | AB151: 2025-01-01 | AC151: 2025-04-01 | AD151: 2025-07-01 | AE151: 2025-10-01 | AF151: 2026-01-01 | AG151: 2026-04-01 | AH151: 2026-07-01 | AI151: 2026-10-01 | AJ151: 2027-01-01 | AK151: 2027-04-01 | AL151: 2027-07-01 | AM151: 2027-10-01 | AN151: 2028-01-01 | AO151: 2028-04-01 | AP151: 2028-07-01 | AQ151: 2028-10-01 | AR151: 2029-01-01 | AS151: 2029-04-01 | AT151: 2029-07-01 | AU151: 2029-10-01 | AV151: 2030-01-01 | AW151: 2030-04-01 | AX151: 2030-07-01 | AY151: 2030-10-01 | AZ151: 2031-01-01 | BA151: 2031-04-01 | BB151: 2031-07-01 | BC151: 2031-10-01 | BD151: 2032-01-01 | BE151: 2032-04-01 | BF151: 2032-07-01 | BG151: 2032-10-01 | BH151: 2033-01-01 | BI151: 2033-04-01 | BJ151: 2033-07-01 | BK151: 2033-10-01 | BL151: 2034-01-01 | BM151: 2034-04-01 | BN151: 2034-07-01 | BO151: 2034-10-01 | BP151: 2035-01-01 | BQ151: =BQ$20 -> 2035-04-01 | BR151: 2035-07-01 | BS151: 2035-10-01 | BT151: 2036-01-01 | BU151: 2036-04-01 | BV151: 2036-07-01 | BW151: 2036-10-01 | BX151: 2037-01-01 | BY151: 2037-04-01 | BZ151: 2037-07-01 | CA151: 2037-10-01 | CB151: 2038-01-01 | CC151: 2038-04-01 | CD151: 2038-07-01 | CE151: 2038-10-01 | CF151: 2039-01-01 | CG151: 2039-04-01 | CH151: 2039-07-01 | CI151: 2039-10-01 | CJ151: 2040-01-01 | CK151: 2040-04-01 | CL151: 2040-07-01 | CM151: 2040-10-01 | CN151: 2041-01-01 | CO151: 2041-04-01 | CP151: 2041-07-01 | CQ151: 2041-10-01 | CR151: 2042-01-01 | CS151: 2042-04-01 | CT151: 2042-07-01 | CU151: 2042-10-01 | CV151: 2043-01-01 | CW151: 2043-04-01 | CX151: 2043-07-01 | CY151: 2043-10-01 | CZ151: 2044-01-01 | DA151: 2044-04-01 | DB151: 2044-07-01 | DC151: 2044-10-01 | DD151: 2045-01-01 | DE151: 2045-04-01 | DF151: 2045-07-01 | DG151: 2045-10-01 | DH151: 2046-01-01 | DI151: 2046-04-01 | DJ151: 2046-07-01 | DK151: 2046-10-01 | DL151: 2047-01-01 | DM151: 2047-04-01 | DN151: 2047-07-01 | DO151: 2047-10-01 | DP151: 2048-01-01 | DQ151: 2048-04-01 | DR151: 2048-07-01 | DS151: 2048-10-01 | DT151: 2049-01-01 | DU151: 2049-04-01 | DV151: 2049-07-01 | DW151: 2049-10-01 | DX151: 2050-01-01 | DY151: 2050-04-01 | DZ151: 2050-07-01 | EA151: 2050-10-01 | EB151: 2051-01-01 | EC151: =EC$20 -> 2051-04-01 | ED151: 2051-07-01 | EE151: 2051-10-01 | EF151: 2052-01-01 | EG151: 2052-04-01 | EH151: 2052-07-01 | EI151: 2052-10-01 | EJ151: 2053-01-01 | EK151: 2053-04-01 | EL151: 2053-07-01 | EM151: 2053-10-01 | EN151: 2054-01-01 | EO151: 2054-04-01 | EP151: 2054-07-01 | EQ151: 2054-10-01 | ER151: 2055-01-01 | ES151: 2055-04-01 | ET151: 2055-07-01 | EU151: 2055-10-01 | EV151: 2056-01-01 | EW151: 2056-04-01 | EX151: 2056-07-01 | EY151: 2056-10-01 | EZ151: 2057-01-01 | FA151: 2057-04-01 | FB151: 2057-07-01 | FC151: 2057-10-01 | FD151: 2058-01-01 | FE151: 2058-04-01 | FF151: 2058-07-01 | FG151: 2058-10-01 | FH151: 2059-01-01 | FI151: 2059-04-01 | FJ151: 2059-07-01 | FK151: 2059-10-01 | FL151: 2060-01-01 | FM151: 2060-04-01 | FN151: 2060-07-01 | FO151: 2060-10-01 | FP151: 2061-01-01 | FQ151: 2061-04-01 | FR151: 2061-07-01 | FS151: 2061-10-01 | FT151: 2062-01-01 | FU151: 2062-04-01 | FV151: 2062-07-01 | FW151: 2062-10-01 | FX151: 2063-01-01 | FY151: 2063-04-01 | FZ151: 2063-07-01 | GA151: 2063-10-01 | GB151: 2064-01-01 | GC151: 2064-04-01 | GD151: 2064-07-01 | GE151: 2064-10-01 | GF151: 2065-01-01 | GG151: 2065-04-01 | GH151: 2065-07-01 | GI151: 2065-10-01 | GJ151: 2066-01-01
E152: =E$25 -> Model period ending | F152: 00:00:00 | G152: date | H152: 00:00:00 | I152: 00:00:00 | J152: 2020-09-30 | K152: 2020-12-31 | L152: 2021-03-31 | M152: 2021-06-30 | N152: 2021-09-30 | O152: 2021-12-31 | P152: 2022-03-31 | Q152: 2022-06-30 | R152: 2022-09-30 | S152: 2022-12-31 | T152: 2023-03-31 | U152: 2023-06-30 | V152: 2023-09-30 | W152: 2023-12-31 | X152: 2024-03-31 | Y152: 2024-06-30 | Z152: 2024-09-30 | AA152: 2024-12-31 | AB152: 2025-03-31 | AC152: 2025-06-30 | AD152: 2025-09-30 | AE152: 2025-12-31 | AF152: 2026-03-31 | AG152: 2026-06-30 | AH152: 2026-09-30 | AI152: 2026-12-31 | AJ152: 2027-03-31 | AK152: 2027-06-30 | AL152: 2027-09-30 | AM152: 2027-12-31 | AN152: 2028-03-31 | AO152: 2028-06-30 | AP152: 2028-09-30 | AQ152: 2028-12-31 | AR152: 2029-03-31 | AS152: 2029-06-30 | AT152: 2029-09-30 | AU152: 2029-12-31 | AV152: 2030-03-31 | AW152: 2030-06-30 | AX152: 2030-09-30 | AY152: 2030-12-31 | AZ152: 2031-03-31 | BA152: 2031-06-30 | BB152: 2031-09-30 | BC152: 2031-12-31 | BD152: 2032-03-31 | BE152: 2032-06-30 | BF152: 2032-09-30 | BG152: 2032-12-31 | BH152: 2033-03-31 | BI152: 2033-06-30 | BJ152: 2033-09-30 | BK152: 2033-12-31 | BL152: 2034-03-31 | BM152: 2034-06-30 | BN152: 2034-09-30 | BO152: 2034-12-31 | BP152: 2035-03-31 | BQ152: =BQ$25 -> 2035-06-30 | BR152: 2035-09-30 | BS152: 2035-12-31 | BT152: 2036-03-31 | BU152: 2036-06-30 | BV152: 2036-09-30 | BW152: 2036-12-31 | BX152: 2037-03-31 | BY152: 2037-06-30 | BZ152: 2037-09-30 | CA152: 2037-12-31 | CB152: 2038-03-31 | CC152: 2038-06-30 | CD152: 2038-09-30 | CE152: 2038-12-31 | CF152: 2039-03-31 | CG152: 2039-06-30 | CH152: 2039-09-30 | CI152: 2039-12-31 | CJ152: 2040-03-31 | CK152: 2040-06-30 | CL152: 2040-09-30 | CM152: 2040-12-31 | CN152: 2041-03-31 | CO152: 2041-06-30 | CP152: 2041-09-30 | CQ152: 2041-12-31 | CR152: 2042-03-31 | CS152: 2042-06-30 | CT152: 2042-09-30 | CU152: 2042-12-31 | CV152: 2043-03-31 | CW152: 2043-06-30 | CX152: 2043-09-30 | CY152: 2043-12-31 | CZ152: 2044-03-31 | DA152: 2044-06-30 | DB152: 2044-09-30 | DC152: 2044-12-31 | DD152: 2045-03-31 | DE152: 2045-06-30 | DF152: 2045-09-30 | DG152: 2045-12-31 | DH152: 2046-03-31 | DI152: 2046-06-30 | DJ152: 2046-09-30 | DK152: 2046-12-31 | DL152: 2047-03-31 | DM152: 2047-06-30 | DN152: 2047-09-30 | DO152: 2047-12-31 | DP152: 2048-03-31 | DQ152: 2048-06-30 | DR152: 2048-09-30 | DS152: 2048-12-31 | DT152: 2049-03-31 | DU152: 2049-06-30 | DV152: 2049-09-30 | DW152: 2049-12-31 | DX152: 2050-03-31 | DY152: 2050-06-30 | DZ152: 2050-09-30 | EA152: 2050-12-31 | EB152: 2051-03-31 | EC152: =EC$25 -> 2051-06-30 | ED152: 2051-09-30 | EE152: 2051-12-31 | EF152: 2052-03-31 | EG152: 2052-06-30 | EH152: 2052-09-30 | EI152: 2052-12-31 | EJ152: 2053-03-31 | EK152: 2053-06-30 | EL152: 2053-09-30 | EM152: 2053-12-31 | EN152: 2054-03-31 | EO152: 2054-06-30 | EP152: 2054-09-30 | EQ152: 2054-12-31 | ER152: 2055-03-31 | ES152: 2055-06-30 | ET152: 2055-09-30 | EU152: 2055-12-31 | EV152: 2056-03-31 | EW152: 2056-06-30 | EX152: 2056-09-30 | EY152: 2056-12-31 | EZ152: 2057-03-31 | FA152: 2057-06-30 | FB152: 2057-09-30 | FC152: 2057-12-31 | FD152: 2058-03-31 | FE152: 2058-06-30 | FF152: 2058-09-30 | FG152: 2058-12-31 | FH152: 2059-03-31 | FI152: 2059-06-30 | FJ152: 2059-09-30 | FK152: 2059-12-31 | FL152: 2060-03-31 | FM152: 2060-06-30 | FN152: 2060-09-30 | FO152: 2060-12-31 | FP152: 2061-03-31 | FQ152: 2061-06-30 | FR152: 2061-09-30 | FS152: 2061-12-31 | FT152: 2062-03-31 | FU152: 2062-06-30 | FV152: 2062-09-30 | FW152: 2062-12-31 | FX152: 2063-03-31 | FY152: 2063-06-30 | FZ152: 2063-09-30 | GA152: 2063-12-31 | GB152: 2064-03-31 | GC152: 2064-06-30 | GD152: 2064-09-30 | GE152: 2064-12-31 | GF152: 2065-03-31 | GG152: 2065-06-30 | GH152: 2065-09-30 | GI152: 2065-12-31 | GJ152: 2066-03-31
E153: Days in period | G153: days | J153: =J152 - J151 + 1 -> 92 | K153: 92 | L153: 90 | M153: 91 | N153: 92 | O153: 92 | P153: 90 | Q153: 91 | R153: 92 | S153: 92 | T153: 90 | U153: 91 | V153: 92 | W153: 92 | X153: 91 | Y153: 91 | Z153: 92 | AA153: 92 | AB153: 90 | AC153: 91 | AD153: 92 | AE153: 92 | AF153: 90 | AG153: 91 | AH153: 92 | AI153: 92 | AJ153: 90 | AK153: 91 | AL153: 92 | AM153: 92 | AN153: 91 | AO153: 91 | AP153: =AP152 - AP151 + 1 -> 92 | AQ153: 92 | AR153: 90 | AS153: 91 | AT153: 92 | AU153: 92 | AV153: 90 | AW153: 91 | AX153: 92 | AY153: 92 | AZ153: 90 | BA153: 91 | BB153: 92 | BC153: 92 | BD153: 91 | BE153: 91 | BF153: 92 | BG153: 92 | BH153: 90 | BI153: 91 | BJ153: 92 | BK153: 92 | BL153: 90 | BM153: 91 | BN153: 92 | BO153: 92 | BP153: 90 | BQ153: 91 | BR153: 92 | BS153: 92 | BT153: 91 | BU153: 91 | BV153: =BV152 - BV151 + 1 -> 92 | BW153: 92 | BX153: 90 | BY153: 91 | BZ153: 92 | CA153: 92 | CB153: 90 | CC153: 91 | CD153: 92 | CE153: 92 | CF153: 90 | CG153: 91 | CH153: 92 | CI153: 92 | CJ153: 91 | CK153: 91 | CL153: 92 | CM153: 92 | CN153: 90 | CO153: 91 | CP153: 92 | CQ153: 92 | CR153: 90 | CS153: 91 | CT153: 92 | CU153: 92 | CV153: 90 | CW153: 91 | CX153: 92 | CY153: 92 | CZ153: 91 | DA153: 91 | DB153: =DB152 - DB151 + 1 -> 92 | DC153: 92 | DD153: 90 | DE153: 91 | DF153: 92 | DG153: 92 | DH153: 90 | DI153: 91 | DJ153: 92 | DK153: 92 | DL153: 90 | DM153: 91 | DN153: 92 | DO153: 92 | DP153: 91 | DQ153: 91 | DR153: 92 | DS153: 92 | DT153: 90 | DU153: 91 | DV153: 92 | DW153: 92 | DX153: 90 | DY153: 91 | DZ153: 92 | EA153: 92 | EB153: 90 | EC153: 91 | ED153: 92 | EE153: 92 | EF153: 91 | EG153: 91 | EH153: =EH152 - EH151 + 1 -> 92 | EI153: 92 | EJ153: 90 | EK153: 91 | EL153: 92 | EM153: 92 | EN153: 90 | EO153: 91 | EP153: 92 | EQ153: 92 | ER153: 90 | ES153: 91 | ET153: 92 | EU153: 92 | EV153: 91 | EW153: 91 | EX153: 92 | EY153: 92 | EZ153: 90 | FA153: 91 | FB153: 92 | FC153: 92 | FD153: 90 | FE153: 91 | FF153: 92 | FG153: 92 | FH153: 90 | FI153: 91 | FJ153: 92 | FK153: 92 | FL153: 91 | FM153: 91 | FN153: =FN152 - FN151 + 1 -> 92 | FO153: 92 | FP153: 90 | FQ153: 91 | FR153: 92 | FS153: 92 | FT153: 90 | FU153: 91 | FV153: 92 | FW153: 92 | FX153: 90 | FY153: 91 | FZ153: 92 | GA153: 92 | GB153: 91 | GC153: 91 | GD153: 92 | GE153: 92 | GF153: 90 | GG153: 91 | GH153: 92 | GI153: 92 | GJ153: 90
E155: =E$97 -> Operating period flag | F155: 0 | G155: flag | H155: 100 | I155: 0 | J155: 0 | K155: 0 | L155: 0 | M155: 1 | N155: 1 | O155: 1 | P155: 1 | Q155: 1 | R155: 1 | S155: 1 | T155: 1 | U155: 1 | V155: 1 | W155: 1 | X155: 1 | Y155: 1 | Z155: 1 | AA155: 1 | AB155: 1 | AC155: 1 | AD155: 1 | AE155: 1 | AF155: 1 | AG155: 1 | AH155: 1 | AI155: 1 | AJ155: 1 | AK155: =AK$97 -> 1 | AL155: 1 | AM155: 1 | AN155: 1 | AO155: 1 | AP155: 1 | AQ155: 1 | AR155: 1 | AS155: 1 | AT155: 1 | AU155: 1 | AV155: 1 | AW155: 1 | AX155: 1 | AY155: 1 | AZ155: 1 | BA155: 1 | BB155: 1 | BC155: 1 | BD155: 1 | BE155: 1 | BF155: 1 | BG155: 1 | BH155: 1 | BI155: 1 | BJ155: 1 | BK155: 1 | BL155: 1 | BM155: 1 | BN155: 1 | BO155: 1 | BP155: 1 | BQ155: =BQ$97 -> 1 | BR155: 1 | BS155: 1 | BT155: 1 | BU155: 1 | BV155: 1 | BW155: 1 | BX155: 1 | BY155: 1 | BZ155: 1 | CA155: 1 | CB155: 1 | CC155: 1 | CD155: 1 | CE155: 1 | CF155: 1 | CG155: 1 | CH155: 1 | CI155: 1 | CJ155: 1 | CK155: 1 | CL155: 1 | CM155: 1 | CN155: 1 | CO155: 1 | CP155: 1 | CQ155: 1 | CR155: 1 | CS155: 1 | CT155: 1 | CU155: 1 | CV155: 1 | CW155: =CW$97 -> 1 | CX155: 1 | CY155: 1 | CZ155: 1 | DA155: 1 | DB155: 1 | DC155: 1 | DD155: 1 | DE155: 1 | DF155: 1 | DG155: 1 | DH155: 1 | DI155: 0 | DJ155: 0 | DK155: 0 | DL155: 0 | DM155: 0 | DN155: 0 | DO155: 0 | DP155: 0 | DQ155: 0 | DR155: 0 | DS155: 0 | DT155: 0 | DU155: 0 | DV155: 0 | DW155: 0 | DX155: 0 | DY155: 0 | DZ155: 0 | EA155: 0 | EB155: 0 | EC155: =EC$97 -> 0 | ED155: 0 | EE155: 0 | EF155: 0 | EG155: 0 | EH155: 0 | EI155: 0 | EJ155: 0 | EK155: 0 | EL155: 0 | EM155: 0 | EN155: 0 | EO155: 0 | EP155: 0 | EQ155: 0 | ER155: 0 | ES155: 0 | ET155: 0 | EU155: 0 | EV155: 0 | EW155: 0 | EX155: 0 | EY155: 0 | EZ155: 0 | FA155: 0 | FB155: 0 | FC155: 0 | FD155: 0 | FE155: 0 | FF155: 0 | FG155: 0 | FH155: 0 | FI155: =FI$97 -> 0 | FJ155: 0 | FK155: 0 | FL155: 0 | FM155: 0 | FN155: 0 | FO155: 0 | FP155: 0 | FQ155: 0 | FR155: 0 | FS155: 0 | FT155: 0 | FU155: 0 | FV155: 0 | FW155: 0 | FX155: 0 | FY155: 0 | FZ155: 0 | GA155: 0 | GB155: 0 | GC155: 0 | GD155: 0 | GE155: 0 | GF155: 0 | GG155: 0 | GH155: 0 | GI155: 0 | GJ155: 0
E156: =E$153 -> Days in period | F156: 0 | G156: days | H156: 0 | I156: 0 | J156: 92 | K156: 92 | L156: 90 | M156: 91 | N156: 92 | O156: 92 | P156: 90 | Q156: 91 | R156: 92 | S156: 92 | T156: 90 | U156: 91 | V156: 92 | W156: 92 | X156: 91 | Y156: 91 | Z156: 92 | AA156: 92 | AB156: 90 | AC156: 91 | AD156: 92 | AE156: 92 | AF156: 90 | AG156: 91 | AH156: 92 | AI156: 92 | AJ156: 90 | AK156: =AK$153 -> 91 | AL156: 92 | AM156: 92 | AN156: 91 | AO156: 91 | AP156: 92 | AQ156: 92 | AR156: 90 | AS156: 91 | AT156: 92 | AU156: 92 | AV156: 90 | AW156: 91 | AX156: 92 | AY156: 92 | AZ156: 90 | BA156: 91 | BB156: 92 | BC156: 92 | BD156: 91 | BE156: 91 | BF156: 92 | BG156: 92 | BH156: 90 | BI156: 91 | BJ156: 92 | BK156: 92 | BL156: 90 | BM156: 91 | BN156: 92 | BO156: 92 | BP156: 90 | BQ156: =BQ$153 -> 91 | BR156: 92 | BS156: 92 | BT156: 91 | BU156: 91 | BV156: 92 | BW156: 92 | BX156: 90 | BY156: 91 | BZ156: 92 | CA156: 92 | CB156: 90 | CC156: 91 | CD156: 92 | CE156: 92 | CF156: 90 | CG156: 91 | CH156: 92 | CI156: 92 | CJ156: 91 | CK156: 91 | CL156: 92 | CM156: 92 | CN156: 90 | CO156: 91 | CP156: 92 | CQ156: 92 | CR156: 90 | CS156: 91 | CT156: 92 | CU156: 92 | CV156: 90 | CW156: =CW$153 -> 91 | CX156: 92 | CY156: 92 | CZ156: 91 | DA156: 91 | DB156: 92 | DC156: 92 | DD156: 90 | DE156: 91 | DF156: 92 | DG156: 92 | DH156: 90 | DI156: 91 | DJ156: 92 | DK156: 92 | DL156: 90 | DM156: 91 | DN156: 92 | DO156: 92 | DP156: 91 | DQ156: 91 | DR156: 92 | DS156: 92 | DT156: 90 | DU156: 91 | DV156: 92 | DW156: 92 | DX156: 90 | DY156: 91 | DZ156: 92 | EA156: 92 | EB156: 90 | EC156: =EC$153 -> 91 | ED156: 92 | EE156: 92 | EF156: 91 | EG156: 91 | EH156: 92 | EI156: 92 | EJ156: 90 | EK156: 91 | EL156: 92 | EM156: 92 | EN156: 90 | EO156: 91 | EP156: 92 | EQ156: 92 | ER156: 90 | ES156: 91 | ET156: 92 | EU156: 92 | EV156: 91 | EW156: 91 | EX156: 92 | EY156: 92 | EZ156: 90 | FA156: 91 | FB156: 92 | FC156: 92 | FD156: 90 | FE156: 91 | FF156: 92 | FG156: 92 | FH156: 90 | FI156: =FI$153 -> 91 | FJ156: 92 | FK156: 92 | FL156: 91 | FM156: 91 | FN156: 92 | FO156: 92 | FP156: 90 | FQ156: 91 | FR156: 92 | FS156: 92 | FT156: 90 | FU156: 91 | FV156: 92 | FW156: 92 | FX156: 90 | FY156: 91 | FZ156: 92 | GA156: 92 | GB156: 91 | GC156: 91 | GD156: 92 | GE156: 92 | GF156: 90 | GG156: 91 | GH156: 92 | GI156: 92 | GJ156: 90
E157: Cumulative days since financial close | G157: days | J157: =I157 + (J156 * J155) -> 0 | K157: 0 | L157: 0 | M157: 91 | N157: 183 | O157: 275 | P157: 365 | Q157: 456 | R157: 548 | S157: 640 | T157: 730 | U157: 821 | V157: 913 | W157: 1005 | X157: 1096 | Y157: 1187 | Z157: 1279 | AA157: 1371 | AB157: 1461 | AC157: 1552 | AD157: 1644 | AE157: 1736 | AF157: 1826 | AG157: 1917 | AH157: 2009 | AI157: 2101 | AJ157: 2191 | AK157: 2282 | AL157: 2374 | AM157: 2466 | AN157: 2557 | AO157: 2648 | AP157: =AO157 + (AP156 * AP155) -> 2740 | AQ157: 2832 | AR157: 2922 | AS157: 3013 | AT157: 3105 | AU157: 3197 | AV157: 3287 | AW157: 3378 | AX157: 3470 | AY157: 3562 | AZ157: 3652 | BA157: 3743 | BB157: 3835 | BC157: 3927 | BD157: 4018 | BE157: 4109 | BF157: 4201 | BG157: 4293 | BH157: 4383 | BI157: 4474 | BJ157: 4566 | BK157: 4658 | BL157: 4748 | BM157: 4839 | BN157: 4931 | BO157: 5023 | BP157: 5113 | BQ157: 5204 | BR157: 5296 | BS157: 5388 | BT157: 5479 | BU157: 5570 | BV157: =BU157 + (BV156 * BV155) -> 5662 | BW157: 5754 | BX157: 5844 | BY157: 5935 | BZ157: 6027 | CA157: 6119 | CB157: 6209 | CC157: 6300 | CD157: 6392 | CE157: 6484 | CF157: 6574 | CG157: 6665 | CH157: 6757 | CI157: 6849 | CJ157: 6940 | CK157: 7031 | CL157: 7123 | CM157: 7215 | CN157: 7305 | CO157: 7396 | CP157: 7488 | CQ157: 7580 | CR157: 7670 | CS157: 7761 | CT157: 7853 | CU157: 7945 | CV157: 8035 | CW157: 8126 | CX157: 8218 | CY157: 8310 | CZ157: 8401 | DA157: 8492 | DB157: =DA157 + (DB156 * DB155) -> 8584 | DC157: 8676 | DD157: 8766 | DE157: 8857 | DF157: 8949 | DG157: 9041 | DH157: 9131 | DI157: 9131 | DJ157: 9131 | DK157: 9131 | DL157: 9131 | DM157: 9131 | DN157: 9131 | DO157: 9131 | DP157: 9131 | DQ157: 9131 | DR157: 9131 | DS157: 9131 | DT157: 9131 | DU157: 9131 | DV157: 9131 | DW157: 9131 | DX157: 9131 | DY157: 9131 | DZ157: 9131 | EA157: 9131 | EB157: 9131 | EC157: 9131 | ED157: 9131 | EE157: 9131 | EF157: 9131 | EG157: 9131 | EH157: =EG157 + (EH156 * EH155) -> 9131 | EI157: 9131 | EJ157: 9131 | EK157: 9131 | EL157: 9131 | EM157: 9131 | EN157: 9131 | EO157: 9131 | EP157: 9131 | EQ157: 9131 | ER157: 9131 | ES157: 9131 | ET157: 9131 | EU157: 9131 | EV157: 9131 | EW157: 9131 | EX157: 9131 | EY157: 9131 | EZ157: 9131 | FA157: 9131 | FB157: 9131 | FC157: 9131 | FD157: 9131 | FE157: 9131 | FF157: 9131 | FG157: 9131 | FH157: 9131 | FI157: 9131 | FJ157: 9131 | FK157: 9131 | FL157: 9131 | FM157: 9131 | FN157: =FM157 + (FN156 * FN155) -> 9131 | FO157: 9131 | FP157: 9131 | FQ157: 9131 | FR157: 9131 | FS157: 9131 | FT157: 9131 | FU157: 9131 | FV157: 9131 | FW157: 9131 | FX157: 9131 | FY157: 9131 | FZ157: 9131 | GA157: 9131 | GB157: 9131 | GC157: 9131 | GD157: 9131 | GE157: 9131 | GF157: 9131 | GG157: 9131 | GH157: 9131 | GI157: 9131 | GJ157: 9131
A159: END

Sheet Esc
A1: =RIGHT(CELL("filename", A1), LEN(CELL("filename", A1)) - SEARCH("]", CELL("filename", A1))) & " - " & InpC!F3 -> Esc - Base case 1
E2: =Time!E$25 -> Model period ending | F2: =Check!$F$9 -> 0 | G2: Error chks | J2: =Time!J$25 -> 2020-09-30 | K2: =Time!K$25 -> 2020-12-31 | L2: =Time!L$25 -> 2021-03-31 | M2: =Time!M$25 -> 2021-06-30 | N2: =Time!N$25 -> 2021-09-30 | O2: =Time!O$25 -> 2021-12-31 | P2: =Time!P$25 -> 2022-03-31 | Q2: =Time!Q$25 -> 2022-06-30 | R2: =Time!R$25 -> 2022-09-30 | S2: =Time!S$25 -> 2022-12-31 | T2: =Time!T$25 -> 2023-03-31 | U2: =Time!U$25 -> 2023-06-30 | V2: =Time!V$25 -> 2023-09-30 | W2: =Time!W$25 -> 2023-12-31 | X2: =Time!X$25 -> 2024-03-31 | Y2: =Time!Y$25 -> 2024-06-30 | Z2: =Time!Z$25 -> 2024-09-30 | AA2: =Time!AA$25 -> 2024-12-31 | AB2: =Time!AB$25 -> 2025-03-31 | AC2: =Time!AC$25 -> 2025-06-30 | AD2: =Time!AD$25 -> 2025-09-30 | AE2: =Time!AE$25 -> 2025-12-31 | AF2: =Time!AF$25 -> 2026-03-31 | AG2: =Time!AG$25 -> 2026-06-30 | AH2: =Time!AH$25 -> 2026-09-30 | AI2: =Time!AI$25 -> 2026-12-31 | AJ2: =Time!AJ$25 -> 2027-03-31 | AK2: =Time!AK$25 -> 2027-06-30 | AL2: =Time!AL$25 -> 2027-09-30 | AM2: =Time!AM$25 -> 2027-12-31 | AN2: =Time!AN$25 -> 2028-03-31 | AO2: =Time!AO$25 -> 2028-06-30 | AP2: =Time!AP$25 -> 2028-09-30 | AQ2: =Time!AQ$25 -> 2028-12-31 | AR2: =Time!AR$25 -> 2029-03-31 | AS2: =Time!AS$25 -> 2029-06-30 | AT2: =Time!AT$25 -> 2029-09-30 | AU2: =Time!AU$25 -> 2029-12-31 | AV2: =Time!AV$25 -> 2030-03-31 | AW2: =Time!AW$25 -> 2030-06-30 | AX2: =Time!AX$25 -> 2030-09-30 | AY2: =Time!AY$25 -> 2030-12-31 | AZ2: =Time!AZ$25 -> 2031-03-31 | BA2: =Time!BA$25 -> 2031-06-30 | BB2: =Time!BB$25 -> 2031-09-30 | BC2: =Time!BC$25 -> 2031-12-31 | BD2: =Time!BD$25 -> 2032-03-31 | BE2: =Time!BE$25 -> 2032-06-30 | BF2: =Time!BF$25 -> 2032-09-30 | BG2: =Time!BG$25 -> 2032-12-31 | BH2: =Time!BH$25 -> 2033-03-31 | BI2: =Time!BI$25 -> 2033-06-30 | BJ2: =Time!BJ$25 -> 2033-09-30 | BK2: =Time!BK$25 -> 2033-12-31 | BL2: =Time!BL$25 -> 2034-03-31 | BM2: =Time!BM$25 -> 2034-06-30 | BN2: =Time!BN$25 -> 2034-09-30 | BO2: =Time!BO$25 -> 2034-12-31 | BP2: =Time!BP$25 -> 2035-03-31 | BQ2: =Time!BQ$25 -> 2035-06-30 | BR2: =Time!BR$25 -> 2035-09-30 | BS2: =Time!BS$25 -> 2035-12-31 | BT2: =Time!BT$25 -> 2036-03-31 | BU2: =Time!BU$25 -> 2036-06-30 | BV2: =Time!BV$25 -> 2036-09-30 | BW2: =Time!BW$25 -> 2036-12-31 | BX2: =Time!BX$25 -> 2037-03-31 | BY2: =Time!BY$25 -> 2037-06-30 | BZ2: =Time!BZ$25 -> 2037-09-30 | CA2: =Time!CA$25 -> 2037-12-31 | CB2: =Time!CB$25 -> 2038-03-31 | CC2: =Time!CC$25 -> 2038-06-30 | CD2: =Time!CD$25 -> 2038-09-30 | CE2: =Time!CE$25 -> 2038-12-31 | CF2: =Time!CF$25 -> 2039-03-31 | CG2: =Time!CG$25 -> 2039-06-30 | CH2: =Time!CH$25 -> 2039-09-30 | CI2: =Time!CI$25 -> 2039-12-31 | CJ2: =Time!CJ$25 -> 2040-03-31 | CK2: =Time!CK$25 -> 2040-06-30 | CL2: =Time!CL$25 -> 2040-09-30 | CM2: =Time!CM$25 -> 2040-12-31 | CN2: =Time!CN$25 -> 2041-03-31 | CO2: =Time!CO$25 -> 2041-06-30 | CP2: =Time!CP$25 -> 2041-09-30 | CQ2: =Time!CQ$25 -> 2041-12-31 | CR2: =Time!CR$25 -> 2042-03-31 | CS2: =Time!CS$25 -> 2042-06-30 | CT2: =Time!CT$25 -> 2042-09-30 | CU2: =Time!CU$25 -> 2042-12-31 | CV2: =Time!CV$25 -> 2043-03-31 | CW2: =Time!CW$25 -> 2043-06-30 | CX2: =Time!CX$25 -> 2043-09-30 | CY2: =Time!CY$25 -> 2043-12-31 | CZ2: =Time!CZ$25 -> 2044-03-31 | DA2: =Time!DA$25 -> 2044-06-30 | DB2: =Time!DB$25 -> 2044-09-30 | DC2: =Time!DC$25 -> 2044-12-31 | DD2: =Time!DD$25 -> 2045-03-31 | DE2: =Time!DE$25 -> 2045-06-30 | DF2: =Time!DF$25 -> 2045-09-30 | DG2: =Time!DG$25 -> 2045-12-31 | DH2: =Time!DH$25 -> 2046-03-31 | DI2: =Time!DI$25 -> 2046-06-30 | DJ2: =Time!DJ$25 -> 2046-09-30 | DK2: =Time!DK$25 -> 2046-12-31 | DL2: =Time!DL$25 -> 2047-03-31 | DM2: =Time!DM$25 -> 2047-06-30 | DN2: =Time!DN$25 -> 2047-09-30 | DO2: =Time!DO$25 -> 2047-12-31 | DP2: =Time!DP$25 -> 2048-03-31 | DQ2: =Time!DQ$25 -> 2048-06-30 | DR2: =Time!DR$25 -> 2048-09-30 | DS2: =Time!DS$25 -> 2048-12-31 | DT2: =Time!DT$25 -> 2049-03-31 | DU2: =Time!DU$25 -> 2049-06-30 | DV2: =Time!DV$25 -> 2049-09-30 | DW2: =Time!DW$25 -> 2049-12-31 | DX2: =Time!DX$25 -> 2050-03-31 | DY2: =Time!DY$25 -> 2050-06-30 | DZ2: =Time!DZ$25 -> 2050-09-30 | EA2: =Time!EA$25 -> 2050-12-31 | EB2: =Time!EB$25 -> 2051-03-31 | EC2: =Time!EC$25 -> 2051-06-30 | ED2: =Time!ED$25 -> 2051-09-30 | EE2: =Time!EE$25 -> 2051-12-31 | EF2: =Time!EF$25 -> 2052-03-31 | EG2: =Time!EG$25 -> 2052-06-30 | EH2: =Time!EH$25 -> 2052-09-30 | EI2: =Time!EI$25 -> 2052-12-31 | EJ2: =Time!EJ$25 -> 2053-03-31 | EK2: =Time!EK$25 -> 2053-06-30 | EL2: =Time!EL$25 -> 2053-09-30 | EM2: =Time!EM$25 -> 2053-12-31 | EN2: =Time!EN$25 -> 2054-03-31 | EO2: =Time!EO$25 -> 2054-06-30 | EP2: =Time!EP$25 -> 2054-09-30 | EQ2: =Time!EQ$25 -> 2054-12-31 | ER2: =Time!ER$25 -> 2055-03-31 | ES2: =Time!ES$25 -> 2055-06-30 | ET2: =Time!ET$25 -> 2055-09-30 | EU2: =Time!EU$25 -> 2055-12-31 | EV2: =Time!EV$25 -> 2056-03-31 | EW2: =Time!EW$25 -> 2056-06-30 | EX2: =Time!EX$25 -> 2056-09-30 | EY2: =Time!EY$25 -> 2056-12-31 | EZ2: =Time!EZ$25 -> 2057-03-31 | FA2: =Time!FA$25 -> 2057-06-30 | FB2: =Time!FB$25 -> 2057-09-30 | FC2: =Time!FC$25 -> 2057-12-31 | FD2: =Time!FD$25 -> 2058-03-31 | FE2: =Time!FE$25 -> 2058-06-30 | FF2: =Time!FF$25 -> 2058-09-30 | FG2: =Time!FG$25 -> 2058-12-31 | FH2: =Time!FH$25 -> 2059-03-31 | FI2: =Time!FI$25 -> 2059-06-30 | FJ2: =Time!FJ$25 -> 2059-09-30 | FK2: =Time!FK$25 -> 2059-12-31 | FL2: =Time!FL$25 -> 2060-03-31 | FM2: =Time!FM$25 -> 2060-06-30 | FN2: =Time!FN$25 -> 2060-09-30 | FO2: =Time!FO$25 -> 2060-12-31 | FP2: =Time!FP$25 -> 2061-03-31 | FQ2: =Time!FQ$25 -> 2061-06-30 | FR2: =Time!FR$25 -> 2061-09-30 | FS2: =Time!FS$25 -> 2061-12-31 | FT2: =Time!FT$25 -> 2062-03-31 | FU2: =Time!FU$25 -> 2062-06-30 | FV2: =Time!FV$25 -> 2062-09-30 | FW2: =Time!FW$25 -> 2062-12-31 | FX2: =Time!FX$25 -> 2063-03-31 | FY2: =Time!FY$25 -> 2063-06-30 | FZ2: =Time!FZ$25 -> 2063-09-30 | GA2: =Time!GA$25 -> 2063-12-31 | GB2: =Time!GB$25 -> 2064-03-31 | GC2: =Time!GC$25 -> 2064-06-30 | GD2: =Time!GD$25 -> 2064-09-30 | GE2: =Time!GE$25 -> 2064-12-31 | GF2: =Time!GF$25 -> 2065-03-31 | GG2: =Time!GG$25 -> 2065-06-30 | GH2: =Time!GH$25 -> 2065-09-30 | GI2: =Time!GI$25 -> 2065-12-31 | GJ2: =Time!GJ$25 -> 2066-03-31
E3: =Time!E$67 -> Timeline label | F3: =Output!J2 -> 0 | G3: Track chgs | J3: =Time!J$67 -> Pre-fcst | K3: =Time!K$67 -> Pre-fcst | L3: =Time!L$67 -> Fin Close | M3: =Time!M$67 -> Operations | N3: =Time!N$67 -> Operations | O3: =Time!O$67 -> Operations | P3: =Time!P$67 -> Operations | Q3: =Time!Q$67 -> Operations | R3: =Time!R$67 -> Operations | S3: =Time!S$67 -> Operations | T3: =Time!T$67 -> Operations | U3: =Time!U$67 -> Operations | V3: =Time!V$67 -> Operations | W3: =Time!W$67 -> Operations | X3: =Time!X$67 -> Operations | Y3: =Time!Y$67 -> Operations | Z3: =Time!Z$67 -> Operations | AA3: =Time!AA$67 -> Operations | AB3: =Time!AB$67 -> Operations | AC3: =Time!AC$67 -> Operations | AD3: =Time!AD$67 -> Operations | AE3: =Time!AE$67 -> Operations | AF3: =Time!AF$67 -> Operations | AG3: =Time!AG$67 -> Operations | AH3: =Time!AH$67 -> Operations | AI3: =Time!AI$67 -> Operations | AJ3: =Time!AJ$67 -> Operations | AK3: =Time!AK$67 -> Operations | AL3: =Time!AL$67 -> Operations | AM3: =Time!AM$67 -> Operations | AN3: =Time!AN$67 -> Operations | AO3: =Time!AO$67 -> Operations | AP3: =Time!AP$67 -> Operations | AQ3: =Time!AQ$67 -> Operations | AR3: =Time!AR$67 -> Operations | AS3: =Time!AS$67 -> Operations | AT3: =Time!AT$67 -> Operations | AU3: =Time!AU$67 -> Operations | AV3: =Time!AV$67 -> Operations | AW3: =Time!AW$67 -> Operations | AX3: =Time!AX$67 -> Operations | AY3: =Time!AY$67 -> Operations | AZ3: =Time!AZ$67 -> Operations | BA3: =Time!BA$67 -> Operations | BB3: =Time!BB$67 -> Operations | BC3: =Time!BC$67 -> Operations | BD3: =Time!BD$67 -> Operations | BE3: =Time!BE$67 -> Operations | BF3: =Time!BF$67 -> Operations | BG3: =Time!BG$67 -> Operations | BH3: =Time!BH$67 -> Operations | BI3: =Time!BI$67 -> Operations | BJ3: =Time!BJ$67 -> Operations | BK3: =Time!BK$67 -> Operations | BL3: =Time!BL$67 -> Operations | BM3: =Time!BM$67 -> Operations | BN3: =Time!BN$67 -> Operations | BO3: =Time!BO$67 -> Operations | BP3: =Time!BP$67 -> Operations | BQ3: =Time!BQ$67 -> Operations | BR3: =Time!BR$67 -> Operations | BS3: =Time!BS$67 -> Operations | BT3: =Time!BT$67 -> Operations | BU3: =Time!BU$67 -> Operations | BV3: =Time!BV$67 -> Operations | BW3: =Time!BW$67 -> Operations | BX3: =Time!BX$67 -> Operations | BY3: =Time!BY$67 -> Operations | BZ3: =Time!BZ$67 -> Operations | CA3: =Time!CA$67 -> Operations | CB3: =Time!CB$67 -> Operations | CC3: =Time!CC$67 -> Operations | CD3: =Time!CD$67 -> Operations | CE3: =Time!CE$67 -> Operations | CF3: =Time!CF$67 -> Operations | CG3: =Time!CG$67 -> Operations | CH3: =Time!CH$67 -> Operations | CI3: =Time!CI$67 -> Operations | CJ3: =Time!CJ$67 -> Operations | CK3: =Time!CK$67 -> Operations | CL3: =Time!CL$67 -> Operations | CM3: =Time!CM$67 -> Operations | CN3: =Time!CN$67 -> Operations | CO3: =Time!CO$67 -> Operations | CP3: =Time!CP$67 -> Operations | CQ3: =Time!CQ$67 -> Operations | CR3: =Time!CR$67 -> Operations | CS3: =Time!CS$67 -> Operations | CT3: =Time!CT$67 -> Operations | CU3: =Time!CU$67 -> Operations | CV3: =Time!CV$67 -> Operations | CW3: =Time!CW$67 -> Operations | CX3: =Time!CX$67 -> Operations | CY3: =Time!CY$67 -> Operations | CZ3: =Time!CZ$67 -> Operations | DA3: =Time!DA$67 -> Operations | DB3: =Time!DB$67 -> Operations | DC3: =Time!DC$67 -> Operations | DD3: =Time!DD$67 -> Operations | DE3: =Time!DE$67 -> Operations | DF3: =Time!DF$67 -> Operations | DG3: =Time!DG$67 -> Operations | DH3: =Time!DH$67 -> Operations | DI3: =Time!DI$67 -> Post ops | DJ3: =Time!DJ$67 -> Post ops | DK3: =Time!DK$67 -> Post ops | DL3: =Time!DL$67 -> Post ops | DM3: =Time!DM$67 -> Post ops | DN3: =Time!DN$67 -> Post ops | DO3: =Time!DO$67 -> Post ops | DP3: =Time!DP$67 -> Post ops | DQ3: =Time!DQ$67 -> Post ops | DR3: =Time!DR$67 -> Post ops | DS3: =Time!DS$67 -> Post ops | DT3: =Time!DT$67 -> Post ops | DU3: =Time!DU$67 -> Post ops | DV3: =Time!DV$67 -> Post ops | DW3: =Time!DW$67 -> Post ops | DX3: =Time!DX$67 -> Post ops | DY3: =Time!DY$67 -> Post ops | DZ3: =Time!DZ$67 -> Post ops | EA3: =Time!EA$67 -> Post ops | EB3: =Time!EB$67 -> Post ops | EC3: =Time!EC$67 -> Post ops | ED3: =Time!ED$67 -> Post ops | EE3: =Time!EE$67 -> Post ops | EF3: =Time!EF$67 -> Post ops | EG3: =Time!EG$67 -> Post ops | EH3: =Time!EH$67 -> Post ops | EI3: =Time!EI$67 -> Post ops | EJ3: =Time!EJ$67 -> Post ops | EK3: =Time!EK$67 -> Post ops | EL3: =Time!EL$67 -> Post ops | EM3: =Time!EM$67 -> Post ops | EN3: =Time!EN$67 -> Post ops | EO3: =Time!EO$67 -> Post ops | EP3: =Time!EP$67 -> Post ops | EQ3: =Time!EQ$67 -> Post ops | ER3: =Time!ER$67 -> Post ops | ES3: =Time!ES$67 -> Post ops | ET3: =Time!ET$67 -> Post ops | EU3: =Time!EU$67 -> Post ops | EV3: =Time!EV$67 -> Post ops | EW3: =Time!EW$67 -> Post ops | EX3: =Time!EX$67 -> Post ops | EY3: =Time!EY$67 -> Post ops | EZ3: =Time!EZ$67 -> Post ops | FA3: =Time!FA$67 -> Post ops | FB3: =Time!FB$67 -> Post ops | FC3: =Time!FC$67 -> Post ops | FD3: =Time!FD$67 -> Post ops | FE3: =Time!FE$67 -> Post ops | FF3: =Time!FF$67 -> Post ops | FG3: =Time!FG$67 -> Post ops | FH3: =Time!FH$67 -> Post ops | FI3: =Time!FI$67 -> Post ops | FJ3: =Time!FJ$67 -> Post ops | FK3: =Time!FK$67 -> Post ops | FL3: =Time!FL$67 -> Post ops | FM3: =Time!FM$67 -> Post ops | FN3: =Time!FN$67 -> Post ops | FO3: =Time!FO$67 -> Post ops | FP3: =Time!FP$67 -> Post ops | FQ3: =Time!FQ$67 -> Post ops | FR3: =Time!FR$67 -> Post ops | FS3: =Time!FS$67 -> Post ops | FT3: =Time!FT$67 -> Post ops | FU3: =Time!FU$67 -> Post ops | FV3: =Time!FV$67 -> Post ops | FW3: =Time!FW$67 -> Post ops | FX3: =Time!FX$67 -> Post ops | FY3: =Time!FY$67 -> Post ops | FZ3: =Time!FZ$67 -> Post ops | GA3: =Time!GA$67 -> Post ops | GB3: =Time!GB$67 -> Post ops | GC3: =Time!GC$67 -> Post ops | GD3: =Time!GD$67 -> Post ops | GE3: =Time!GE$67 -> Post ops | GF3: =Time!GF$67 -> Post ops | GG3: =Time!GG$67 -> Post ops | GH3: =Time!GH$67 -> Post ops | GI3: =Time!GI$67 -> Post ops | GJ3: =Time!GJ$67 -> Post ops
E4: =Time!E$42 -> Contract year | F4: =Check!$F$21 -> 0 | G4: Alerts | J4: =Time!J$42 -> 2020 | K4: =Time!K$42 -> 2020 | L4: =Time!L$42 -> 2020 | M4: =Time!M$42 -> 2021 | N4: =Time!N$42 -> 2021 | O4: =Time!O$42 -> 2021 | P4: =Time!P$42 -> 2021 | Q4: =Time!Q$42 -> 2022 | R4: =Time!R$42 -> 2022 | S4: =Time!S$42 -> 2022 | T4: =Time!T$42 -> 2022 | U4: =Time!U$42 -> 2023 | V4: =Time!V$42 -> 2023 | W4: =Time!W$42 -> 2023 | X4: =Time!X$42 -> 2023 | Y4: =Time!Y$42 -> 2024 | Z4: =Time!Z$42 -> 2024 | AA4: =Time!AA$42 -> 2024 | AB4: =Time!AB$42 -> 2024 | AC4: =Time!AC$42 -> 2025 | AD4: =Time!AD$42 -> 2025 | AE4: =Time!AE$42 -> 2025 | AF4: =Time!AF$42 -> 2025 | AG4: =Time!AG$42 -> 2026 | AH4: =Time!AH$42 -> 2026 | AI4: =Time!AI$42 -> 2026 | AJ4: =Time!AJ$42 -> 2026 | AK4: =Time!AK$42 -> 2027 | AL4: =Time!AL$42 -> 2027 | AM4: =Time!AM$42 -> 2027 | AN4: =Time!AN$42 -> 2027 | AO4: =Time!AO$42 -> 2028 | AP4: =Time!AP$42 -> 2028 | AQ4: =Time!AQ$42 -> 2028 | AR4: =Time!AR$42 -> 2028 | AS4: =Time!AS$42 -> 2029 | AT4: =Time!AT$42 -> 2029 | AU4: =Time!AU$42 -> 2029 | AV4: =Time!AV$42 -> 2029 | AW4: =Time!AW$42 -> 2030 | AX4: =Time!AX$42 -> 2030 | AY4: =Time!AY$42 -> 2030 | AZ4: =Time!AZ$42 -> 2030 | BA4: =Time!BA$42 -> 2031 | BB4: =Time!BB$42 -> 2031 | BC4: =Time!BC$42 -> 2031 | BD4: =Time!BD$42 -> 2031 | BE4: =Time!BE$42 -> 2032 | BF4: =Time!BF$42 -> 2032 | BG4: =Time!BG$42 -> 2032 | BH4: =Time!BH$42 -> 2032 | BI4: =Time!BI$42 -> 2033 | BJ4: =Time!BJ$42 -> 2033 | BK4: =Time!BK$42 -> 2033 | BL4: =Time!BL$42 -> 2033 | BM4: =Time!BM$42 -> 2034 | BN4: =Time!BN$42 -> 2034 | BO4: =Time!BO$42 -> 2034 | BP4: =Time!BP$42 -> 2034 | BQ4: =Time!BQ$42 -> 2035 | BR4: =Time!BR$42 -> 2035 | BS4: =Time!BS$42 -> 2035 | BT4: =Time!BT$42 -> 2035 | BU4: =Time!BU$42 -> 2036 | BV4: =Time!BV$42 -> 2036 | BW4: =Time!BW$42 -> 2036 | BX4: =Time!BX$42 -> 2036 | BY4: =Time!BY$42 -> 2037 | BZ4: =Time!BZ$42 -> 2037 | CA4: =Time!CA$42 -> 2037 | CB4: =Time!CB$42 -> 2037 | CC4: =Time!CC$42 -> 2038 | CD4: =Time!CD$42 -> 2038 | CE4: =Time!CE$42 -> 2038 | CF4: =Time!CF$42 -> 2038 | CG4: =Time!CG$42 -> 2039 | CH4: =Time!CH$42 -> 2039 | CI4: =Time!CI$42 -> 2039 | CJ4: =Time!CJ$42 -> 2039 | CK4: =Time!CK$42 -> 2040 | CL4: =Time!CL$42 -> 2040 | CM4: =Time!CM$42 -> 2040 | CN4: =Time!CN$42 -> 2040 | CO4: =Time!CO$42 -> 2041 | CP4: =Time!CP$42 -> 2041 | CQ4: =Time!CQ$42 -> 2041 | CR4: =Time!CR$42 -> 2041 | CS4: =Time!CS$42 -> 2042 | CT4: =Time!CT$42 -> 2042 | CU4: =Time!CU$42 -> 2042 | CV4: =Time!CV$42 -> 2042 | CW4: =Time!CW$42 -> 2043 | CX4: =Time!CX$42 -> 2043 | CY4: =Time!CY$42 -> 2043 | CZ4: =Time!CZ$42 -> 2043 | DA4: =Time!DA$42 -> 2044 | DB4: =Time!DB$42 -> 2044 | DC4: =Time!DC$42 -> 2044 | DD4: =Time!DD$42 -> 2044 | DE4: =Time!DE$42 -> 2045 | DF4: =Time!DF$42 -> 2045 | DG4: =Time!DG$42 -> 2045 | DH4: =Time!DH$42 -> 2045 | DI4: =Time!DI$42 -> 2046 | DJ4: =Time!DJ$42 -> 2046 | DK4: =Time!DK$42 -> 2046 | DL4: =Time!DL$42 -> 2046 | DM4: =Time!DM$42 -> 2047 | DN4: =Time!DN$42 -> 2047 | DO4: =Time!DO$42 -> 2047 | DP4: =Time!DP$42 -> 2047 | DQ4: =Time!DQ$42 -> 2048 | DR4: =Time!DR$42 -> 2048 | DS4: =Time!DS$42 -> 2048 | DT4: =Time!DT$42 -> 2048 | DU4: =Time!DU$42 -> 2049 | DV4: =Time!DV$42 -> 2049 | DW4: =Time!DW$42 -> 2049 | DX4: =Time!DX$42 -> 2049 | DY4: =Time!DY$42 -> 2050 | DZ4: =Time!DZ$42 -> 2050 | EA4: =Time!EA$42 -> 2050 | EB4: =Time!EB$42 -> 2050 | EC4: =Time!EC$42 -> 2051 | ED4: =Time!ED$42 -> 2051 | EE4: =Time!EE$42 -> 2051 | EF4: =Time!EF$42 -> 2051 | EG4: =Time!EG$42 -> 2052 | EH4: =Time!EH$42 -> 2052 | EI4: =Time!EI$42 -> 2052 | EJ4: =Time!EJ$42 -> 2052 | EK4: =Time!EK$42 -> 2053 | EL4: =Time!EL$42 -> 2053 | EM4: =Time!EM$42 -> 2053 | EN4: =Time!EN$42 -> 2053 | EO4: =Time!EO$42 -> 2054 | EP4: =Time!EP$42 -> 2054 | EQ4: =Time!EQ$42 -> 2054 | ER4: =Time!ER$42 -> 2054 | ES4: =Time!ES$42 -> 2055 | ET4: =Time!ET$42 -> 2055 | EU4: =Time!EU$42 -> 2055 | EV4: =Time!EV$42 -> 2055 | EW4: =Time!EW$42 -> 2056 | EX4: =Time!EX$42 -> 2056 | EY4: =Time!EY$42 -> 2056 | EZ4: =Time!EZ$42 -> 2056 | FA4: =Time!FA$42 -> 2057 | FB4: =Time!FB$42 -> 2057 | FC4: =Time!FC$42 -> 2057 | FD4: =Time!FD$42 -> 2057 | FE4: =Time!FE$42 -> 2058 | FF4: =Time!FF$42 -> 2058 | FG4: =Time!FG$42 -> 2058 | FH4: =Time!FH$42 -> 2058 | FI4: =Time!FI$42 -> 2059 | FJ4: =Time!FJ$42 -> 2059 | FK4: =Time!FK$42 -> 2059 | FL4: =Time!FL$42 -> 2059 | FM4: =Time!FM$42 -> 2060 | FN4: =Time!FN$42 -> 2060 | FO4: =Time!FO$42 -> 2060 | FP4: =Time!FP$42 -> 2060 | FQ4: =Time!FQ$42 -> 2061 | FR4: =Time!FR$42 -> 2061 | FS4: =Time!FS$42 -> 2061 | FT4: =Time!FT$42 -> 2061 | FU4: =Time!FU$42 -> 2062 | FV4: =Time!FV$42 -> 2062 | FW4: =Time!FW$42 -> 2062 | FX4: =Time!FX$42 -> 2062 | FY4: =Time!FY$42 -> 2063 | FZ4: =Time!FZ$42 -> 2063 | GA4: =Time!GA$42 -> 2063 | GB4: =Time!GB$42 -> 2063 | GC4: =Time!GC$42 -> 2064 | GD4: =Time!GD$42 -> 2064 | GE4: =Time!GE$42 -> 2064 | GF4: =Time!GF$42 -> 2064 | GG4: =Time!GG$42 -> 2065 | GH4: =Time!GH$42 -> 2065 | GI4: =Time!GI$42 -> 2065 | GJ4: =Time!GJ$42 -> 2065
E5: =Time!E$10 -> Model column counter | F5: Constant | G5: Unit | H5: Total | J5: =Time!J$10 -> 1 | K5: =Time!K$10 -> 2 | L5: =Time!L$10 -> 3 | M5: =Time!M$10 -> 4 | N5: =Time!N$10 -> 5 | O5: =Time!O$10 -> 6 | P5: =Time!P$10 -> 7 | Q5: =Time!Q$10 -> 8 | R5: =Time!R$10 -> 9 | S5: =Time!S$10 -> 10 | T5: =Time!T$10 -> 11 | U5: =Time!U$10 -> 12 | V5: =Time!V$10 -> 13 | W5: =Time!W$10 -> 14 | X5: =Time!X$10 -> 15 | Y5: =Time!Y$10 -> 16 | Z5: =Time!Z$10 -> 17 | AA5: =Time!AA$10 -> 18 | AB5: =Time!AB$10 -> 19 | AC5: =Time!AC$10 -> 20 | AD5: =Time!AD$10 -> 21 | AE5: =Time!AE$10 -> 22 | AF5: =Time!AF$10 -> 23 | AG5: =Time!AG$10 -> 24 | AH5: =Time!AH$10 -> 25 | AI5: =Time!AI$10 -> 26 | AJ5: =Time!AJ$10 -> 27 | AK5: =Time!AK$10 -> 28 | AL5: =Time!AL$10 -> 29 | AM5: =Time!AM$10 -> 30 | AN5: =Time!AN$10 -> 31 | AO5: =Time!AO$10 -> 32 | AP5: =Time!AP$10 -> 33 | AQ5: =Time!AQ$10 -> 34 | AR5: =Time!AR$10 -> 35 | AS5: =Time!AS$10 -> 36 | AT5: =Time!AT$10 -> 37 | AU5: =Time!AU$10 -> 38 | AV5: =Time!AV$10 -> 39 | AW5: =Time!AW$10 -> 40 | AX5: =Time!AX$10 -> 41 | AY5: =Time!AY$10 -> 42 | AZ5: =Time!AZ$10 -> 43 | BA5: =Time!BA$10 -> 44 | BB5: =Time!BB$10 -> 45 | BC5: =Time!BC$10 -> 46 | BD5: =Time!BD$10 -> 47 | BE5: =Time!BE$10 -> 48 | BF5: =Time!BF$10 -> 49 | BG5: =Time!BG$10 -> 50 | BH5: =Time!BH$10 -> 51 | BI5: =Time!BI$10 -> 52 | BJ5: =Time!BJ$10 -> 53 | BK5: =Time!BK$10 -> 54 | BL5: =Time!BL$10 -> 55 | BM5: =Time!BM$10 -> 56 | BN5: =Time!BN$10 -> 57 | BO5: =Time!BO$10 -> 58 | BP5: =Time!BP$10 -> 59 | BQ5: =Time!BQ$10 -> 60 | BR5: =Time!BR$10 -> 61 | BS5: =Time!BS$10 -> 62 | BT5: =Time!BT$10 -> 63 | BU5: =Time!BU$10 -> 64 | BV5: =Time!BV$10 -> 65 | BW5: =Time!BW$10 -> 66 | BX5: =Time!BX$10 -> 67 | BY5: =Time!BY$10 -> 68 | BZ5: =Time!BZ$10 -> 69 | CA5: =Time!CA$10 -> 70 | CB5: =Time!CB$10 -> 71 | CC5: =Time!CC$10 -> 72 | CD5: =Time!CD$10 -> 73 | CE5: =Time!CE$10 -> 74 | CF5: =Time!CF$10 -> 75 | CG5: =Time!CG$10 -> 76 | CH5: =Time!CH$10 -> 77 | CI5: =Time!CI$10 -> 78 | CJ5: =Time!CJ$10 -> 79 | CK5: =Time!CK$10 -> 80 | CL5: =Time!CL$10 -> 81 | CM5: =Time!CM$10 -> 82 | CN5: =Time!CN$10 -> 83 | CO5: =Time!CO$10 -> 84 | CP5: =Time!CP$10 -> 85 | CQ5: =Time!CQ$10 -> 86 | CR5: =Time!CR$10 -> 87 | CS5: =Time!CS$10 -> 88 | CT5: =Time!CT$10 -> 89 | CU5: =Time!CU$10 -> 90 | CV5: =Time!CV$10 -> 91 | CW5: =Time!CW$10 -> 92 | CX5: =Time!CX$10 -> 93 | CY5: =Time!CY$10 -> 94 | CZ5: =Time!CZ$10 -> 95 | DA5: =Time!DA$10 -> 96 | DB5: =Time!DB$10 -> 97 | DC5: =Time!DC$10 -> 98 | DD5: =Time!DD$10 -> 99 | DE5: =Time!DE$10 -> 100 | DF5: =Time!DF$10 -> 101 | DG5: =Time!DG$10 -> 102 | DH5: =Time!DH$10 -> 103 | DI5: =Time!DI$10 -> 104 | DJ5: =Time!DJ$10 -> 105 | DK5: =Time!DK$10 -> 106 | DL5: =Time!DL$10 -> 107 | DM5: =Time!DM$10 -> 108 | DN5: =Time!DN$10 -> 109 | DO5: =Time!DO$10 -> 110 | DP5: =Time!DP$10 -> 111 | DQ5: =Time!DQ$10 -> 112 | DR5: =Time!DR$10 -> 113 | DS5: =Time!DS$10 -> 114 | DT5: =Time!DT$10 -> 115 | DU5: =Time!DU$10 -> 116 | DV5: =Time!DV$10 -> 117 | DW5: =Time!DW$10 -> 118 | DX5: =Time!DX$10 -> 119 | DY5: =Time!DY$10 -> 120 | DZ5: =Time!DZ$10 -> 121 | EA5: =Time!EA$10 -> 122 | EB5: =Time!EB$10 -> 123 | EC5: =Time!EC$10 -> 124 | ED5: =Time!ED$10 -> 125 | EE5: =Time!EE$10 -> 126 | EF5: =Time!EF$10 -> 127 | EG5: =Time!EG$10 -> 128 | EH5: =Time!EH$10 -> 129 | EI5: =Time!EI$10 -> 130 | EJ5: =Time!EJ$10 -> 131 | EK5: =Time!EK$10 -> 132 | EL5: =Time!EL$10 -> 133 | EM5: =Time!EM$10 -> 134 | EN5: =Time!EN$10 -> 135 | EO5: =Time!EO$10 -> 136 | EP5: =Time!EP$10 -> 137 | EQ5: =Time!EQ$10 -> 138 | ER5: =Time!ER$10 -> 139 | ES5: =Time!ES$10 -> 140 | ET5: =Time!ET$10 -> 141 | EU5: =Time!EU$10 -> 142 | EV5: =Time!EV$10 -> 143 | EW5: =Time!EW$10 -> 144 | EX5: =Time!EX$10 -> 145 | EY5: =Time!EY$10 -> 146 | EZ5: =Time!EZ$10 -> 147 | FA5: =Time!FA$10 -> 148 | FB5: =Time!FB$10 -> 149 | FC5: =Time!FC$10 -> 150 | FD5: =Time!FD$10 -> 151 | FE5: =Time!FE$10 -> 152 | FF5: =Time!FF$10 -> 153 | FG5: =Time!FG$10 -> 154 | FH5: =Time!FH$10 -> 155 | FI5: =Time!FI$10 -> 156 | FJ5: =Time!FJ$10 -> 157 | FK5: =Time!FK$10 -> 158 | FL5: =Time!FL$10 -> 159 | FM5: =Time!FM$10 -> 160 | FN5: =Time!FN$10 -> 161 | FO5: =Time!FO$10 -> 162 | FP5: =Time!FP$10 -> 163 | FQ5: =Time!FQ$10 -> 164 | FR5: =Time!FR$10 -> 165 | FS5: =Time!FS$10 -> 166 | FT5: =Time!FT$10 -> 167 | FU5: =Time!FU$10 -> 168 | FV5: =Time!FV$10 -> 169 | FW5: =Time!FW$10 -> 170 | FX5: =Time!FX$10 -> 171 | FY5: =Time!FY$10 -> 172 | FZ5: =Time!FZ$10 -> 173 | GA5: =Time!GA$10 -> 174 | GB5: =Time!GB$10 -> 175 | GC5: =Time!GC$10 -> 176 | GD5: =Time!GD$10 -> 177 | GE5: =Time!GE$10 -> 178 | GF5: =Time!GF$10 -> 179 | GG5: =Time!GG$10 -> 180 | GH5: =Time!GH$10 -> 181 | GI5: =Time!GI$10 -> 182 | GJ5: =Time!GJ$10 -> 183
A8: FORECAST CPI
E9: =InpC!E$44 -> Expected CPI at close | F9: =InpC!F$44 -> 170 | G9: =InpC!G$44 -> index
E10: =InpC!E$46 -> Forecast CPI growth rate | F10: =InpC!F$46 -> 0.025 | G10: =InpC!G$46 -> % p.a.
E11: =InpC!E$138 -> Number of periods in a year | F11: =InpC!F$138 -> 4 | G11: =InpC!G$138 -> periods
E12: =Time!E$76 -> Financial close date flag | F12: =Time!F$76 -> 0 | G12: =Time!G$76 -> flag | H12: =Time!H$76 -> 1 | I12: =Time!I$76 -> 0 | J12: =Time!J$76 -> 0 | K12: =Time!K$76 -> 0 | L12: =Time!L$76 -> 1 | M12: =Time!M$76 -> 0 | N12: =Time!N$76 -> 0 | O12: =Time!O$76 -> 0 | P12: =Time!P$76 -> 0 | Q12: =Time!Q$76 -> 0 | R12: =Time!R$76 -> 0 | S12: =Time!S$76 -> 0 | T12: =Time!T$76 -> 0 | U12: =Time!U$76 -> 0 | V12: =Time!V$76 -> 0 | W12: =Time!W$76 -> 0 | X12: =Time!X$76 -> 0 | Y12: =Time!Y$76 -> 0 | Z12: =Time!Z$76 -> 0 | AA12: =Time!AA$76 -> 0 | AB12: =Time!AB$76 -> 0 | AC12: =Time!AC$76 -> 0 | AD12: =Time!AD$76 -> 0 | AE12: =Time!AE$76 -> 0 | AF12: =Time!AF$76 -> 0 | AG12: =Time!AG$76 -> 0 | AH12: =Time!AH$76 -> 0 | AI12: =Time!AI$76 -> 0 | AJ12: =Time!AJ$76 -> 0 | AK12: =Time!AK$76 -> 0 | AL12: =Time!AL$76 -> 0 | AM12: =Time!AM$76 -> 0 | AN12: =Time!AN$76 -> 0 | AO12: =Time!AO$76 -> 0 | AP12: =Time!AP$76 -> 0 | AQ12: =Time!AQ$76 -> 0 | AR12: =Time!AR$76 -> 0 | AS12: =Time!AS$76 -> 0 | AT12: =Time!AT$76 -> 0 | AU12: =Time!AU$76 -> 0 | AV12: =Time!AV$76 -> 0 | AW12: =Time!AW$76 -> 0 | AX12: =Time!AX$76 -> 0 | AY12: =Time!AY$76 -> 0 | AZ12: =Time!AZ$76 -> 0 | BA12: =Time!BA$76 -> 0 | BB12: =Time!BB$76 -> 0 | BC12: =Time!BC$76 -> 0 | BD12: =Time!BD$76 -> 0 | BE12: =Time!BE$76 -> 0 | BF12: =Time!BF$76 -> 0 | BG12: =Time!BG$76 -> 0 | BH12: =Time!BH$76 -> 0 | BI12: =Time!BI$76 -> 0 | BJ12: =Time!BJ$76 -> 0 | BK12: =Time!BK$76 -> 0 | BL12: =Time!BL$76 -> 0 | BM12: =Time!BM$76 -> 0 | BN12: =Time!BN$76 -> 0 | BO12: =Time!BO$76 -> 0 | BP12: =Time!BP$76 -> 0 | BQ12: =Time!BQ$76 -> 0 | BR12: =Time!BR$76 -> 0 | BS12: =Time!BS$76 -> 0 | BT12: =Time!BT$76 -> 0 | BU12: =Time!BU$76 -> 0 | BV12: =Time!BV$76 -> 0 | BW12: =Time!BW$76 -> 0 | BX12: =Time!BX$76 -> 0 | BY12: =Time!BY$76 -> 0 | BZ12: =Time!BZ$76 -> 0 | CA12: =Time!CA$76 -> 0 | CB12: =Time!CB$76 -> 0 | CC12: =Time!CC$76 -> 0 | CD12: =Time!CD$76 -> 0 | CE12: =Time!CE$76 -> 0 | CF12: =Time!CF$76 -> 0 | CG12: =Time!CG$76 -> 0 | CH12: =Time!CH$76 -> 0 | CI12: =Time!CI$76 -> 0 | CJ12: =Time!CJ$76 -> 0 | CK12: =Time!CK$76 -> 0 | CL12: =Time!CL$76 -> 0 | CM12: =Time!CM$76 -> 0 | CN12: =Time!CN$76 -> 0 | CO12: =Time!CO$76 -> 0 | CP12: =Time!CP$76 -> 0 | CQ12: =Time!CQ$76 -> 0 | CR12: =Time!CR$76 -> 0 | CS12: =Time!CS$76 -> 0 | CT12: =Time!CT$76 -> 0 | CU12: =Time!CU$76 -> 0 | CV12: =Time!CV$76 -> 0 | CW12: =Time!CW$76 -> 0 | CX12: =Time!CX$76 -> 0 | CY12: =Time!CY$76 -> 0 | CZ12: =Time!CZ$76 -> 0 | DA12: =Time!DA$76 -> 0 | DB12: =Time!DB$76 -> 0 | DC12: =Time!DC$76 -> 0 | DD12: =Time!DD$76 -> 0 | DE12: =Time!DE$76 -> 0 | DF12: =Time!DF$76 -> 0 | DG12: =Time!DG$76 -> 0 | DH12: =Time!DH$76 -> 0 | DI12: =Time!DI$76 -> 0 | DJ12: =Time!DJ$76 -> 0 | DK12: =Time!DK$76 -> 0 | DL12: =Time!DL$76 -> 0 | DM12: =Time!DM$76 -> 0 | DN12: =Time!DN$76 -> 0 | DO12: =Time!DO$76 -> 0 | DP12: =Time!DP$76 -> 0 | DQ12: =Time!DQ$76 -> 0 | DR12: =Time!DR$76 -> 0 | DS12: =Time!DS$76 -> 0 | DT12: =Time!DT$76 -> 0 | DU12: =Time!DU$76 -> 0 | DV12: =Time!DV$76 -> 0 | DW12: =Time!DW$76 -> 0 | DX12: =Time!DX$76 -> 0 | DY12: =Time!DY$76 -> 0 | DZ12: =Time!DZ$76 -> 0 | EA12: =Time!EA$76 -> 0 | EB12: =Time!EB$76 -> 0 | EC12: =Time!EC$76 -> 0 | ED12: =Time!ED$76 -> 0 | EE12: =Time!EE$76 -> 0 | EF12: =Time!EF$76 -> 0 | EG12: =Time!EG$76 -> 0 | EH12: =Time!EH$76 -> 0 | EI12: =Time!EI$76 -> 0 | EJ12: =Time!EJ$76 -> 0 | EK12: =Time!EK$76 -> 0 | EL12: =Time!EL$76 -> 0 | EM12: =Time!EM$76 -> 0 | EN12: =Time!EN$76 -> 0 | EO12: =Time!EO$76 -> 0 | EP12: =Time!EP$76 -> 0 | EQ12: =Time!EQ$76 -> 0 | ER12: =Time!ER$76 -> 0 | ES12: =Time!ES$76 -> 0 | ET12: =Time!ET$76 -> 0 | EU12: =Time!EU$76 -> 0 | EV12: =Time!EV$76 -> 0 | EW12: =Time!EW$76 -> 0 | EX12: =Time!EX$76 -> 0 | EY12: =Time!EY$76 -> 0 | EZ12: =Time!EZ$76 -> 0 | FA12: =Time!FA$76 -> 0 | FB12: =Time!FB$76 -> 0 | FC12: =Time!FC$76 -> 0 | FD12: =Time!FD$76 -> 0 | FE12: =Time!FE$76 -> 0 | FF12: =Time!FF$76 -> 0 | FG12: =Time!FG$76 -> 0 | FH12: =Time!FH$76 -> 0 | FI12: =Time!FI$76 -> 0 | FJ12: =Time!FJ$76 -> 0 | FK12: =Time!FK$76 -> 0 | FL12: =Time!FL$76 -> 0 | FM12: =Time!FM$76 -> 0 | FN12: =Time!FN$76 -> 0 | FO12: =Time!FO$76 -> 0 | FP12: =Time!FP$76 -> 0 | FQ12: =Time!FQ$76 -> 0 | FR12: =Time!FR$76 -> 0 | FS12: =Time!FS$76 -> 0 | FT12: =Time!FT$76 -> 0 | FU12: =Time!FU$76 -> 0 | FV12: =Time!FV$76 -> 0 | FW12: =Time!FW$76 -> 0 | FX12: =Time!FX$76 -> 0 | FY12: =Time!FY$76 -> 0 | FZ12: =Time!FZ$76 -> 0 | GA12: =Time!GA$76 -> 0 | GB12: =Time!GB$76 -> 0 | GC12: =Time!GC$76 -> 0 | GD12: =Time!GD$76 -> 0 | GE12: =Time!GE$76 -> 0 | GF12: =Time!GF$76 -> 0 | GG12: =Time!GG$76 -> 0 | GH12: =Time!GH$76 -> 0 | GI12: =Time!GI$76 -> 0 | GJ12: =Time!GJ$76 -> 0
E13: Forecast CPI | G13: index | J13: =IF( J12 = 1, $F9, I13 * ( 1 + $F10) ^ ( 1/ $F11)) -> 0 | K13: 0 | L13: =IF( L12 = 1, $F9, K13 * (( 1 + $F10) ^ ( 1/ $F11))) -> 170 | M13: 171.0526819 | N13: 172.1118822 | O13: 173.1776414 | P13: 174.25 | Q13: 175.3289989 | R13: 176.4146793 | S13: 177.5070824 | T13: 178.60625 | U13: 179.7122239 | V13: 180.8250463 | W13: 181.9447595 | X13: 183.0714063 | Y13: 184.2050295 | Z13: 185.3456724 | AA13: 186.4933785 | AB13: 187.6481914 | AC13: 188.8101552 | AD13: 189.9793142 | AE13: 191.1557129 | AF13: 192.3393962 | AG13: 193.5304091 | AH13: 194.7287971 | AI13: 195.9346058 | AJ13: 197.1478811 | AK13: 198.3686693 | AL13: 199.597017 | AM13: 200.8329709 | AN13: 202.0765781 | AO13: 203.3278861 | AP13: 204.5869424 | AQ13: 205.8537952 | AR13: =IF( AR12 = 1, $F9, AQ13 * (( 1 + $F10) ^ ( 1/ $F11))) -> 207.1284926 | AS13: 208.4110832 | AT13: 209.701616 | AU13: 211.00014 | AV13: 212.3067049 | AW13: 213.6213603 | AX13: 214.9441564 | AY13: 216.2751436 | AZ13: 217.6143725 | BA13: 218.9618943 | BB13: 220.3177603 | BC13: 221.6820221 | BD13: 223.0547318 | BE13: 224.4359417 | BF13: 225.8257043 | BG13: 227.2240727 | BH13: 228.6311001 | BI13: 230.0468402 | BJ13: 231.4713469 | BK13: 232.9046745 | BL13: 234.3468776 | BM13: 235.7980112 | BN13: 237.2581306 | BO13: 238.7272914 | BP13: 240.2055496 | BQ13: 241.6929615 | BR13: 243.1895838 | BS13: 244.6954737 | BT13: 246.2106883 | BU13: 247.7352855 | BV13: 249.2693234 | BW13: 250.8128605 | BX13: =IF( BX12 = 1, $F9, BW13 * (( 1 + $F10) ^ ( 1/ $F11))) -> 252.3659555 | BY13: 253.9286677 | BZ13: 255.5010565 | CA13: 257.083182 | CB13: 258.6751044 | CC13: 260.2768844 | CD13: 261.8885829 | CE13: 263.5102616 | CF13: 265.141982 | CG13: 266.7838065 | CH13: 268.4357975 | CI13: 270.0980181 | CJ13: 271.7705316 | CK13: 273.4534016 | CL13: 275.1466925 | CM13: 276.8504686 | CN13: 278.5647948 | CO13: 280.2897367 | CP13: 282.0253598 | CQ13: 283.7717303 | CR13: 285.5289147 | CS13: 287.2969801 | CT13: 289.0759938 | CU13: 290.8660235 | CV13: 292.6671376 | CW13: 294.4794046 | CX13: 296.3028936 | CY13: 298.1376741 | CZ13: 299.983816 | DA13: 301.8413897 | DB13: 303.7104659 | DC13: 305.591116 | DD13: =IF( DD12 = 1, $F9, DC13 * (( 1 + $F10) ^ ( 1/ $F11))) -> 307.4834114 | DE13: 309.3874245 | DF13: 311.3032276 | DG13: 313.2308939 | DH13: 315.1704967 | DI13: 317.1221101 | DJ13: 319.0858083 | DK13: 321.0616662 | DL13: 323.0497591 | DM13: 325.0501628 | DN13: 327.0629535 | DO13: 329.0882079 | DP13: 331.1260031 | DQ13: 333.1764169 | DR13: 335.2395273 | DS13: 337.3154131 | DT13: 339.4041532 | DU13: 341.5058273 | DV13: 343.6205155 | DW13: 345.7482984 | DX13: 347.889257 | DY13: 350.043473 | DZ13: 352.2110284 | EA13: 354.3920058 | EB13: 356.5864884 | EC13: 358.7945598 | ED13: 361.0163041 | EE13: 363.251806 | EF13: 365.5011507 | EG13: 367.7644238 | EH13: 370.0417117 | EI13: 372.3331011 | EJ13: =IF( EJ12 = 1, $F9, EI13 * (( 1 + $F10) ^ ( 1/ $F11))) -> 374.6386794 | EK13: 376.9585344 | EL13: 379.2927545 | EM13: 381.6414287 | EN13: 384.0046464 | EO13: 386.3824978 | EP13: 388.7750734 | EQ13: 391.1824644 | ER13: 393.6047626 | ES13: 396.0420602 | ET13: 398.4944502 | EU13: 400.962026 | EV13: 403.4448816 | EW13: 405.9431117 | EX13: 408.4568115 | EY13: 410.9860766 | EZ13: 413.5310037 | FA13: 416.0916895 | FB13: 418.6682317 | FC13: 421.2607286 | FD13: 423.8692788 | FE13: 426.4939817 | FF13: 429.1349375 | FG13: 431.7922468 | FH13: 434.4660107 | FI13: 437.1563313 | FJ13: 439.863311 | FK13: 442.5870529 | FL13: 445.327661 | FM13: 448.0852396 | FN13: 450.8598938 | FO13: 453.6517293 | FP13: =IF( FP12 = 1, $F9, FO13 * (( 1 + $F10) ^ ( 1/ $F11))) -> 456.4608525 | FQ13: 459.2873706 | FR13: 462.1313911 | FS13: 464.9930225 | FT13: 467.8723738 | FU13: 470.7695548 | FV13: 473.6846759 | FW13: 476.6178481 | FX13: 479.5691832 | FY13: 482.5387937 | FZ13: 485.5267928 | GA13: 488.5332943 | GB13: 491.5584128 | GC13: 494.6022635 | GD13: 497.6649626 | GE13: 500.7466266 | GF13: 503.8473731 | GG13: 506.9673201 | GH13: 510.1065867 | GI13: 513.2652923 | GJ13: 516.4435574
A16: ESCALATION FACTORS
B18: O&M escalation factor
E19: =InpC!E$45 -> CPI at O&M contract signature date | F19: =InpC!F$45 -> 145 | G19: =InpC!G$45 -> index
E20: =E$13 -> Forecast CPI | F20: 0 | G20: index | H20: 0 | I20: 0 | J20: 0 | K20: 0 | L20: 170 | M20: 171.0526819 | N20: 172.1118822 | O20: 173.1776414 | P20: 174.25 | Q20: 175.3289989 | R20: 176.4146793 | S20: 177.5070824 | T20: 178.60625 | U20: 179.7122239 | V20: 180.8250463 | W20: 181.9447595 | X20: 183.0714063 | Y20: 184.2050295 | Z20: 185.3456724 | AA20: 186.4933785 | AB20: 187.6481914 | AC20: 188.8101552 | AD20: 189.9793142 | AE20: 191.1557129 | AF20: 192.3393962 | AG20: 193.5304091 | AH20: 194.7287971 | AI20: 195.9346058 | AJ20: 197.1478811 | AK20: =AK$13 -> 198.3686693 | AL20: 199.597017 | AM20: 200.8329709 | AN20: 202.0765781 | AO20: 203.3278861 | AP20: 204.5869424 | AQ20: 205.8537952 | AR20: 207.1284926 | AS20: 208.4110832 | AT20: 209.701616 | AU20: 211.00014 | AV20: 212.3067049 | AW20: 213.6213603 | AX20: 214.9441564 | AY20: 216.2751436 | AZ20: 217.6143725 | BA20: 218.9618943 | BB20: 220.3177603 | BC20: 221.6820221 | BD20: 223.0547318 | BE20: 224.4359417 | BF20: 225.8257043 | BG20: 227.2240727 | BH20: 228.6311001 | BI20: 230.0468402 | BJ20: 231.4713469 | BK20: 232.9046745 | BL20: 234.3468776 | BM20: 235.7980112 | BN20: 237.2581306 | BO20: 238.7272914 | BP20: 240.2055496 | BQ20: =BQ$13 -> 241.6929615 | BR20: 243.1895838 | BS20: 244.6954737 | BT20: 246.2106883 | BU20: 247.7352855 | BV20: 249.2693234 | BW20: 250.8128605 | BX20: 252.3659555 | BY20: 253.9286677 | BZ20: 255.5010565 | CA20: 257.083182 | CB20: 258.6751044 | CC20: 260.2768844 | CD20: 261.8885829 | CE20: 263.5102616 | CF20: 265.141982 | CG20: 266.7838065 | CH20: 268.4357975 | CI20: 270.0980181 | CJ20: 271.7705316 | CK20: 273.4534016 | CL20: 275.1466925 | CM20: 276.8504686 | CN20: 278.5647948 | CO20: 280.2897367 | CP20: 282.0253598 | CQ20: 283.7717303 | CR20: 285.5289147 | CS20: 287.2969801 | CT20: 289.0759938 | CU20: 290.8660235 | CV20: 292.6671376 | CW20: =CW$13 -> 294.4794046 | CX20: 296.3028936 | CY20: 298.1376741 | CZ20: 299.983816 | DA20: 301.8413897 | DB20: 303.7104659 | DC20: 305.591116 | DD20: 307.4834114 | DE20: 309.3874245 | DF20: 311.3032276 | DG20: 313.2308939 | DH20: 315.1704967 | DI20: 317.1221101 | DJ20: 319.0858083 | DK20: 321.0616662 | DL20: 323.0497591 | DM20: 325.0501628 | DN20: 327.0629535 | DO20: 329.0882079 | DP20: 331.1260031 | DQ20: 333.1764169 | DR20: 335.2395273 | DS20: 337.3154131 | DT20: 339.4041532 | DU20: 341.5058273 | DV20: 343.6205155 | DW20: 345.7482984 | DX20: 347.889257 | DY20: 350.043473 | DZ20: 352.2110284 | EA20: 354.3920058 | EB20: 356.5864884 | EC20: =EC$13 -> 358.7945598 | ED20: 361.0163041 | EE20: 363.251806 | EF20: 365.5011507 | EG20: 367.7644238 | EH20: 370.0417117 | EI20: 372.3331011 | EJ20: 374.6386794 | EK20: 376.9585344 | EL20: 379.2927545 | EM20: 381.6414287 | EN20: 384.0046464 | EO20: 386.3824978 | EP20: 388.7750734 | EQ20: 391.1824644 | ER20: 393.6047626 | ES20: 396.0420602 | ET20: 398.4944502 | EU20: 400.962026 | EV20: 403.4448816 | EW20: 405.9431117 | EX20: 408.4568115 | EY20: 410.9860766 | EZ20: 413.5310037 | FA20: 416.0916895 | FB20: 418.6682317 | FC20: 421.2607286 | FD20: 423.8692788 | FE20: 426.4939817 | FF20: 429.1349375 | FG20: 431.7922468 | FH20: 434.4660107 | FI20: =FI$13 -> 437.1563313 | FJ20: 439.863311 | FK20: 442.5870529 | FL20: 445.327661 | FM20: 448.0852396 | FN20: 450.8598938 | FO20: 453.6517293 | FP20: 456.4608525 | FQ20: 459.2873706 | FR20: 462.1313911 | FS20: 464.9930225 | FT20: 467.8723738 | FU20: 470.7695548 | FV20: 473.6846759 | FW20: 476.6178481 | FX20: 479.5691832 | FY20: 482.5387937 | FZ20: 485.5267928 | GA20: 488.5332943 | GB20: 491.5584128 | GC20: 494.6022635 | GD20: 497.6649626 | GE20: 500.7466266 | GF20: 503.8473731 | GG20: 506.9673201 | GH20: 510.1065867 | GI20: 513.2652923 | GJ20: 516.4435574
E21: =Time!E$128 -> Escalation year end month flag | F21: =Time!F$128 -> 0 | G21: =Time!G$128 -> 0 | H21: =Time!H$128 -> 0 | I21: =Time!I$128 -> 0 | J21: =Time!J$128 -> 0 | K21: =Time!K$128 -> 0 | L21: =Time!L$128 -> 1 | M21: =Time!M$128 -> 0 | N21: =Time!N$128 -> 0 | O21: =Time!O$128 -> 0 | P21: =Time!P$128 -> 1 | Q21: =Time!Q$128 -> 0 | R21: =Time!R$128 -> 0 | S21: =Time!S$128 -> 0 | T21: =Time!T$128 -> 1 | U21: =Time!U$128 -> 0 | V21: =Time!V$128 -> 0 | W21: =Time!W$128 -> 0 | X21: =Time!X$128 -> 1 | Y21: =Time!Y$128 -> 0 | Z21: =Time!Z$128 -> 0 | AA21: =Time!AA$128 -> 0 | AB21: =Time!AB$128 -> 1 | AC21: =Time!AC$128 -> 0 | AD21: =Time!AD$128 -> 0 | AE21: =Time!AE$128 -> 0 | AF21: =Time!AF$128 -> 1 | AG21: =Time!AG$128 -> 0 | AH21: =Time!AH$128 -> 0 | AI21: =Time!AI$128 -> 0 | AJ21: =Time!AJ$128 -> 1 | AK21: =Time!AK$128 -> 0 | AL21: =Time!AL$128 -> 0 | AM21: =Time!AM$128 -> 0 | AN21: =Time!AN$128 -> 1 | AO21: =Time!AO$128 -> 0 | AP21: =Time!AP$128 -> 0 | AQ21: =Time!AQ$128 -> 0 | AR21: =Time!AR$128 -> 1 | AS21: =Time!AS$128 -> 0 | AT21: =Time!AT$128 -> 0 | AU21: =Time!AU$128 -> 0 | AV21: =Time!AV$128 -> 1 | AW21: =Time!AW$128 -> 0 | AX21: =Time!AX$128 -> 0 | AY21: =Time!AY$128 -> 0 | AZ21: =Time!AZ$128 -> 1 | BA21: =Time!BA$128 -> 0 | BB21: =Time!BB$128 -> 0 | BC21: =Time!BC$128 -> 0 | BD21: =Time!BD$128 -> 1 | BE21: =Time!BE$128 -> 0 | BF21: =Time!BF$128 -> 0 | BG21: =Time!BG$128 -> 0 | BH21: =Time!BH$128 -> 1 | BI21: =Time!BI$128 -> 0 | BJ21: =Time!BJ$128 -> 0 | BK21: =Time!BK$128 -> 0 | BL21: =Time!BL$128 -> 1 | BM21: =Time!BM$128 -> 0 | BN21: =Time!BN$128 -> 0 | BO21: =Time!BO$128 -> 0 | BP21: =Time!BP$128 -> 1 | BQ21: =Time!BQ$128 -> 0 | BR21: =Time!BR$128 -> 0 | BS21: =Time!BS$128 -> 0 | BT21: =Time!BT$128 -> 1 | BU21: =Time!BU$128 -> 0 | BV21: =Time!BV$128 -> 0 | BW21: =Time!BW$128 -> 0 | BX21: =Time!BX$128 -> 1 | BY21: =Time!BY$128 -> 0 | BZ21: =Time!BZ$128 -> 0 | CA21: =Time!CA$128 -> 0 | CB21: =Time!CB$128 -> 1 | CC21: =Time!CC$128 -> 0 | CD21: =Time!CD$128 -> 0 | CE21: =Time!CE$128 -> 0 | CF21: =Time!CF$128 -> 1 | CG21: =Time!CG$128 -> 0 | CH21: =Time!CH$128 -> 0 | CI21: =Time!CI$128 -> 0 | CJ21: =Time!CJ$128 -> 1 | CK21: =Time!CK$128 -> 0 | CL21: =Time!CL$128 -> 0 | CM21: =Time!CM$128 -> 0 | CN21: =Time!CN$128 -> 1 | CO21: =Time!CO$128 -> 0 | CP21: =Time!CP$128 -> 0 | CQ21: =Time!CQ$128 -> 0 | CR21: =Time!CR$128 -> 1 | CS21: =Time!CS$128 -> 0 | CT21: =Time!CT$128 -> 0 | CU21: =Time!CU$128 -> 0 | CV21: =Time!CV$128 -> 1 | CW21: =Time!CW$128 -> 0 | CX21: =Time!CX$128 -> 0 | CY21: =Time!CY$128 -> 0 | CZ21: =Time!CZ$128 -> 1 | DA21: =Time!DA$128 -> 0 | DB21: =Time!DB$128 -> 0 | DC21: =Time!DC$128 -> 0 | DD21: =Time!DD$128 -> 1 | DE21: =Time!DE$128 -> 0 | DF21: =Time!DF$128 -> 0 | DG21: =Time!DG$128 -> 0 | DH21: =Time!DH$128 -> 1 | DI21: =Time!DI$128 -> 0 | DJ21: =Time!DJ$128 -> 0 | DK21: =Time!DK$128 -> 0 | DL21: =Time!DL$128 -> 1 | DM21: =Time!DM$128 -> 0 | DN21: =Time!DN$128 -> 0 | DO21: =Time!DO$128 -> 0 | DP21: =Time!DP$128 -> 1 | DQ21: =Time!DQ$128 -> 0 | DR21: =Time!DR$128 -> 0 | DS21: =Time!DS$128 -> 0 | DT21: =Time!DT$128 -> 1 | DU21: =Time!DU$128 -> 0 | DV21: =Time!DV$128 -> 0 | DW21: =Time!DW$128 -> 0 | DX21: =Time!DX$128 -> 1 | DY21: =Time!DY$128 -> 0 | DZ21: =Time!DZ$128 -> 0 | EA21: =Time!EA$128 -> 0 | EB21: =Time!EB$128 -> 1 | EC21: =Time!EC$128 -> 0 | ED21: =Time!ED$128 -> 0 | EE21: =Time!EE$128 -> 0 | EF21: =Time!EF$128 -> 1 | EG21: =Time!EG$128 -> 0 | EH21: =Time!EH$128 -> 0 | EI21: =Time!EI$128 -> 0 | EJ21: =Time!EJ$128 -> 1 | EK21: =Time!EK$128 -> 0 | EL21: =Time!EL$128 -> 0 | EM21: =Time!EM$128 -> 0 | EN21: =Time!EN$128 -> 1 | EO21: =Time!EO$128 -> 0 | EP21: =Time!EP$128 -> 0 | EQ21: =Time!EQ$128 -> 0 | ER21: =Time!ER$128 -> 1 | ES21: =Time!ES$128 -> 0 | ET21: =Time!ET$128 -> 0 | EU21: =Time!EU$128 -> 0 | EV21: =Time!EV$128 -> 1 | EW21: =Time!EW$128 -> 0 | EX21: =Time!EX$128 -> 0 | EY21: =Time!EY$128 -> 0 | EZ21: =Time!EZ$128 -> 1 | FA21: =Time!FA$128 -> 0 | FB21: =Time!FB$128 -> 0 | FC21: =Time!FC$128 -> 0 | FD21: =Time!FD$128 -> 1 | FE21: =Time!FE$128 -> 0 | FF21: =Time!FF$128 -> 0 | FG21: =Time!FG$128 -> 0 | FH21: =Time!FH$128 -> 1 | FI21: =Time!FI$128 -> 0 | FJ21: =Time!FJ$128 -> 0 | FK21: =Time!FK$128 -> 0 | FL21: =Time!FL$128 -> 1 | FM21: =Time!FM$128 -> 0 | FN21: =Time!FN$128 -> 0 | FO21: =Time!FO$128 -> 0 | FP21: =Time!FP$128 -> 1 | FQ21: =Time!FQ$128 -> 0 | FR21: =Time!FR$128 -> 0 | FS21: =Time!FS$128 -> 0 | FT21: =Time!FT$128 -> 1 | FU21: =Time!FU$128 -> 0 | FV21: =Time!FV$128 -> 0 | FW21: =Time!FW$128 -> 0 | FX21: =Time!FX$128 -> 1 | FY21: =Time!FY$128 -> 0 | FZ21: =Time!FZ$128 -> 0 | GA21: =Time!GA$128 -> 0 | GB21: =Time!GB$128 -> 1 | GC21: =Time!GC$128 -> 0 | GD21: =Time!GD$128 -> 0 | GE21: =Time!GE$128 -> 0 | GF21: =Time!GF$128 -> 1 | GG21: =Time!GG$128 -> 0 | GH21: =Time!GH$128 -> 0 | GI21: =Time!GI$128 -> 0 | GJ21: =Time!GJ$128 -> 1
